Workbook

Sheet Read Me
B2: Guidance
B5: 1. The spreadsheet is colour coded as follows:
E7: Row and column headings
E9: Data entry by user
E11: Data provided in spreadsheet
E13: Results and interim calculations
E15: Totals
E17: Worst doses / Remove site button
B19: 2. Assessment Details - Enter the relevant data on this sheet. You should answer the questions relating to the route of the treated effluent as this will ensure that doses are only calculated for the appropriate population groups. You may enter the average brook flow rate, river flow rate, raw sewage flow rate and estuary/coastal water exchange rate. Default values are provided if the information is not available.
B21: 3. Dose units’ selection- In the Assessment Details tab you will be able to select if you preferred the Dose results to be presented in mSv/y or microSv/y. To select this you can go to cel C10 in the Assessment Details tab. You can apply this change at any point during the analysis or after the results are presented.
B23: 4. Release to Sewer Details - MRT.17 has changed it's layout to present a clearer presentation. In this tab you will be able to add new permits, remove permits, input discharge at limits for each permit and to calculate doses. Enter the limits for each radionuclide for each sewer permit. With the use of the "ADD NEW SITE" and "REMOVE SITE" buttons you can include as many permit sites as needed. You may need to select surrogate radionuclides or use the other alpha and other beta gamma categories.
B25: 5. Release to Sewer Details- After introducing the relevant data you will need to use of the "CALCULATE DOSES" button to process the doses calculations. The Assessment can take around 60 seconds. Pleas be patient.
B27: 6. Worker dose, farming family dose, child in brook dose, angler dose, irrig food dose and fisherman dose - The dose contribution from each exposure pathway for these population groups are shown.
B29: 7. Final report - In the final report MRT.17 will present the Assessment details, the release to sewer details, summary cumulative doses. Summary cumulative doses for wildlife and total doses in a printing layout. In this report only radionuclides with data in the Release to Sewer Details section will be presented.
B31: 8. Printing - A new feature in MRT.17 allow the user to print the final assessment. In the Assessment Details tab you will find a Print button in cell C2. This will call for the document to be printed in an A4 layout. In Cel F2 you can type the number of copies you wish to print.

Sheet Assessment Details
A1: Multiple release to sewer - Assessment Details | D1: Yes
A2: Version 18.0 | E2: Copies: | F2: 1
D3: No
B4: Please make sure to end saving path using a ( \ )
A5: Save Path | B5: Insert Full Filepath and end save path with a \
A7: Name of sewage works | B7: v17
A8: SEPA Reference Number | B8: x
A10: Please select prefered units for dose results | C10: mSv/y | F10: mSv/y
C11: 1
A12: Where does effluent discharge from STW go?:
A13: To a burn? | C13: Yes
A15: To a river direct from STW or via a burn? | C15: Yes
A17: To estuary/coast direct from STW or via a burn or river? | C17: Yes
A19: Data entry:
A20: Average burn flow rate | C20: 0.1 | D20: m3/s
A21: Please state your reasons:
A25: Average river flow rate | C25: 49.16 | D25: m3/s
A26: Please state your reasons:
A30: Sewage works | C30: St Andrews
A31: Sewage works | C31: User defined
A32: Average raw sewage flow rate | C32: =INDEX('STW data'!$H$5:$N$29, MATCH($C$30,'STW data'!H5:H29,), MATCH("average raw sewage flow rate (m3/day)",'STW data'!$H$2:$N$2,)) -> 11793 | D32: m3/day
A33: User defined Average raw sewage flow rate | C33: 0 | D33: m3/day
A34: Please state your reasons:
A38: Average coastal/estuary exchange rate | C38: =INDEX('STW data'!$H$5:$O$29, MATCH($C$30,'STW data'!H5:H29,), MATCH("average coastal/estuary exchange rate (m3/s)",'STW data'!$H$2:$O$2,)) -> 3500 | D38: m3/s
A39: User defined Average coastal/estuary exchange rate | C39: 30 | D39: m3/s
A40: Please state your reasons:
B44: Name | D44: Signature | F44: Date
A45: Assessed by | F45: =NOW() -> 2016-09-27T11:35:14.030
A46: Reviewed by

Sheet Release to Sewer Details
A1: Release to Sewer
B2: Valid | C2: stop
A3: Add New Permit
A4: Remove Permit | B4: 553 | C4: stop
A5: Calculate Doses | B5: PERMIT No.
A6: Radionuclide | B6: Discharge at Limits | C6: Cumulative Discharge at Limits
B7: Bq/y | C7: Bq/y
A8: Tritium | C8: =SUM($B8:B8) -> 0
A9: Tritium (Organically Bound) | C9: =SUM($B9:B9) -> 0
A10: Carbon-11 | C10: =SUM($B10:B10) -> 0
A11: Carbon-14 | C11: =SUM($B11:B11) -> 0
A12: Fluorine-18 | C12: =SUM($B12:B12) -> 0
A13: Sodium-22 | C13: =SUM($B13:B13) -> 0
A14: Sodium-24 | C14: =SUM($B14:B14) -> 0
A15: Phosphorus-32 | C15: =SUM($B15:B15) -> 0
A16: Phosphorus-33 | C16: =SUM($B16:B16) -> 0
A17: Sulphur-35 | C17: =SUM($B17:B17) -> 0
A18: Chlorine-36 | C18: =SUM($B18:B18) -> 0
A19: Calcium-45 | C19: =SUM($B19:B19) -> 0
A20: Calcium-47 | C20: =SUM($B20:B20) -> 0
A21: Vanadium-48 | C21: =SUM($B21:B21) -> 0
A22: Chromium-51 | C22: =SUM($B22:B22) -> 0
A23: Manganese-52 | C23: =SUM($B23:B23) -> 0
A24: Manganese-54 | C24: =SUM($B24:B24) -> 0
A25: Manganese-56 | C25: =SUM($B25:B25) -> 0
A26: Iron-55 | C26: =SUM($B26:B26) -> 0
A27: Iron-59 | C27: =SUM($B27:B27) -> 0
A28: Cobalt-56 | C28: =SUM($B28:B28) -> 0
A29: Cobalt-57 | C29: =SUM($B29:B29) -> 0
A30: Cobalt-58 | C30: =SUM($B30:B30) -> 0
A31: Cobalt-60 | C31: =SUM($B31:B31) -> 0
A32: Nickel-63 | C32: =SUM($B32:B32) -> 0
A33: Zinc-65 | C33: =SUM($B33:B33) -> 0
A34: Gallium-67 | C34: =SUM($B34:B34) -> 0
A35: Selenium-75 | C35: =SUM($B35:B35) -> 0
A36: Bromine-82 | C36: =SUM($B36:B36) -> 0
A37: Rubidium-82 | C37: =SUM($B37:B37) -> 0
A38: Rubidium-83 | C38: =SUM($B38:B38) -> 0
A39: Strontium-89 | C39: =SUM($B39:B39) -> 0
A40: Strontium-90 | C40: =SUM($B40:B40) -> 0
A41: Yttrium-90 | C41: =SUM($B41:B41) -> 0
A42: Zirconium-95 | C42: =SUM($B42:B42) -> 0
A43: Niobium-95 | C43: =SUM($B43:B43) -> 0
A44: Molybdenum-99 | C44: =SUM($B44:B44) -> 0
A45: Technetium-99 | C45: =SUM($B45:B45) -> 0
A46: Technetium-99m | C46: =SUM($B46:B46) -> 0
A47: Ruthenium-103 | C47: =SUM($B47:B47) -> 0
A48: Ruthenium-106 | C48: =SUM($B48:B48) -> 0
A49: Silver-110m | C49: =SUM($B49:B49) -> 0
A50: Indium-111 | C50: =SUM($B50:B50) -> 0
A51: Indium-113m | C51: =SUM($B51:B51) -> 0
A52: Antimony-125 | C52: =SUM($B52:B52) -> 0
A53: Iodine-123 | C53: =SUM($B53:B53) -> 0
A54: Iodine-125 | C54: =SUM($B54:B54) -> 0
A55: Iodine-129 | C55: =SUM($B55:B55) -> 0
A56: Iodine-131 | C56: =SUM($B56:B56) -> 0
A57: Iodine-132 | C57: =SUM($B57:B57) -> 0
A58: Iodine-133 | C58: =SUM($B58:B58) -> 0
A59: Iodine-134 | C59: =SUM($B59:B59) -> 0
A60: Iodine-135 | C60: =SUM($B60:B60) -> 0
A61: Caesium-134 | C61: =SUM($B61:B61) -> 0
A62: Caesium-136 | C62: =SUM($B62:B62) -> 0
A63: Caesium-137 | C63: =SUM($B63:B63) -> 0
A64: Barium-140 | C64: =SUM($B64:B64) -> 0
A65: Lanthanum-140 | C65: =SUM($B65:B65) -> 0
A66: Cerium-141 | C66: =SUM($B66:B66) -> 0
A67: Cerium-144 | C67: =SUM($B67:B67) -> 0
A68: Promethium-147 | C68: =SUM($B68:B68) -> 0
A69: Samarium-153 | C69: =SUM($B69:B69) -> 0
A70: Europium-152 | C70: =SUM($B70:B70) -> 0
A71: Europium-154 | C71: =SUM($B71:B71) -> 0
A72: Europium-155 | C72: =SUM($B72:B72) -> 0
A73: Erbium-169 | C73: =SUM($B73:B73) -> 0
A74: Lutetium-177 | C74: =SUM($B74:B74) -> 0
A75: Gold-198 | C75: =SUM($B75:B75) -> 0
A76: Thallium-201 | C76: =SUM($B76:B76) -> 0
A77: Lead-210 | C77: =SUM($B77:B77) -> 0
A78: Polonium-210 | C78: =SUM($B78:B78) -> 0
A79: Radium-223 | C79: =SUM($B79:B79) -> 0
A80: Radium-226 | C80: =SUM($B80:B80) -> 0
A81: Thorium-230 | C81: =SUM($B81:B81) -> 0
A82: Thorium-232 | C82: =SUM($B82:B82) -> 0
A83: Thorium-234 | C83: =SUM($B83:B83) -> 0
A84: Uranium-234 | C84: =SUM($B84:B84) -> 0
A85: Uranium-235 | C85: =SUM($B85:B85) -> 0
A86: Uranium-238 | C86: =SUM($B86:B86) -> 0
A87: Neptunium-237 | C87: =SUM($B87:B87) -> 0
A88: Plutonium-238 | C88: =SUM($B88:B88) -> 0
A89: Plutonium-239 | C89: =SUM($B89:B89) -> 0
A90: Plutonium-240 | C90: =SUM($B90:B90) -> 0
A91: Plutonium-241 | C91: =SUM($B91:B91) -> 0
A92: Plutonium-242 | C92: =SUM($B92:B92) -> 0
A93: Americium-241 | C93: =SUM($B93:B93) -> 0
A94: Americium-242 | C94: =SUM($B94:B94) -> 0
A95: Americium-243 | C95: =SUM($B95:B95) -> 0
A96: Curium-242 | C96: =SUM($B96:B96) -> 0
A97: Curium-243 | C97: =SUM($B97:B97) -> 0
A98: Curium-244 | C98: =SUM($B98:B98) -> 0
A99: Other alpha-emitting nuclides | C99: =SUM($B99:B99) -> 0
A100: Other beta/gamma-emitting nuclides | C100: =SUM($B100:B100) -> 0

Sheet Sheet1 (hidden)
C5: Radionuclide
C7: Tritium
C8: Tritium (Organically Bound)
C9: Carbon-11
C10: Carbon-14
C11: Fluorine-18
C12: Sodium-22
C13: Sodium-24
C14: Phosphorus-32
C15: Phosphorus-33
C16: Sulphur-35
C17: Chlorine-36
C18: Calcium-45
C19: Calcium-47
C20: Vanadium-48
C21: Chromium-51
C22: Manganese-52
C23: Manganese-54
C24: Manganese-56
C25: Iron-55
C26: Iron-59
C27: Cobalt-56
C28: Cobalt-57
C29: Cobalt-58
C30: Cobalt-60
C31: Nickel-63
C32: Zinc-65
C33: Gallium-67
C34: Selenium-75
C35: Bromine-82
C36: Rubidium-82
C37: Rubidium-83
C38: Strontium-89
C39: Strontium-90
C40: Yttrium-90
C41: Zirconium-95
C42: Niobium-95
C43: Molybdenum-99
C44: Technetium-99
C45: Technetium-99m
C46: Ruthenium-103
C47: Ruthenium-106
C48: Silver-110m
C49: Indium-111
C50: Indium-113m
C51: Antimony-125
C52: Iodine-123
C53: Iodine-125
C54: Iodine-129
C55: Iodine-131
C56: Iodine-132
C57: Iodine-133
C58: Iodine-134
C59: Iodine-135
C60: Caesium-134
C61: Caesium-136
C62: Caesium-137
C63: Barium-140
C64: Lanthanum-140
C65: Cerium-141
C66: Cerium-144
C67: Promethium-147
C68: Samarium-153
C69: Europium-152
C70: Europium-154
C71: Europium-155
C72: Erbium-169
C73: Lutetium-177
C74: Gold-198
C75: Thallium-201
C76: Lead-210
C77: Polonium-210
C78: Radium-223
C79: Radium-226
C80: Thorium-230
C81: Thorium-232
C82: Thorium-234
C83: Uranium-234
C84: Uranium-235
C85: Uranium-238
C86: Neptunium-237
C87: Plutonium-238
C88: Plutonium-239
C89: Plutonium-240
C90: Plutonium-241
C91: Plutonium-242
C92: Americium-241
C93: Americium-242
C94: Americium-243
C95: Curium-242
C96: Curium-243
C97: Curium-244
C98: Other alpha-emitting nuclides
C99: Other beta/gamma-emitting nuclides

Sheet Calculator (hidden)
C4: WORKER | H4: FARMING FAMILY | N4: CHILD PLAYING IN burn | S4: ANGLER | Y4: IRRIGATED FOOD CONSUMER | AC4: FISHERMAN | AH4: RIVER WILDLIFE | AK4: ESTUARY WILDLIFE
A5: 552 | C5: =A5 -> 552 | H5: =(A5) -> 552 | N5: =(A5) -> 552 | S5: =(N5) -> 552 | Y5: =(S5) -> 552 | AC5: =(Y5) -> 552 | AH5: =(A5) -> 552 | AK5: =(A5) -> 552 | AN5: =(A5) -> 552
A6: PERMIT No. | C6: =A6 -> PERMIT No. | H6: =A6 -> PERMIT No. | N6: =A6 -> PERMIT No. | S6: =A6 -> PERMIT No. | Y6: =A6 -> PERMIT No. | AC6: =A6 -> PERMIT No. | AH6: =(A6) -> PERMIT No. | AK6: =(A6) -> PERMIT No. | AN6: =(A6) -> PERMIT No.
A7: Discharge at Limits | C7: External dose | D7: Inadvertent inh and ing dose | E7: Total dose | H7: Food dose | I7: External dose | J7: Inadvertent inh and ing dose | K7: Total dose | N7: External dose | O7: Inadvertent inh and ing dose | P7: Total dose | S7: External dose | T7: Fish dose | U7: Water dose | V7: Total dose | Y7: Food dose | Z7: Total dose | AC7: External dose | AD7: Fish dose | AE7: Total dose | AH7: Worst affected organism | AK7: Worst affected organism | AN7: Total Doses
A8: Bq/y | C8: =('Assessment Details'!C10) -> mSv/y | D8: =('Assessment Details'!C10) -> mSv/y | E8: =('Assessment Details'!C10) -> mSv/y | H8: =('Assessment Details'!C10) -> mSv/y | I8: =('Assessment Details'!C10) -> mSv/y | J8: =('Assessment Details'!C10) -> mSv/y | K8: =('Assessment Details'!C10) -> mSv/y | N8: =('Assessment Details'!C10) -> mSv/y | O8: =('Assessment Details'!C10) -> mSv/y | P8: =('Assessment Details'!C10) -> mSv/y | S8: =('Assessment Details'!C10) -> mSv/y | T8: =('Assessment Details'!C10) -> mSv/y | U8: =('Assessment Details'!C10) -> mSv/y | V8: =('Assessment Details'!C10) -> mSv/y | Y8: =('Assessment Details'!C10) -> mSv/y | Z8: =('Assessment Details'!C10) -> mSv/y | AC8: =('Assessment Details'!C10) -> mSv/y | AD8: =('Assessment Details'!C10) -> mSv/y | AE8: =('Assessment Details'!C10) -> mSv/y | AH8: microGy/h | AK8: microGy/h | AN8: =(E103) -> 1.933350293e-19 | AQ8: Yes | AR8: Combo box selection #1 | AU8: mSv/y | AV8: selection #1
A9: 1 | C9: =(A9*'Dose per unit release'!$A9*60/'Assessment Details'!$C$32)/$AV$11 -> 0 | D9: =(A9*'Dose per unit release'!$B9*60/'Assessment Details'!$C$32)/$AV$11 -> 1.933350293e-19 | E9: =(A9*'Dose per unit release'!$C9*60/'Assessment Details'!$C$32)/$AV$11 -> 1.933350293e-19 | H9: =(A9*'Dose per unit release'!$F9*60/'Assessment Details'!$C$32)/$AV$11 -> 2.594759603e-16 | I9: =(A9*'Dose per unit release'!$G9*60/'Assessment Details'!$C$32)/$AV$11 -> 0 | J9: =(A9*'Dose per unit release'!$H9*60/'Assessment Details'!$C$32)/$AV$11 -> 3.307046553e-23 | K9: =(A9*'Dose per unit release'!$I9*60/'Assessment Details'!$C$32)/$AV$11 -> 2.594759603e-16 | N9: =(Calculator!$AR$11*A9*'Dose per unit release'!$L9*0.1/'Assessment Details'!$C$20)/$AV$11 -> 0 | O9: =(Calculator!$AR$11*A9*'Dose per unit release'!$M9*0.1/'Assessment Details'!$C$20)/$AV$11 -> 3.1e-17 | P9: =(Calculator!$AR$11*A9*'Dose per unit release'!$N9*0.1/'Assessment Details'!$C$20)/$AV$11 -> 3.1e-17 | S9: =(Calculator!$AR$13*A9*'Dose per unit release'!$Q9*'Dose per unit release'!$R9/'Assessment Details'!$C$25)/$AV$11 -> 0 | T9: =(Calculator!$AR$13*A9*'Dose per unit release'!$Q9*'Dose per unit release'!$S9/'Assessment Details'!$C$25)/$AV$11 -> 2.939381611e-19 | U9: =(Calculator!$AR$13*A9*'Dose per unit release'!$Q9*'Dose per unit release'!$T9/'Assessment Details'!$C$25)/$AV$11 -> 1.002847844e-17 | V9: =(Calculator!$AR$13*A9*'Dose per unit release'!$Q9*'Dose per unit release'!$U9/'Assessment Details'!$C$25)/$AV$11 -> 1.037428804e-17 | Y9: =(Calculator!$AR$13*A9*'Dose per unit release'!$X9*'Dose per unit release'!$Y9/'Assessment Details'!$C$25)/$AV$11 -> 7.607811229e-19 | Z9: =(Calculator!$AR$13*A9*'Dose per unit release'!$X9*'Dose per unit release'!$Z9/'Assessment Details'!$C$25)/$AV$11 -> 7.607811229e-19 | AC9: =(Calculator!$AR$15*A9*'Dose per unit release'!$AC9*'Dose per unit release'!$AD9*100/'Assessment Details'!$C$39)/$AV$11 -> 0 | AD9: =(Calculator!$AR$15*A9*'Dose per unit release'!$AC9*'Dose per unit release'!$AE9*100/'Assessment Details'!$C$39)/$AV$11 -> 2.521666667e-18 | AE9: =(Calculator!$AR$15*A9*'Dose per unit release'!$AC9*'Dose per unit release'!$AF9*100/'Assessment Details'!$C$39)/$AV$11 -> 2.521666667e-18 | AH9: =Calculator!$AR$13*A9*'Dose per unit release'!$AI9*'Dose per unit release'!$AJ9/'Assessment Details'!$C$25 -> 5.36004882e-18 | AK9: =Calculator!$AR$15*A9*'Dose per unit release'!$AL9*'Dose per unit release'!$AM9*100/'Assessment Details'!$C$39 -> 8.783333333e-18 | AN9: =(K103) -> 2.594759603e-16 | AQ9: No | AR9: Combo box selection #2 | AU9: microSv/y | AV9: selection #2
C10: =(A10*'Dose per unit release'!$A10*60/'Assessment Details'!$C$32)/$AV$11 -> 0 | D10: =(A10*'Dose per unit release'!$B10*60/'Assessment Details'!$C$32)/$AV$11 -> 0 | E10: =(A10*'Dose per unit release'!$C10*60/'Assessment Details'!$C$32)/$AV$11 -> 0 | H10: =(A10*'Dose per unit release'!$F10*60/'Assessment Details'!$C$32)/$AV$11 -> 0 | I10: =(A10*'Dose per unit release'!$G10*60/'Assessment Details'!$C$32)/$AV$11 -> 0 | J10: =(A10*'Dose per unit release'!$H10*60/'Assessment Details'!$C$32)/$AV$11 -> 0 | K10: =(A10*'Dose per unit release'!$I10*60/'Assessment Details'!$C$32)/$AV$11 -> 0 | N10: =(Calculator!$AR$11*A10*'Dose per unit release'!$L10*0.1/'Assessment Details'!$C$20)/$AV$11 -> 0 | O10: =(Calculator!$AR$11*A10*'Dose per unit release'!$M10*0.1/'Assessment Details'!$C$20)/$AV$11 -> 0 | P10: =(Calculator!$AR$11*A10*'Dose per unit release'!$N10*0.1/'Assessment Details'!$C$20)/$AV$11 -> 0 | S10: =(Calculator!$AR$13*A10*'Dose per unit release'!$Q10*'Dose per unit release'!$R10/'Assessment Details'!$C$25)/$AV$11 -> 0 | T10: =(Calculator!$AR$13*A10*'Dose per unit release'!$Q10*'Dose per unit release'!$S10/'Assessment Details'!$C$25)/$AV$11 -> 0 | U10: =(Calculator!$AR$13*A10*'Dose per unit release'!$Q10*'Dose per unit release'!$T10/'Assessment Details'!$C$25)/$AV$11 -> 0 | V10: =(Calculator!$AR$13*A10*'Dose per unit release'!$Q10*'Dose per unit release'!$U10/'Assessment Details'!$C$25)/$AV$11 -> 0 | Y10: =(Calculator!$AR$13*A10*'Dose per unit release'!$X10*'Dose per unit release'!$Y10/'Assessment Details'!$C$25)/$AV$11 -> 0 | Z10: =(Calculator!$AR$13*A10*'Dose per unit release'!$X10*'Dose per unit release'!$Z10/'Assessment Details'!$C$25)/$AV$11 -> 0 | AC10: =(Calculator!$AR$15*A10*'Dose per unit release'!$AC10*'Dose per unit release'!$AD10*100/'Assessment Details'!$C$39)/$AV$11 -> 0 | AD10: =(Calculator!$AR$15*A10*'Dose per unit release'!$AC10*'Dose per unit release'!$AE10*100/'Assessment Details'!$C$39)/$AV$11 -> 0 | AE10: =(Calculator!$AR$15*A10*'Dose per unit release'!$AC10*'Dose per unit release'!$AF10*100/'Assessment Details'!$C$39)/$AV$11 -> 0 | AH10: =Calculator!$AR$13*A10*'Dose per unit release'!$AI10*'Dose per unit release'!$AJ10/'Assessment Details'!$C$25 -> 0 | AK10: =Calculator!$AR$15*A10*'Dose per unit release'!$AL10*'Dose per unit release'!$AM10*100/'Assessment Details'!$C$39 -> 0 | AN10: =(P103) -> 3.1e-17
C11: =(A11*'Dose per unit release'!$A11*60/'Assessment Details'!$C$32)/$AV$11 -> 0 | D11: =(A11*'Dose per unit release'!$B11*60/'Assessment Details'!$C$32)/$AV$11 -> 0 | E11: =(A11*'Dose per unit release'!$C11*60/'Assessment Details'!$C$32)/$AV$11 -> 0 | H11: =(A11*'Dose per unit release'!$F11*60/'Assessment Details'!$C$32)/$AV$11 -> 0 | I11: =(A11*'Dose per unit release'!$G11*60/'Assessment Details'!$C$32)/$AV$11 -> 0 | J11: =(A11*'Dose per unit release'!$H11*60/'Assessment Details'!$C$32)/$AV$11 -> 0 | K11: =(A11*'Dose per unit release'!$I11*60/'Assessment Details'!$C$32)/$AV$11 -> 0 | N11: =(Calculator!$AR$11*A11*'Dose per unit release'!$L11*0.1/'Assessment Details'!$C$20)/$AV$11 -> 0 | O11: =(Calculator!$AR$11*A11*'Dose per unit release'!$M11*0.1/'Assessment Details'!$C$20)/$AV$11 -> 0 | P11: =(Calculator!$AR$11*A11*'Dose per unit release'!$N11*0.1/'Assessment Details'!$C$20)/$AV$11 -> 0 | S11: =(Calculator!$AR$13*A11*'Dose per unit release'!$Q11*'Dose per unit release'!$R11/'Assessment Details'!$C$25)/$AV$11 -> 0 | T11: =(Calculator!$AR$13*A11*'Dose per unit release'!$Q11*'Dose per unit release'!$S11/'Assessment Details'!$C$25)/$AV$11 -> 0 | U11: =(Calculator!$AR$13*A11*'Dose per unit release'!$Q11*'Dose per unit release'!$T11/'Assessment Details'!$C$25)/$AV$11 -> 0 | V11: =(Calculator!$AR$13*A11*'Dose per unit release'!$Q11*'Dose per unit release'!$U11/'Assessment Details'!$C$25)/$AV$11 -> 0 | Y11: =(Calculator!$AR$13*A11*'Dose per unit release'!$X11*'Dose per unit release'!$Y11/'Assessment Details'!$C$25)/$AV$11 -> 0 | Z11: =(Calculator!$AR$13*A11*'Dose per unit release'!$X11*'Dose per unit release'!$Z11/'Assessment Details'!$C$25)/$AV$11 -> 0 | AC11: =(Calculator!$AR$15*A11*'Dose per unit release'!$AC11*'Dose per unit release'!$AD11*100/'Assessment Details'!$C$39)/$AV$11 -> 0 | AD11: =(Calculator!$AR$15*A11*'Dose per unit release'!$AC11*'Dose per unit release'!$AE11*100/'Assessment Details'!$C$39)/$AV$11 -> 0 | AE11: =(Calculator!$AR$15*A11*'Dose per unit release'!$AC11*'Dose per unit release'!$AF11*100/'Assessment Details'!$C$39)/$AV$11 -> 0 | AH11: =Calculator!$AR$13*A11*'Dose per unit release'!$AI11*'Dose per unit release'!$AJ11/'Assessment Details'!$C$25 -> 0 | AK11: =Calculator!$AR$15*A11*'Dose per unit release'!$AL11*'Dose per unit release'!$AM11*100/'Assessment Details'!$C$39 -> 0 | AN11: =(V103) -> 1.037428804e-17 | AQ11: burn factor | AR11: =IF('Assessment Details'!$C$13="Yes",1,0) -> 1 | AU11: Units Factor | AV11: =IF('Assessment Details'!$C$10="mSv/y",1000,1) -> 1000
C12: =(A12*'Dose per unit release'!$A12*60/'Assessment Details'!$C$32)/$AV$11 -> 0 | D12: =(A12*'Dose per unit release'!$B12*60/'Assessment Details'!$C$32)/$AV$11 -> 0 | E12: =(A12*'Dose per unit release'!$C12*60/'Assessment Details'!$C$32)/$AV$11 -> 0 | H12: =(A12*'Dose per unit release'!$F12*60/'Assessment Details'!$C$32)/$AV$11 -> 0 | I12: =(A12*'Dose per unit release'!$G12*60/'Assessment Details'!$C$32)/$AV$11 -> 0 | J12: =(A12*'Dose per unit release'!$H12*60/'Assessment Details'!$C$32)/$AV$11 -> 0 | K12: =(A12*'Dose per unit release'!$I12*60/'Assessment Details'!$C$32)/$AV$11 -> 0 | N12: =(Calculator!$AR$11*A12*'Dose per unit release'!$L12*0.1/'Assessment Details'!$C$20)/$AV$11 -> 0 | O12: =(Calculator!$AR$11*A12*'Dose per unit release'!$M12*0.1/'Assessment Details'!$C$20)/$AV$11 -> 0 | P12: =(Calculator!$AR$11*A12*'Dose per unit release'!$N12*0.1/'Assessment Details'!$C$20)/$AV$11 -> 0 | S12: =(Calculator!$AR$13*A12*'Dose per unit release'!$Q12*'Dose per unit release'!$R12/'Assessment Details'!$C$25)/$AV$11 -> 0 | T12: =(Calculator!$AR$13*A12*'Dose per unit release'!$Q12*'Dose per unit release'!$S12/'Assessment Details'!$C$25)/$AV$11 -> 0 | U12: =(Calculator!$AR$13*A12*'Dose per unit release'!$Q12*'Dose per unit release'!$T12/'Assessment Details'!$C$25)/$AV$11 -> 0 | V12: =(Calculator!$AR$13*A12*'Dose per unit release'!$Q12*'Dose per unit release'!$U12/'Assessment Details'!$C$25)/$AV$11 -> 0 | Y12: =(Calculator!$AR$13*A12*'Dose per unit release'!$X12*'Dose per unit release'!$Y12/'Assessment Details'!$C$25)/$AV$11 -> 0 | Z12: =(Calculator!$AR$13*A12*'Dose per unit release'!$X12*'Dose per unit release'!$Z12/'Assessment Details'!$C$25)/$AV$11 -> 0 | AC12: =(Calculator!$AR$15*A12*'Dose per unit release'!$AC12*'Dose per unit release'!$AD12*100/'Assessment Details'!$C$39)/$AV$11 -> 0 | AD12: =(Calculator!$AR$15*A12*'Dose per unit release'!$AC12*'Dose per unit release'!$AE12*100/'Assessment Details'!$C$39)/$AV$11 -> 0 | AE12: =(Calculator!$AR$15*A12*'Dose per unit release'!$AC12*'Dose per unit release'!$AF12*100/'Assessment Details'!$C$39)/$AV$11 -> 0 | AH12: =Calculator!$AR$13*A12*'Dose per unit release'!$AI12*'Dose per unit release'!$AJ12/'Assessment Details'!$C$25 -> 0 | AK12: =Calculator!$AR$15*A12*'Dose per unit release'!$AL12*'Dose per unit release'!$AM12*100/'Assessment Details'!$C$39 -> 0 | AN12: =(Z103) -> 7.607811229e-19
C13: =(A13*'Dose per unit release'!$A13*60/'Assessment Details'!$C$32)/$AV$11 -> 0 | D13: =(A13*'Dose per unit release'!$B13*60/'Assessment Details'!$C$32)/$AV$11 -> 0 | E13: =(A13*'Dose per unit release'!$C13*60/'Assessment Details'!$C$32)/$AV$11 -> 0 | H13: =(A13*'Dose per unit release'!$F13*60/'Assessment Details'!$C$32)/$AV$11 -> 0 | I13: =(A13*'Dose per unit release'!$G13*60/'Assessment Details'!$C$32)/$AV$11 -> 0 | J13: =(A13*'Dose per unit release'!$H13*60/'Assessment Details'!$C$32)/$AV$11 -> 0 | K13: =(A13*'Dose per unit release'!$I13*60/'Assessment Details'!$C$32)/$AV$11 -> 0 | N13: =(Calculator!$AR$11*A13*'Dose per unit release'!$L13*0.1/'Assessment Details'!$C$20)/$AV$11 -> 0 | O13: =(Calculator!$AR$11*A13*'Dose per unit release'!$M13*0.1/'Assessment Details'!$C$20)/$AV$11 -> 0 | P13: =(Calculator!$AR$11*A13*'Dose per unit release'!$N13*0.1/'Assessment Details'!$C$20)/$AV$11 -> 0 | S13: =(Calculator!$AR$13*A13*'Dose per unit release'!$Q13*'Dose per unit release'!$R13/'Assessment Details'!$C$25)/$AV$11 -> 0 | T13: =(Calculator!$AR$13*A13*'Dose per unit release'!$Q13*'Dose per unit release'!$S13/'Assessment Details'!$C$25)/$AV$11 -> 0 | U13: =(Calculator!$AR$13*A13*'Dose per unit release'!$Q13*'Dose per unit release'!$T13/'Assessment Details'!$C$25)/$AV$11 -> 0 | V13: =(Calculator!$AR$13*A13*'Dose per unit release'!$Q13*'Dose per unit release'!$U13/'Assessment Details'!$C$25)/$AV$11 -> 0 | Y13: =(Calculator!$AR$13*A13*'Dose per unit release'!$X13*'Dose per unit release'!$Y13/'Assessment Details'!$C$25)/$AV$11 -> 0 | Z13: =(Calculator!$AR$13*A13*'Dose per unit release'!$X13*'Dose per unit release'!$Z13/'Assessment Details'!$C$25)/$AV$11 -> 0 | AC13: =(Calculator!$AR$15*A13*'Dose per unit release'!$AC13*'Dose per unit release'!$AD13*100/'Assessment Details'!$C$39)/$AV$11 -> 0 | AD13: =(Calculator!$AR$15*A13*'Dose per unit release'!$AC13*'Dose per unit release'!$AE13*100/'Assessment Details'!$C$39)/$AV$11 -> 0 | AE13: =(Calculator!$AR$15*A13*'Dose per unit release'!$AC13*'Dose per unit release'!$AF13*100/'Assessment Details'!$C$39)/$AV$11 -> 0 | AH13: =Calculator!$AR$13*A13*'Dose per unit release'!$AI13*'Dose per unit release'!$AJ13/'Assessment Details'!$C$25 -> 0 | AK13: =Calculator!$AR$15*A13*'Dose per unit release'!$AL13*'Dose per unit release'!$AM13*100/'Assessment Details'!$C$39 -> 0 | AN13: =(AE103) -> 2.521666667e-18 | AQ13: River factor | AR13: =IF('Assessment Details'!$C$15="Yes",1,0) -> 1
C14: =(A14*'Dose per unit release'!$A14*60/'Assessment Details'!$C$32)/$AV$11 -> 0 | D14: =(A14*'Dose per unit release'!$B14*60/'Assessment Details'!$C$32)/$AV$11 -> 0 | E14: =(A14*'Dose per unit release'!$C14*60/'Assessment Details'!$C$32)/$AV$11 -> 0 | H14: =(A14*'Dose per unit release'!$F14*60/'Assessment Details'!$C$32)/$AV$11 -> 0 | I14: =(A14*'Dose per unit release'!$G14*60/'Assessment Details'!$C$32)/$AV$11 -> 0 | J14: =(A14*'Dose per unit release'!$H14*60/'Assessment Details'!$C$32)/$AV$11 -> 0 | K14: =(A14*'Dose per unit release'!$I14*60/'Assessment Details'!$C$32)/$AV$11 -> 0 | N14: =(Calculator!$AR$11*A14*'Dose per unit release'!$L14*0.1/'Assessment Details'!$C$20)/$AV$11 -> 0 | O14: =(Calculator!$AR$11*A14*'Dose per unit release'!$M14*0.1/'Assessment Details'!$C$20)/$AV$11 -> 0 | P14: =(Calculator!$AR$11*A14*'Dose per unit release'!$N14*0.1/'Assessment Details'!$C$20)/$AV$11 -> 0 | S14: =(Calculator!$AR$13*A14*'Dose per unit release'!$Q14*'Dose per unit release'!$R14/'Assessment Details'!$C$25)/$AV$11 -> 0 | T14: =(Calculator!$AR$13*A14*'Dose per unit release'!$Q14*'Dose per unit release'!$S14/'Assessment Details'!$C$25)/$AV$11 -> 0 | U14: =(Calculator!$AR$13*A14*'Dose per unit release'!$Q14*'Dose per unit release'!$T14/'Assessment Details'!$C$25)/$AV$11 -> 0 | V14: =(Calculator!$AR$13*A14*'Dose per unit release'!$Q14*'Dose per unit release'!$U14/'Assessment Details'!$C$25)/$AV$11 -> 0 | Y14: =(Calculator!$AR$13*A14*'Dose per unit release'!$X14*'Dose per unit release'!$Y14/'Assessment Details'!$C$25)/$AV$11 -> 0 | Z14: =(Calculator!$AR$13*A14*'Dose per unit release'!$X14*'Dose per unit release'!$Z14/'Assessment Details'!$C$25)/$AV$11 -> 0 | AC14: =(Calculator!$AR$15*A14*'Dose per unit release'!$AC14*'Dose per unit release'!$AD14*100/'Assessment Details'!$C$39)/$AV$11 -> 0 | AD14: =(Calculator!$AR$15*A14*'Dose per unit release'!$AC14*'Dose per unit release'!$AE14*100/'Assessment Details'!$C$39)/$AV$11 -> 0 | AE14: =(Calculator!$AR$15*A14*'Dose per unit release'!$AC14*'Dose per unit release'!$AF14*100/'Assessment Details'!$C$39)/$AV$11 -> 0 | AH14: =Calculator!$AR$13*A14*'Dose per unit release'!$AI14*'Dose per unit release'!$AJ14/'Assessment Details'!$C$25 -> 0 | AK14: =Calculator!$AR$15*A14*'Dose per unit release'!$AL14*'Dose per unit release'!$AM14*100/'Assessment Details'!$C$39 -> 0
C15: =(A15*'Dose per unit release'!$A15*60/'Assessment Details'!$C$32)/$AV$11 -> 0 | D15: =(A15*'Dose per unit release'!$B15*60/'Assessment Details'!$C$32)/$AV$11 -> 0 | E15: =(A15*'Dose per unit release'!$C15*60/'Assessment Details'!$C$32)/$AV$11 -> 0 | H15: =(A15*'Dose per unit release'!$F15*60/'Assessment Details'!$C$32)/$AV$11 -> 0 | I15: =(A15*'Dose per unit release'!$G15*60/'Assessment Details'!$C$32)/$AV$11 -> 0 | J15: =(A15*'Dose per unit release'!$H15*60/'Assessment Details'!$C$32)/$AV$11 -> 0 | K15: =(A15*'Dose per unit release'!$I15*60/'Assessment Details'!$C$32)/$AV$11 -> 0 | N15: =(Calculator!$AR$11*A15*'Dose per unit release'!$L15*0.1/'Assessment Details'!$C$20)/$AV$11 -> 0 | O15: =(Calculator!$AR$11*A15*'Dose per unit release'!$M15*0.1/'Assessment Details'!$C$20)/$AV$11 -> 0 | P15: =(Calculator!$AR$11*A15*'Dose per unit release'!$N15*0.1/'Assessment Details'!$C$20)/$AV$11 -> 0 | S15: =(Calculator!$AR$13*A15*'Dose per unit release'!$Q15*'Dose per unit release'!$R15/'Assessment Details'!$C$25)/$AV$11 -> 0 | T15: =(Calculator!$AR$13*A15*'Dose per unit release'!$Q15*'Dose per unit release'!$S15/'Assessment Details'!$C$25)/$AV$11 -> 0 | U15: =(Calculator!$AR$13*A15*'Dose per unit release'!$Q15*'Dose per unit release'!$T15/'Assessment Details'!$C$25)/$AV$11 -> 0 | V15: =(Calculator!$AR$13*A15*'Dose per unit release'!$Q15*'Dose per unit release'!$U15/'Assessment Details'!$C$25)/$AV$11 -> 0 | Y15: =(Calculator!$AR$13*A15*'Dose per unit release'!$X15*'Dose per unit release'!$Y15/'Assessment Details'!$C$25)/$AV$11 -> 0 | Z15: =(Calculator!$AR$13*A15*'Dose per unit release'!$X15*'Dose per unit release'!$Z15/'Assessment Details'!$C$25)/$AV$11 -> 0 | AC15: =(Calculator!$AR$15*A15*'Dose per unit release'!$AC15*'Dose per unit release'!$AD15*100/'Assessment Details'!$C$39)/$AV$11 -> 0 | AD15: =(Calculator!$AR$15*A15*'Dose per unit release'!$AC15*'Dose per unit release'!$AE15*100/'Assessment Details'!$C$39)/$AV$11 -> 0 | AE15: =(Calculator!$AR$15*A15*'Dose per unit release'!$AC15*'Dose per unit release'!$AF15*100/'Assessment Details'!$C$39)/$AV$11 -> 0 | AH15: =Calculator!$AR$13*A15*'Dose per unit release'!$AI15*'Dose per unit release'!$AJ15/'Assessment Details'!$C$25 -> 0 | AK15: =Calculator!$AR$15*A15*'Dose per unit release'!$AL15*'Dose per unit release'!$AM15*100/'Assessment Details'!$C$39 -> 0 | AN15: =MAX(AN8:AN13) -> 2.594759603e-16 | AQ15: Estuary factor | AR15: =IF('Assessment Details'!$C$17="Yes",1,0) -> 1
C16: =(A16*'Dose per unit release'!$A16*60/'Assessment Details'!$C$32)/$AV$11 -> 0 | D16: =(A16*'Dose per unit release'!$B16*60/'Assessment Details'!$C$32)/$AV$11 -> 0 | E16: =(A16*'Dose per unit release'!$C16*60/'Assessment Details'!$C$32)/$AV$11 -> 0 | H16: =(A16*'Dose per unit release'!$F16*60/'Assessment Details'!$C$32)/$AV$11 -> 0 | I16: =(A16*'Dose per unit release'!$G16*60/'Assessment Details'!$C$32)/$AV$11 -> 0 | J16: =(A16*'Dose per unit release'!$H16*60/'Assessment Details'!$C$32)/$AV$11 -> 0 | K16: =(A16*'Dose per unit release'!$I16*60/'Assessment Details'!$C$32)/$AV$11 -> 0 | N16: =(Calculator!$AR$11*A16*'Dose per unit release'!$L16*0.1/'Assessment Details'!$C$20)/$AV$11 -> 0 | O16: =(Calculator!$AR$11*A16*'Dose per unit release'!$M16*0.1/'Assessment Details'!$C$20)/$AV$11 -> 0 | P16: =(Calculator!$AR$11*A16*'Dose per unit release'!$N16*0.1/'Assessment Details'!$C$20)/$AV$11 -> 0 | S16: =(Calculator!$AR$13*A16*'Dose per unit release'!$Q16*'Dose per unit release'!$R16/'Assessment Details'!$C$25)/$AV$11 -> 0 | T16: =(Calculator!$AR$13*A16*'Dose per unit release'!$Q16*'Dose per unit release'!$S16/'Assessment Details'!$C$25)/$AV$11 -> 0 | U16: =(Calculator!$AR$13*A16*'Dose per unit release'!$Q16*'Dose per unit release'!$T16/'Assessment Details'!$C$25)/$AV$11 -> 0 | V16: =(Calculator!$AR$13*A16*'Dose per unit release'!$Q16*'Dose per unit release'!$U16/'Assessment Details'!$C$25)/$AV$11 -> 0 | Y16: =(Calculator!$AR$13*A16*'Dose per unit release'!$X16*'Dose per unit release'!$Y16/'Assessment Details'!$C$25)/$AV$11 -> 0 | Z16: =(Calculator!$AR$13*A16*'Dose per unit release'!$X16*'Dose per unit release'!$Z16/'Assessment Details'!$C$25)/$AV$11 -> 0 | AC16: =(Calculator!$AR$15*A16*'Dose per unit release'!$AC16*'Dose per unit release'!$AD16*100/'Assessment Details'!$C$39)/$AV$11 -> 0 | AD16: =(Calculator!$AR$15*A16*'Dose per unit release'!$AC16*'Dose per unit release'!$AE16*100/'Assessment Details'!$C$39)/$AV$11 -> 0 | AE16: =(Calculator!$AR$15*A16*'Dose per unit release'!$AC16*'Dose per unit release'!$AF16*100/'Assessment Details'!$C$39)/$AV$11 -> 0 | AH16: =Calculator!$AR$13*A16*'Dose per unit release'!$AI16*'Dose per unit release'!$AJ16/'Assessment Details'!$C$25 -> 0 | AK16: =Calculator!$AR$15*A16*'Dose per unit release'!$AL16*'Dose per unit release'!$AM16*100/'Assessment Details'!$C$39 -> 0
C17: =(A17*'Dose per unit release'!$A17*60/'Assessment Details'!$C$32)/$AV$11 -> 0 | D17: =(A17*'Dose per unit release'!$B17*60/'Assessment Details'!$C$32)/$AV$11 -> 0 | E17: =(A17*'Dose per unit release'!$C17*60/'Assessment Details'!$C$32)/$AV$11 -> 0 | H17: =(A17*'Dose per unit release'!$F17*60/'Assessment Details'!$C$32)/$AV$11 -> 0 | I17: =(A17*'Dose per unit release'!$G17*60/'Assessment Details'!$C$32)/$AV$11 -> 0 | J17: =(A17*'Dose per unit release'!$H17*60/'Assessment Details'!$C$32)/$AV$11 -> 0 | K17: =(A17*'Dose per unit release'!$I17*60/'Assessment Details'!$C$32)/$AV$11 -> 0 | N17: =(Calculator!$AR$11*A17*'Dose per unit release'!$L17*0.1/'Assessment Details'!$C$20)/$AV$11 -> 0 | O17: =(Calculator!$AR$11*A17*'Dose per unit release'!$M17*0.1/'Assessment Details'!$C$20)/$AV$11 -> 0 | P17: =(Calculator!$AR$11*A17*'Dose per unit release'!$N17*0.1/'Assessment Details'!$C$20)/$AV$11 -> 0 | S17: =(Calculator!$AR$13*A17*'Dose per unit release'!$Q17*'Dose per unit release'!$R17/'Assessment Details'!$C$25)/$AV$11 -> 0 | T17: =(Calculator!$AR$13*A17*'Dose per unit release'!$Q17*'Dose per unit release'!$S17/'Assessment Details'!$C$25)/$AV$11 -> 0 | U17: =(Calculator!$AR$13*A17*'Dose per unit release'!$Q17*'Dose per unit release'!$T17/'Assessment Details'!$C$25)/$AV$11 -> 0 | V17: =(Calculator!$AR$13*A17*'Dose per unit release'!$Q17*'Dose per unit release'!$U17/'Assessment Details'!$C$25)/$AV$11 -> 0 | Y17: =(Calculator!$AR$13*A17*'Dose per unit release'!$X17*'Dose per unit release'!$Y17/'Assessment Details'!$C$25)/$AV$11 -> 0 | Z17: =(Calculator!$AR$13*A17*'Dose per unit release'!$X17*'Dose per unit release'!$Z17/'Assessment Details'!$C$25)/$AV$11 -> 0 | AC17: =(Calculator!$AR$15*A17*'Dose per unit release'!$AC17*'Dose per unit release'!$AD17*100/'Assessment Details'!$C$39)/$AV$11 -> 0 | AD17: =(Calculator!$AR$15*A17*'Dose per unit release'!$AC17*'Dose per unit release'!$AE17*100/'Assessment Details'!$C$39)/$AV$11 -> 0 | AE17: =(Calculator!$AR$15*A17*'Dose per unit release'!$AC17*'Dose per unit release'!$AF17*100/'Assessment Details'!$C$39)/$AV$11 -> 0 | AH17: =Calculator!$AR$13*A17*'Dose per unit release'!$AI17*'Dose per unit release'!$AJ17/'Assessment Details'!$C$25 -> 0 | AK17: =Calculator!$AR$15*A17*'Dose per unit release'!$AL17*'Dose per unit release'!$AM17*100/'Assessment Details'!$C$39 -> 0
C18: =(A18*'Dose per unit release'!$A18*60/'Assessment Details'!$C$32)/$AV$11 -> 0 | D18: =(A18*'Dose per unit release'!$B18*60/'Assessment Details'!$C$32)/$AV$11 -> 0 | E18: =(A18*'Dose per unit release'!$C18*60/'Assessment Details'!$C$32)/$AV$11 -> 0 | H18: =(A18*'Dose per unit release'!$F18*60/'Assessment Details'!$C$32)/$AV$11 -> 0 | I18: =(A18*'Dose per unit release'!$G18*60/'Assessment Details'!$C$32)/$AV$11 -> 0 | J18: =(A18*'Dose per unit release'!$H18*60/'Assessment Details'!$C$32)/$AV$11 -> 0 | K18: =(A18*'Dose per unit release'!$I18*60/'Assessment Details'!$C$32)/$AV$11 -> 0 | N18: =(Calculator!$AR$11*A18*'Dose per unit release'!$L18*0.1/'Assessment Details'!$C$20)/$AV$11 -> 0 | O18: =(Calculator!$AR$11*A18*'Dose per unit release'!$M18*0.1/'Assessment Details'!$C$20)/$AV$11 -> 0 | P18: =(Calculator!$AR$11*A18*'Dose per unit release'!$N18*0.1/'Assessment Details'!$C$20)/$AV$11 -> 0 | S18: =(Calculator!$AR$13*A18*'Dose per unit release'!$Q18*'Dose per unit release'!$R18/'Assessment Details'!$C$25)/$AV$11 -> 0 | T18: =(Calculator!$AR$13*A18*'Dose per unit release'!$Q18*'Dose per unit release'!$S18/'Assessment Details'!$C$25)/$AV$11 -> 0 | U18: =(Calculator!$AR$13*A18*'Dose per unit release'!$Q18*'Dose per unit release'!$T18/'Assessment Details'!$C$25)/$AV$11 -> 0 | V18: =(Calculator!$AR$13*A18*'Dose per unit release'!$Q18*'Dose per unit release'!$U18/'Assessment Details'!$C$25)/$AV$11 -> 0 | Y18: =(Calculator!$AR$13*A18*'Dose per unit release'!$X18*'Dose per unit release'!$Y18/'Assessment Details'!$C$25)/$AV$11 -> 0 | Z18: =(Calculator!$AR$13*A18*'Dose per unit release'!$X18*'Dose per unit release'!$Z18/'Assessment Details'!$C$25)/$AV$11 -> 0 | AC18: =(Calculator!$AR$15*A18*'Dose per unit release'!$AC18*'Dose per unit release'!$AD18*100/'Assessment Details'!$C$39)/$AV$11 -> 0 | AD18: =(Calculator!$AR$15*A18*'Dose per unit release'!$AC18*'Dose per unit release'!$AE18*100/'Assessment Details'!$C$39)/$AV$11 -> 0 | AE18: =(Calculator!$AR$15*A18*'Dose per unit release'!$AC18*'Dose per unit release'!$AF18*100/'Assessment Details'!$C$39)/$AV$11 -> 0 | AH18: =Calculator!$AR$13*A18*'Dose per unit release'!$AI18*'Dose per unit release'!$AJ18/'Assessment Details'!$C$25 -> 0 | AK18: =Calculator!$AR$15*A18*'Dose per unit release'!$AL18*'Dose per unit release'!$AM18*100/'Assessment Details'!$C$39 -> 0
C19: =(A19*'Dose per unit release'!$A19*60/'Assessment Details'!$C$32)/$AV$11 -> 0 | D19: =(A19*'Dose per unit release'!$B19*60/'Assessment Details'!$C$32)/$AV$11 -> 0 | E19: =(A19*'Dose per unit release'!$C19*60/'Assessment Details'!$C$32)/$AV$11 -> 0 | H19: =(A19*'Dose per unit release'!$F19*60/'Assessment Details'!$C$32)/$AV$11 -> 0 | I19: =(A19*'Dose per unit release'!$G19*60/'Assessment Details'!$C$32)/$AV$11 -> 0 | J19: =(A19*'Dose per unit release'!$H19*60/'Assessment Details'!$C$32)/$AV$11 -> 0 | K19: =(A19*'Dose per unit release'!$I19*60/'Assessment Details'!$C$32)/$AV$11 -> 0 | N19: =(Calculator!$AR$11*A19*'Dose per unit release'!$L19*0.1/'Assessment Details'!$C$20)/$AV$11 -> 0 | O19: =(Calculator!$AR$11*A19*'Dose per unit release'!$M19*0.1/'Assessment Details'!$C$20)/$AV$11 -> 0 | P19: =(Calculator!$AR$11*A19*'Dose per unit release'!$N19*0.1/'Assessment Details'!$C$20)/$AV$11 -> 0 | S19: =(Calculator!$AR$13*A19*'Dose per unit release'!$Q19*'Dose per unit release'!$R19/'Assessment Details'!$C$25)/$AV$11 -> 0 | T19: =(Calculator!$AR$13*A19*'Dose per unit release'!$Q19*'Dose per unit release'!$S19/'Assessment Details'!$C$25)/$AV$11 -> 0 | U19: =(Calculator!$AR$13*A19*'Dose per unit release'!$Q19*'Dose per unit release'!$T19/'Assessment Details'!$C$25)/$AV$11 -> 0 | V19: =(Calculator!$AR$13*A19*'Dose per unit release'!$Q19*'Dose per unit release'!$U19/'Assessment Details'!$C$25)/$AV$11 -> 0 | Y19: =(Calculator!$AR$13*A19*'Dose per unit release'!$X19*'Dose per unit release'!$Y19/'Assessment Details'!$C$25)/$AV$11 -> 0 | Z19: =(Calculator!$AR$13*A19*'Dose per unit release'!$X19*'Dose per unit release'!$Z19/'Assessment Details'!$C$25)/$AV$11 -> 0 | AC19: =(Calculator!$AR$15*A19*'Dose per unit release'!$AC19*'Dose per unit release'!$AD19*100/'Assessment Details'!$C$39)/$AV$11 -> 0 | AD19: =(Calculator!$AR$15*A19*'Dose per unit release'!$AC19*'Dose per unit release'!$AE19*100/'Assessment Details'!$C$39)/$AV$11 -> 0 | AE19: =(Calculator!$AR$15*A19*'Dose per unit release'!$AC19*'Dose per unit release'!$AF19*100/'Assessment Details'!$C$39)/$AV$11 -> 0 | AH19: =Calculator!$AR$13*A19*'Dose per unit release'!$AI19*'Dose per unit release'!$AJ19/'Assessment Details'!$C$25 -> 0 | AK19: =Calculator!$AR$15*A19*'Dose per unit release'!$AL19*'Dose per unit release'!$AM19*100/'Assessment Details'!$C$39 -> 0
C20: =(A20*'Dose per unit release'!$A20*60/'Assessment Details'!$C$32)/$AV$11 -> 0 | D20: =(A20*'Dose per unit release'!$B20*60/'Assessment Details'!$C$32)/$AV$11 -> 0 | E20: =(A20*'Dose per unit release'!$C20*60/'Assessment Details'!$C$32)/$AV$11 -> 0 | H20: =(A20*'Dose per unit release'!$F20*60/'Assessment Details'!$C$32)/$AV$11 -> 0 | I20: =(A20*'Dose per unit release'!$G20*60/'Assessment Details'!$C$32)/$AV$11 -> 0 | J20: =(A20*'Dose per unit release'!$H20*60/'Assessment Details'!$C$32)/$AV$11 -> 0 | K20: =(A20*'Dose per unit release'!$I20*60/'Assessment Details'!$C$32)/$AV$11 -> 0 | N20: =(Calculator!$AR$11*A20*'Dose per unit release'!$L20*0.1/'Assessment Details'!$C$20)/$AV$11 -> 0 | O20: =(Calculator!$AR$11*A20*'Dose per unit release'!$M20*0.1/'Assessment Details'!$C$20)/$AV$11 -> 0 | P20: =(Calculator!$AR$11*A20*'Dose per unit release'!$N20*0.1/'Assessment Details'!$C$20)/$AV$11 -> 0 | S20: =(Calculator!$AR$13*A20*'Dose per unit release'!$Q20*'Dose per unit release'!$R20/'Assessment Details'!$C$25)/$AV$11 -> 0 | T20: =(Calculator!$AR$13*A20*'Dose per unit release'!$Q20*'Dose per unit release'!$S20/'Assessment Details'!$C$25)/$AV$11 -> 0 | U20: =(Calculator!$AR$13*A20*'Dose per unit release'!$Q20*'Dose per unit release'!$T20/'Assessment Details'!$C$25)/$AV$11 -> 0 | V20: =(Calculator!$AR$13*A20*'Dose per unit release'!$Q20*'Dose per unit release'!$U20/'Assessment Details'!$C$25)/$AV$11 -> 0 | Y20: =(Calculator!$AR$13*A20*'Dose per unit release'!$X20*'Dose per unit release'!$Y20/'Assessment Details'!$C$25)/$AV$11 -> 0 | Z20: =(Calculator!$AR$13*A20*'Dose per unit release'!$X20*'Dose per unit release'!$Z20/'Assessment Details'!$C$25)/$AV$11 -> 0 | AC20: =(Calculator!$AR$15*A20*'Dose per unit release'!$AC20*'Dose per unit release'!$AD20*100/'Assessment Details'!$C$39)/$AV$11 -> 0 | AD20: =(Calculator!$AR$15*A20*'Dose per unit release'!$AC20*'Dose per unit release'!$AE20*100/'Assessment Details'!$C$39)/$AV$11 -> 0 | AE20: =(Calculator!$AR$15*A20*'Dose per unit release'!$AC20*'Dose per unit release'!$AF20*100/'Assessment Details'!$C$39)/$AV$11 -> 0 | AH20: =Calculator!$AR$13*A20*'Dose per unit release'!$AI20*'Dose per unit release'!$AJ20/'Assessment Details'!$C$25 -> 0 | AK20: =Calculator!$AR$15*A20*'Dose per unit release'!$AL20*'Dose per unit release'!$AM20*100/'Assessment Details'!$C$39 -> 0 | AN20: =(AH103) -> 5.36004882e-18
C21: =(A21*'Dose per unit release'!$A21*60/'Assessment Details'!$C$32)/$AV$11 -> 0 | D21: =(A21*'Dose per unit release'!$B21*60/'Assessment Details'!$C$32)/$AV$11 -> 0 | E21: =(A21*'Dose per unit release'!$C21*60/'Assessment Details'!$C$32)/$AV$11 -> 0 | H21: =(A21*'Dose per unit release'!$F21*60/'Assessment Details'!$C$32)/$AV$11 -> 0 | I21: =(A21*'Dose per unit release'!$G21*60/'Assessment Details'!$C$32)/$AV$11 -> 0 | J21: =(A21*'Dose per unit release'!$H21*60/'Assessment Details'!$C$32)/$AV$11 -> 0 | K21: =(A21*'Dose per unit release'!$I21*60/'Assessment Details'!$C$32)/$AV$11 -> 0 | N21: =(Calculator!$AR$11*A21*'Dose per unit release'!$L21*0.1/'Assessment Details'!$C$20)/$AV$11 -> 0 | O21: =(Calculator!$AR$11*A21*'Dose per unit release'!$M21*0.1/'Assessment Details'!$C$20)/$AV$11 -> 0 | P21: =(Calculator!$AR$11*A21*'Dose per unit release'!$N21*0.1/'Assessment Details'!$C$20)/$AV$11 -> 0 | S21: =(Calculator!$AR$13*A21*'Dose per unit release'!$Q21*'Dose per unit release'!$R21/'Assessment Details'!$C$25)/$AV$11 -> 0 | T21: =(Calculator!$AR$13*A21*'Dose per unit release'!$Q21*'Dose per unit release'!$S21/'Assessment Details'!$C$25)/$AV$11 -> 0 | U21: =(Calculator!$AR$13*A21*'Dose per unit release'!$Q21*'Dose per unit release'!$T21/'Assessment Details'!$C$25)/$AV$11 -> 0 | V21: =(Calculator!$AR$13*A21*'Dose per unit release'!$Q21*'Dose per unit release'!$U21/'Assessment Details'!$C$25)/$AV$11 -> 0 | Y21: =(Calculator!$AR$13*A21*'Dose per unit release'!$X21*'Dose per unit release'!$Y21/'Assessment Details'!$C$25)/$AV$11 -> 0 | Z21: =(Calculator!$AR$13*A21*'Dose per unit release'!$X21*'Dose per unit release'!$Z21/'Assessment Details'!$C$25)/$AV$11 -> 0 | AC21: =(Calculator!$AR$15*A21*'Dose per unit release'!$AC21*'Dose per unit release'!$AD21*100/'Assessment Details'!$C$39)/$AV$11 -> 0 | AD21: =(Calculator!$AR$15*A21*'Dose per unit release'!$AC21*'Dose per unit release'!$AE21*100/'Assessment Details'!$C$39)/$AV$11 -> 0 | AE21: =(Calculator!$AR$15*A21*'Dose per unit release'!$AC21*'Dose per unit release'!$AF21*100/'Assessment Details'!$C$39)/$AV$11 -> 0 | AH21: =Calculator!$AR$13*A21*'Dose per unit release'!$AI21*'Dose per unit release'!$AJ21/'Assessment Details'!$C$25 -> 0 | AK21: =Calculator!$AR$15*A21*'Dose per unit release'!$AL21*'Dose per unit release'!$AM21*100/'Assessment Details'!$C$39 -> 0 | AN21: =(AK103) -> 8.783333333e-18
C22: =(A22*'Dose per unit release'!$A22*60/'Assessment Details'!$C$32)/$AV$11 -> 0 | D22: =(A22*'Dose per unit release'!$B22*60/'Assessment Details'!$C$32)/$AV$11 -> 0 | E22: =(A22*'Dose per unit release'!$C22*60/'Assessment Details'!$C$32)/$AV$11 -> 0 | H22: =(A22*'Dose per unit release'!$F22*60/'Assessment Details'!$C$32)/$AV$11 -> 0 | I22: =(A22*'Dose per unit release'!$G22*60/'Assessment Details'!$C$32)/$AV$11 -> 0 | J22: =(A22*'Dose per unit release'!$H22*60/'Assessment Details'!$C$32)/$AV$11 -> 0 | K22: =(A22*'Dose per unit release'!$I22*60/'Assessment Details'!$C$32)/$AV$11 -> 0 | N22: =(Calculator!$AR$11*A22*'Dose per unit release'!$L22*0.1/'Assessment Details'!$C$20)/$AV$11 -> 0 | O22: =(Calculator!$AR$11*A22*'Dose per unit release'!$M22*0.1/'Assessment Details'!$C$20)/$AV$11 -> 0 | P22: =(Calculator!$AR$11*A22*'Dose per unit release'!$N22*0.1/'Assessment Details'!$C$20)/$AV$11 -> 0 | S22: =(Calculator!$AR$13*A22*'Dose per unit release'!$Q22*'Dose per unit release'!$R22/'Assessment Details'!$C$25)/$AV$11 -> 0 | T22: =(Calculator!$AR$13*A22*'Dose per unit release'!$Q22*'Dose per unit release'!$S22/'Assessment Details'!$C$25)/$AV$11 -> 0 | U22: =(Calculator!$AR$13*A22*'Dose per unit release'!$Q22*'Dose per unit release'!$T22/'Assessment Details'!$C$25)/$AV$11 -> 0 | V22: =(Calculator!$AR$13*A22*'Dose per unit release'!$Q22*'Dose per unit release'!$U22/'Assessment Details'!$C$25)/$AV$11 -> 0 | Y22: =(Calculator!$AR$13*A22*'Dose per unit release'!$X22*'Dose per unit release'!$Y22/'Assessment Details'!$C$25)/$AV$11 -> 0 | Z22: =(Calculator!$AR$13*A22*'Dose per unit release'!$X22*'Dose per unit release'!$Z22/'Assessment Details'!$C$25)/$AV$11 -> 0 | AC22: =(Calculator!$AR$15*A22*'Dose per unit release'!$AC22*'Dose per unit release'!$AD22*100/'Assessment Details'!$C$39)/$AV$11 -> 0 | AD22: =(Calculator!$AR$15*A22*'Dose per unit release'!$AC22*'Dose per unit release'!$AE22*100/'Assessment Details'!$C$39)/$AV$11 -> 0 | AE22: =(Calculator!$AR$15*A22*'Dose per unit release'!$AC22*'Dose per unit release'!$AF22*100/'Assessment Details'!$C$39)/$AV$11 -> 0 | AH22: =Calculator!$AR$13*A22*'Dose per unit release'!$AI22*'Dose per unit release'!$AJ22/'Assessment Details'!$C$25 -> 0 | AK22: =Calculator!$AR$15*A22*'Dose per unit release'!$AL22*'Dose per unit release'!$AM22*100/'Assessment Details'!$C$39 -> 0
C23: =(A23*'Dose per unit release'!$A23*60/'Assessment Details'!$C$32)/$AV$11 -> 0 | D23: =(A23*'Dose per unit release'!$B23*60/'Assessment Details'!$C$32)/$AV$11 -> 0 | E23: =(A23*'Dose per unit release'!$C23*60/'Assessment Details'!$C$32)/$AV$11 -> 0 | H23: =(A23*'Dose per unit release'!$F23*60/'Assessment Details'!$C$32)/$AV$11 -> 0 | I23: =(A23*'Dose per unit release'!$G23*60/'Assessment Details'!$C$32)/$AV$11 -> 0 | J23: =(A23*'Dose per unit release'!$H23*60/'Assessment Details'!$C$32)/$AV$11 -> 0 | K23: =(A23*'Dose per unit release'!$I23*60/'Assessment Details'!$C$32)/$AV$11 -> 0 | N23: =(Calculator!$AR$11*A23*'Dose per unit release'!$L23*0.1/'Assessment Details'!$C$20)/$AV$11 -> 0 | O23: =(Calculator!$AR$11*A23*'Dose per unit release'!$M23*0.1/'Assessment Details'!$C$20)/$AV$11 -> 0 | P23: =(Calculator!$AR$11*A23*'Dose per unit release'!$N23*0.1/'Assessment Details'!$C$20)/$AV$11 -> 0 | S23: =(Calculator!$AR$13*A23*'Dose per unit release'!$Q23*'Dose per unit release'!$R23/'Assessment Details'!$C$25)/$AV$11 -> 0 | T23: =(Calculator!$AR$13*A23*'Dose per unit release'!$Q23*'Dose per unit release'!$S23/'Assessment Details'!$C$25)/$AV$11 -> 0 | U23: =(Calculator!$AR$13*A23*'Dose per unit release'!$Q23*'Dose per unit release'!$T23/'Assessment Details'!$C$25)/$AV$11 -> 0 | V23: =(Calculator!$AR$13*A23*'Dose per unit release'!$Q23*'Dose per unit release'!$U23/'Assessment Details'!$C$25)/$AV$11 -> 0 | Y23: =(Calculator!$AR$13*A23*'Dose per unit release'!$X23*'Dose per unit release'!$Y23/'Assessment Details'!$C$25)/$AV$11 -> 0 | Z23: =(Calculator!$AR$13*A23*'Dose per unit release'!$X23*'Dose per unit release'!$Z23/'Assessment Details'!$C$25)/$AV$11 -> 0 | AC23: =(Calculator!$AR$15*A23*'Dose per unit release'!$AC23*'Dose per unit release'!$AD23*100/'Assessment Details'!$C$39)/$AV$11 -> 0 | AD23: =(Calculator!$AR$15*A23*'Dose per unit release'!$AC23*'Dose per unit release'!$AE23*100/'Assessment Details'!$C$39)/$AV$11 -> 0 | AE23: =(Calculator!$AR$15*A23*'Dose per unit release'!$AC23*'Dose per unit release'!$AF23*100/'Assessment Details'!$C$39)/$AV$11 -> 0 | AH23: =Calculator!$AR$13*A23*'Dose per unit release'!$AI23*'Dose per unit release'!$AJ23/'Assessment Details'!$C$25 -> 0 | AK23: =Calculator!$AR$15*A23*'Dose per unit release'!$AL23*'Dose per unit release'!$AM23*100/'Assessment Details'!$C$39 -> 0 | AN23: Food Dose
C24: =(A24*'Dose per unit release'!$A24*60/'Assessment Details'!$C$32)/$AV$11 -> 0 | D24: =(A24*'Dose per unit release'!$B24*60/'Assessment Details'!$C$32)/$AV$11 -> 0 | E24: =(A24*'Dose per unit release'!$C24*60/'Assessment Details'!$C$32)/$AV$11 -> 0 | H24: =(A24*'Dose per unit release'!$F24*60/'Assessment Details'!$C$32)/$AV$11 -> 0 | I24: =(A24*'Dose per unit release'!$G24*60/'Assessment Details'!$C$32)/$AV$11 -> 0 | J24: =(A24*'Dose per unit release'!$H24*60/'Assessment Details'!$C$32)/$AV$11 -> 0 | K24: =(A24*'Dose per unit release'!$I24*60/'Assessment Details'!$C$32)/$AV$11 -> 0 | N24: =(Calculator!$AR$11*A24*'Dose per unit release'!$L24*0.1/'Assessment Details'!$C$20)/$AV$11 -> 0 | O24: =(Calculator!$AR$11*A24*'Dose per unit release'!$M24*0.1/'Assessment Details'!$C$20)/$AV$11 -> 0 | P24: =(Calculator!$AR$11*A24*'Dose per unit release'!$N24*0.1/'Assessment Details'!$C$20)/$AV$11 -> 0 | S24: =(Calculator!$AR$13*A24*'Dose per unit release'!$Q24*'Dose per unit release'!$R24/'Assessment Details'!$C$25)/$AV$11 -> 0 | T24: =(Calculator!$AR$13*A24*'Dose per unit release'!$Q24*'Dose per unit release'!$S24/'Assessment Details'!$C$25)/$AV$11 -> 0 | U24: =(Calculator!$AR$13*A24*'Dose per unit release'!$Q24*'Dose per unit release'!$T24/'Assessment Details'!$C$25)/$AV$11 -> 0 | V24: =(Calculator!$AR$13*A24*'Dose per unit release'!$Q24*'Dose per unit release'!$U24/'Assessment Details'!$C$25)/$AV$11 -> 0 | Y24: =(Calculator!$AR$13*A24*'Dose per unit release'!$X24*'Dose per unit release'!$Y24/'Assessment Details'!$C$25)/$AV$11 -> 0 | Z24: =(Calculator!$AR$13*A24*'Dose per unit release'!$X24*'Dose per unit release'!$Z24/'Assessment Details'!$C$25)/$AV$11 -> 0 | AC24: =(Calculator!$AR$15*A24*'Dose per unit release'!$AC24*'Dose per unit release'!$AD24*100/'Assessment Details'!$C$39)/$AV$11 -> 0 | AD24: =(Calculator!$AR$15*A24*'Dose per unit release'!$AC24*'Dose per unit release'!$AE24*100/'Assessment Details'!$C$39)/$AV$11 -> 0 | AE24: =(Calculator!$AR$15*A24*'Dose per unit release'!$AC24*'Dose per unit release'!$AF24*100/'Assessment Details'!$C$39)/$AV$11 -> 0 | AH24: =Calculator!$AR$13*A24*'Dose per unit release'!$AI24*'Dose per unit release'!$AJ24/'Assessment Details'!$C$25 -> 0 | AK24: =Calculator!$AR$15*A24*'Dose per unit release'!$AL24*'Dose per unit release'!$AM24*100/'Assessment Details'!$C$39 -> 0
C25: =(A25*'Dose per unit release'!$A25*60/'Assessment Details'!$C$32)/$AV$11 -> 0 | D25: =(A25*'Dose per unit release'!$B25*60/'Assessment Details'!$C$32)/$AV$11 -> 0 | E25: =(A25*'Dose per unit release'!$C25*60/'Assessment Details'!$C$32)/$AV$11 -> 0 | H25: =(A25*'Dose per unit release'!$F25*60/'Assessment Details'!$C$32)/$AV$11 -> 0 | I25: =(A25*'Dose per unit release'!$G25*60/'Assessment Details'!$C$32)/$AV$11 -> 0 | J25: =(A25*'Dose per unit release'!$H25*60/'Assessment Details'!$C$32)/$AV$11 -> 0 | K25: =(A25*'Dose per unit release'!$I25*60/'Assessment Details'!$C$32)/$AV$11 -> 0 | N25: =(Calculator!$AR$11*A25*'Dose per unit release'!$L25*0.1/'Assessment Details'!$C$20)/$AV$11 -> 0 | O25: =(Calculator!$AR$11*A25*'Dose per unit release'!$M25*0.1/'Assessment Details'!$C$20)/$AV$11 -> 0 | P25: =(Calculator!$AR$11*A25*'Dose per unit release'!$N25*0.1/'Assessment Details'!$C$20)/$AV$11 -> 0 | S25: =(Calculator!$AR$13*A25*'Dose per unit release'!$Q25*'Dose per unit release'!$R25/'Assessment Details'!$C$25)/$AV$11 -> 0 | T25: =(Calculator!$AR$13*A25*'Dose per unit release'!$Q25*'Dose per unit release'!$S25/'Assessment Details'!$C$25)/$AV$11 -> 0 | U25: =(Calculator!$AR$13*A25*'Dose per unit release'!$Q25*'Dose per unit release'!$T25/'Assessment Details'!$C$25)/$AV$11 -> 0 | V25: =(Calculator!$AR$13*A25*'Dose per unit release'!$Q25*'Dose per unit release'!$U25/'Assessment Details'!$C$25)/$AV$11 -> 0 | Y25: =(Calculator!$AR$13*A25*'Dose per unit release'!$X25*'Dose per unit release'!$Y25/'Assessment Details'!$C$25)/$AV$11 -> 0 | Z25: =(Calculator!$AR$13*A25*'Dose per unit release'!$X25*'Dose per unit release'!$Z25/'Assessment Details'!$C$25)/$AV$11 -> 0 | AC25: =(Calculator!$AR$15*A25*'Dose per unit release'!$AC25*'Dose per unit release'!$AD25*100/'Assessment Details'!$C$39)/$AV$11 -> 0 | AD25: =(Calculator!$AR$15*A25*'Dose per unit release'!$AC25*'Dose per unit release'!$AE25*100/'Assessment Details'!$C$39)/$AV$11 -> 0 | AE25: =(Calculator!$AR$15*A25*'Dose per unit release'!$AC25*'Dose per unit release'!$AF25*100/'Assessment Details'!$C$39)/$AV$11 -> 0 | AH25: =Calculator!$AR$13*A25*'Dose per unit release'!$AI25*'Dose per unit release'!$AJ25/'Assessment Details'!$C$25 -> 0 | AK25: =Calculator!$AR$15*A25*'Dose per unit release'!$AL25*'Dose per unit release'!$AM25*100/'Assessment Details'!$C$39 -> 0 | AN25: =(H103) -> 2.594759603e-16
C26: =(A26*'Dose per unit release'!$A26*60/'Assessment Details'!$C$32)/$AV$11 -> 0 | D26: =(A26*'Dose per unit release'!$B26*60/'Assessment Details'!$C$32)/$AV$11 -> 0 | E26: =(A26*'Dose per unit release'!$C26*60/'Assessment Details'!$C$32)/$AV$11 -> 0 | H26: =(A26*'Dose per unit release'!$F26*60/'Assessment Details'!$C$32)/$AV$11 -> 0 | I26: =(A26*'Dose per unit release'!$G26*60/'Assessment Details'!$C$32)/$AV$11 -> 0 | J26: =(A26*'Dose per unit release'!$H26*60/'Assessment Details'!$C$32)/$AV$11 -> 0 | K26: =(A26*'Dose per unit release'!$I26*60/'Assessment Details'!$C$32)/$AV$11 -> 0 | N26: =(Calculator!$AR$11*A26*'Dose per unit release'!$L26*0.1/'Assessment Details'!$C$20)/$AV$11 -> 0 | O26: =(Calculator!$AR$11*A26*'Dose per unit release'!$M26*0.1/'Assessment Details'!$C$20)/$AV$11 -> 0 | P26: =(Calculator!$AR$11*A26*'Dose per unit release'!$N26*0.1/'Assessment Details'!$C$20)/$AV$11 -> 0 | S26: =(Calculator!$AR$13*A26*'Dose per unit release'!$Q26*'Dose per unit release'!$R26/'Assessment Details'!$C$25)/$AV$11 -> 0 | T26: =(Calculator!$AR$13*A26*'Dose per unit release'!$Q26*'Dose per unit release'!$S26/'Assessment Details'!$C$25)/$AV$11 -> 0 | U26: =(Calculator!$AR$13*A26*'Dose per unit release'!$Q26*'Dose per unit release'!$T26/'Assessment Details'!$C$25)/$AV$11 -> 0 | V26: =(Calculator!$AR$13*A26*'Dose per unit release'!$Q26*'Dose per unit release'!$U26/'Assessment Details'!$C$25)/$AV$11 -> 0 | Y26: =(Calculator!$AR$13*A26*'Dose per unit release'!$X26*'Dose per unit release'!$Y26/'Assessment Details'!$C$25)/$AV$11 -> 0 | Z26: =(Calculator!$AR$13*A26*'Dose per unit release'!$X26*'Dose per unit release'!$Z26/'Assessment Details'!$C$25)/$AV$11 -> 0 | AC26: =(Calculator!$AR$15*A26*'Dose per unit release'!$AC26*'Dose per unit release'!$AD26*100/'Assessment Details'!$C$39)/$AV$11 -> 0 | AD26: =(Calculator!$AR$15*A26*'Dose per unit release'!$AC26*'Dose per unit release'!$AE26*100/'Assessment Details'!$C$39)/$AV$11 -> 0 | AE26: =(Calculator!$AR$15*A26*'Dose per unit release'!$AC26*'Dose per unit release'!$AF26*100/'Assessment Details'!$C$39)/$AV$11 -> 0 | AH26: =Calculator!$AR$13*A26*'Dose per unit release'!$AI26*'Dose per unit release'!$AJ26/'Assessment Details'!$C$25 -> 0 | AK26: =Calculator!$AR$15*A26*'Dose per unit release'!$AL26*'Dose per unit release'!$AM26*100/'Assessment Details'!$C$39 -> 0 | AN26: =(T103) -> 2.939381611e-19
C27: =(A27*'Dose per unit release'!$A27*60/'Assessment Details'!$C$32)/$AV$11 -> 0 | D27: =(A27*'Dose per unit release'!$B27*60/'Assessment Details'!$C$32)/$AV$11 -> 0 | E27: =(A27*'Dose per unit release'!$C27*60/'Assessment Details'!$C$32)/$AV$11 -> 0 | H27: =(A27*'Dose per unit release'!$F27*60/'Assessment Details'!$C$32)/$AV$11 -> 0 | I27: =(A27*'Dose per unit release'!$G27*60/'Assessment Details'!$C$32)/$AV$11 -> 0 | J27: =(A27*'Dose per unit release'!$H27*60/'Assessment Details'!$C$32)/$AV$11 -> 0 | K27: =(A27*'Dose per unit release'!$I27*60/'Assessment Details'!$C$32)/$AV$11 -> 0 | N27: =(Calculator!$AR$11*A27*'Dose per unit release'!$L27*0.1/'Assessment Details'!$C$20)/$AV$11 -> 0 | O27: =(Calculator!$AR$11*A27*'Dose per unit release'!$M27*0.1/'Assessment Details'!$C$20)/$AV$11 -> 0 | P27: =(Calculator!$AR$11*A27*'Dose per unit release'!$N27*0.1/'Assessment Details'!$C$20)/$AV$11 -> 0 | S27: =(Calculator!$AR$13*A27*'Dose per unit release'!$Q27*'Dose per unit release'!$R27/'Assessment Details'!$C$25)/$AV$11 -> 0 | T27: =(Calculator!$AR$13*A27*'Dose per unit release'!$Q27*'Dose per unit release'!$S27/'Assessment Details'!$C$25)/$AV$11 -> 0 | U27: =(Calculator!$AR$13*A27*'Dose per unit release'!$Q27*'Dose per unit release'!$T27/'Assessment Details'!$C$25)/$AV$11 -> 0 | V27: =(Calculator!$AR$13*A27*'Dose per unit release'!$Q27*'Dose per unit release'!$U27/'Assessment Details'!$C$25)/$AV$11 -> 0 | Y27: =(Calculator!$AR$13*A27*'Dose per unit release'!$X27*'Dose per unit release'!$Y27/'Assessment Details'!$C$25)/$AV$11 -> 0 | Z27: =(Calculator!$AR$13*A27*'Dose per unit release'!$X27*'Dose per unit release'!$Z27/'Assessment Details'!$C$25)/$AV$11 -> 0 | AC27: =(Calculator!$AR$15*A27*'Dose per unit release'!$AC27*'Dose per unit release'!$AD27*100/'Assessment Details'!$C$39)/$AV$11 -> 0 | AD27: =(Calculator!$AR$15*A27*'Dose per unit release'!$AC27*'Dose per unit release'!$AE27*100/'Assessment Details'!$C$39)/$AV$11 -> 0 | AE27: =(Calculator!$AR$15*A27*'Dose per unit release'!$AC27*'Dose per unit release'!$AF27*100/'Assessment Details'!$C$39)/$AV$11 -> 0 | AH27: =Calculator!$AR$13*A27*'Dose per unit release'!$AI27*'Dose per unit release'!$AJ27/'Assessment Details'!$C$25 -> 0 | AK27: =Calculator!$AR$15*A27*'Dose per unit release'!$AL27*'Dose per unit release'!$AM27*100/'Assessment Details'!$C$39 -> 0 | AN27: =(Y103) -> 7.607811229e-19
C28: =(A28*'Dose per unit release'!$A28*60/'Assessment Details'!$C$32)/$AV$11 -> 0 | D28: =(A28*'Dose per unit release'!$B28*60/'Assessment Details'!$C$32)/$AV$11 -> 0 | E28: =(A28*'Dose per unit release'!$C28*60/'Assessment Details'!$C$32)/$AV$11 -> 0 | H28: =(A28*'Dose per unit release'!$F28*60/'Assessment Details'!$C$32)/$AV$11 -> 0 | I28: =(A28*'Dose per unit release'!$G28*60/'Assessment Details'!$C$32)/$AV$11 -> 0 | J28: =(A28*'Dose per unit release'!$H28*60/'Assessment Details'!$C$32)/$AV$11 -> 0 | K28: =(A28*'Dose per unit release'!$I28*60/'Assessment Details'!$C$32)/$AV$11 -> 0 | N28: =(Calculator!$AR$11*A28*'Dose per unit release'!$L28*0.1/'Assessment Details'!$C$20)/$AV$11 -> 0 | O28: =(Calculator!$AR$11*A28*'Dose per unit release'!$M28*0.1/'Assessment Details'!$C$20)/$AV$11 -> 0 | P28: =(Calculator!$AR$11*A28*'Dose per unit release'!$N28*0.1/'Assessment Details'!$C$20)/$AV$11 -> 0 | S28: =(Calculator!$AR$13*A28*'Dose per unit release'!$Q28*'Dose per unit release'!$R28/'Assessment Details'!$C$25)/$AV$11 -> 0 | T28: =(Calculator!$AR$13*A28*'Dose per unit release'!$Q28*'Dose per unit release'!$S28/'Assessment Details'!$C$25)/$AV$11 -> 0 | U28: =(Calculator!$AR$13*A28*'Dose per unit release'!$Q28*'Dose per unit release'!$T28/'Assessment Details'!$C$25)/$AV$11 -> 0 | V28: =(Calculator!$AR$13*A28*'Dose per unit release'!$Q28*'Dose per unit release'!$U28/'Assessment Details'!$C$25)/$AV$11 -> 0 | Y28: =(Calculator!$AR$13*A28*'Dose per unit release'!$X28*'Dose per unit release'!$Y28/'Assessment Details'!$C$25)/$AV$11 -> 0 | Z28: =(Calculator!$AR$13*A28*'Dose per unit release'!$X28*'Dose per unit release'!$Z28/'Assessment Details'!$C$25)/$AV$11 -> 0 | AC28: =(Calculator!$AR$15*A28*'Dose per unit release'!$AC28*'Dose per unit release'!$AD28*100/'Assessment Details'!$C$39)/$AV$11 -> 0 | AD28: =(Calculator!$AR$15*A28*'Dose per unit release'!$AC28*'Dose per unit release'!$AE28*100/'Assessment Details'!$C$39)/$AV$11 -> 0 | AE28: =(Calculator!$AR$15*A28*'Dose per unit release'!$AC28*'Dose per unit release'!$AF28*100/'Assessment Details'!$C$39)/$AV$11 -> 0 | AH28: =Calculator!$AR$13*A28*'Dose per unit release'!$AI28*'Dose per unit release'!$AJ28/'Assessment Details'!$C$25 -> 0 | AK28: =Calculator!$AR$15*A28*'Dose per unit release'!$AL28*'Dose per unit release'!$AM28*100/'Assessment Details'!$C$39 -> 0 | AN28: =(AD103) -> 2.521666667e-18
C29: =(A29*'Dose per unit release'!$A29*60/'Assessment Details'!$C$32)/$AV$11 -> 0 | D29: =(A29*'Dose per unit release'!$B29*60/'Assessment Details'!$C$32)/$AV$11 -> 0 | E29: =(A29*'Dose per unit release'!$C29*60/'Assessment Details'!$C$32)/$AV$11 -> 0 | H29: =(A29*'Dose per unit release'!$F29*60/'Assessment Details'!$C$32)/$AV$11 -> 0 | I29: =(A29*'Dose per unit release'!$G29*60/'Assessment Details'!$C$32)/$AV$11 -> 0 | J29: =(A29*'Dose per unit release'!$H29*60/'Assessment Details'!$C$32)/$AV$11 -> 0 | K29: =(A29*'Dose per unit release'!$I29*60/'Assessment Details'!$C$32)/$AV$11 -> 0 | N29: =(Calculator!$AR$11*A29*'Dose per unit release'!$L29*0.1/'Assessment Details'!$C$20)/$AV$11 -> 0 | O29: =(Calculator!$AR$11*A29*'Dose per unit release'!$M29*0.1/'Assessment Details'!$C$20)/$AV$11 -> 0 | P29: =(Calculator!$AR$11*A29*'Dose per unit release'!$N29*0.1/'Assessment Details'!$C$20)/$AV$11 -> 0 | S29: =(Calculator!$AR$13*A29*'Dose per unit release'!$Q29*'Dose per unit release'!$R29/'Assessment Details'!$C$25)/$AV$11 -> 0 | T29: =(Calculator!$AR$13*A29*'Dose per unit release'!$Q29*'Dose per unit release'!$S29/'Assessment Details'!$C$25)/$AV$11 -> 0 | U29: =(Calculator!$AR$13*A29*'Dose per unit release'!$Q29*'Dose per unit release'!$T29/'Assessment Details'!$C$25)/$AV$11 -> 0 | V29: =(Calculator!$AR$13*A29*'Dose per unit release'!$Q29*'Dose per unit release'!$U29/'Assessment Details'!$C$25)/$AV$11 -> 0 | Y29: =(Calculator!$AR$13*A29*'Dose per unit release'!$X29*'Dose per unit release'!$Y29/'Assessment Details'!$C$25)/$AV$11 -> 0 | Z29: =(Calculator!$AR$13*A29*'Dose per unit release'!$X29*'Dose per unit release'!$Z29/'Assessment Details'!$C$25)/$AV$11 -> 0 | AC29: =(Calculator!$AR$15*A29*'Dose per unit release'!$AC29*'Dose per unit release'!$AD29*100/'Assessment Details'!$C$39)/$AV$11 -> 0 | AD29: =(Calculator!$AR$15*A29*'Dose per unit release'!$AC29*'Dose per unit release'!$AE29*100/'Assessment Details'!$C$39)/$AV$11 -> 0 | AE29: =(Calculator!$AR$15*A29*'Dose per unit release'!$AC29*'Dose per unit release'!$AF29*100/'Assessment Details'!$C$39)/$AV$11 -> 0 | AH29: =Calculator!$AR$13*A29*'Dose per unit release'!$AI29*'Dose per unit release'!$AJ29/'Assessment Details'!$C$25 -> 0 | AK29: =Calculator!$AR$15*A29*'Dose per unit release'!$AL29*'Dose per unit release'!$AM29*100/'Assessment Details'!$C$39 -> 0
C30: =(A30*'Dose per unit release'!$A30*60/'Assessment Details'!$C$32)/$AV$11 -> 0 | D30: =(A30*'Dose per unit release'!$B30*60/'Assessment Details'!$C$32)/$AV$11 -> 0 | E30: =(A30*'Dose per unit release'!$C30*60/'Assessment Details'!$C$32)/$AV$11 -> 0 | H30: =(A30*'Dose per unit release'!$F30*60/'Assessment Details'!$C$32)/$AV$11 -> 0 | I30: =(A30*'Dose per unit release'!$G30*60/'Assessment Details'!$C$32)/$AV$11 -> 0 | J30: =(A30*'Dose per unit release'!$H30*60/'Assessment Details'!$C$32)/$AV$11 -> 0 | K30: =(A30*'Dose per unit release'!$I30*60/'Assessment Details'!$C$32)/$AV$11 -> 0 | N30: =(Calculator!$AR$11*A30*'Dose per unit release'!$L30*0.1/'Assessment Details'!$C$20)/$AV$11 -> 0 | O30: =(Calculator!$AR$11*A30*'Dose per unit release'!$M30*0.1/'Assessment Details'!$C$20)/$AV$11 -> 0 | P30: =(Calculator!$AR$11*A30*'Dose per unit release'!$N30*0.1/'Assessment Details'!$C$20)/$AV$11 -> 0 | S30: =(Calculator!$AR$13*A30*'Dose per unit release'!$Q30*'Dose per unit release'!$R30/'Assessment Details'!$C$25)/$AV$11 -> 0 | T30: =(Calculator!$AR$13*A30*'Dose per unit release'!$Q30*'Dose per unit release'!$S30/'Assessment Details'!$C$25)/$AV$11 -> 0 | U30: =(Calculator!$AR$13*A30*'Dose per unit release'!$Q30*'Dose per unit release'!$T30/'Assessment Details'!$C$25)/$AV$11 -> 0 | V30: =(Calculator!$AR$13*A30*'Dose per unit release'!$Q30*'Dose per unit release'!$U30/'Assessment Details'!$C$25)/$AV$11 -> 0 | Y30: =(Calculator!$AR$13*A30*'Dose per unit release'!$X30*'Dose per unit release'!$Y30/'Assessment Details'!$C$25)/$AV$11 -> 0 | Z30: =(Calculator!$AR$13*A30*'Dose per unit release'!$X30*'Dose per unit release'!$Z30/'Assessment Details'!$C$25)/$AV$11 -> 0 | AC30: =(Calculator!$AR$15*A30*'Dose per unit release'!$AC30*'Dose per unit release'!$AD30*100/'Assessment Details'!$C$39)/$AV$11 -> 0 | AD30: =(Calculator!$AR$15*A30*'Dose per unit release'!$AC30*'Dose per unit release'!$AE30*100/'Assessment Details'!$C$39)/$AV$11 -> 0 | AE30: =(Calculator!$AR$15*A30*'Dose per unit release'!$AC30*'Dose per unit release'!$AF30*100/'Assessment Details'!$C$39)/$AV$11 -> 0 | AH30: =Calculator!$AR$13*A30*'Dose per unit release'!$AI30*'Dose per unit release'!$AJ30/'Assessment Details'!$C$25 -> 0 | AK30: =Calculator!$AR$15*A30*'Dose per unit release'!$AL30*'Dose per unit release'!$AM30*100/'Assessment Details'!$C$39 -> 0 | AN30: =MAX(AN25,AN26,AN27,AN28) -> 2.594759603e-16
C31: =(A31*'Dose per unit release'!$A31*60/'Assessment Details'!$C$32)/$AV$11 -> 0 | D31: =(A31*'Dose per unit release'!$B31*60/'Assessment Details'!$C$32)/$AV$11 -> 0 | E31: =(A31*'Dose per unit release'!$C31*60/'Assessment Details'!$C$32)/$AV$11 -> 0 | H31: =(A31*'Dose per unit release'!$F31*60/'Assessment Details'!$C$32)/$AV$11 -> 0 | I31: =(A31*'Dose per unit release'!$G31*60/'Assessment Details'!$C$32)/$AV$11 -> 0 | J31: =(A31*'Dose per unit release'!$H31*60/'Assessment Details'!$C$32)/$AV$11 -> 0 | K31: =(A31*'Dose per unit release'!$I31*60/'Assessment Details'!$C$32)/$AV$11 -> 0 | N31: =(Calculator!$AR$11*A31*'Dose per unit release'!$L31*0.1/'Assessment Details'!$C$20)/$AV$11 -> 0 | O31: =(Calculator!$AR$11*A31*'Dose per unit release'!$M31*0.1/'Assessment Details'!$C$20)/$AV$11 -> 0 | P31: =(Calculator!$AR$11*A31*'Dose per unit release'!$N31*0.1/'Assessment Details'!$C$20)/$AV$11 -> 0 | S31: =(Calculator!$AR$13*A31*'Dose per unit release'!$Q31*'Dose per unit release'!$R31/'Assessment Details'!$C$25)/$AV$11 -> 0 | T31: =(Calculator!$AR$13*A31*'Dose per unit release'!$Q31*'Dose per unit release'!$S31/'Assessment Details'!$C$25)/$AV$11 -> 0 | U31: =(Calculator!$AR$13*A31*'Dose per unit release'!$Q31*'Dose per unit release'!$T31/'Assessment Details'!$C$25)/$AV$11 -> 0 | V31: =(Calculator!$AR$13*A31*'Dose per unit release'!$Q31*'Dose per unit release'!$U31/'Assessment Details'!$C$25)/$AV$11 -> 0 | Y31: =(Calculator!$AR$13*A31*'Dose per unit release'!$X31*'Dose per unit release'!$Y31/'Assessment Details'!$C$25)/$AV$11 -> 0 | Z31: =(Calculator!$AR$13*A31*'Dose per unit release'!$X31*'Dose per unit release'!$Z31/'Assessment Details'!$C$25)/$AV$11 -> 0 | AC31: =(Calculator!$AR$15*A31*'Dose per unit release'!$AC31*'Dose per unit release'!$AD31*100/'Assessment Details'!$C$39)/$AV$11 -> 0 | AD31: =(Calculator!$AR$15*A31*'Dose per unit release'!$AC31*'Dose per unit release'!$AE31*100/'Assessment Details'!$C$39)/$AV$11 -> 0 | AE31: =(Calculator!$AR$15*A31*'Dose per unit release'!$AC31*'Dose per unit release'!$AF31*100/'Assessment Details'!$C$39)/$AV$11 -> 0 | AH31: =Calculator!$AR$13*A31*'Dose per unit release'!$AI31*'Dose per unit release'!$AJ31/'Assessment Details'!$C$25 -> 0 | AK31: =Calculator!$AR$15*A31*'Dose per unit release'!$AL31*'Dose per unit release'!$AM31*100/'Assessment Details'!$C$39 -> 0
C32: =(A32*'Dose per unit release'!$A32*60/'Assessment Details'!$C$32)/$AV$11 -> 0 | D32: =(A32*'Dose per unit release'!$B32*60/'Assessment Details'!$C$32)/$AV$11 -> 0 | E32: =(A32*'Dose per unit release'!$C32*60/'Assessment Details'!$C$32)/$AV$11 -> 0 | H32: =(A32*'Dose per unit release'!$F32*60/'Assessment Details'!$C$32)/$AV$11 -> 0 | I32: =(A32*'Dose per unit release'!$G32*60/'Assessment Details'!$C$32)/$AV$11 -> 0 | J32: =(A32*'Dose per unit release'!$H32*60/'Assessment Details'!$C$32)/$AV$11 -> 0 | K32: =(A32*'Dose per unit release'!$I32*60/'Assessment Details'!$C$32)/$AV$11 -> 0 | N32: =(Calculator!$AR$11*A32*'Dose per unit release'!$L32*0.1/'Assessment Details'!$C$20)/$AV$11 -> 0 | O32: =(Calculator!$AR$11*A32*'Dose per unit release'!$M32*0.1/'Assessment Details'!$C$20)/$AV$11 -> 0 | P32: =(Calculator!$AR$11*A32*'Dose per unit release'!$N32*0.1/'Assessment Details'!$C$20)/$AV$11 -> 0 | S32: =(Calculator!$AR$13*A32*'Dose per unit release'!$Q32*'Dose per unit release'!$R32/'Assessment Details'!$C$25)/$AV$11 -> 0 | T32: =(Calculator!$AR$13*A32*'Dose per unit release'!$Q32*'Dose per unit release'!$S32/'Assessment Details'!$C$25)/$AV$11 -> 0 | U32: =(Calculator!$AR$13*A32*'Dose per unit release'!$Q32*'Dose per unit release'!$T32/'Assessment Details'!$C$25)/$AV$11 -> 0 | V32: =(Calculator!$AR$13*A32*'Dose per unit release'!$Q32*'Dose per unit release'!$U32/'Assessment Details'!$C$25)/$AV$11 -> 0 | Y32: =(Calculator!$AR$13*A32*'Dose per unit release'!$X32*'Dose per unit release'!$Y32/'Assessment Details'!$C$25)/$AV$11 -> 0 | Z32: =(Calculator!$AR$13*A32*'Dose per unit release'!$X32*'Dose per unit release'!$Z32/'Assessment Details'!$C$25)/$AV$11 -> 0 | AC32: =(Calculator!$AR$15*A32*'Dose per unit release'!$AC32*'Dose per unit release'!$AD32*100/'Assessment Details'!$C$39)/$AV$11 -> 0 | AD32: =(Calculator!$AR$15*A32*'Dose per unit release'!$AC32*'Dose per unit release'!$AE32*100/'Assessment Details'!$C$39)/$AV$11 -> 0 | AE32: =(Calculator!$AR$15*A32*'Dose per unit release'!$AC32*'Dose per unit release'!$AF32*100/'Assessment Details'!$C$39)/$AV$11 -> 0 | AH32: =Calculator!$AR$13*A32*'Dose per unit release'!$AI32*'Dose per unit release'!$AJ32/'Assessment Details'!$C$25 -> 0 | AK32: =Calculator!$AR$15*A32*'Dose per unit release'!$AL32*'Dose per unit release'!$AM32*100/'Assessment Details'!$C$39 -> 0
C33: =(A33*'Dose per unit release'!$A33*60/'Assessment Details'!$C$32)/$AV$11 -> 0 | D33: =(A33*'Dose per unit release'!$B33*60/'Assessment Details'!$C$32)/$AV$11 -> 0 | E33: =(A33*'Dose per unit release'!$C33*60/'Assessment Details'!$C$32)/$AV$11 -> 0 | H33: =(A33*'Dose per unit release'!$F33*60/'Assessment Details'!$C$32)/$AV$11 -> 0 | I33: =(A33*'Dose per unit release'!$G33*60/'Assessment Details'!$C$32)/$AV$11 -> 0 | J33: =(A33*'Dose per unit release'!$H33*60/'Assessment Details'!$C$32)/$AV$11 -> 0 | K33: =(A33*'Dose per unit release'!$I33*60/'Assessment Details'!$C$32)/$AV$11 -> 0 | N33: =(Calculator!$AR$11*A33*'Dose per unit release'!$L33*0.1/'Assessment Details'!$C$20)/$AV$11 -> 0 | O33: =(Calculator!$AR$11*A33*'Dose per unit release'!$M33*0.1/'Assessment Details'!$C$20)/$AV$11 -> 0 | P33: =(Calculator!$AR$11*A33*'Dose per unit release'!$N33*0.1/'Assessment Details'!$C$20)/$AV$11 -> 0 | S33: =(Calculator!$AR$13*A33*'Dose per unit release'!$Q33*'Dose per unit release'!$R33/'Assessment Details'!$C$25)/$AV$11 -> 0 | T33: =(Calculator!$AR$13*A33*'Dose per unit release'!$Q33*'Dose per unit release'!$S33/'Assessment Details'!$C$25)/$AV$11 -> 0 | U33: =(Calculator!$AR$13*A33*'Dose per unit release'!$Q33*'Dose per unit release'!$T33/'Assessment Details'!$C$25)/$AV$11 -> 0 | V33: =(Calculator!$AR$13*A33*'Dose per unit release'!$Q33*'Dose per unit release'!$U33/'Assessment Details'!$C$25)/$AV$11 -> 0 | Y33: =(Calculator!$AR$13*A33*'Dose per unit release'!$X33*'Dose per unit release'!$Y33/'Assessment Details'!$C$25)/$AV$11 -> 0 | Z33: =(Calculator!$AR$13*A33*'Dose per unit release'!$X33*'Dose per unit release'!$Z33/'Assessment Details'!$C$25)/$AV$11 -> 0 | AC33: =(Calculator!$AR$15*A33*'Dose per unit release'!$AC33*'Dose per unit release'!$AD33*100/'Assessment Details'!$C$39)/$AV$11 -> 0 | AD33: =(Calculator!$AR$15*A33*'Dose per unit release'!$AC33*'Dose per unit release'!$AE33*100/'Assessment Details'!$C$39)/$AV$11 -> 0 | AE33: =(Calculator!$AR$15*A33*'Dose per unit release'!$AC33*'Dose per unit release'!$AF33*100/'Assessment Details'!$C$39)/$AV$11 -> 0 | AH33: =Calculator!$AR$13*A33*'Dose per unit release'!$AI33*'Dose per unit release'!$AJ33/'Assessment Details'!$C$25 -> 0 | AK33: =Calculator!$AR$15*A33*'Dose per unit release'!$AL33*'Dose per unit release'!$AM33*100/'Assessment Details'!$C$39 -> 0
C34: =(A34*'Dose per unit release'!$A34*60/'Assessment Details'!$C$32)/$AV$11 -> 0 | D34: =(A34*'Dose per unit release'!$B34*60/'Assessment Details'!$C$32)/$AV$11 -> 0 | E34: =(A34*'Dose per unit release'!$C34*60/'Assessment Details'!$C$32)/$AV$11 -> 0 | H34: =(A34*'Dose per unit release'!$F34*60/'Assessment Details'!$C$32)/$AV$11 -> 0 | I34: =(A34*'Dose per unit release'!$G34*60/'Assessment Details'!$C$32)/$AV$11 -> 0 | J34: =(A34*'Dose per unit release'!$H34*60/'Assessment Details'!$C$32)/$AV$11 -> 0 | K34: =(A34*'Dose per unit release'!$I34*60/'Assessment Details'!$C$32)/$AV$11 -> 0 | N34: =(Calculator!$AR$11*A34*'Dose per unit release'!$L34*0.1/'Assessment Details'!$C$20)/$AV$11 -> 0 | O34: =(Calculator!$AR$11*A34*'Dose per unit release'!$M34*0.1/'Assessment Details'!$C$20)/$AV$11 -> 0 | P34: =(Calculator!$AR$11*A34*'Dose per unit release'!$N34*0.1/'Assessment Details'!$C$20)/$AV$11 -> 0 | S34: =(Calculator!$AR$13*A34*'Dose per unit release'!$Q34*'Dose per unit release'!$R34/'Assessment Details'!$C$25)/$AV$11 -> 0 | T34: =(Calculator!$AR$13*A34*'Dose per unit release'!$Q34*'Dose per unit release'!$S34/'Assessment Details'!$C$25)/$AV$11 -> 0 | U34: =(Calculator!$AR$13*A34*'Dose per unit release'!$Q34*'Dose per unit release'!$T34/'Assessment Details'!$C$25)/$AV$11 -> 0 | V34: =(Calculator!$AR$13*A34*'Dose per unit release'!$Q34*'Dose per unit release'!$U34/'Assessment Details'!$C$25)/$AV$11 -> 0 | Y34: =(Calculator!$AR$13*A34*'Dose per unit release'!$X34*'Dose per unit release'!$Y34/'Assessment Details'!$C$25)/$AV$11 -> 0 | Z34: =(Calculator!$AR$13*A34*'Dose per unit release'!$X34*'Dose per unit release'!$Z34/'Assessment Details'!$C$25)/$AV$11 -> 0 | AC34: =(Calculator!$AR$15*A34*'Dose per unit release'!$AC34*'Dose per unit release'!$AD34*100/'Assessment Details'!$C$39)/$AV$11 -> 0 | AD34: =(Calculator!$AR$15*A34*'Dose per unit release'!$AC34*'Dose per unit release'!$AE34*100/'Assessment Details'!$C$39)/$AV$11 -> 0 | AE34: =(Calculator!$AR$15*A34*'Dose per unit release'!$AC34*'Dose per unit release'!$AF34*100/'Assessment Details'!$C$39)/$AV$11 -> 0 | AH34: =Calculator!$AR$13*A34*'Dose per unit release'!$AI34*'Dose per unit release'!$AJ34/'Assessment Details'!$C$25 -> 0 | AK34: =Calculator!$AR$15*A34*'Dose per unit release'!$AL34*'Dose per unit release'!$AM34*100/'Assessment Details'!$C$39 -> 0
C35: =(A35*'Dose per unit release'!$A35*60/'Assessment Details'!$C$32)/$AV$11 -> 0 | D35: =(A35*'Dose per unit release'!$B35*60/'Assessment Details'!$C$32)/$AV$11 -> 0 | E35: =(A35*'Dose per unit release'!$C35*60/'Assessment Details'!$C$32)/$AV$11 -> 0 | H35: =(A35*'Dose per unit release'!$F35*60/'Assessment Details'!$C$32)/$AV$11 -> 0 | I35: =(A35*'Dose per unit release'!$G35*60/'Assessment Details'!$C$32)/$AV$11 -> 0 | J35: =(A35*'Dose per unit release'!$H35*60/'Assessment Details'!$C$32)/$AV$11 -> 0 | K35: =(A35*'Dose per unit release'!$I35*60/'Assessment Details'!$C$32)/$AV$11 -> 0 | N35: =(Calculator!$AR$11*A35*'Dose per unit release'!$L35*0.1/'Assessment Details'!$C$20)/$AV$11 -> 0 | O35: =(Calculator!$AR$11*A35*'Dose per unit release'!$M35*0.1/'Assessment Details'!$C$20)/$AV$11 -> 0 | P35: =(Calculator!$AR$11*A35*'Dose per unit release'!$N35*0.1/'Assessment Details'!$C$20)/$AV$11 -> 0 | S35: =(Calculator!$AR$13*A35*'Dose per unit release'!$Q35*'Dose per unit release'!$R35/'Assessment Details'!$C$25)/$AV$11 -> 0 | T35: =(Calculator!$AR$13*A35*'Dose per unit release'!$Q35*'Dose per unit release'!$S35/'Assessment Details'!$C$25)/$AV$11 -> 0 | U35: =(Calculator!$AR$13*A35*'Dose per unit release'!$Q35*'Dose per unit release'!$T35/'Assessment Details'!$C$25)/$AV$11 -> 0 | V35: =(Calculator!$AR$13*A35*'Dose per unit release'!$Q35*'Dose per unit release'!$U35/'Assessment Details'!$C$25)/$AV$11 -> 0 | Y35: =(Calculator!$AR$13*A35*'Dose per unit release'!$X35*'Dose per unit release'!$Y35/'Assessment Details'!$C$25)/$AV$11 -> 0 | Z35: =(Calculator!$AR$13*A35*'Dose per unit release'!$X35*'Dose per unit release'!$Z35/'Assessment Details'!$C$25)/$AV$11 -> 0 | AC35: =(Calculator!$AR$15*A35*'Dose per unit release'!$AC35*'Dose per unit release'!$AD35*100/'Assessment Details'!$C$39)/$AV$11 -> 0 | AD35: =(Calculator!$AR$15*A35*'Dose per unit release'!$AC35*'Dose per unit release'!$AE35*100/'Assessment Details'!$C$39)/$AV$11 -> 0 | AE35: =(Calculator!$AR$15*A35*'Dose per unit release'!$AC35*'Dose per unit release'!$AF35*100/'Assessment Details'!$C$39)/$AV$11 -> 0 | AH35: =Calculator!$AR$13*A35*'Dose per unit release'!$AI35*'Dose per unit release'!$AJ35/'Assessment Details'!$C$25 -> 0 | AK35: =Calculator!$AR$15*A35*'Dose per unit release'!$AL35*'Dose per unit release'!$AM35*100/'Assessment Details'!$C$39 -> 0
C36: =(A36*'Dose per unit release'!$A36*60/'Assessment Details'!$C$32)/$AV$11 -> 0 | D36: =(A36*'Dose per unit release'!$B36*60/'Assessment Details'!$C$32)/$AV$11 -> 0 | E36: =(A36*'Dose per unit release'!$C36*60/'Assessment Details'!$C$32)/$AV$11 -> 0 | H36: =(A36*'Dose per unit release'!$F36*60/'Assessment Details'!$C$32)/$AV$11 -> 0 | I36: =(A36*'Dose per unit release'!$G36*60/'Assessment Details'!$C$32)/$AV$11 -> 0 | J36: =(A36*'Dose per unit release'!$H36*60/'Assessment Details'!$C$32)/$AV$11 -> 0 | K36: =(A36*'Dose per unit release'!$I36*60/'Assessment Details'!$C$32)/$AV$11 -> 0 | N36: =(Calculator!$AR$11*A36*'Dose per unit release'!$L36*0.1/'Assessment Details'!$C$20)/$AV$11 -> 0 | O36: =(Calculator!$AR$11*A36*'Dose per unit release'!$M36*0.1/'Assessment Details'!$C$20)/$AV$11 -> 0 | P36: =(Calculator!$AR$11*A36*'Dose per unit release'!$N36*0.1/'Assessment Details'!$C$20)/$AV$11 -> 0 | S36: =(Calculator!$AR$13*A36*'Dose per unit release'!$Q36*'Dose per unit release'!$R36/'Assessment Details'!$C$25)/$AV$11 -> 0 | T36: =(Calculator!$AR$13*A36*'Dose per unit release'!$Q36*'Dose per unit release'!$S36/'Assessment Details'!$C$25)/$AV$11 -> 0 | U36: =(Calculator!$AR$13*A36*'Dose per unit release'!$Q36*'Dose per unit release'!$T36/'Assessment Details'!$C$25)/$AV$11 -> 0 | V36: =(Calculator!$AR$13*A36*'Dose per unit release'!$Q36*'Dose per unit release'!$U36/'Assessment Details'!$C$25)/$AV$11 -> 0 | Y36: =(Calculator!$AR$13*A36*'Dose per unit release'!$X36*'Dose per unit release'!$Y36/'Assessment Details'!$C$25)/$AV$11 -> 0 | Z36: =(Calculator!$AR$13*A36*'Dose per unit release'!$X36*'Dose per unit release'!$Z36/'Assessment Details'!$C$25)/$AV$11 -> 0 | AC36: =(Calculator!$AR$15*A36*'Dose per unit release'!$AC36*'Dose per unit release'!$AD36*100/'Assessment Details'!$C$39)/$AV$11 -> 0 | AD36: =(Calculator!$AR$15*A36*'Dose per unit release'!$AC36*'Dose per unit release'!$AE36*100/'Assessment Details'!$C$39)/$AV$11 -> 0 | AE36: =(Calculator!$AR$15*A36*'Dose per unit release'!$AC36*'Dose per unit release'!$AF36*100/'Assessment Details'!$C$39)/$AV$11 -> 0 | AH36: =Calculator!$AR$13*A36*'Dose per unit release'!$AI36*'Dose per unit release'!$AJ36/'Assessment Details'!$C$25 -> 0 | AK36: =Calculator!$AR$15*A36*'Dose per unit release'!$AL36*'Dose per unit release'!$AM36*100/'Assessment Details'!$C$39 -> 0
C37: =(A37*'Dose per unit release'!$A37*60/'Assessment Details'!$C$32)/$AV$11 -> 0 | D37: =(A37*'Dose per unit release'!$B37*60/'Assessment Details'!$C$32)/$AV$11 -> 0 | E37: =(A37*'Dose per unit release'!$C37*60/'Assessment Details'!$C$32)/$AV$11 -> 0 | H37: =(A37*'Dose per unit release'!$F37*60/'Assessment Details'!$C$32)/$AV$11 -> 0 | I37: =(A37*'Dose per unit release'!$G37*60/'Assessment Details'!$C$32)/$AV$11 -> 0 | J37: =(A37*'Dose per unit release'!$H37*60/'Assessment Details'!$C$32)/$AV$11 -> 0 | K37: =(A37*'Dose per unit release'!$I37*60/'Assessment Details'!$C$32)/$AV$11 -> 0 | N37: =(Calculator!$AR$11*A37*'Dose per unit release'!$L37*0.1/'Assessment Details'!$C$20)/$AV$11 -> 0 | O37: =(Calculator!$AR$11*A37*'Dose per unit release'!$M37*0.1/'Assessment Details'!$C$20)/$AV$11 -> 0 | P37: =(Calculator!$AR$11*A37*'Dose per unit release'!$N37*0.1/'Assessment Details'!$C$20)/$AV$11 -> 0 | S37: =(Calculator!$AR$13*A37*'Dose per unit release'!$Q37*'Dose per unit release'!$R37/'Assessment Details'!$C$25)/$AV$11 -> 0 | T37: =(Calculator!$AR$13*A37*'Dose per unit release'!$Q37*'Dose per unit release'!$S37/'Assessment Details'!$C$25)/$AV$11 -> 0 | U37: =(Calculator!$AR$13*A37*'Dose per unit release'!$Q37*'Dose per unit release'!$T37/'Assessment Details'!$C$25)/$AV$11 -> 0 | V37: =(Calculator!$AR$13*A37*'Dose per unit release'!$Q37*'Dose per unit release'!$U37/'Assessment Details'!$C$25)/$AV$11 -> 0 | Y37: =(Calculator!$AR$13*A37*'Dose per unit release'!$X37*'Dose per unit release'!$Y37/'Assessment Details'!$C$25)/$AV$11 -> 0 | Z37: =(Calculator!$AR$13*A37*'Dose per unit release'!$X37*'Dose per unit release'!$Z37/'Assessment Details'!$C$25)/$AV$11 -> 0 | AC37: =(Calculator!$AR$15*A37*'Dose per unit release'!$AC37*'Dose per unit release'!$AD37*100/'Assessment Details'!$C$39)/$AV$11 -> 0 | AD37: =(Calculator!$AR$15*A37*'Dose per unit release'!$AC37*'Dose per unit release'!$AE37*100/'Assessment Details'!$C$39)/$AV$11 -> 0 | AE37: =(Calculator!$AR$15*A37*'Dose per unit release'!$AC37*'Dose per unit release'!$AF37*100/'Assessment Details'!$C$39)/$AV$11 -> 0 | AH37: =Calculator!$AR$13*A37*'Dose per unit release'!$AI37*'Dose per unit release'!$AJ37/'Assessment Details'!$C$25 -> 0 | AK37: =Calculator!$AR$15*A37*'Dose per unit release'!$AL37*'Dose per unit release'!$AM37*100/'Assessment Details'!$C$39 -> 0
C38: =(A38*'Dose per unit release'!$A38*60/'Assessment Details'!$C$32)/$AV$11 -> 0 | D38: =(A38*'Dose per unit release'!$B38*60/'Assessment Details'!$C$32)/$AV$11 -> 0 | E38: =(A38*'Dose per unit release'!$C38*60/'Assessment Details'!$C$32)/$AV$11 -> 0 | H38: =(A38*'Dose per unit release'!$F38*60/'Assessment Details'!$C$32)/$AV$11 -> 0 | I38: =(A38*'Dose per unit release'!$G38*60/'Assessment Details'!$C$32)/$AV$11 -> 0 | J38: =(A38*'Dose per unit release'!$H38*60/'Assessment Details'!$C$32)/$AV$11 -> 0 | K38: =(A38*'Dose per unit release'!$I38*60/'Assessment Details'!$C$32)/$AV$11 -> 0 | N38: =(Calculator!$AR$11*A38*'Dose per unit release'!$L38*0.1/'Assessment Details'!$C$20)/$AV$11 -> 0 | O38: =(Calculator!$AR$11*A38*'Dose per unit release'!$M38*0.1/'Assessment Details'!$C$20)/$AV$11 -> 0 | P38: =(Calculator!$AR$11*A38*'Dose per unit release'!$N38*0.1/'Assessment Details'!$C$20)/$AV$11 -> 0 | S38: =(Calculator!$AR$13*A38*'Dose per unit release'!$Q38*'Dose per unit release'!$R38/'Assessment Details'!$C$25)/$AV$11 -> 0 | T38: =(Calculator!$AR$13*A38*'Dose per unit release'!$Q38*'Dose per unit release'!$S38/'Assessment Details'!$C$25)/$AV$11 -> 0 | U38: =(Calculator!$AR$13*A38*'Dose per unit release'!$Q38*'Dose per unit release'!$T38/'Assessment Details'!$C$25)/$AV$11 -> 0 | V38: =(Calculator!$AR$13*A38*'Dose per unit release'!$Q38*'Dose per unit release'!$U38/'Assessment Details'!$C$25)/$AV$11 -> 0 | Y38: =(Calculator!$AR$13*A38*'Dose per unit release'!$X38*'Dose per unit release'!$Y38/'Assessment Details'!$C$25)/$AV$11 -> 0 | Z38: =(Calculator!$AR$13*A38*'Dose per unit release'!$X38*'Dose per unit release'!$Z38/'Assessment Details'!$C$25)/$AV$11 -> 0 | AC38: =(Calculator!$AR$15*A38*'Dose per unit release'!$AC38*'Dose per unit release'!$AD38*100/'Assessment Details'!$C$39)/$AV$11 -> 0 | AD38: =(Calculator!$AR$15*A38*'Dose per unit release'!$AC38*'Dose per unit release'!$AE38*100/'Assessment Details'!$C$39)/$AV$11 -> 0 | AE38: =(Calculator!$AR$15*A38*'Dose per unit release'!$AC38*'Dose per unit release'!$AF38*100/'Assessment Details'!$C$39)/$AV$11 -> 0 | AH38: =Calculator!$AR$13*A38*'Dose per unit release'!$AI38*'Dose per unit release'!$AJ38/'Assessment Details'!$C$25 -> 0 | AK38: =Calculator!$AR$15*A38*'Dose per unit release'!$AL38*'Dose per unit release'!$AM38*100/'Assessment Details'!$C$39 -> 0
C39: =(A39*'Dose per unit release'!$A39*60/'Assessment Details'!$C$32)/$AV$11 -> 0 | D39: =(A39*'Dose per unit release'!$B39*60/'Assessment Details'!$C$32)/$AV$11 -> 0 | E39: =(A39*'Dose per unit release'!$C39*60/'Assessment Details'!$C$32)/$AV$11 -> 0 | H39: =(A39*'Dose per unit release'!$F39*60/'Assessment Details'!$C$32)/$AV$11 -> 0 | I39: =(A39*'Dose per unit release'!$G39*60/'Assessment Details'!$C$32)/$AV$11 -> 0 | J39: =(A39*'Dose per unit release'!$H39*60/'Assessment Details'!$C$32)/$AV$11 -> 0 | K39: =(A39*'Dose per unit release'!$I39*60/'Assessment Details'!$C$32)/$AV$11 -> 0 | N39: =(Calculator!$AR$11*A39*'Dose per unit release'!$L39*0.1/'Assessment Details'!$C$20)/$AV$11 -> 0 | O39: =(Calculator!$AR$11*A39*'Dose per unit release'!$M39*0.1/'Assessment Details'!$C$20)/$AV$11 -> 0 | P39: =(Calculator!$AR$11*A39*'Dose per unit release'!$N39*0.1/'Assessment Details'!$C$20)/$AV$11 -> 0 | S39: =(Calculator!$AR$13*A39*'Dose per unit release'!$Q39*'Dose per unit release'!$R39/'Assessment Details'!$C$25)/$AV$11 -> 0 | T39: =(Calculator!$AR$13*A39*'Dose per unit release'!$Q39*'Dose per unit release'!$S39/'Assessment Details'!$C$25)/$AV$11 -> 0 | U39: =(Calculator!$AR$13*A39*'Dose per unit release'!$Q39*'Dose per unit release'!$T39/'Assessment Details'!$C$25)/$AV$11 -> 0 | V39: =(Calculator!$AR$13*A39*'Dose per unit release'!$Q39*'Dose per unit release'!$U39/'Assessment Details'!$C$25)/$AV$11 -> 0 | Y39: =(Calculator!$AR$13*A39*'Dose per unit release'!$X39*'Dose per unit release'!$Y39/'Assessment Details'!$C$25)/$AV$11 -> 0 | Z39: =(Calculator!$AR$13*A39*'Dose per unit release'!$X39*'Dose per unit release'!$Z39/'Assessment Details'!$C$25)/$AV$11 -> 0 | AC39: =(Calculator!$AR$15*A39*'Dose per unit release'!$AC39*'Dose per unit release'!$AD39*100/'Assessment Details'!$C$39)/$AV$11 -> 0 | AD39: =(Calculator!$AR$15*A39*'Dose per unit release'!$AC39*'Dose per unit release'!$AE39*100/'Assessment Details'!$C$39)/$AV$11 -> 0 | AE39: =(Calculator!$AR$15*A39*'Dose per unit release'!$AC39*'Dose per unit release'!$AF39*100/'Assessment Details'!$C$39)/$AV$11 -> 0 | AH39: =Calculator!$AR$13*A39*'Dose per unit release'!$AI39*'Dose per unit release'!$AJ39/'Assessment Details'!$C$25 -> 0 | AK39: =Calculator!$AR$15*A39*'Dose per unit release'!$AL39*'Dose per unit release'!$AM39*100/'Assessment Details'!$C$39 -> 0
C40: =(A40*'Dose per unit release'!$A40*60/'Assessment Details'!$C$32)/$AV$11 -> 0 | D40: =(A40*'Dose per unit release'!$B40*60/'Assessment Details'!$C$32)/$AV$11 -> 0 | E40: =(A40*'Dose per unit release'!$C40*60/'Assessment Details'!$C$32)/$AV$11 -> 0 | H40: =(A40*'Dose per unit release'!$F40*60/'Assessment Details'!$C$32)/$AV$11 -> 0 | I40: =(A40*'Dose per unit release'!$G40*60/'Assessment Details'!$C$32)/$AV$11 -> 0 | J40: =(A40*'Dose per unit release'!$H40*60/'Assessment Details'!$C$32)/$AV$11 -> 0 | K40: =(A40*'Dose per unit release'!$I40*60/'Assessment Details'!$C$32)/$AV$11 -> 0 | N40: =(Calculator!$AR$11*A40*'Dose per unit release'!$L40*0.1/'Assessment Details'!$C$20)/$AV$11 -> 0 | O40: =(Calculator!$AR$11*A40*'Dose per unit release'!$M40*0.1/'Assessment Details'!$C$20)/$AV$11 -> 0 | P40: =(Calculator!$AR$11*A40*'Dose per unit release'!$N40*0.1/'Assessment Details'!$C$20)/$AV$11 -> 0 | S40: =(Calculator!$AR$13*A40*'Dose per unit release'!$Q40*'Dose per unit release'!$R40/'Assessment Details'!$C$25)/$AV$11 -> 0 | T40: =(Calculator!$AR$13*A40*'Dose per unit release'!$Q40*'Dose per unit release'!$S40/'Assessment Details'!$C$25)/$AV$11 -> 0 | U40: =(Calculator!$AR$13*A40*'Dose per unit release'!$Q40*'Dose per unit release'!$T40/'Assessment Details'!$C$25)/$AV$11 -> 0 | V40: =(Calculator!$AR$13*A40*'Dose per unit release'!$Q40*'Dose per unit release'!$U40/'Assessment Details'!$C$25)/$AV$11 -> 0 | Y40: =(Calculator!$AR$13*A40*'Dose per unit release'!$X40*'Dose per unit release'!$Y40/'Assessment Details'!$C$25)/$AV$11 -> 0 | Z40: =(Calculator!$AR$13*A40*'Dose per unit release'!$X40*'Dose per unit release'!$Z40/'Assessment Details'!$C$25)/$AV$11 -> 0 | AC40: =(Calculator!$AR$15*A40*'Dose per unit release'!$AC40*'Dose per unit release'!$AD40*100/'Assessment Details'!$C$39)/$AV$11 -> 0 | AD40: =(Calculator!$AR$15*A40*'Dose per unit release'!$AC40*'Dose per unit release'!$AE40*100/'Assessment Details'!$C$39)/$AV$11 -> 0 | AE40: =(Calculator!$AR$15*A40*'Dose per unit release'!$AC40*'Dose per unit release'!$AF40*100/'Assessment Details'!$C$39)/$AV$11 -> 0 | AH40: =Calculator!$AR$13*A40*'Dose per unit release'!$AI40*'Dose per unit release'!$AJ40/'Assessment Details'!$C$25 -> 0 | AK40: =Calculator!$AR$15*A40*'Dose per unit release'!$AL40*'Dose per unit release'!$AM40*100/'Assessment Details'!$C$39 -> 0
C41: =(A41*'Dose per unit release'!$A41*60/'Assessment Details'!$C$32)/$AV$11 -> 0 | D41: =(A41*'Dose per unit release'!$B41*60/'Assessment Details'!$C$32)/$AV$11 -> 0 | E41: =(A41*'Dose per unit release'!$C41*60/'Assessment Details'!$C$32)/$AV$11 -> 0 | H41: =(A41*'Dose per unit release'!$F41*60/'Assessment Details'!$C$32)/$AV$11 -> 0 | I41: =(A41*'Dose per unit release'!$G41*60/'Assessment Details'!$C$32)/$AV$11 -> 0 | J41: =(A41*'Dose per unit release'!$H41*60/'Assessment Details'!$C$32)/$AV$11 -> 0 | K41: =(A41*'Dose per unit release'!$I41*60/'Assessment Details'!$C$32)/$AV$11 -> 0 | N41: =(Calculator!$AR$11*A41*'Dose per unit release'!$L41*0.1/'Assessment Details'!$C$20)/$AV$11 -> 0 | O41: =(Calculator!$AR$11*A41*'Dose per unit release'!$M41*0.1/'Assessment Details'!$C$20)/$AV$11 -> 0 | P41: =(Calculator!$AR$11*A41*'Dose per unit release'!$N41*0.1/'Assessment Details'!$C$20)/$AV$11 -> 0 | S41: =(Calculator!$AR$13*A41*'Dose per unit release'!$Q41*'Dose per unit release'!$R41/'Assessment Details'!$C$25)/$AV$11 -> 0 | T41: =(Calculator!$AR$13*A41*'Dose per unit release'!$Q41*'Dose per unit release'!$S41/'Assessment Details'!$C$25)/$AV$11 -> 0 | U41: =(Calculator!$AR$13*A41*'Dose per unit release'!$Q41*'Dose per unit release'!$T41/'Assessment Details'!$C$25)/$AV$11 -> 0 | V41: =(Calculator!$AR$13*A41*'Dose per unit release'!$Q41*'Dose per unit release'!$U41/'Assessment Details'!$C$25)/$AV$11 -> 0 | Y41: =(Calculator!$AR$13*A41*'Dose per unit release'!$X41*'Dose per unit release'!$Y41/'Assessment Details'!$C$25)/$AV$11 -> 0 | Z41: =(Calculator!$AR$13*A41*'Dose per unit release'!$X41*'Dose per unit release'!$Z41/'Assessment Details'!$C$25)/$AV$11 -> 0 | AC41: =(Calculator!$AR$15*A41*'Dose per unit release'!$AC41*'Dose per unit release'!$AD41*100/'Assessment Details'!$C$39)/$AV$11 -> 0 | AD41: =(Calculator!$AR$15*A41*'Dose per unit release'!$AC41*'Dose per unit release'!$AE41*100/'Assessment Details'!$C$39)/$AV$11 -> 0 | AE41: =(Calculator!$AR$15*A41*'Dose per unit release'!$AC41*'Dose per unit release'!$AF41*100/'Assessment Details'!$C$39)/$AV$11 -> 0 | AH41: =Calculator!$AR$13*A41*'Dose per unit release'!$AI41*'Dose per unit release'!$AJ41/'Assessment Details'!$C$25 -> 0 | AK41: =Calculator!$AR$15*A41*'Dose per unit release'!$AL41*'Dose per unit release'!$AM41*100/'Assessment Details'!$C$39 -> 0
C42: =(A42*'Dose per unit release'!$A42*60/'Assessment Details'!$C$32)/$AV$11 -> 0 | D42: =(A42*'Dose per unit release'!$B42*60/'Assessment Details'!$C$32)/$AV$11 -> 0 | E42: =(A42*'Dose per unit release'!$C42*60/'Assessment Details'!$C$32)/$AV$11 -> 0 | H42: =(A42*'Dose per unit release'!$F42*60/'Assessment Details'!$C$32)/$AV$11 -> 0 | I42: =(A42*'Dose per unit release'!$G42*60/'Assessment Details'!$C$32)/$AV$11 -> 0 | J42: =(A42*'Dose per unit release'!$H42*60/'Assessment Details'!$C$32)/$AV$11 -> 0 | K42: =(A42*'Dose per unit release'!$I42*60/'Assessment Details'!$C$32)/$AV$11 -> 0 | N42: =(Calculator!$AR$11*A42*'Dose per unit release'!$L42*0.1/'Assessment Details'!$C$20)/$AV$11 -> 0 | O42: =(Calculator!$AR$11*A42*'Dose per unit release'!$M42*0.1/'Assessment Details'!$C$20)/$AV$11 -> 0 | P42: =(Calculator!$AR$11*A42*'Dose per unit release'!$N42*0.1/'Assessment Details'!$C$20)/$AV$11 -> 0 | S42: =(Calculator!$AR$13*A42*'Dose per unit release'!$Q42*'Dose per unit release'!$R42/'Assessment Details'!$C$25)/$AV$11 -> 0 | T42: =(Calculator!$AR$13*A42*'Dose per unit release'!$Q42*'Dose per unit release'!$S42/'Assessment Details'!$C$25)/$AV$11 -> 0 | U42: =(Calculator!$AR$13*A42*'Dose per unit release'!$Q42*'Dose per unit release'!$T42/'Assessment Details'!$C$25)/$AV$11 -> 0 | V42: =(Calculator!$AR$13*A42*'Dose per unit release'!$Q42*'Dose per unit release'!$U42/'Assessment Details'!$C$25)/$AV$11 -> 0 | Y42: =(Calculator!$AR$13*A42*'Dose per unit release'!$X42*'Dose per unit release'!$Y42/'Assessment Details'!$C$25)/$AV$11 -> 0 | Z42: =(Calculator!$AR$13*A42*'Dose per unit release'!$X42*'Dose per unit release'!$Z42/'Assessment Details'!$C$25)/$AV$11 -> 0 | AC42: =(Calculator!$AR$15*A42*'Dose per unit release'!$AC42*'Dose per unit release'!$AD42*100/'Assessment Details'!$C$39)/$AV$11 -> 0 | AD42: =(Calculator!$AR$15*A42*'Dose per unit release'!$AC42*'Dose per unit release'!$AE42*100/'Assessment Details'!$C$39)/$AV$11 -> 0 | AE42: =(Calculator!$AR$15*A42*'Dose per unit release'!$AC42*'Dose per unit release'!$AF42*100/'Assessment Details'!$C$39)/$AV$11 -> 0 | AH42: =Calculator!$AR$13*A42*'Dose per unit release'!$AI42*'Dose per unit release'!$AJ42/'Assessment Details'!$C$25 -> 0 | AK42: =Calculator!$AR$15*A42*'Dose per unit release'!$AL42*'Dose per unit release'!$AM42*100/'Assessment Details'!$C$39 -> 0
C43: =(A43*'Dose per unit release'!$A43*60/'Assessment Details'!$C$32)/$AV$11 -> 0 | D43: =(A43*'Dose per unit release'!$B43*60/'Assessment Details'!$C$32)/$AV$11 -> 0 | E43: =(A43*'Dose per unit release'!$C43*60/'Assessment Details'!$C$32)/$AV$11 -> 0 | H43: =(A43*'Dose per unit release'!$F43*60/'Assessment Details'!$C$32)/$AV$11 -> 0 | I43: =(A43*'Dose per unit release'!$G43*60/'Assessment Details'!$C$32)/$AV$11 -> 0 | J43: =(A43*'Dose per unit release'!$H43*60/'Assessment Details'!$C$32)/$AV$11 -> 0 | K43: =(A43*'Dose per unit release'!$I43*60/'Assessment Details'!$C$32)/$AV$11 -> 0 | N43: =(Calculator!$AR$11*A43*'Dose per unit release'!$L43*0.1/'Assessment Details'!$C$20)/$AV$11 -> 0 | O43: =(Calculator!$AR$11*A43*'Dose per unit release'!$M43*0.1/'Assessment Details'!$C$20)/$AV$11 -> 0 | P43: =(Calculator!$AR$11*A43*'Dose per unit release'!$N43*0.1/'Assessment Details'!$C$20)/$AV$11 -> 0 | S43: =(Calculator!$AR$13*A43*'Dose per unit release'!$Q43*'Dose per unit release'!$R43/'Assessment Details'!$C$25)/$AV$11 -> 0 | T43: =(Calculator!$AR$13*A43*'Dose per unit release'!$Q43*'Dose per unit release'!$S43/'Assessment Details'!$C$25)/$AV$11 -> 0 | U43: =(Calculator!$AR$13*A43*'Dose per unit release'!$Q43*'Dose per unit release'!$T43/'Assessment Details'!$C$25)/$AV$11 -> 0 | V43: =(Calculator!$AR$13*A43*'Dose per unit release'!$Q43*'Dose per unit release'!$U43/'Assessment Details'!$C$25)/$AV$11 -> 0 | Y43: =(Calculator!$AR$13*A43*'Dose per unit release'!$X43*'Dose per unit release'!$Y43/'Assessment Details'!$C$25)/$AV$11 -> 0 | Z43: =(Calculator!$AR$13*A43*'Dose per unit release'!$X43*'Dose per unit release'!$Z43/'Assessment Details'!$C$25)/$AV$11 -> 0 | AC43: =(Calculator!$AR$15*A43*'Dose per unit release'!$AC43*'Dose per unit release'!$AD43*100/'Assessment Details'!$C$39)/$AV$11 -> 0 | AD43: =(Calculator!$AR$15*A43*'Dose per unit release'!$AC43*'Dose per unit release'!$AE43*100/'Assessment Details'!$C$39)/$AV$11 -> 0 | AE43: =(Calculator!$AR$15*A43*'Dose per unit release'!$AC43*'Dose per unit release'!$AF43*100/'Assessment Details'!$C$39)/$AV$11 -> 0 | AH43: =Calculator!$AR$13*A43*'Dose per unit release'!$AI43*'Dose per unit release'!$AJ43/'Assessment Details'!$C$25 -> 0 | AK43: =Calculator!$AR$15*A43*'Dose per unit release'!$AL43*'Dose per unit release'!$AM43*100/'Assessment Details'!$C$39 -> 0
C44: =(A44*'Dose per unit release'!$A44*60/'Assessment Details'!$C$32)/$AV$11 -> 0 | D44: =(A44*'Dose per unit release'!$B44*60/'Assessment Details'!$C$32)/$AV$11 -> 0 | E44: =(A44*'Dose per unit release'!$C44*60/'Assessment Details'!$C$32)/$AV$11 -> 0 | H44: =(A44*'Dose per unit release'!$F44*60/'Assessment Details'!$C$32)/$AV$11 -> 0 | I44: =(A44*'Dose per unit release'!$G44*60/'Assessment Details'!$C$32)/$AV$11 -> 0 | J44: =(A44*'Dose per unit release'!$H44*60/'Assessment Details'!$C$32)/$AV$11 -> 0 | K44: =(A44*'Dose per unit release'!$I44*60/'Assessment Details'!$C$32)/$AV$11 -> 0 | N44: =(Calculator!$AR$11*A44*'Dose per unit release'!$L44*0.1/'Assessment Details'!$C$20)/$AV$11 -> 0 | O44: =(Calculator!$AR$11*A44*'Dose per unit release'!$M44*0.1/'Assessment Details'!$C$20)/$AV$11 -> 0 | P44: =(Calculator!$AR$11*A44*'Dose per unit release'!$N44*0.1/'Assessment Details'!$C$20)/$AV$11 -> 0 | S44: =(Calculator!$AR$13*A44*'Dose per unit release'!$Q44*'Dose per unit release'!$R44/'Assessment Details'!$C$25)/$AV$11 -> 0 | T44: =(Calculator!$AR$13*A44*'Dose per unit release'!$Q44*'Dose per unit release'!$S44/'Assessment Details'!$C$25)/$AV$11 -> 0 | U44: =(Calculator!$AR$13*A44*'Dose per unit release'!$Q44*'Dose per unit release'!$T44/'Assessment Details'!$C$25)/$AV$11 -> 0 | V44: =(Calculator!$AR$13*A44*'Dose per unit release'!$Q44*'Dose per unit release'!$U44/'Assessment Details'!$C$25)/$AV$11 -> 0 | Y44: =(Calculator!$AR$13*A44*'Dose per unit release'!$X44*'Dose per unit release'!$Y44/'Assessment Details'!$C$25)/$AV$11 -> 0 | Z44: =(Calculator!$AR$13*A44*'Dose per unit release'!$X44*'Dose per unit release'!$Z44/'Assessment Details'!$C$25)/$AV$11 -> 0 | AC44: =(Calculator!$AR$15*A44*'Dose per unit release'!$AC44*'Dose per unit release'!$AD44*100/'Assessment Details'!$C$39)/$AV$11 -> 0 | AD44: =(Calculator!$AR$15*A44*'Dose per unit release'!$AC44*'Dose per unit release'!$AE44*100/'Assessment Details'!$C$39)/$AV$11 -> 0 | AE44: =(Calculator!$AR$15*A44*'Dose per unit release'!$AC44*'Dose per unit release'!$AF44*100/'Assessment Details'!$C$39)/$AV$11 -> 0 | AH44: =Calculator!$AR$13*A44*'Dose per unit release'!$AI44*'Dose per unit release'!$AJ44/'Assessment Details'!$C$25 -> 0 | AK44: =Calculator!$AR$15*A44*'Dose per unit release'!$AL44*'Dose per unit release'!$AM44*100/'Assessment Details'!$C$39 -> 0
C45: =(A45*'Dose per unit release'!$A45*60/'Assessment Details'!$C$32)/$AV$11 -> 0 | D45: =(A45*'Dose per unit release'!$B45*60/'Assessment Details'!$C$32)/$AV$11 -> 0 | E45: =(A45*'Dose per unit release'!$C45*60/'Assessment Details'!$C$32)/$AV$11 -> 0 | H45: =(A45*'Dose per unit release'!$F45*60/'Assessment Details'!$C$32)/$AV$11 -> 0 | I45: =(A45*'Dose per unit release'!$G45*60/'Assessment Details'!$C$32)/$AV$11 -> 0 | J45: =(A45*'Dose per unit release'!$H45*60/'Assessment Details'!$C$32)/$AV$11 -> 0 | K45: =(A45*'Dose per unit release'!$I45*60/'Assessment Details'!$C$32)/$AV$11 -> 0 | N45: =(Calculator!$AR$11*A45*'Dose per unit release'!$L45*0.1/'Assessment Details'!$C$20)/$AV$11 -> 0 | O45: =(Calculator!$AR$11*A45*'Dose per unit release'!$M45*0.1/'Assessment Details'!$C$20)/$AV$11 -> 0 | P45: =(Calculator!$AR$11*A45*'Dose per unit release'!$N45*0.1/'Assessment Details'!$C$20)/$AV$11 -> 0 | S45: =(Calculator!$AR$13*A45*'Dose per unit release'!$Q45*'Dose per unit release'!$R45/'Assessment Details'!$C$25)/$AV$11 -> 0 | T45: =(Calculator!$AR$13*A45*'Dose per unit release'!$Q45*'Dose per unit release'!$S45/'Assessment Details'!$C$25)/$AV$11 -> 0 | U45: =(Calculator!$AR$13*A45*'Dose per unit release'!$Q45*'Dose per unit release'!$T45/'Assessment Details'!$C$25)/$AV$11 -> 0 | V45: =(Calculator!$AR$13*A45*'Dose per unit release'!$Q45*'Dose per unit release'!$U45/'Assessment Details'!$C$25)/$AV$11 -> 0 | Y45: =(Calculator!$AR$13*A45*'Dose per unit release'!$X45*'Dose per unit release'!$Y45/'Assessment Details'!$C$25)/$AV$11 -> 0 | Z45: =(Calculator!$AR$13*A45*'Dose per unit release'!$X45*'Dose per unit release'!$Z45/'Assessment Details'!$C$25)/$AV$11 -> 0 | AC45: =(Calculator!$AR$15*A45*'Dose per unit release'!$AC45*'Dose per unit release'!$AD45*100/'Assessment Details'!$C$39)/$AV$11 -> 0 | AD45: =(Calculator!$AR$15*A45*'Dose per unit release'!$AC45*'Dose per unit release'!$AE45*100/'Assessment Details'!$C$39)/$AV$11 -> 0 | AE45: =(Calculator!$AR$15*A45*'Dose per unit release'!$AC45*'Dose per unit release'!$AF45*100/'Assessment Details'!$C$39)/$AV$11 -> 0 | AH45: =Calculator!$AR$13*A45*'Dose per unit release'!$AI45*'Dose per unit release'!$AJ45/'Assessment Details'!$C$25 -> 0 | AK45: =Calculator!$AR$15*A45*'Dose per unit release'!$AL45*'Dose per unit release'!$AM45*100/'Assessment Details'!$C$39 -> 0
C46: =(A46*'Dose per unit release'!$A46*60/'Assessment Details'!$C$32)/$AV$11 -> 0 | D46: =(A46*'Dose per unit release'!$B46*60/'Assessment Details'!$C$32)/$AV$11 -> 0 | E46: =(A46*'Dose per unit release'!$C46*60/'Assessment Details'!$C$32)/$AV$11 -> 0 | H46: =(A46*'Dose per unit release'!$F46*60/'Assessment Details'!$C$32)/$AV$11 -> 0 | I46: =(A46*'Dose per unit release'!$G46*60/'Assessment Details'!$C$32)/$AV$11 -> 0 | J46: =(A46*'Dose per unit release'!$H46*60/'Assessment Details'!$C$32)/$AV$11 -> 0 | K46: =(A46*'Dose per unit release'!$I46*60/'Assessment Details'!$C$32)/$AV$11 -> 0 | N46: =(Calculator!$AR$11*A46*'Dose per unit release'!$L46*0.1/'Assessment Details'!$C$20)/$AV$11 -> 0 | O46: =(Calculator!$AR$11*A46*'Dose per unit release'!$M46*0.1/'Assessment Details'!$C$20)/$AV$11 -> 0 | P46: =(Calculator!$AR$11*A46*'Dose per unit release'!$N46*0.1/'Assessment Details'!$C$20)/$AV$11 -> 0 | S46: =(Calculator!$AR$13*A46*'Dose per unit release'!$Q46*'Dose per unit release'!$R46/'Assessment Details'!$C$25)/$AV$11 -> 0 | T46: =(Calculator!$AR$13*A46*'Dose per unit release'!$Q46*'Dose per unit release'!$S46/'Assessment Details'!$C$25)/$AV$11 -> 0 | U46: =(Calculator!$AR$13*A46*'Dose per unit release'!$Q46*'Dose per unit release'!$T46/'Assessment Details'!$C$25)/$AV$11 -> 0 | V46: =(Calculator!$AR$13*A46*'Dose per unit release'!$Q46*'Dose per unit release'!$U46/'Assessment Details'!$C$25)/$AV$11 -> 0 | Y46: =(Calculator!$AR$13*A46*'Dose per unit release'!$X46*'Dose per unit release'!$Y46/'Assessment Details'!$C$25)/$AV$11 -> 0 | Z46: =(Calculator!$AR$13*A46*'Dose per unit release'!$X46*'Dose per unit release'!$Z46/'Assessment Details'!$C$25)/$AV$11 -> 0 | AC46: =(Calculator!$AR$15*A46*'Dose per unit release'!$AC46*'Dose per unit release'!$AD46*100/'Assessment Details'!$C$39)/$AV$11 -> 0 | AD46: =(Calculator!$AR$15*A46*'Dose per unit release'!$AC46*'Dose per unit release'!$AE46*100/'Assessment Details'!$C$39)/$AV$11 -> 0 | AE46: =(Calculator!$AR$15*A46*'Dose per unit release'!$AC46*'Dose per unit release'!$AF46*100/'Assessment Details'!$C$39)/$AV$11 -> 0 | AH46: =Calculator!$AR$13*A46*'Dose per unit release'!$AI46*'Dose per unit release'!$AJ46/'Assessment Details'!$C$25 -> 0 | AK46: =Calculator!$AR$15*A46*'Dose per unit release'!$AL46*'Dose per unit release'!$AM46*100/'Assessment Details'!$C$39 -> 0
C47: =(A47*'Dose per unit release'!$A47*60/'Assessment Details'!$C$32)/$AV$11 -> 0 | D47: =(A47*'Dose per unit release'!$B47*60/'Assessment Details'!$C$32)/$AV$11 -> 0 | E47: =(A47*'Dose per unit release'!$C47*60/'Assessment Details'!$C$32)/$AV$11 -> 0 | H47: =(A47*'Dose per unit release'!$F47*60/'Assessment Details'!$C$32)/$AV$11 -> 0 | I47: =(A47*'Dose per unit release'!$G47*60/'Assessment Details'!$C$32)/$AV$11 -> 0 | J47: =(A47*'Dose per unit release'!$H47*60/'Assessment Details'!$C$32)/$AV$11 -> 0 | K47: =(A47*'Dose per unit release'!$I47*60/'Assessment Details'!$C$32)/$AV$11 -> 0 | N47: =(Calculator!$AR$11*A47*'Dose per unit release'!$L47*0.1/'Assessment Details'!$C$20)/$AV$11 -> 0 | O47: =(Calculator!$AR$11*A47*'Dose per unit release'!$M47*0.1/'Assessment Details'!$C$20)/$AV$11 -> 0 | P47: =(Calculator!$AR$11*A47*'Dose per unit release'!$N47*0.1/'Assessment Details'!$C$20)/$AV$11 -> 0 | S47: =(Calculator!$AR$13*A47*'Dose per unit release'!$Q47*'Dose per unit release'!$R47/'Assessment Details'!$C$25)/$AV$11 -> 0 | T47: =(Calculator!$AR$13*A47*'Dose per unit release'!$Q47*'Dose per unit release'!$S47/'Assessment Details'!$C$25)/$AV$11 -> 0 | U47: =(Calculator!$AR$13*A47*'Dose per unit release'!$Q47*'Dose per unit release'!$T47/'Assessment Details'!$C$25)/$AV$11 -> 0 | V47: =(Calculator!$AR$13*A47*'Dose per unit release'!$Q47*'Dose per unit release'!$U47/'Assessment Details'!$C$25)/$AV$11 -> 0 | Y47: =(Calculator!$AR$13*A47*'Dose per unit release'!$X47*'Dose per unit release'!$Y47/'Assessment Details'!$C$25)/$AV$11 -> 0 | Z47: =(Calculator!$AR$13*A47*'Dose per unit release'!$X47*'Dose per unit release'!$Z47/'Assessment Details'!$C$25)/$AV$11 -> 0 | AC47: =(Calculator!$AR$15*A47*'Dose per unit release'!$AC47*'Dose per unit release'!$AD47*100/'Assessment Details'!$C$39)/$AV$11 -> 0 | AD47: =(Calculator!$AR$15*A47*'Dose per unit release'!$AC47*'Dose per unit release'!$AE47*100/'Assessment Details'!$C$39)/$AV$11 -> 0 | AE47: =(Calculator!$AR$15*A47*'Dose per unit release'!$AC47*'Dose per unit release'!$AF47*100/'Assessment Details'!$C$39)/$AV$11 -> 0 | AH47: =Calculator!$AR$13*A47*'Dose per unit release'!$AI47*'Dose per unit release'!$AJ47/'Assessment Details'!$C$25 -> 0 | AK47: =Calculator!$AR$15*A47*'Dose per unit release'!$AL47*'Dose per unit release'!$AM47*100/'Assessment Details'!$C$39 -> 0
C48: =(A48*'Dose per unit release'!$A48*60/'Assessment Details'!$C$32)/$AV$11 -> 0 | D48: =(A48*'Dose per unit release'!$B48*60/'Assessment Details'!$C$32)/$AV$11 -> 0 | E48: =(A48*'Dose per unit release'!$C48*60/'Assessment Details'!$C$32)/$AV$11 -> 0 | H48: =(A48*'Dose per unit release'!$F48*60/'Assessment Details'!$C$32)/$AV$11 -> 0 | I48: =(A48*'Dose per unit release'!$G48*60/'Assessment Details'!$C$32)/$AV$11 -> 0 | J48: =(A48*'Dose per unit release'!$H48*60/'Assessment Details'!$C$32)/$AV$11 -> 0 | K48: =(A48*'Dose per unit release'!$I48*60/'Assessment Details'!$C$32)/$AV$11 -> 0 | N48: =(Calculator!$AR$11*A48*'Dose per unit release'!$L48*0.1/'Assessment Details'!$C$20)/$AV$11 -> 0 | O48: =(Calculator!$AR$11*A48*'Dose per unit release'!$M48*0.1/'Assessment Details'!$C$20)/$AV$11 -> 0 | P48: =(Calculator!$AR$11*A48*'Dose per unit release'!$N48*0.1/'Assessment Details'!$C$20)/$AV$11 -> 0 | S48: =(Calculator!$AR$13*A48*'Dose per unit release'!$Q48*'Dose per unit release'!$R48/'Assessment Details'!$C$25)/$AV$11 -> 0 | T48: =(Calculator!$AR$13*A48*'Dose per unit release'!$Q48*'Dose per unit release'!$S48/'Assessment Details'!$C$25)/$AV$11 -> 0 | U48: =(Calculator!$AR$13*A48*'Dose per unit release'!$Q48*'Dose per unit release'!$T48/'Assessment Details'!$C$25)/$AV$11 -> 0 | V48: =(Calculator!$AR$13*A48*'Dose per unit release'!$Q48*'Dose per unit release'!$U48/'Assessment Details'!$C$25)/$AV$11 -> 0 | Y48: =(Calculator!$AR$13*A48*'Dose per unit release'!$X48*'Dose per unit release'!$Y48/'Assessment Details'!$C$25)/$AV$11 -> 0 | Z48: =(Calculator!$AR$13*A48*'Dose per unit release'!$X48*'Dose per unit release'!$Z48/'Assessment Details'!$C$25)/$AV$11 -> 0 | AC48: =(Calculator!$AR$15*A48*'Dose per unit release'!$AC48*'Dose per unit release'!$AD48*100/'Assessment Details'!$C$39)/$AV$11 -> 0 | AD48: =(Calculator!$AR$15*A48*'Dose per unit release'!$AC48*'Dose per unit release'!$AE48*100/'Assessment Details'!$C$39)/$AV$11 -> 0 | AE48: =(Calculator!$AR$15*A48*'Dose per unit release'!$AC48*'Dose per unit release'!$AF48*100/'Assessment Details'!$C$39)/$AV$11 -> 0 | AH48: =Calculator!$AR$13*A48*'Dose per unit release'!$AI48*'Dose per unit release'!$AJ48/'Assessment Details'!$C$25 -> 0 | AK48: =Calculator!$AR$15*A48*'Dose per unit release'!$AL48*'Dose per unit release'!$AM48*100/'Assessment Details'!$C$39 -> 0
C49: =(A49*'Dose per unit release'!$A49*60/'Assessment Details'!$C$32)/$AV$11 -> 0 | D49: =(A49*'Dose per unit release'!$B49*60/'Assessment Details'!$C$32)/$AV$11 -> 0 | E49: =(A49*'Dose per unit release'!$C49*60/'Assessment Details'!$C$32)/$AV$11 -> 0 | H49: =(A49*'Dose per unit release'!$F49*60/'Assessment Details'!$C$32)/$AV$11 -> 0 | I49: =(A49*'Dose per unit release'!$G49*60/'Assessment Details'!$C$32)/$AV$11 -> 0 | J49: =(A49*'Dose per unit release'!$H49*60/'Assessment Details'!$C$32)/$AV$11 -> 0 | K49: =(A49*'Dose per unit release'!$I49*60/'Assessment Details'!$C$32)/$AV$11 -> 0 | N49: =(Calculator!$AR$11*A49*'Dose per unit release'!$L49*0.1/'Assessment Details'!$C$20)/$AV$11 -> 0 | O49: =(Calculator!$AR$11*A49*'Dose per unit release'!$M49*0.1/'Assessment Details'!$C$20)/$AV$11 -> 0 | P49: =(Calculator!$AR$11*A49*'Dose per unit release'!$N49*0.1/'Assessment Details'!$C$20)/$AV$11 -> 0 | S49: =(Calculator!$AR$13*A49*'Dose per unit release'!$Q49*'Dose per unit release'!$R49/'Assessment Details'!$C$25)/$AV$11 -> 0 | T49: =(Calculator!$AR$13*A49*'Dose per unit release'!$Q49*'Dose per unit release'!$S49/'Assessment Details'!$C$25)/$AV$11 -> 0 | U49: =(Calculator!$AR$13*A49*'Dose per unit release'!$Q49*'Dose per unit release'!$T49/'Assessment Details'!$C$25)/$AV$11 -> 0 | V49: =(Calculator!$AR$13*A49*'Dose per unit release'!$Q49*'Dose per unit release'!$U49/'Assessment Details'!$C$25)/$AV$11 -> 0 | Y49: =(Calculator!$AR$13*A49*'Dose per unit release'!$X49*'Dose per unit release'!$Y49/'Assessment Details'!$C$25)/$AV$11 -> 0 | Z49: =(Calculator!$AR$13*A49*'Dose per unit release'!$X49*'Dose per unit release'!$Z49/'Assessment Details'!$C$25)/$AV$11 -> 0 | AC49: =(Calculator!$AR$15*A49*'Dose per unit release'!$AC49*'Dose per unit release'!$AD49*100/'Assessment Details'!$C$39)/$AV$11 -> 0 | AD49: =(Calculator!$AR$15*A49*'Dose per unit release'!$AC49*'Dose per unit release'!$AE49*100/'Assessment Details'!$C$39)/$AV$11 -> 0 | AE49: =(Calculator!$AR$15*A49*'Dose per unit release'!$AC49*'Dose per unit release'!$AF49*100/'Assessment Details'!$C$39)/$AV$11 -> 0 | AH49: =Calculator!$AR$13*A49*'Dose per unit release'!$AI49*'Dose per unit release'!$AJ49/'Assessment Details'!$C$25 -> 0 | AK49: =Calculator!$AR$15*A49*'Dose per unit release'!$AL49*'Dose per unit release'!$AM49*100/'Assessment Details'!$C$39 -> 0
C50: =(A50*'Dose per unit release'!$A50*60/'Assessment Details'!$C$32)/$AV$11 -> 0 | D50: =(A50*'Dose per unit release'!$B50*60/'Assessment Details'!$C$32)/$AV$11 -> 0 | E50: =(A50*'Dose per unit release'!$C50*60/'Assessment Details'!$C$32)/$AV$11 -> 0 | H50: =(A50*'Dose per unit release'!$F50*60/'Assessment Details'!$C$32)/$AV$11 -> 0 | I50: =(A50*'Dose per unit release'!$G50*60/'Assessment Details'!$C$32)/$AV$11 -> 0 | J50: =(A50*'Dose per unit release'!$H50*60/'Assessment Details'!$C$32)/$AV$11 -> 0 | K50: =(A50*'Dose per unit release'!$I50*60/'Assessment Details'!$C$32)/$AV$11 -> 0 | N50: =(Calculator!$AR$11*A50*'Dose per unit release'!$L50*0.1/'Assessment Details'!$C$20)/$AV$11 -> 0 | O50: =(Calculator!$AR$11*A50*'Dose per unit release'!$M50*0.1/'Assessment Details'!$C$20)/$AV$11 -> 0 | P50: =(Calculator!$AR$11*A50*'Dose per unit release'!$N50*0.1/'Assessment Details'!$C$20)/$AV$11 -> 0 | S50: =(Calculator!$AR$13*A50*'Dose per unit release'!$Q50*'Dose per unit release'!$R50/'Assessment Details'!$C$25)/$AV$11 -> 0 | T50: =(Calculator!$AR$13*A50*'Dose per unit release'!$Q50*'Dose per unit release'!$S50/'Assessment Details'!$C$25)/$AV$11 -> 0 | U50: =(Calculator!$AR$13*A50*'Dose per unit release'!$Q50*'Dose per unit release'!$T50/'Assessment Details'!$C$25)/$AV$11 -> 0 | V50: =(Calculator!$AR$13*A50*'Dose per unit release'!$Q50*'Dose per unit release'!$U50/'Assessment Details'!$C$25)/$AV$11 -> 0 | Y50: =(Calculator!$AR$13*A50*'Dose per unit release'!$X50*'Dose per unit release'!$Y50/'Assessment Details'!$C$25)/$AV$11 -> 0 | Z50: =(Calculator!$AR$13*A50*'Dose per unit release'!$X50*'Dose per unit release'!$Z50/'Assessment Details'!$C$25)/$AV$11 -> 0 | AC50: =(Calculator!$AR$15*A50*'Dose per unit release'!$AC50*'Dose per unit release'!$AD50*100/'Assessment Details'!$C$39)/$AV$11 -> 0 | AD50: =(Calculator!$AR$15*A50*'Dose per unit release'!$AC50*'Dose per unit release'!$AE50*100/'Assessment Details'!$C$39)/$AV$11 -> 0 | AE50: =(Calculator!$AR$15*A50*'Dose per unit release'!$AC50*'Dose per unit release'!$AF50*100/'Assessment Details'!$C$39)/$AV$11 -> 0 | AH50: =Calculator!$AR$13*A50*'Dose per unit release'!$AI50*'Dose per unit release'!$AJ50/'Assessment Details'!$C$25 -> 0 | AK50: =Calculator!$AR$15*A50*'Dose per unit release'!$AL50*'Dose per unit release'!$AM50*100/'Assessment Details'!$C$39 -> 0
C51: =(A51*'Dose per unit release'!$A51*60/'Assessment Details'!$C$32)/$AV$11 -> 0 | D51: =(A51*'Dose per unit release'!$B51*60/'Assessment Details'!$C$32)/$AV$11 -> 0 | E51: =(A51*'Dose per unit release'!$C51*60/'Assessment Details'!$C$32)/$AV$11 -> 0 | H51: =(A51*'Dose per unit release'!$F51*60/'Assessment Details'!$C$32)/$AV$11 -> 0 | I51: =(A51*'Dose per unit release'!$G51*60/'Assessment Details'!$C$32)/$AV$11 -> 0 | J51: =(A51*'Dose per unit release'!$H51*60/'Assessment Details'!$C$32)/$AV$11 -> 0 | K51: =(A51*'Dose per unit release'!$I51*60/'Assessment Details'!$C$32)/$AV$11 -> 0 | N51: =(Calculator!$AR$11*A51*'Dose per unit release'!$L51*0.1/'Assessment Details'!$C$20)/$AV$11 -> 0 | O51: =(Calculator!$AR$11*A51*'Dose per unit release'!$M51*0.1/'Assessment Details'!$C$20)/$AV$11 -> 0 | P51: =(Calculator!$AR$11*A51*'Dose per unit release'!$N51*0.1/'Assessment Details'!$C$20)/$AV$11 -> 0 | S51: =(Calculator!$AR$13*A51*'Dose per unit release'!$Q51*'Dose per unit release'!$R51/'Assessment Details'!$C$25)/$AV$11 -> 0 | T51: =(Calculator!$AR$13*A51*'Dose per unit release'!$Q51*'Dose per unit release'!$S51/'Assessment Details'!$C$25)/$AV$11 -> 0 | U51: =(Calculator!$AR$13*A51*'Dose per unit release'!$Q51*'Dose per unit release'!$T51/'Assessment Details'!$C$25)/$AV$11 -> 0 | V51: =(Calculator!$AR$13*A51*'Dose per unit release'!$Q51*'Dose per unit release'!$U51/'Assessment Details'!$C$25)/$AV$11 -> 0 | Y51: =(Calculator!$AR$13*A51*'Dose per unit release'!$X51*'Dose per unit release'!$Y51/'Assessment Details'!$C$25)/$AV$11 -> 0 | Z51: =(Calculator!$AR$13*A51*'Dose per unit release'!$X51*'Dose per unit release'!$Z51/'Assessment Details'!$C$25)/$AV$11 -> 0 | AC51: =(Calculator!$AR$15*A51*'Dose per unit release'!$AC51*'Dose per unit release'!$AD51*100/'Assessment Details'!$C$39)/$AV$11 -> 0 | AD51: =(Calculator!$AR$15*A51*'Dose per unit release'!$AC51*'Dose per unit release'!$AE51*100/'Assessment Details'!$C$39)/$AV$11 -> 0 | AE51: =(Calculator!$AR$15*A51*'Dose per unit release'!$AC51*'Dose per unit release'!$AF51*100/'Assessment Details'!$C$39)/$AV$11 -> 0 | AH51: =Calculator!$AR$13*A51*'Dose per unit release'!$AI51*'Dose per unit release'!$AJ51/'Assessment Details'!$C$25 -> 0 | AK51: =Calculator!$AR$15*A51*'Dose per unit release'!$AL51*'Dose per unit release'!$AM51*100/'Assessment Details'!$C$39 -> 0
C52: =(A52*'Dose per unit release'!$A52*60/'Assessment Details'!$C$32)/$AV$11 -> 0 | D52: =(A52*'Dose per unit release'!$B52*60/'Assessment Details'!$C$32)/$AV$11 -> 0 | E52: =(A52*'Dose per unit release'!$C52*60/'Assessment Details'!$C$32)/$AV$11 -> 0 | H52: =(A52*'Dose per unit release'!$F52*60/'Assessment Details'!$C$32)/$AV$11 -> 0 | I52: =(A52*'Dose per unit release'!$G52*60/'Assessment Details'!$C$32)/$AV$11 -> 0 | J52: =(A52*'Dose per unit release'!$H52*60/'Assessment Details'!$C$32)/$AV$11 -> 0 | K52: =(A52*'Dose per unit release'!$I52*60/'Assessment Details'!$C$32)/$AV$11 -> 0 | N52: =(Calculator!$AR$11*A52*'Dose per unit release'!$L52*0.1/'Assessment Details'!$C$20)/$AV$11 -> 0 | O52: =(Calculator!$AR$11*A52*'Dose per unit release'!$M52*0.1/'Assessment Details'!$C$20)/$AV$11 -> 0 | P52: =(Calculator!$AR$11*A52*'Dose per unit release'!$N52*0.1/'Assessment Details'!$C$20)/$AV$11 -> 0 | S52: =(Calculator!$AR$13*A52*'Dose per unit release'!$Q52*'Dose per unit release'!$R52/'Assessment Details'!$C$25)/$AV$11 -> 0 | T52: =(Calculator!$AR$13*A52*'Dose per unit release'!$Q52*'Dose per unit release'!$S52/'Assessment Details'!$C$25)/$AV$11 -> 0 | U52: =(Calculator!$AR$13*A52*'Dose per unit release'!$Q52*'Dose per unit release'!$T52/'Assessment Details'!$C$25)/$AV$11 -> 0 | V52: =(Calculator!$AR$13*A52*'Dose per unit release'!$Q52*'Dose per unit release'!$U52/'Assessment Details'!$C$25)/$AV$11 -> 0 | Y52: =(Calculator!$AR$13*A52*'Dose per unit release'!$X52*'Dose per unit release'!$Y52/'Assessment Details'!$C$25)/$AV$11 -> 0 | Z52: =(Calculator!$AR$13*A52*'Dose per unit release'!$X52*'Dose per unit release'!$Z52/'Assessment Details'!$C$25)/$AV$11 -> 0 | AC52: =(Calculator!$AR$15*A52*'Dose per unit release'!$AC52*'Dose per unit release'!$AD52*100/'Assessment Details'!$C$39)/$AV$11 -> 0 | AD52: =(Calculator!$AR$15*A52*'Dose per unit release'!$AC52*'Dose per unit release'!$AE52*100/'Assessment Details'!$C$39)/$AV$11 -> 0 | AE52: =(Calculator!$AR$15*A52*'Dose per unit release'!$AC52*'Dose per unit release'!$AF52*100/'Assessment Details'!$C$39)/$AV$11 -> 0 | AH52: =Calculator!$AR$13*A52*'Dose per unit release'!$AI52*'Dose per unit release'!$AJ52/'Assessment Details'!$C$25 -> 0 | AK52: =Calculator!$AR$15*A52*'Dose per unit release'!$AL52*'Dose per unit release'!$AM52*100/'Assessment Details'!$C$39 -> 0
C53: =(A53*'Dose per unit release'!$A53*60/'Assessment Details'!$C$32)/$AV$11 -> 0 | D53: =(A53*'Dose per unit release'!$B53*60/'Assessment Details'!$C$32)/$AV$11 -> 0 | E53: =(A53*'Dose per unit release'!$C53*60/'Assessment Details'!$C$32)/$AV$11 -> 0 | H53: =(A53*'Dose per unit release'!$F53*60/'Assessment Details'!$C$32)/$AV$11 -> 0 | I53: =(A53*'Dose per unit release'!$G53*60/'Assessment Details'!$C$32)/$AV$11 -> 0 | J53: =(A53*'Dose per unit release'!$H53*60/'Assessment Details'!$C$32)/$AV$11 -> 0 | K53: =(A53*'Dose per unit release'!$I53*60/'Assessment Details'!$C$32)/$AV$11 -> 0 | N53: =(Calculator!$AR$11*A53*'Dose per unit release'!$L53*0.1/'Assessment Details'!$C$20)/$AV$11 -> 0 | O53: =(Calculator!$AR$11*A53*'Dose per unit release'!$M53*0.1/'Assessment Details'!$C$20)/$AV$11 -> 0 | P53: =(Calculator!$AR$11*A53*'Dose per unit release'!$N53*0.1/'Assessment Details'!$C$20)/$AV$11 -> 0 | S53: =(Calculator!$AR$13*A53*'Dose per unit release'!$Q53*'Dose per unit release'!$R53/'Assessment Details'!$C$25)/$AV$11 -> 0 | T53: =(Calculator!$AR$13*A53*'Dose per unit release'!$Q53*'Dose per unit release'!$S53/'Assessment Details'!$C$25)/$AV$11 -> 0 | U53: =(Calculator!$AR$13*A53*'Dose per unit release'!$Q53*'Dose per unit release'!$T53/'Assessment Details'!$C$25)/$AV$11 -> 0 | V53: =(Calculator!$AR$13*A53*'Dose per unit release'!$Q53*'Dose per unit release'!$U53/'Assessment Details'!$C$25)/$AV$11 -> 0 | Y53: =(Calculator!$AR$13*A53*'Dose per unit release'!$X53*'Dose per unit release'!$Y53/'Assessment Details'!$C$25)/$AV$11 -> 0 | Z53: =(Calculator!$AR$13*A53*'Dose per unit release'!$X53*'Dose per unit release'!$Z53/'Assessment Details'!$C$25)/$AV$11 -> 0 | AC53: =(Calculator!$AR$15*A53*'Dose per unit release'!$AC53*'Dose per unit release'!$AD53*100/'Assessment Details'!$C$39)/$AV$11 -> 0 | AD53: =(Calculator!$AR$15*A53*'Dose per unit release'!$AC53*'Dose per unit release'!$AE53*100/'Assessment Details'!$C$39)/$AV$11 -> 0 | AE53: =(Calculator!$AR$15*A53*'Dose per unit release'!$AC53*'Dose per unit release'!$AF53*100/'Assessment Details'!$C$39)/$AV$11 -> 0 | AH53: =Calculator!$AR$13*A53*'Dose per unit release'!$AI53*'Dose per unit release'!$AJ53/'Assessment Details'!$C$25 -> 0 | AK53: =Calculator!$AR$15*A53*'Dose per unit release'!$AL53*'Dose per unit release'!$AM53*100/'Assessment Details'!$C$39 -> 0
C54: =(A54*'Dose per unit release'!$A54*60/'Assessment Details'!$C$32)/$AV$11 -> 0 | D54: =(A54*'Dose per unit release'!$B54*60/'Assessment Details'!$C$32)/$AV$11 -> 0 | E54: =(A54*'Dose per unit release'!$C54*60/'Assessment Details'!$C$32)/$AV$11 -> 0 | H54: =(A54*'Dose per unit release'!$F54*60/'Assessment Details'!$C$32)/$AV$11 -> 0 | I54: =(A54*'Dose per unit release'!$G54*60/'Assessment Details'!$C$32)/$AV$11 -> 0 | J54: =(A54*'Dose per unit release'!$H54*60/'Assessment Details'!$C$32)/$AV$11 -> 0 | K54: =(A54*'Dose per unit release'!$I54*60/'Assessment Details'!$C$32)/$AV$11 -> 0 | N54: =(Calculator!$AR$11*A54*'Dose per unit release'!$L54*0.1/'Assessment Details'!$C$20)/$AV$11 -> 0 | O54: =(Calculator!$AR$11*A54*'Dose per unit release'!$M54*0.1/'Assessment Details'!$C$20)/$AV$11 -> 0 | P54: =(Calculator!$AR$11*A54*'Dose per unit release'!$N54*0.1/'Assessment Details'!$C$20)/$AV$11 -> 0 | S54: =(Calculator!$AR$13*A54*'Dose per unit release'!$Q54*'Dose per unit release'!$R54/'Assessment Details'!$C$25)/$AV$11 -> 0 | T54: =(Calculator!$AR$13*A54*'Dose per unit release'!$Q54*'Dose per unit release'!$S54/'Assessment Details'!$C$25)/$AV$11 -> 0 | U54: =(Calculator!$AR$13*A54*'Dose per unit release'!$Q54*'Dose per unit release'!$T54/'Assessment Details'!$C$25)/$AV$11 -> 0 | V54: =(Calculator!$AR$13*A54*'Dose per unit release'!$Q54*'Dose per unit release'!$U54/'Assessment Details'!$C$25)/$AV$11 -> 0 | Y54: =(Calculator!$AR$13*A54*'Dose per unit release'!$X54*'Dose per unit release'!$Y54/'Assessment Details'!$C$25)/$AV$11 -> 0 | Z54: =(Calculator!$AR$13*A54*'Dose per unit release'!$X54*'Dose per unit release'!$Z54/'Assessment Details'!$C$25)/$AV$11 -> 0 | AC54: =(Calculator!$AR$15*A54*'Dose per unit release'!$AC54*'Dose per unit release'!$AD54*100/'Assessment Details'!$C$39)/$AV$11 -> 0 | AD54: =(Calculator!$AR$15*A54*'Dose per unit release'!$AC54*'Dose per unit release'!$AE54*100/'Assessment Details'!$C$39)/$AV$11 -> 0 | AE54: =(Calculator!$AR$15*A54*'Dose per unit release'!$AC54*'Dose per unit release'!$AF54*100/'Assessment Details'!$C$39)/$AV$11 -> 0 | AH54: =Calculator!$AR$13*A54*'Dose per unit release'!$AI54*'Dose per unit release'!$AJ54/'Assessment Details'!$C$25 -> 0 | AK54: =Calculator!$AR$15*A54*'Dose per unit release'!$AL54*'Dose per unit release'!$AM54*100/'Assessment Details'!$C$39 -> 0
C55: =(A55*'Dose per unit release'!$A55*60/'Assessment Details'!$C$32)/$AV$11 -> 0 | D55: =(A55*'Dose per unit release'!$B55*60/'Assessment Details'!$C$32)/$AV$11 -> 0 | E55: =(A55*'Dose per unit release'!$C55*60/'Assessment Details'!$C$32)/$AV$11 -> 0 | H55: =(A55*'Dose per unit release'!$F55*60/'Assessment Details'!$C$32)/$AV$11 -> 0 | I55: =(A55*'Dose per unit release'!$G55*60/'Assessment Details'!$C$32)/$AV$11 -> 0 | J55: =(A55*'Dose per unit release'!$H55*60/'Assessment Details'!$C$32)/$AV$11 -> 0 | K55: =(A55*'Dose per unit release'!$I55*60/'Assessment Details'!$C$32)/$AV$11 -> 0 | N55: =(Calculator!$AR$11*A55*'Dose per unit release'!$L55*0.1/'Assessment Details'!$C$20)/$AV$11 -> 0 | O55: =(Calculator!$AR$11*A55*'Dose per unit release'!$M55*0.1/'Assessment Details'!$C$20)/$AV$11 -> 0 | P55: =(Calculator!$AR$11*A55*'Dose per unit release'!$N55*0.1/'Assessment Details'!$C$20)/$AV$11 -> 0 | S55: =(Calculator!$AR$13*A55*'Dose per unit release'!$Q55*'Dose per unit release'!$R55/'Assessment Details'!$C$25)/$AV$11 -> 0 | T55: =(Calculator!$AR$13*A55*'Dose per unit release'!$Q55*'Dose per unit release'!$S55/'Assessment Details'!$C$25)/$AV$11 -> 0 | U55: =(Calculator!$AR$13*A55*'Dose per unit release'!$Q55*'Dose per unit release'!$T55/'Assessment Details'!$C$25)/$AV$11 -> 0 | V55: =(Calculator!$AR$13*A55*'Dose per unit release'!$Q55*'Dose per unit release'!$U55/'Assessment Details'!$C$25)/$AV$11 -> 0 | Y55: =(Calculator!$AR$13*A55*'Dose per unit release'!$X55*'Dose per unit release'!$Y55/'Assessment Details'!$C$25)/$AV$11 -> 0 | Z55: =(Calculator!$AR$13*A55*'Dose per unit release'!$X55*'Dose per unit release'!$Z55/'Assessment Details'!$C$25)/$AV$11 -> 0 | AC55: =(Calculator!$AR$15*A55*'Dose per unit release'!$AC55*'Dose per unit release'!$AD55*100/'Assessment Details'!$C$39)/$AV$11 -> 0 | AD55: =(Calculator!$AR$15*A55*'Dose per unit release'!$AC55*'Dose per unit release'!$AE55*100/'Assessment Details'!$C$39)/$AV$11 -> 0 | AE55: =(Calculator!$AR$15*A55*'Dose per unit release'!$AC55*'Dose per unit release'!$AF55*100/'Assessment Details'!$C$39)/$AV$11 -> 0 | AH55: =Calculator!$AR$13*A55*'Dose per unit release'!$AI55*'Dose per unit release'!$AJ55/'Assessment Details'!$C$25 -> 0 | AK55: =Calculator!$AR$15*A55*'Dose per unit release'!$AL55*'Dose per unit release'!$AM55*100/'Assessment Details'!$C$39 -> 0
C56: =(A56*'Dose per unit release'!$A56*60/'Assessment Details'!$C$32)/$AV$11 -> 0 | D56: =(A56*'Dose per unit release'!$B56*60/'Assessment Details'!$C$32)/$AV$11 -> 0 | E56: =(A56*'Dose per unit release'!$C56*60/'Assessment Details'!$C$32)/$AV$11 -> 0 | H56: =(A56*'Dose per unit release'!$F56*60/'Assessment Details'!$C$32)/$AV$11 -> 0 | I56: =(A56*'Dose per unit release'!$G56*60/'Assessment Details'!$C$32)/$AV$11 -> 0 | J56: =(A56*'Dose per unit release'!$H56*60/'Assessment Details'!$C$32)/$AV$11 -> 0 | K56: =(A56*'Dose per unit release'!$I56*60/'Assessment Details'!$C$32)/$AV$11 -> 0 | N56: =(Calculator!$AR$11*A56*'Dose per unit release'!$L56*0.1/'Assessment Details'!$C$20)/$AV$11 -> 0 | O56: =(Calculator!$AR$11*A56*'Dose per unit release'!$M56*0.1/'Assessment Details'!$C$20)/$AV$11 -> 0 | P56: =(Calculator!$AR$11*A56*'Dose per unit release'!$N56*0.1/'Assessment Details'!$C$20)/$AV$11 -> 0 | S56: =(Calculator!$AR$13*A56*'Dose per unit release'!$Q56*'Dose per unit release'!$R56/'Assessment Details'!$C$25)/$AV$11 -> 0 | T56: =(Calculator!$AR$13*A56*'Dose per unit release'!$Q56*'Dose per unit release'!$S56/'Assessment Details'!$C$25)/$AV$11 -> 0 | U56: =(Calculator!$AR$13*A56*'Dose per unit release'!$Q56*'Dose per unit release'!$T56/'Assessment Details'!$C$25)/$AV$11 -> 0 | V56: =(Calculator!$AR$13*A56*'Dose per unit release'!$Q56*'Dose per unit release'!$U56/'Assessment Details'!$C$25)/$AV$11 -> 0 | Y56: =(Calculator!$AR$13*A56*'Dose per unit release'!$X56*'Dose per unit release'!$Y56/'Assessment Details'!$C$25)/$AV$11 -> 0 | Z56: =(Calculator!$AR$13*A56*'Dose per unit release'!$X56*'Dose per unit release'!$Z56/'Assessment Details'!$C$25)/$AV$11 -> 0 | AC56: =(Calculator!$AR$15*A56*'Dose per unit release'!$AC56*'Dose per unit release'!$AD56*100/'Assessment Details'!$C$39)/$AV$11 -> 0 | AD56: =(Calculator!$AR$15*A56*'Dose per unit release'!$AC56*'Dose per unit release'!$AE56*100/'Assessment Details'!$C$39)/$AV$11 -> 0 | AE56: =(Calculator!$AR$15*A56*'Dose per unit release'!$AC56*'Dose per unit release'!$AF56*100/'Assessment Details'!$C$39)/$AV$11 -> 0 | AH56: =Calculator!$AR$13*A56*'Dose per unit release'!$AI56*'Dose per unit release'!$AJ56/'Assessment Details'!$C$25 -> 0 | AK56: =Calculator!$AR$15*A56*'Dose per unit release'!$AL56*'Dose per unit release'!$AM56*100/'Assessment Details'!$C$39 -> 0
C57: =(A57*'Dose per unit release'!$A57*60/'Assessment Details'!$C$32)/$AV$11 -> 0 | D57: =(A57*'Dose per unit release'!$B57*60/'Assessment Details'!$C$32)/$AV$11 -> 0 | E57: =(A57*'Dose per unit release'!$C57*60/'Assessment Details'!$C$32)/$AV$11 -> 0 | H57: =(A57*'Dose per unit release'!$F57*60/'Assessment Details'!$C$32)/$AV$11 -> 0 | I57: =(A57*'Dose per unit release'!$G57*60/'Assessment Details'!$C$32)/$AV$11 -> 0 | J57: =(A57*'Dose per unit release'!$H57*60/'Assessment Details'!$C$32)/$AV$11 -> 0 | K57: =(A57*'Dose per unit release'!$I57*60/'Assessment Details'!$C$32)/$AV$11 -> 0 | N57: =(Calculator!$AR$11*A57*'Dose per unit release'!$L57*0.1/'Assessment Details'!$C$20)/$AV$11 -> 0 | O57: =(Calculator!$AR$11*A57*'Dose per unit release'!$M57*0.1/'Assessment Details'!$C$20)/$AV$11 -> 0 | P57: =(Calculator!$AR$11*A57*'Dose per unit release'!$N57*0.1/'Assessment Details'!$C$20)/$AV$11 -> 0 | S57: =(Calculator!$AR$13*A57*'Dose per unit release'!$Q57*'Dose per unit release'!$R57/'Assessment Details'!$C$25)/$AV$11 -> 0 | T57: =(Calculator!$AR$13*A57*'Dose per unit release'!$Q57*'Dose per unit release'!$S57/'Assessment Details'!$C$25)/$AV$11 -> 0 | U57: =(Calculator!$AR$13*A57*'Dose per unit release'!$Q57*'Dose per unit release'!$T57/'Assessment Details'!$C$25)/$AV$11 -> 0 | V57: =(Calculator!$AR$13*A57*'Dose per unit release'!$Q57*'Dose per unit release'!$U57/'Assessment Details'!$C$25)/$AV$11 -> 0 | Y57: =(Calculator!$AR$13*A57*'Dose per unit release'!$X57*'Dose per unit release'!$Y57/'Assessment Details'!$C$25)/$AV$11 -> 0 | Z57: =(Calculator!$AR$13*A57*'Dose per unit release'!$X57*'Dose per unit release'!$Z57/'Assessment Details'!$C$25)/$AV$11 -> 0 | AC57: =(Calculator!$AR$15*A57*'Dose per unit release'!$AC57*'Dose per unit release'!$AD57*100/'Assessment Details'!$C$39)/$AV$11 -> 0 | AD57: =(Calculator!$AR$15*A57*'Dose per unit release'!$AC57*'Dose per unit release'!$AE57*100/'Assessment Details'!$C$39)/$AV$11 -> 0 | AE57: =(Calculator!$AR$15*A57*'Dose per unit release'!$AC57*'Dose per unit release'!$AF57*100/'Assessment Details'!$C$39)/$AV$11 -> 0 | AH57: =Calculator!$AR$13*A57*'Dose per unit release'!$AI57*'Dose per unit release'!$AJ57/'Assessment Details'!$C$25 -> 0 | AK57: =Calculator!$AR$15*A57*'Dose per unit release'!$AL57*'Dose per unit release'!$AM57*100/'Assessment Details'!$C$39 -> 0
C58: =(A58*'Dose per unit release'!$A58*60/'Assessment Details'!$C$32)/$AV$11 -> 0 | D58: =(A58*'Dose per unit release'!$B58*60/'Assessment Details'!$C$32)/$AV$11 -> 0 | E58: =(A58*'Dose per unit release'!$C58*60/'Assessment Details'!$C$32)/$AV$11 -> 0 | H58: =(A58*'Dose per unit release'!$F58*60/'Assessment Details'!$C$32)/$AV$11 -> 0 | I58: =(A58*'Dose per unit release'!$G58*60/'Assessment Details'!$C$32)/$AV$11 -> 0 | J58: =(A58*'Dose per unit release'!$H58*60/'Assessment Details'!$C$32)/$AV$11 -> 0 | K58: =(A58*'Dose per unit release'!$I58*60/'Assessment Details'!$C$32)/$AV$11 -> 0 | N58: =(Calculator!$AR$11*A58*'Dose per unit release'!$L58*0.1/'Assessment Details'!$C$20)/$AV$11 -> 0 | O58: =(Calculator!$AR$11*A58*'Dose per unit release'!$M58*0.1/'Assessment Details'!$C$20)/$AV$11 -> 0 | P58: =(Calculator!$AR$11*A58*'Dose per unit release'!$N58*0.1/'Assessment Details'!$C$20)/$AV$11 -> 0 | S58: =(Calculator!$AR$13*A58*'Dose per unit release'!$Q58*'Dose per unit release'!$R58/'Assessment Details'!$C$25)/$AV$11 -> 0 | T58: =(Calculator!$AR$13*A58*'Dose per unit release'!$Q58*'Dose per unit release'!$S58/'Assessment Details'!$C$25)/$AV$11 -> 0 | U58: =(Calculator!$AR$13*A58*'Dose per unit release'!$Q58*'Dose per unit release'!$T58/'Assessment Details'!$C$25)/$AV$11 -> 0 | V58: =(Calculator!$AR$13*A58*'Dose per unit release'!$Q58*'Dose per unit release'!$U58/'Assessment Details'!$C$25)/$AV$11 -> 0 | Y58: =(Calculator!$AR$13*A58*'Dose per unit release'!$X58*'Dose per unit release'!$Y58/'Assessment Details'!$C$25)/$AV$11 -> 0 | Z58: =(Calculator!$AR$13*A58*'Dose per unit release'!$X58*'Dose per unit release'!$Z58/'Assessment Details'!$C$25)/$AV$11 -> 0 | AC58: =(Calculator!$AR$15*A58*'Dose per unit release'!$AC58*'Dose per unit release'!$AD58*100/'Assessment Details'!$C$39)/$AV$11 -> 0 | AD58: =(Calculator!$AR$15*A58*'Dose per unit release'!$AC58*'Dose per unit release'!$AE58*100/'Assessment Details'!$C$39)/$AV$11 -> 0 | AE58: =(Calculator!$AR$15*A58*'Dose per unit release'!$AC58*'Dose per unit release'!$AF58*100/'Assessment Details'!$C$39)/$AV$11 -> 0 | AH58: =Calculator!$AR$13*A58*'Dose per unit release'!$AI58*'Dose per unit release'!$AJ58/'Assessment Details'!$C$25 -> 0 | AK58: =Calculator!$AR$15*A58*'Dose per unit release'!$AL58*'Dose per unit release'!$AM58*100/'Assessment Details'!$C$39 -> 0
C59: =(A59*'Dose per unit release'!$A59*60/'Assessment Details'!$C$32)/$AV$11 -> 0 | D59: =(A59*'Dose per unit release'!$B59*60/'Assessment Details'!$C$32)/$AV$11 -> 0 | E59: =(A59*'Dose per unit release'!$C59*60/'Assessment Details'!$C$32)/$AV$11 -> 0 | H59: =(A59*'Dose per unit release'!$F59*60/'Assessment Details'!$C$32)/$AV$11 -> 0 | I59: =(A59*'Dose per unit release'!$G59*60/'Assessment Details'!$C$32)/$AV$11 -> 0 | J59: =(A59*'Dose per unit release'!$H59*60/'Assessment Details'!$C$32)/$AV$11 -> 0 | K59: =(A59*'Dose per unit release'!$I59*60/'Assessment Details'!$C$32)/$AV$11 -> 0 | N59: =(Calculator!$AR$11*A59*'Dose per unit release'!$L59*0.1/'Assessment Details'!$C$20)/$AV$11 -> 0 | O59: =(Calculator!$AR$11*A59*'Dose per unit release'!$M59*0.1/'Assessment Details'!$C$20)/$AV$11 -> 0 | P59: =(Calculator!$AR$11*A59*'Dose per unit release'!$N59*0.1/'Assessment Details'!$C$20)/$AV$11 -> 0 | S59: =(Calculator!$AR$13*A59*'Dose per unit release'!$Q59*'Dose per unit release'!$R59/'Assessment Details'!$C$25)/$AV$11 -> 0 | T59: =(Calculator!$AR$13*A59*'Dose per unit release'!$Q59*'Dose per unit release'!$S59/'Assessment Details'!$C$25)/$AV$11 -> 0 | U59: =(Calculator!$AR$13*A59*'Dose per unit release'!$Q59*'Dose per unit release'!$T59/'Assessment Details'!$C$25)/$AV$11 -> 0 | V59: =(Calculator!$AR$13*A59*'Dose per unit release'!$Q59*'Dose per unit release'!$U59/'Assessment Details'!$C$25)/$AV$11 -> 0 | Y59: =(Calculator!$AR$13*A59*'Dose per unit release'!$X59*'Dose per unit release'!$Y59/'Assessment Details'!$C$25)/$AV$11 -> 0 | Z59: =(Calculator!$AR$13*A59*'Dose per unit release'!$X59*'Dose per unit release'!$Z59/'Assessment Details'!$C$25)/$AV$11 -> 0 | AC59: =(Calculator!$AR$15*A59*'Dose per unit release'!$AC59*'Dose per unit release'!$AD59*100/'Assessment Details'!$C$39)/$AV$11 -> 0 | AD59: =(Calculator!$AR$15*A59*'Dose per unit release'!$AC59*'Dose per unit release'!$AE59*100/'Assessment Details'!$C$39)/$AV$11 -> 0 | AE59: =(Calculator!$AR$15*A59*'Dose per unit release'!$AC59*'Dose per unit release'!$AF59*100/'Assessment Details'!$C$39)/$AV$11 -> 0 | AH59: =Calculator!$AR$13*A59*'Dose per unit release'!$AI59*'Dose per unit release'!$AJ59/'Assessment Details'!$C$25 -> 0 | AK59: =Calculator!$AR$15*A59*'Dose per unit release'!$AL59*'Dose per unit release'!$AM59*100/'Assessment Details'!$C$39 -> 0
C60: =(A60*'Dose per unit release'!$A60*60/'Assessment Details'!$C$32)/$AV$11 -> 0 | D60: =(A60*'Dose per unit release'!$B60*60/'Assessment Details'!$C$32)/$AV$11 -> 0 | E60: =(A60*'Dose per unit release'!$C60*60/'Assessment Details'!$C$32)/$AV$11 -> 0 | H60: =(A60*'Dose per unit release'!$F60*60/'Assessment Details'!$C$32)/$AV$11 -> 0 | I60: =(A60*'Dose per unit release'!$G60*60/'Assessment Details'!$C$32)/$AV$11 -> 0 | J60: =(A60*'Dose per unit release'!$H60*60/'Assessment Details'!$C$32)/$AV$11 -> 0 | K60: =(A60*'Dose per unit release'!$I60*60/'Assessment Details'!$C$32)/$AV$11 -> 0 | N60: =(Calculator!$AR$11*A60*'Dose per unit release'!$L60*0.1/'Assessment Details'!$C$20)/$AV$11 -> 0 | O60: =(Calculator!$AR$11*A60*'Dose per unit release'!$M60*0.1/'Assessment Details'!$C$20)/$AV$11 -> 0 | P60: =(Calculator!$AR$11*A60*'Dose per unit release'!$N60*0.1/'Assessment Details'!$C$20)/$AV$11 -> 0 | S60: =(Calculator!$AR$13*A60*'Dose per unit release'!$Q60*'Dose per unit release'!$R60/'Assessment Details'!$C$25)/$AV$11 -> 0 | T60: =(Calculator!$AR$13*A60*'Dose per unit release'!$Q60*'Dose per unit release'!$S60/'Assessment Details'!$C$25)/$AV$11 -> 0 | U60: =(Calculator!$AR$13*A60*'Dose per unit release'!$Q60*'Dose per unit release'!$T60/'Assessment Details'!$C$25)/$AV$11 -> 0 | V60: =(Calculator!$AR$13*A60*'Dose per unit release'!$Q60*'Dose per unit release'!$U60/'Assessment Details'!$C$25)/$AV$11 -> 0 | Y60: =(Calculator!$AR$13*A60*'Dose per unit release'!$X60*'Dose per unit release'!$Y60/'Assessment Details'!$C$25)/$AV$11 -> 0 | Z60: =(Calculator!$AR$13*A60*'Dose per unit release'!$X60*'Dose per unit release'!$Z60/'Assessment Details'!$C$25)/$AV$11 -> 0 | AC60: =(Calculator!$AR$15*A60*'Dose per unit release'!$AC60*'Dose per unit release'!$AD60*100/'Assessment Details'!$C$39)/$AV$11 -> 0 | AD60: =(Calculator!$AR$15*A60*'Dose per unit release'!$AC60*'Dose per unit release'!$AE60*100/'Assessment Details'!$C$39)/$AV$11 -> 0 | AE60: =(Calculator!$AR$15*A60*'Dose per unit release'!$AC60*'Dose per unit release'!$AF60*100/'Assessment Details'!$C$39)/$AV$11 -> 0 | AH60: =Calculator!$AR$13*A60*'Dose per unit release'!$AI60*'Dose per unit release'!$AJ60/'Assessment Details'!$C$25 -> 0 | AK60: =Calculator!$AR$15*A60*'Dose per unit release'!$AL60*'Dose per unit release'!$AM60*100/'Assessment Details'!$C$39 -> 0
C61: =(A61*'Dose per unit release'!$A61*60/'Assessment Details'!$C$32)/$AV$11 -> 0 | D61: =(A61*'Dose per unit release'!$B61*60/'Assessment Details'!$C$32)/$AV$11 -> 0 | E61: =(A61*'Dose per unit release'!$C61*60/'Assessment Details'!$C$32)/$AV$11 -> 0 | H61: =(A61*'Dose per unit release'!$F61*60/'Assessment Details'!$C$32)/$AV$11 -> 0 | I61: =(A61*'Dose per unit release'!$G61*60/'Assessment Details'!$C$32)/$AV$11 -> 0 | J61: =(A61*'Dose per unit release'!$H61*60/'Assessment Details'!$C$32)/$AV$11 -> 0 | K61: =(A61*'Dose per unit release'!$I61*60/'Assessment Details'!$C$32)/$AV$11 -> 0 | N61: =(Calculator!$AR$11*A61*'Dose per unit release'!$L61*0.1/'Assessment Details'!$C$20)/$AV$11 -> 0 | O61: =(Calculator!$AR$11*A61*'Dose per unit release'!$M61*0.1/'Assessment Details'!$C$20)/$AV$11 -> 0 | P61: =(Calculator!$AR$11*A61*'Dose per unit release'!$N61*0.1/'Assessment Details'!$C$20)/$AV$11 -> 0 | S61: =(Calculator!$AR$13*A61*'Dose per unit release'!$Q61*'Dose per unit release'!$R61/'Assessment Details'!$C$25)/$AV$11 -> 0 | T61: =(Calculator!$AR$13*A61*'Dose per unit release'!$Q61*'Dose per unit release'!$S61/'Assessment Details'!$C$25)/$AV$11 -> 0 | U61: =(Calculator!$AR$13*A61*'Dose per unit release'!$Q61*'Dose per unit release'!$T61/'Assessment Details'!$C$25)/$AV$11 -> 0 | V61: =(Calculator!$AR$13*A61*'Dose per unit release'!$Q61*'Dose per unit release'!$U61/'Assessment Details'!$C$25)/$AV$11 -> 0 | Y61: =(Calculator!$AR$13*A61*'Dose per unit release'!$X61*'Dose per unit release'!$Y61/'Assessment Details'!$C$25)/$AV$11 -> 0 | Z61: =(Calculator!$AR$13*A61*'Dose per unit release'!$X61*'Dose per unit release'!$Z61/'Assessment Details'!$C$25)/$AV$11 -> 0 | AC61: =(Calculator!$AR$15*A61*'Dose per unit release'!$AC61*'Dose per unit release'!$AD61*100/'Assessment Details'!$C$39)/$AV$11 -> 0 | AD61: =(Calculator!$AR$15*A61*'Dose per unit release'!$AC61*'Dose per unit release'!$AE61*100/'Assessment Details'!$C$39)/$AV$11 -> 0 | AE61: =(Calculator!$AR$15*A61*'Dose per unit release'!$AC61*'Dose per unit release'!$AF61*100/'Assessment Details'!$C$39)/$AV$11 -> 0 | AH61: =Calculator!$AR$13*A61*'Dose per unit release'!$AI61*'Dose per unit release'!$AJ61/'Assessment Details'!$C$25 -> 0 | AK61: =Calculator!$AR$15*A61*'Dose per unit release'!$AL61*'Dose per unit release'!$AM61*100/'Assessment Details'!$C$39 -> 0
C62: =(A62*'Dose per unit release'!$A62*60/'Assessment Details'!$C$32)/$AV$11 -> 0 | D62: =(A62*'Dose per unit release'!$B62*60/'Assessment Details'!$C$32)/$AV$11 -> 0 | E62: =(A62*'Dose per unit release'!$C62*60/'Assessment Details'!$C$32)/$AV$11 -> 0 | H62: =(A62*'Dose per unit release'!$F62*60/'Assessment Details'!$C$32)/$AV$11 -> 0 | I62: =(A62*'Dose per unit release'!$G62*60/'Assessment Details'!$C$32)/$AV$11 -> 0 | J62: =(A62*'Dose per unit release'!$H62*60/'Assessment Details'!$C$32)/$AV$11 -> 0 | K62: =(A62*'Dose per unit release'!$I62*60/'Assessment Details'!$C$32)/$AV$11 -> 0 | N62: =(Calculator!$AR$11*A62*'Dose per unit release'!$L62*0.1/'Assessment Details'!$C$20)/$AV$11 -> 0 | O62: =(Calculator!$AR$11*A62*'Dose per unit release'!$M62*0.1/'Assessment Details'!$C$20)/$AV$11 -> 0 | P62: =(Calculator!$AR$11*A62*'Dose per unit release'!$N62*0.1/'Assessment Details'!$C$20)/$AV$11 -> 0 | S62: =(Calculator!$AR$13*A62*'Dose per unit release'!$Q62*'Dose per unit release'!$R62/'Assessment Details'!$C$25)/$AV$11 -> 0 | T62: =(Calculator!$AR$13*A62*'Dose per unit release'!$Q62*'Dose per unit release'!$S62/'Assessment Details'!$C$25)/$AV$11 -> 0 | U62: =(Calculator!$AR$13*A62*'Dose per unit release'!$Q62*'Dose per unit release'!$T62/'Assessment Details'!$C$25)/$AV$11 -> 0 | V62: =(Calculator!$AR$13*A62*'Dose per unit release'!$Q62*'Dose per unit release'!$U62/'Assessment Details'!$C$25)/$AV$11 -> 0 | Y62: =(Calculator!$AR$13*A62*'Dose per unit release'!$X62*'Dose per unit release'!$Y62/'Assessment Details'!$C$25)/$AV$11 -> 0 | Z62: =(Calculator!$AR$13*A62*'Dose per unit release'!$X62*'Dose per unit release'!$Z62/'Assessment Details'!$C$25)/$AV$11 -> 0 | AC62: =(Calculator!$AR$15*A62*'Dose per unit release'!$AC62*'Dose per unit release'!$AD62*100/'Assessment Details'!$C$39)/$AV$11 -> 0 | AD62: =(Calculator!$AR$15*A62*'Dose per unit release'!$AC62*'Dose per unit release'!$AE62*100/'Assessment Details'!$C$39)/$AV$11 -> 0 | AE62: =(Calculator!$AR$15*A62*'Dose per unit release'!$AC62*'Dose per unit release'!$AF62*100/'Assessment Details'!$C$39)/$AV$11 -> 0 | AH62: =Calculator!$AR$13*A62*'Dose per unit release'!$AI62*'Dose per unit release'!$AJ62/'Assessment Details'!$C$25 -> 0 | AK62: =Calculator!$AR$15*A62*'Dose per unit release'!$AL62*'Dose per unit release'!$AM62*100/'Assessment Details'!$C$39 -> 0
C63: =(A63*'Dose per unit release'!$A63*60/'Assessment Details'!$C$32)/$AV$11 -> 0 | D63: =(A63*'Dose per unit release'!$B63*60/'Assessment Details'!$C$32)/$AV$11 -> 0 | E63: =(A63*'Dose per unit release'!$C63*60/'Assessment Details'!$C$32)/$AV$11 -> 0 | H63: =(A63*'Dose per unit release'!$F63*60/'Assessment Details'!$C$32)/$AV$11 -> 0 | I63: =(A63*'Dose per unit release'!$G63*60/'Assessment Details'!$C$32)/$AV$11 -> 0 | J63: =(A63*'Dose per unit release'!$H63*60/'Assessment Details'!$C$32)/$AV$11 -> 0 | K63: =(A63*'Dose per unit release'!$I63*60/'Assessment Details'!$C$32)/$AV$11 -> 0 | N63: =(Calculator!$AR$11*A63*'Dose per unit release'!$L63*0.1/'Assessment Details'!$C$20)/$AV$11 -> 0 | O63: =(Calculator!$AR$11*A63*'Dose per unit release'!$M63*0.1/'Assessment Details'!$C$20)/$AV$11 -> 0 | P63: =(Calculator!$AR$11*A63*'Dose per unit release'!$N63*0.1/'Assessment Details'!$C$20)/$AV$11 -> 0 | S63: =(Calculator!$AR$13*A63*'Dose per unit release'!$Q63*'Dose per unit release'!$R63/'Assessment Details'!$C$25)/$AV$11 -> 0 | T63: =(Calculator!$AR$13*A63*'Dose per unit release'!$Q63*'Dose per unit release'!$S63/'Assessment Details'!$C$25)/$AV$11 -> 0 | U63: =(Calculator!$AR$13*A63*'Dose per unit release'!$Q63*'Dose per unit release'!$T63/'Assessment Details'!$C$25)/$AV$11 -> 0 | V63: =(Calculator!$AR$13*A63*'Dose per unit release'!$Q63*'Dose per unit release'!$U63/'Assessment Details'!$C$25)/$AV$11 -> 0 | Y63: =(Calculator!$AR$13*A63*'Dose per unit release'!$X63*'Dose per unit release'!$Y63/'Assessment Details'!$C$25)/$AV$11 -> 0 | Z63: =(Calculator!$AR$13*A63*'Dose per unit release'!$X63*'Dose per unit release'!$Z63/'Assessment Details'!$C$25)/$AV$11 -> 0 | AC63: =(Calculator!$AR$15*A63*'Dose per unit release'!$AC63*'Dose per unit release'!$AD63*100/'Assessment Details'!$C$39)/$AV$11 -> 0 | AD63: =(Calculator!$AR$15*A63*'Dose per unit release'!$AC63*'Dose per unit release'!$AE63*100/'Assessment Details'!$C$39)/$AV$11 -> 0 | AE63: =(Calculator!$AR$15*A63*'Dose per unit release'!$AC63*'Dose per unit release'!$AF63*100/'Assessment Details'!$C$39)/$AV$11 -> 0 | AH63: =Calculator!$AR$13*A63*'Dose per unit release'!$AI63*'Dose per unit release'!$AJ63/'Assessment Details'!$C$25 -> 0 | AK63: =Calculator!$AR$15*A63*'Dose per unit release'!$AL63*'Dose per unit release'!$AM63*100/'Assessment Details'!$C$39 -> 0
C64: =(A64*'Dose per unit release'!$A64*60/'Assessment Details'!$C$32)/$AV$11 -> 0 | D64: =(A64*'Dose per unit release'!$B64*60/'Assessment Details'!$C$32)/$AV$11 -> 0 | E64: =(A64*'Dose per unit release'!$C64*60/'Assessment Details'!$C$32)/$AV$11 -> 0 | H64: =(A64*'Dose per unit release'!$F64*60/'Assessment Details'!$C$32)/$AV$11 -> 0 | I64: =(A64*'Dose per unit release'!$G64*60/'Assessment Details'!$C$32)/$AV$11 -> 0 | J64: =(A64*'Dose per unit release'!$H64*60/'Assessment Details'!$C$32)/$AV$11 -> 0 | K64: =(A64*'Dose per unit release'!$I64*60/'Assessment Details'!$C$32)/$AV$11 -> 0 | N64: =(Calculator!$AR$11*A64*'Dose per unit release'!$L64*0.1/'Assessment Details'!$C$20)/$AV$11 -> 0 | O64: =(Calculator!$AR$11*A64*'Dose per unit release'!$M64*0.1/'Assessment Details'!$C$20)/$AV$11 -> 0 | P64: =(Calculator!$AR$11*A64*'Dose per unit release'!$N64*0.1/'Assessment Details'!$C$20)/$AV$11 -> 0 | S64: =(Calculator!$AR$13*A64*'Dose per unit release'!$Q64*'Dose per unit release'!$R64/'Assessment Details'!$C$25)/$AV$11 -> 0 | T64: =(Calculator!$AR$13*A64*'Dose per unit release'!$Q64*'Dose per unit release'!$S64/'Assessment Details'!$C$25)/$AV$11 -> 0 | U64: =(Calculator!$AR$13*A64*'Dose per unit release'!$Q64*'Dose per unit release'!$T64/'Assessment Details'!$C$25)/$AV$11 -> 0 | V64: =(Calculator!$AR$13*A64*'Dose per unit release'!$Q64*'Dose per unit release'!$U64/'Assessment Details'!$C$25)/$AV$11 -> 0 | Y64: =(Calculator!$AR$13*A64*'Dose per unit release'!$X64*'Dose per unit release'!$Y64/'Assessment Details'!$C$25)/$AV$11 -> 0 | Z64: =(Calculator!$AR$13*A64*'Dose per unit release'!$X64*'Dose per unit release'!$Z64/'Assessment Details'!$C$25)/$AV$11 -> 0 | AC64: =(Calculator!$AR$15*A64*'Dose per unit release'!$AC64*'Dose per unit release'!$AD64*100/'Assessment Details'!$C$39)/$AV$11 -> 0 | AD64: =(Calculator!$AR$15*A64*'Dose per unit release'!$AC64*'Dose per unit release'!$AE64*100/'Assessment Details'!$C$39)/$AV$11 -> 0 | AE64: =(Calculator!$AR$15*A64*'Dose per unit release'!$AC64*'Dose per unit release'!$AF64*100/'Assessment Details'!$C$39)/$AV$11 -> 0 | AH64: =Calculator!$AR$13*A64*'Dose per unit release'!$AI64*'Dose per unit release'!$AJ64/'Assessment Details'!$C$25 -> 0 | AK64: =Calculator!$AR$15*A64*'Dose per unit release'!$AL64*'Dose per unit release'!$AM64*100/'Assessment Details'!$C$39 -> 0
C65: =(A65*'Dose per unit release'!$A65*60/'Assessment Details'!$C$32)/$AV$11 -> 0 | D65: =(A65*'Dose per unit release'!$B65*60/'Assessment Details'!$C$32)/$AV$11 -> 0 | E65: =(A65*'Dose per unit release'!$C65*60/'Assessment Details'!$C$32)/$AV$11 -> 0 | H65: =(A65*'Dose per unit release'!$F65*60/'Assessment Details'!$C$32)/$AV$11 -> 0 | I65: =(A65*'Dose per unit release'!$G65*60/'Assessment Details'!$C$32)/$AV$11 -> 0 | J65: =(A65*'Dose per unit release'!$H65*60/'Assessment Details'!$C$32)/$AV$11 -> 0 | K65: =(A65*'Dose per unit release'!$I65*60/'Assessment Details'!$C$32)/$AV$11 -> 0 | N65: =(Calculator!$AR$11*A65*'Dose per unit release'!$L65*0.1/'Assessment Details'!$C$20)/$AV$11 -> 0 | O65: =(Calculator!$AR$11*A65*'Dose per unit release'!$M65*0.1/'Assessment Details'!$C$20)/$AV$11 -> 0 | P65: =(Calculator!$AR$11*A65*'Dose per unit release'!$N65*0.1/'Assessment Details'!$C$20)/$AV$11 -> 0 | S65: =(Calculator!$AR$13*A65*'Dose per unit release'!$Q65*'Dose per unit release'!$R65/'Assessment Details'!$C$25)/$AV$11 -> 0 | T65: =(Calculator!$AR$13*A65*'Dose per unit release'!$Q65*'Dose per unit release'!$S65/'Assessment Details'!$C$25)/$AV$11 -> 0 | U65: =(Calculator!$AR$13*A65*'Dose per unit release'!$Q65*'Dose per unit release'!$T65/'Assessment Details'!$C$25)/$AV$11 -> 0 | V65: =(Calculator!$AR$13*A65*'Dose per unit release'!$Q65*'Dose per unit release'!$U65/'Assessment Details'!$C$25)/$AV$11 -> 0 | Y65: =(Calculator!$AR$13*A65*'Dose per unit release'!$X65*'Dose per unit release'!$Y65/'Assessment Details'!$C$25)/$AV$11 -> 0 | Z65: =(Calculator!$AR$13*A65*'Dose per unit release'!$X65*'Dose per unit release'!$Z65/'Assessment Details'!$C$25)/$AV$11 -> 0 | AC65: =(Calculator!$AR$15*A65*'Dose per unit release'!$AC65*'Dose per unit release'!$AD65*100/'Assessment Details'!$C$39)/$AV$11 -> 0 | AD65: =(Calculator!$AR$15*A65*'Dose per unit release'!$AC65*'Dose per unit release'!$AE65*100/'Assessment Details'!$C$39)/$AV$11 -> 0 | AE65: =(Calculator!$AR$15*A65*'Dose per unit release'!$AC65*'Dose per unit release'!$AF65*100/'Assessment Details'!$C$39)/$AV$11 -> 0 | AH65: =Calculator!$AR$13*A65*'Dose per unit release'!$AI65*'Dose per unit release'!$AJ65/'Assessment Details'!$C$25 -> 0 | AK65: =Calculator!$AR$15*A65*'Dose per unit release'!$AL65*'Dose per unit release'!$AM65*100/'Assessment Details'!$C$39 -> 0
C66: =(A66*'Dose per unit release'!$A66*60/'Assessment Details'!$C$32)/$AV$11 -> 0 | D66: =(A66*'Dose per unit release'!$B66*60/'Assessment Details'!$C$32)/$AV$11 -> 0 | E66: =(A66*'Dose per unit release'!$C66*60/'Assessment Details'!$C$32)/$AV$11 -> 0 | H66: =(A66*'Dose per unit release'!$F66*60/'Assessment Details'!$C$32)/$AV$11 -> 0 | I66: =(A66*'Dose per unit release'!$G66*60/'Assessment Details'!$C$32)/$AV$11 -> 0 | J66: =(A66*'Dose per unit release'!$H66*60/'Assessment Details'!$C$32)/$AV$11 -> 0 | K66: =(A66*'Dose per unit release'!$I66*60/'Assessment Details'!$C$32)/$AV$11 -> 0 | N66: =(Calculator!$AR$11*A66*'Dose per unit release'!$L66*0.1/'Assessment Details'!$C$20)/$AV$11 -> 0 | O66: =(Calculator!$AR$11*A66*'Dose per unit release'!$M66*0.1/'Assessment Details'!$C$20)/$AV$11 -> 0 | P66: =(Calculator!$AR$11*A66*'Dose per unit release'!$N66*0.1/'Assessment Details'!$C$20)/$AV$11 -> 0 | S66: =(Calculator!$AR$13*A66*'Dose per unit release'!$Q66*'Dose per unit release'!$R66/'Assessment Details'!$C$25)/$AV$11 -> 0 | T66: =(Calculator!$AR$13*A66*'Dose per unit release'!$Q66*'Dose per unit release'!$S66/'Assessment Details'!$C$25)/$AV$11 -> 0 | U66: =(Calculator!$AR$13*A66*'Dose per unit release'!$Q66*'Dose per unit release'!$T66/'Assessment Details'!$C$25)/$AV$11 -> 0 | V66: =(Calculator!$AR$13*A66*'Dose per unit release'!$Q66*'Dose per unit release'!$U66/'Assessment Details'!$C$25)/$AV$11 -> 0 | Y66: =(Calculator!$AR$13*A66*'Dose per unit release'!$X66*'Dose per unit release'!$Y66/'Assessment Details'!$C$25)/$AV$11 -> 0 | Z66: =(Calculator!$AR$13*A66*'Dose per unit release'!$X66*'Dose per unit release'!$Z66/'Assessment Details'!$C$25)/$AV$11 -> 0 | AC66: =(Calculator!$AR$15*A66*'Dose per unit release'!$AC66*'Dose per unit release'!$AD66*100/'Assessment Details'!$C$39)/$AV$11 -> 0 | AD66: =(Calculator!$AR$15*A66*'Dose per unit release'!$AC66*'Dose per unit release'!$AE66*100/'Assessment Details'!$C$39)/$AV$11 -> 0 | AE66: =(Calculator!$AR$15*A66*'Dose per unit release'!$AC66*'Dose per unit release'!$AF66*100/'Assessment Details'!$C$39)/$AV$11 -> 0 | AH66: =Calculator!$AR$13*A66*'Dose per unit release'!$AI66*'Dose per unit release'!$AJ66/'Assessment Details'!$C$25 -> 0 | AK66: =Calculator!$AR$15*A66*'Dose per unit release'!$AL66*'Dose per unit release'!$AM66*100/'Assessment Details'!$C$39 -> 0
C67: =(A67*'Dose per unit release'!$A67*60/'Assessment Details'!$C$32)/$AV$11 -> 0 | D67: =(A67*'Dose per unit release'!$B67*60/'Assessment Details'!$C$32)/$AV$11 -> 0 | E67: =(A67*'Dose per unit release'!$C67*60/'Assessment Details'!$C$32)/$AV$11 -> 0 | H67: =(A67*'Dose per unit release'!$F67*60/'Assessment Details'!$C$32)/$AV$11 -> 0 | I67: =(A67*'Dose per unit release'!$G67*60/'Assessment Details'!$C$32)/$AV$11 -> 0 | J67: =(A67*'Dose per unit release'!$H67*60/'Assessment Details'!$C$32)/$AV$11 -> 0 | K67: =(A67*'Dose per unit release'!$I67*60/'Assessment Details'!$C$32)/$AV$11 -> 0 | N67: =(Calculator!$AR$11*A67*'Dose per unit release'!$L67*0.1/'Assessment Details'!$C$20)/$AV$11 -> 0 | O67: =(Calculator!$AR$11*A67*'Dose per unit release'!$M67*0.1/'Assessment Details'!$C$20)/$AV$11 -> 0 | P67: =(Calculator!$AR$11*A67*'Dose per unit release'!$N67*0.1/'Assessment Details'!$C$20)/$AV$11 -> 0 | S67: =(Calculator!$AR$13*A67*'Dose per unit release'!$Q67*'Dose per unit release'!$R67/'Assessment Details'!$C$25)/$AV$11 -> 0 | T67: =(Calculator!$AR$13*A67*'Dose per unit release'!$Q67*'Dose per unit release'!$S67/'Assessment Details'!$C$25)/$AV$11 -> 0 | U67: =(Calculator!$AR$13*A67*'Dose per unit release'!$Q67*'Dose per unit release'!$T67/'Assessment Details'!$C$25)/$AV$11 -> 0 | V67: =(Calculator!$AR$13*A67*'Dose per unit release'!$Q67*'Dose per unit release'!$U67/'Assessment Details'!$C$25)/$AV$11 -> 0 | Y67: =(Calculator!$AR$13*A67*'Dose per unit release'!$X67*'Dose per unit release'!$Y67/'Assessment Details'!$C$25)/$AV$11 -> 0 | Z67: =(Calculator!$AR$13*A67*'Dose per unit release'!$X67*'Dose per unit release'!$Z67/'Assessment Details'!$C$25)/$AV$11 -> 0 | AC67: =(Calculator!$AR$15*A67*'Dose per unit release'!$AC67*'Dose per unit release'!$AD67*100/'Assessment Details'!$C$39)/$AV$11 -> 0 | AD67: =(Calculator!$AR$15*A67*'Dose per unit release'!$AC67*'Dose per unit release'!$AE67*100/'Assessment Details'!$C$39)/$AV$11 -> 0 | AE67: =(Calculator!$AR$15*A67*'Dose per unit release'!$AC67*'Dose per unit release'!$AF67*100/'Assessment Details'!$C$39)/$AV$11 -> 0 | AH67: =Calculator!$AR$13*A67*'Dose per unit release'!$AI67*'Dose per unit release'!$AJ67/'Assessment Details'!$C$25 -> 0 | AK67: =Calculator!$AR$15*A67*'Dose per unit release'!$AL67*'Dose per unit release'!$AM67*100/'Assessment Details'!$C$39 -> 0
C68: =(A68*'Dose per unit release'!$A68*60/'Assessment Details'!$C$32)/$AV$11 -> 0 | D68: =(A68*'Dose per unit release'!$B68*60/'Assessment Details'!$C$32)/$AV$11 -> 0 | E68: =(A68*'Dose per unit release'!$C68*60/'Assessment Details'!$C$32)/$AV$11 -> 0 | H68: =(A68*'Dose per unit release'!$F68*60/'Assessment Details'!$C$32)/$AV$11 -> 0 | I68: =(A68*'Dose per unit release'!$G68*60/'Assessment Details'!$C$32)/$AV$11 -> 0 | J68: =(A68*'Dose per unit release'!$H68*60/'Assessment Details'!$C$32)/$AV$11 -> 0 | K68: =(A68*'Dose per unit release'!$I68*60/'Assessment Details'!$C$32)/$AV$11 -> 0 | N68: =(Calculator!$AR$11*A68*'Dose per unit release'!$L68*0.1/'Assessment Details'!$C$20)/$AV$11 -> 0 | O68: =(Calculator!$AR$11*A68*'Dose per unit release'!$M68*0.1/'Assessment Details'!$C$20)/$AV$11 -> 0 | P68: =(Calculator!$AR$11*A68*'Dose per unit release'!$N68*0.1/'Assessment Details'!$C$20)/$AV$11 -> 0 | S68: =(Calculator!$AR$13*A68*'Dose per unit release'!$Q68*'Dose per unit release'!$R68/'Assessment Details'!$C$25)/$AV$11 -> 0 | T68: =(Calculator!$AR$13*A68*'Dose per unit release'!$Q68*'Dose per unit release'!$S68/'Assessment Details'!$C$25)/$AV$11 -> 0 | U68: =(Calculator!$AR$13*A68*'Dose per unit release'!$Q68*'Dose per unit release'!$T68/'Assessment Details'!$C$25)/$AV$11 -> 0 | V68: =(Calculator!$AR$13*A68*'Dose per unit release'!$Q68*'Dose per unit release'!$U68/'Assessment Details'!$C$25)/$AV$11 -> 0 | Y68: =(Calculator!$AR$13*A68*'Dose per unit release'!$X68*'Dose per unit release'!$Y68/'Assessment Details'!$C$25)/$AV$11 -> 0 | Z68: =(Calculator!$AR$13*A68*'Dose per unit release'!$X68*'Dose per unit release'!$Z68/'Assessment Details'!$C$25)/$AV$11 -> 0 | AC68: =(Calculator!$AR$15*A68*'Dose per unit release'!$AC68*'Dose per unit release'!$AD68*100/'Assessment Details'!$C$39)/$AV$11 -> 0 | AD68: =(Calculator!$AR$15*A68*'Dose per unit release'!$AC68*'Dose per unit release'!$AE68*100/'Assessment Details'!$C$39)/$AV$11 -> 0 | AE68: =(Calculator!$AR$15*A68*'Dose per unit release'!$AC68*'Dose per unit release'!$AF68*100/'Assessment Details'!$C$39)/$AV$11 -> 0 | AH68: =Calculator!$AR$13*A68*'Dose per unit release'!$AI68*'Dose per unit release'!$AJ68/'Assessment Details'!$C$25 -> 0 | AK68: =Calculator!$AR$15*A68*'Dose per unit release'!$AL68*'Dose per unit release'!$AM68*100/'Assessment Details'!$C$39 -> 0
C69: =(A69*'Dose per unit release'!$A69*60/'Assessment Details'!$C$32)/$AV$11 -> 0 | D69: =(A69*'Dose per unit release'!$B69*60/'Assessment Details'!$C$32)/$AV$11 -> 0 | E69: =(A69*'Dose per unit release'!$C69*60/'Assessment Details'!$C$32)/$AV$11 -> 0 | H69: =(A69*'Dose per unit release'!$F69*60/'Assessment Details'!$C$32)/$AV$11 -> 0 | I69: =(A69*'Dose per unit release'!$G69*60/'Assessment Details'!$C$32)/$AV$11 -> 0 | J69: =(A69*'Dose per unit release'!$H69*60/'Assessment Details'!$C$32)/$AV$11 -> 0 | K69: =(A69*'Dose per unit release'!$I69*60/'Assessment Details'!$C$32)/$AV$11 -> 0 | N69: =(Calculator!$AR$11*A69*'Dose per unit release'!$L69*0.1/'Assessment Details'!$C$20)/$AV$11 -> 0 | O69: =(Calculator!$AR$11*A69*'Dose per unit release'!$M69*0.1/'Assessment Details'!$C$20)/$AV$11 -> 0 | P69: =(Calculator!$AR$11*A69*'Dose per unit release'!$N69*0.1/'Assessment Details'!$C$20)/$AV$11 -> 0 | S69: =(Calculator!$AR$13*A69*'Dose per unit release'!$Q69*'Dose per unit release'!$R69/'Assessment Details'!$C$25)/$AV$11 -> 0 | T69: =(Calculator!$AR$13*A69*'Dose per unit release'!$Q69*'Dose per unit release'!$S69/'Assessment Details'!$C$25)/$AV$11 -> 0 | U69: =(Calculator!$AR$13*A69*'Dose per unit release'!$Q69*'Dose per unit release'!$T69/'Assessment Details'!$C$25)/$AV$11 -> 0 | V69: =(Calculator!$AR$13*A69*'Dose per unit release'!$Q69*'Dose per unit release'!$U69/'Assessment Details'!$C$25)/$AV$11 -> 0 | Y69: =(Calculator!$AR$13*A69*'Dose per unit release'!$X69*'Dose per unit release'!$Y69/'Assessment Details'!$C$25)/$AV$11 -> 0 | Z69: =(Calculator!$AR$13*A69*'Dose per unit release'!$X69*'Dose per unit release'!$Z69/'Assessment Details'!$C$25)/$AV$11 -> 0 | AC69: =(Calculator!$AR$15*A69*'Dose per unit release'!$AC69*'Dose per unit release'!$AD69*100/'Assessment Details'!$C$39)/$AV$11 -> 0 | AD69: =(Calculator!$AR$15*A69*'Dose per unit release'!$AC69*'Dose per unit release'!$AE69*100/'Assessment Details'!$C$39)/$AV$11 -> 0 | AE69: =(Calculator!$AR$15*A69*'Dose per unit release'!$AC69*'Dose per unit release'!$AF69*100/'Assessment Details'!$C$39)/$AV$11 -> 0 | AH69: =Calculator!$AR$13*A69*'Dose per unit release'!$AI69*'Dose per unit release'!$AJ69/'Assessment Details'!$C$25 -> 0 | AK69: =Calculator!$AR$15*A69*'Dose per unit release'!$AL69*'Dose per unit release'!$AM69*100/'Assessment Details'!$C$39 -> 0
C70: =(A70*'Dose per unit release'!$A70*60/'Assessment Details'!$C$32)/$AV$11 -> 0 | D70: =(A70*'Dose per unit release'!$B70*60/'Assessment Details'!$C$32)/$AV$11 -> 0 | E70: =(A70*'Dose per unit release'!$C70*60/'Assessment Details'!$C$32)/$AV$11 -> 0 | H70: =(A70*'Dose per unit release'!$F70*60/'Assessment Details'!$C$32)/$AV$11 -> 0 | I70: =(A70*'Dose per unit release'!$G70*60/'Assessment Details'!$C$32)/$AV$11 -> 0 | J70: =(A70*'Dose per unit release'!$H70*60/'Assessment Details'!$C$32)/$AV$11 -> 0 | K70: =(A70*'Dose per unit release'!$I70*60/'Assessment Details'!$C$32)/$AV$11 -> 0 | N70: =(Calculator!$AR$11*A70*'Dose per unit release'!$L70*0.1/'Assessment Details'!$C$20)/$AV$11 -> 0 | O70: =(Calculator!$AR$11*A70*'Dose per unit release'!$M70*0.1/'Assessment Details'!$C$20)/$AV$11 -> 0 | P70: =(Calculator!$AR$11*A70*'Dose per unit release'!$N70*0.1/'Assessment Details'!$C$20)/$AV$11 -> 0 | S70: =(Calculator!$AR$13*A70*'Dose per unit release'!$Q70*'Dose per unit release'!$R70/'Assessment Details'!$C$25)/$AV$11 -> 0 | T70: =(Calculator!$AR$13*A70*'Dose per unit release'!$Q70*'Dose per unit release'!$S70/'Assessment Details'!$C$25)/$AV$11 -> 0 | U70: =(Calculator!$AR$13*A70*'Dose per unit release'!$Q70*'Dose per unit release'!$T70/'Assessment Details'!$C$25)/$AV$11 -> 0 | V70: =(Calculator!$AR$13*A70*'Dose per unit release'!$Q70*'Dose per unit release'!$U70/'Assessment Details'!$C$25)/$AV$11 -> 0 | Y70: =(Calculator!$AR$13*A70*'Dose per unit release'!$X70*'Dose per unit release'!$Y70/'Assessment Details'!$C$25)/$AV$11 -> 0 | Z70: =(Calculator!$AR$13*A70*'Dose per unit release'!$X70*'Dose per unit release'!$Z70/'Assessment Details'!$C$25)/$AV$11 -> 0 | AC70: =(Calculator!$AR$15*A70*'Dose per unit release'!$AC70*'Dose per unit release'!$AD70*100/'Assessment Details'!$C$39)/$AV$11 -> 0 | AD70: =(Calculator!$AR$15*A70*'Dose per unit release'!$AC70*'Dose per unit release'!$AE70*100/'Assessment Details'!$C$39)/$AV$11 -> 0 | AE70: =(Calculator!$AR$15*A70*'Dose per unit release'!$AC70*'Dose per unit release'!$AF70*100/'Assessment Details'!$C$39)/$AV$11 -> 0 | AH70: =Calculator!$AR$13*A70*'Dose per unit release'!$AI70*'Dose per unit release'!$AJ70/'Assessment Details'!$C$25 -> 0 | AK70: =Calculator!$AR$15*A70*'Dose per unit release'!$AL70*'Dose per unit release'!$AM70*100/'Assessment Details'!$C$39 -> 0
C71: =(A71*'Dose per unit release'!$A71*60/'Assessment Details'!$C$32)/$AV$11 -> 0 | D71: =(A71*'Dose per unit release'!$B71*60/'Assessment Details'!$C$32)/$AV$11 -> 0 | E71: =(A71*'Dose per unit release'!$C71*60/'Assessment Details'!$C$32)/$AV$11 -> 0 | H71: =(A71*'Dose per unit release'!$F71*60/'Assessment Details'!$C$32)/$AV$11 -> 0 | I71: =(A71*'Dose per unit release'!$G71*60/'Assessment Details'!$C$32)/$AV$11 -> 0 | J71: =(A71*'Dose per unit release'!$H71*60/'Assessment Details'!$C$32)/$AV$11 -> 0 | K71: =(A71*'Dose per unit release'!$I71*60/'Assessment Details'!$C$32)/$AV$11 -> 0 | N71: =(Calculator!$AR$11*A71*'Dose per unit release'!$L71*0.1/'Assessment Details'!$C$20)/$AV$11 -> 0 | O71: =(Calculator!$AR$11*A71*'Dose per unit release'!$M71*0.1/'Assessment Details'!$C$20)/$AV$11 -> 0 | P71: =(Calculator!$AR$11*A71*'Dose per unit release'!$N71*0.1/'Assessment Details'!$C$20)/$AV$11 -> 0 | S71: =(Calculator!$AR$13*A71*'Dose per unit release'!$Q71*'Dose per unit release'!$R71/'Assessment Details'!$C$25)/$AV$11 -> 0 | T71: =(Calculator!$AR$13*A71*'Dose per unit release'!$Q71*'Dose per unit release'!$S71/'Assessment Details'!$C$25)/$AV$11 -> 0 | U71: =(Calculator!$AR$13*A71*'Dose per unit release'!$Q71*'Dose per unit release'!$T71/'Assessment Details'!$C$25)/$AV$11 -> 0 | V71: =(Calculator!$AR$13*A71*'Dose per unit release'!$Q71*'Dose per unit release'!$U71/'Assessment Details'!$C$25)/$AV$11 -> 0 | Y71: =(Calculator!$AR$13*A71*'Dose per unit release'!$X71*'Dose per unit release'!$Y71/'Assessment Details'!$C$25)/$AV$11 -> 0 | Z71: =(Calculator!$AR$13*A71*'Dose per unit release'!$X71*'Dose per unit release'!$Z71/'Assessment Details'!$C$25)/$AV$11 -> 0 | AC71: =(Calculator!$AR$15*A71*'Dose per unit release'!$AC71*'Dose per unit release'!$AD71*100/'Assessment Details'!$C$39)/$AV$11 -> 0 | AD71: =(Calculator!$AR$15*A71*'Dose per unit release'!$AC71*'Dose per unit release'!$AE71*100/'Assessment Details'!$C$39)/$AV$11 -> 0 | AE71: =(Calculator!$AR$15*A71*'Dose per unit release'!$AC71*'Dose per unit release'!$AF71*100/'Assessment Details'!$C$39)/$AV$11 -> 0 | AH71: =Calculator!$AR$13*A71*'Dose per unit release'!$AI71*'Dose per unit release'!$AJ71/'Assessment Details'!$C$25 -> 0 | AK71: =Calculator!$AR$15*A71*'Dose per unit release'!$AL71*'Dose per unit release'!$AM71*100/'Assessment Details'!$C$39 -> 0
C72: =(A72*'Dose per unit release'!$A72*60/'Assessment Details'!$C$32)/$AV$11 -> 0 | D72: =(A72*'Dose per unit release'!$B72*60/'Assessment Details'!$C$32)/$AV$11 -> 0 | E72: =(A72*'Dose per unit release'!$C72*60/'Assessment Details'!$C$32)/$AV$11 -> 0 | H72: =(A72*'Dose per unit release'!$F72*60/'Assessment Details'!$C$32)/$AV$11 -> 0 | I72: =(A72*'Dose per unit release'!$G72*60/'Assessment Details'!$C$32)/$AV$11 -> 0 | J72: =(A72*'Dose per unit release'!$H72*60/'Assessment Details'!$C$32)/$AV$11 -> 0 | K72: =(A72*'Dose per unit release'!$I72*60/'Assessment Details'!$C$32)/$AV$11 -> 0 | N72: =(Calculator!$AR$11*A72*'Dose per unit release'!$L72*0.1/'Assessment Details'!$C$20)/$AV$11 -> 0 | O72: =(Calculator!$AR$11*A72*'Dose per unit release'!$M72*0.1/'Assessment Details'!$C$20)/$AV$11 -> 0 | P72: =(Calculator!$AR$11*A72*'Dose per unit release'!$N72*0.1/'Assessment Details'!$C$20)/$AV$11 -> 0 | S72: =(Calculator!$AR$13*A72*'Dose per unit release'!$Q72*'Dose per unit release'!$R72/'Assessment Details'!$C$25)/$AV$11 -> 0 | T72: =(Calculator!$AR$13*A72*'Dose per unit release'!$Q72*'Dose per unit release'!$S72/'Assessment Details'!$C$25)/$AV$11 -> 0 | U72: =(Calculator!$AR$13*A72*'Dose per unit release'!$Q72*'Dose per unit release'!$T72/'Assessment Details'!$C$25)/$AV$11 -> 0 | V72: =(Calculator!$AR$13*A72*'Dose per unit release'!$Q72*'Dose per unit release'!$U72/'Assessment Details'!$C$25)/$AV$11 -> 0 | Y72: =(Calculator!$AR$13*A72*'Dose per unit release'!$X72*'Dose per unit release'!$Y72/'Assessment Details'!$C$25)/$AV$11 -> 0 | Z72: =(Calculator!$AR$13*A72*'Dose per unit release'!$X72*'Dose per unit release'!$Z72/'Assessment Details'!$C$25)/$AV$11 -> 0 | AC72: =(Calculator!$AR$15*A72*'Dose per unit release'!$AC72*'Dose per unit release'!$AD72*100/'Assessment Details'!$C$39)/$AV$11 -> 0 | AD72: =(Calculator!$AR$15*A72*'Dose per unit release'!$AC72*'Dose per unit release'!$AE72*100/'Assessment Details'!$C$39)/$AV$11 -> 0 | AE72: =(Calculator!$AR$15*A72*'Dose per unit release'!$AC72*'Dose per unit release'!$AF72*100/'Assessment Details'!$C$39)/$AV$11 -> 0 | AH72: =Calculator!$AR$13*A72*'Dose per unit release'!$AI72*'Dose per unit release'!$AJ72/'Assessment Details'!$C$25 -> 0 | AK72: =Calculator!$AR$15*A72*'Dose per unit release'!$AL72*'Dose per unit release'!$AM72*100/'Assessment Details'!$C$39 -> 0
C73: =(A73*'Dose per unit release'!$A73*60/'Assessment Details'!$C$32)/$AV$11 -> 0 | D73: =(A73*'Dose per unit release'!$B73*60/'Assessment Details'!$C$32)/$AV$11 -> 0 | E73: =(A73*'Dose per unit release'!$C73*60/'Assessment Details'!$C$32)/$AV$11 -> 0 | H73: =(A73*'Dose per unit release'!$F73*60/'Assessment Details'!$C$32)/$AV$11 -> 0 | I73: =(A73*'Dose per unit release'!$G73*60/'Assessment Details'!$C$32)/$AV$11 -> 0 | J73: =(A73*'Dose per unit release'!$H73*60/'Assessment Details'!$C$32)/$AV$11 -> 0 | K73: =(A73*'Dose per unit release'!$I73*60/'Assessment Details'!$C$32)/$AV$11 -> 0 | N73: =(Calculator!$AR$11*A73*'Dose per unit release'!$L73*0.1/'Assessment Details'!$C$20)/$AV$11 -> 0 | O73: =(Calculator!$AR$11*A73*'Dose per unit release'!$M73*0.1/'Assessment Details'!$C$20)/$AV$11 -> 0 | P73: =(Calculator!$AR$11*A73*'Dose per unit release'!$N73*0.1/'Assessment Details'!$C$20)/$AV$11 -> 0 | S73: =(Calculator!$AR$13*A73*'Dose per unit release'!$Q73*'Dose per unit release'!$R73/'Assessment Details'!$C$25)/$AV$11 -> 0 | T73: =(Calculator!$AR$13*A73*'Dose per unit release'!$Q73*'Dose per unit release'!$S73/'Assessment Details'!$C$25)/$AV$11 -> 0 | U73: =(Calculator!$AR$13*A73*'Dose per unit release'!$Q73*'Dose per unit release'!$T73/'Assessment Details'!$C$25)/$AV$11 -> 0 | V73: =(Calculator!$AR$13*A73*'Dose per unit release'!$Q73*'Dose per unit release'!$U73/'Assessment Details'!$C$25)/$AV$11 -> 0 | Y73: =(Calculator!$AR$13*A73*'Dose per unit release'!$X73*'Dose per unit release'!$Y73/'Assessment Details'!$C$25)/$AV$11 -> 0 | Z73: =(Calculator!$AR$13*A73*'Dose per unit release'!$X73*'Dose per unit release'!$Z73/'Assessment Details'!$C$25)/$AV$11 -> 0 | AC73: =(Calculator!$AR$15*A73*'Dose per unit release'!$AC73*'Dose per unit release'!$AD73*100/'Assessment Details'!$C$39)/$AV$11 -> 0 | AD73: =(Calculator!$AR$15*A73*'Dose per unit release'!$AC73*'Dose per unit release'!$AE73*100/'Assessment Details'!$C$39)/$AV$11 -> 0 | AE73: =(Calculator!$AR$15*A73*'Dose per unit release'!$AC73*'Dose per unit release'!$AF73*100/'Assessment Details'!$C$39)/$AV$11 -> 0 | AH73: =Calculator!$AR$13*A73*'Dose per unit release'!$AI73*'Dose per unit release'!$AJ73/'Assessment Details'!$C$25 -> 0 | AK73: =Calculator!$AR$15*A73*'Dose per unit release'!$AL73*'Dose per unit release'!$AM73*100/'Assessment Details'!$C$39 -> 0
C74: =(A74*'Dose per unit release'!$A74*60/'Assessment Details'!$C$32)/$AV$11 -> 0 | D74: =(A74*'Dose per unit release'!$B74*60/'Assessment Details'!$C$32)/$AV$11 -> 0 | E74: =(A74*'Dose per unit release'!$C74*60/'Assessment Details'!$C$32)/$AV$11 -> 0 | H74: =(A74*'Dose per unit release'!$F74*60/'Assessment Details'!$C$32)/$AV$11 -> 0 | I74: =(A74*'Dose per unit release'!$G74*60/'Assessment Details'!$C$32)/$AV$11 -> 0 | J74: =(A74*'Dose per unit release'!$H74*60/'Assessment Details'!$C$32)/$AV$11 -> 0 | K74: =(A74*'Dose per unit release'!$I74*60/'Assessment Details'!$C$32)/$AV$11 -> 0 | N74: =(Calculator!$AR$11*A74*'Dose per unit release'!$L74*0.1/'Assessment Details'!$C$20)/$AV$11 -> 0 | O74: =(Calculator!$AR$11*A74*'Dose per unit release'!$M74*0.1/'Assessment Details'!$C$20)/$AV$11 -> 0 | P74: =(Calculator!$AR$11*A74*'Dose per unit release'!$N74*0.1/'Assessment Details'!$C$20)/$AV$11 -> 0 | S74: =(Calculator!$AR$13*A74*'Dose per unit release'!$Q74*'Dose per unit release'!$R74/'Assessment Details'!$C$25)/$AV$11 -> 0 | T74: =(Calculator!$AR$13*A74*'Dose per unit release'!$Q74*'Dose per unit release'!$S74/'Assessment Details'!$C$25)/$AV$11 -> 0 | U74: =(Calculator!$AR$13*A74*'Dose per unit release'!$Q74*'Dose per unit release'!$T74/'Assessment Details'!$C$25)/$AV$11 -> 0 | V74: =(Calculator!$AR$13*A74*'Dose per unit release'!$Q74*'Dose per unit release'!$U74/'Assessment Details'!$C$25)/$AV$11 -> 0 | Y74: =(Calculator!$AR$13*A74*'Dose per unit release'!$X74*'Dose per unit release'!$Y74/'Assessment Details'!$C$25)/$AV$11 -> 0 | Z74: =(Calculator!$AR$13*A74*'Dose per unit release'!$X74*'Dose per unit release'!$Z74/'Assessment Details'!$C$25)/$AV$11 -> 0 | AC74: =(Calculator!$AR$15*A74*'Dose per unit release'!$AC74*'Dose per unit release'!$AD74*100/'Assessment Details'!$C$39)/$AV$11 -> 0 | AD74: =(Calculator!$AR$15*A74*'Dose per unit release'!$AC74*'Dose per unit release'!$AE74*100/'Assessment Details'!$C$39)/$AV$11 -> 0 | AE74: =(Calculator!$AR$15*A74*'Dose per unit release'!$AC74*'Dose per unit release'!$AF74*100/'Assessment Details'!$C$39)/$AV$11 -> 0 | AH74: =Calculator!$AR$13*A74*'Dose per unit release'!$AI74*'Dose per unit release'!$AJ74/'Assessment Details'!$C$25 -> 0 | AK74: =Calculator!$AR$15*A74*'Dose per unit release'!$AL74*'Dose per unit release'!$AM74*100/'Assessment Details'!$C$39 -> 0
C75: =(A75*'Dose per unit release'!$A75*60/'Assessment Details'!$C$32)/$AV$11 -> 0 | D75: =(A75*'Dose per unit release'!$B75*60/'Assessment Details'!$C$32)/$AV$11 -> 0 | E75: =(A75*'Dose per unit release'!$C75*60/'Assessment Details'!$C$32)/$AV$11 -> 0 | H75: =(A75*'Dose per unit release'!$F75*60/'Assessment Details'!$C$32)/$AV$11 -> 0 | I75: =(A75*'Dose per unit release'!$G75*60/'Assessment Details'!$C$32)/$AV$11 -> 0 | J75: =(A75*'Dose per unit release'!$H75*60/'Assessment Details'!$C$32)/$AV$11 -> 0 | K75: =(A75*'Dose per unit release'!$I75*60/'Assessment Details'!$C$32)/$AV$11 -> 0 | N75: =(Calculator!$AR$11*A75*'Dose per unit release'!$L75*0.1/'Assessment Details'!$C$20)/$AV$11 -> 0 | O75: =(Calculator!$AR$11*A75*'Dose per unit release'!$M75*0.1/'Assessment Details'!$C$20)/$AV$11 -> 0 | P75: =(Calculator!$AR$11*A75*'Dose per unit release'!$N75*0.1/'Assessment Details'!$C$20)/$AV$11 -> 0 | S75: =(Calculator!$AR$13*A75*'Dose per unit release'!$Q75*'Dose per unit release'!$R75/'Assessment Details'!$C$25)/$AV$11 -> 0 | T75: =(Calculator!$AR$13*A75*'Dose per unit release'!$Q75*'Dose per unit release'!$S75/'Assessment Details'!$C$25)/$AV$11 -> 0 | U75: =(Calculator!$AR$13*A75*'Dose per unit release'!$Q75*'Dose per unit release'!$T75/'Assessment Details'!$C$25)/$AV$11 -> 0 | V75: =(Calculator!$AR$13*A75*'Dose per unit release'!$Q75*'Dose per unit release'!$U75/'Assessment Details'!$C$25)/$AV$11 -> 0 | Y75: =(Calculator!$AR$13*A75*'Dose per unit release'!$X75*'Dose per unit release'!$Y75/'Assessment Details'!$C$25)/$AV$11 -> 0 | Z75: =(Calculator!$AR$13*A75*'Dose per unit release'!$X75*'Dose per unit release'!$Z75/'Assessment Details'!$C$25)/$AV$11 -> 0 | AC75: =(Calculator!$AR$15*A75*'Dose per unit release'!$AC75*'Dose per unit release'!$AD75*100/'Assessment Details'!$C$39)/$AV$11 -> 0 | AD75: =(Calculator!$AR$15*A75*'Dose per unit release'!$AC75*'Dose per unit release'!$AE75*100/'Assessment Details'!$C$39)/$AV$11 -> 0 | AE75: =(Calculator!$AR$15*A75*'Dose per unit release'!$AC75*'Dose per unit release'!$AF75*100/'Assessment Details'!$C$39)/$AV$11 -> 0 | AH75: =Calculator!$AR$13*A75*'Dose per unit release'!$AI75*'Dose per unit release'!$AJ75/'Assessment Details'!$C$25 -> 0 | AK75: =Calculator!$AR$15*A75*'Dose per unit release'!$AL75*'Dose per unit release'!$AM75*100/'Assessment Details'!$C$39 -> 0
C76: =(A76*'Dose per unit release'!$A76*60/'Assessment Details'!$C$32)/$AV$11 -> 0 | D76: =(A76*'Dose per unit release'!$B76*60/'Assessment Details'!$C$32)/$AV$11 -> 0 | E76: =(A76*'Dose per unit release'!$C76*60/'Assessment Details'!$C$32)/$AV$11 -> 0 | H76: =(A76*'Dose per unit release'!$F76*60/'Assessment Details'!$C$32)/$AV$11 -> 0 | I76: =(A76*'Dose per unit release'!$G76*60/'Assessment Details'!$C$32)/$AV$11 -> 0 | J76: =(A76*'Dose per unit release'!$H76*60/'Assessment Details'!$C$32)/$AV$11 -> 0 | K76: =(A76*'Dose per unit release'!$I76*60/'Assessment Details'!$C$32)/$AV$11 -> 0 | N76: =(Calculator!$AR$11*A76*'Dose per unit release'!$L76*0.1/'Assessment Details'!$C$20)/$AV$11 -> 0 | O76: =(Calculator!$AR$11*A76*'Dose per unit release'!$M76*0.1/'Assessment Details'!$C$20)/$AV$11 -> 0 | P76: =(Calculator!$AR$11*A76*'Dose per unit release'!$N76*0.1/'Assessment Details'!$C$20)/$AV$11 -> 0 | S76: =(Calculator!$AR$13*A76*'Dose per unit release'!$Q76*'Dose per unit release'!$R76/'Assessment Details'!$C$25)/$AV$11 -> 0 | T76: =(Calculator!$AR$13*A76*'Dose per unit release'!$Q76*'Dose per unit release'!$S76/'Assessment Details'!$C$25)/$AV$11 -> 0 | U76: =(Calculator!$AR$13*A76*'Dose per unit release'!$Q76*'Dose per unit release'!$T76/'Assessment Details'!$C$25)/$AV$11 -> 0 | V76: =(Calculator!$AR$13*A76*'Dose per unit release'!$Q76*'Dose per unit release'!$U76/'Assessment Details'!$C$25)/$AV$11 -> 0 | Y76: =(Calculator!$AR$13*A76*'Dose per unit release'!$X76*'Dose per unit release'!$Y76/'Assessment Details'!$C$25)/$AV$11 -> 0 | Z76: =(Calculator!$AR$13*A76*'Dose per unit release'!$X76*'Dose per unit release'!$Z76/'Assessment Details'!$C$25)/$AV$11 -> 0 | AC76: =(Calculator!$AR$15*A76*'Dose per unit release'!$AC76*'Dose per unit release'!$AD76*100/'Assessment Details'!$C$39)/$AV$11 -> 0 | AD76: =(Calculator!$AR$15*A76*'Dose per unit release'!$AC76*'Dose per unit release'!$AE76*100/'Assessment Details'!$C$39)/$AV$11 -> 0 | AE76: =(Calculator!$AR$15*A76*'Dose per unit release'!$AC76*'Dose per unit release'!$AF76*100/'Assessment Details'!$C$39)/$AV$11 -> 0 | AH76: =Calculator!$AR$13*A76*'Dose per unit release'!$AI76*'Dose per unit release'!$AJ76/'Assessment Details'!$C$25 -> 0 | AK76: =Calculator!$AR$15*A76*'Dose per unit release'!$AL76*'Dose per unit release'!$AM76*100/'Assessment Details'!$C$39 -> 0
C77: =(A77*'Dose per unit release'!$A77*60/'Assessment Details'!$C$32)/$AV$11 -> 0 | D77: =(A77*'Dose per unit release'!$B77*60/'Assessment Details'!$C$32)/$AV$11 -> 0 | E77: =(A77*'Dose per unit release'!$C77*60/'Assessment Details'!$C$32)/$AV$11 -> 0 | H77: =(A77*'Dose per unit release'!$F77*60/'Assessment Details'!$C$32)/$AV$11 -> 0 | I77: =(A77*'Dose per unit release'!$G77*60/'Assessment Details'!$C$32)/$AV$11 -> 0 | J77: =(A77*'Dose per unit release'!$H77*60/'Assessment Details'!$C$32)/$AV$11 -> 0 | K77: =(A77*'Dose per unit release'!$I77*60/'Assessment Details'!$C$32)/$AV$11 -> 0 | N77: =(Calculator!$AR$11*A77*'Dose per unit release'!$L77*0.1/'Assessment Details'!$C$20)/$AV$11 -> 0 | O77: =(Calculator!$AR$11*A77*'Dose per unit release'!$M77*0.1/'Assessment Details'!$C$20)/$AV$11 -> 0 | P77: =(Calculator!$AR$11*A77*'Dose per unit release'!$N77*0.1/'Assessment Details'!$C$20)/$AV$11 -> 0 | S77: =(Calculator!$AR$13*A77*'Dose per unit release'!$Q77*'Dose per unit release'!$R77/'Assessment Details'!$C$25)/$AV$11 -> 0 | T77: =(Calculator!$AR$13*A77*'Dose per unit release'!$Q77*'Dose per unit release'!$S77/'Assessment Details'!$C$25)/$AV$11 -> 0 | U77: =(Calculator!$AR$13*A77*'Dose per unit release'!$Q77*'Dose per unit release'!$T77/'Assessment Details'!$C$25)/$AV$11 -> 0 | V77: =(Calculator!$AR$13*A77*'Dose per unit release'!$Q77*'Dose per unit release'!$U77/'Assessment Details'!$C$25)/$AV$11 -> 0 | Y77: =(Calculator!$AR$13*A77*'Dose per unit release'!$X77*'Dose per unit release'!$Y77/'Assessment Details'!$C$25)/$AV$11 -> 0 | Z77: =(Calculator!$AR$13*A77*'Dose per unit release'!$X77*'Dose per unit release'!$Z77/'Assessment Details'!$C$25)/$AV$11 -> 0 | AC77: =(Calculator!$AR$15*A77*'Dose per unit release'!$AC77*'Dose per unit release'!$AD77*100/'Assessment Details'!$C$39)/$AV$11 -> 0 | AD77: =(Calculator!$AR$15*A77*'Dose per unit release'!$AC77*'Dose per unit release'!$AE77*100/'Assessment Details'!$C$39)/$AV$11 -> 0 | AE77: =(Calculator!$AR$15*A77*'Dose per unit release'!$AC77*'Dose per unit release'!$AF77*100/'Assessment Details'!$C$39)/$AV$11 -> 0 | AH77: =Calculator!$AR$13*A77*'Dose per unit release'!$AI77*'Dose per unit release'!$AJ77/'Assessment Details'!$C$25 -> 0 | AK77: =Calculator!$AR$15*A77*'Dose per unit release'!$AL77*'Dose per unit release'!$AM77*100/'Assessment Details'!$C$39 -> 0
C78: =(A78*'Dose per unit release'!$A78*60/'Assessment Details'!$C$32)/$AV$11 -> 0 | D78: =(A78*'Dose per unit release'!$B78*60/'Assessment Details'!$C$32)/$AV$11 -> 0 | E78: =(A78*'Dose per unit release'!$C78*60/'Assessment Details'!$C$32)/$AV$11 -> 0 | H78: =(A78*'Dose per unit release'!$F78*60/'Assessment Details'!$C$32)/$AV$11 -> 0 | I78: =(A78*'Dose per unit release'!$G78*60/'Assessment Details'!$C$32)/$AV$11 -> 0 | J78: =(A78*'Dose per unit release'!$H78*60/'Assessment Details'!$C$32)/$AV$11 -> 0 | K78: =(A78*'Dose per unit release'!$I78*60/'Assessment Details'!$C$32)/$AV$11 -> 0 | N78: =(Calculator!$AR$11*A78*'Dose per unit release'!$L78*0.1/'Assessment Details'!$C$20)/$AV$11 -> 0 | O78: =(Calculator!$AR$11*A78*'Dose per unit release'!$M78*0.1/'Assessment Details'!$C$20)/$AV$11 -> 0 | P78: =(Calculator!$AR$11*A78*'Dose per unit release'!$N78*0.1/'Assessment Details'!$C$20)/$AV$11 -> 0 | S78: =(Calculator!$AR$13*A78*'Dose per unit release'!$Q78*'Dose per unit release'!$R78/'Assessment Details'!$C$25)/$AV$11 -> 0 | T78: =(Calculator!$AR$13*A78*'Dose per unit release'!$Q78*'Dose per unit release'!$S78/'Assessment Details'!$C$25)/$AV$11 -> 0 | U78: =(Calculator!$AR$13*A78*'Dose per unit release'!$Q78*'Dose per unit release'!$T78/'Assessment Details'!$C$25)/$AV$11 -> 0 | V78: =(Calculator!$AR$13*A78*'Dose per unit release'!$Q78*'Dose per unit release'!$U78/'Assessment Details'!$C$25)/$AV$11 -> 0 | Y78: =(Calculator!$AR$13*A78*'Dose per unit release'!$X78*'Dose per unit release'!$Y78/'Assessment Details'!$C$25)/$AV$11 -> 0 | Z78: =(Calculator!$AR$13*A78*'Dose per unit release'!$X78*'Dose per unit release'!$Z78/'Assessment Details'!$C$25)/$AV$11 -> 0 | AC78: =(Calculator!$AR$15*A78*'Dose per unit release'!$AC78*'Dose per unit release'!$AD78*100/'Assessment Details'!$C$39)/$AV$11 -> 0 | AD78: =(Calculator!$AR$15*A78*'Dose per unit release'!$AC78*'Dose per unit release'!$AE78*100/'Assessment Details'!$C$39)/$AV$11 -> 0 | AE78: =(Calculator!$AR$15*A78*'Dose per unit release'!$AC78*'Dose per unit release'!$AF78*100/'Assessment Details'!$C$39)/$AV$11 -> 0 | AH78: =Calculator!$AR$13*A78*'Dose per unit release'!$AI78*'Dose per unit release'!$AJ78/'Assessment Details'!$C$25 -> 0 | AK78: =Calculator!$AR$15*A78*'Dose per unit release'!$AL78*'Dose per unit release'!$AM78*100/'Assessment Details'!$C$39 -> 0
C79: =(A79*'Dose per unit release'!$A79*60/'Assessment Details'!$C$32)/$AV$11 -> 0 | D79: =(A79*'Dose per unit release'!$B79*60/'Assessment Details'!$C$32)/$AV$11 -> 0 | E79: =(A79*'Dose per unit release'!$C79*60/'Assessment Details'!$C$32)/$AV$11 -> 0 | H79: =(A79*'Dose per unit release'!$F79*60/'Assessment Details'!$C$32)/$AV$11 -> 0 | I79: =(A79*'Dose per unit release'!$G79*60/'Assessment Details'!$C$32)/$AV$11 -> 0 | J79: =(A79*'Dose per unit release'!$H79*60/'Assessment Details'!$C$32)/$AV$11 -> 0 | K79: =(A79*'Dose per unit release'!$I79*60/'Assessment Details'!$C$32)/$AV$11 -> 0 | N79: =(Calculator!$AR$11*A79*'Dose per unit release'!$L79*0.1/'Assessment Details'!$C$20)/$AV$11 -> 0 | O79: =(Calculator!$AR$11*A79*'Dose per unit release'!$M79*0.1/'Assessment Details'!$C$20)/$AV$11 -> 0 | P79: =(Calculator!$AR$11*A79*'Dose per unit release'!$N79*0.1/'Assessment Details'!$C$20)/$AV$11 -> 0 | S79: =(Calculator!$AR$13*A79*'Dose per unit release'!$Q79*'Dose per unit release'!$R79/'Assessment Details'!$C$25)/$AV$11 -> 0 | T79: =(Calculator!$AR$13*A79*'Dose per unit release'!$Q79*'Dose per unit release'!$S79/'Assessment Details'!$C$25)/$AV$11 -> 0 | U79: =(Calculator!$AR$13*A79*'Dose per unit release'!$Q79*'Dose per unit release'!$T79/'Assessment Details'!$C$25)/$AV$11 -> 0 | V79: =(Calculator!$AR$13*A79*'Dose per unit release'!$Q79*'Dose per unit release'!$U79/'Assessment Details'!$C$25)/$AV$11 -> 0 | Y79: =(Calculator!$AR$13*A79*'Dose per unit release'!$X79*'Dose per unit release'!$Y79/'Assessment Details'!$C$25)/$AV$11 -> 0 | Z79: =(Calculator!$AR$13*A79*'Dose per unit release'!$X79*'Dose per unit release'!$Z79/'Assessment Details'!$C$25)/$AV$11 -> 0 | AC79: =(Calculator!$AR$15*A79*'Dose per unit release'!$AC79*'Dose per unit release'!$AD79*100/'Assessment Details'!$C$39)/$AV$11 -> 0 | AD79: =(Calculator!$AR$15*A79*'Dose per unit release'!$AC79*'Dose per unit release'!$AE79*100/'Assessment Details'!$C$39)/$AV$11 -> 0 | AE79: =(Calculator!$AR$15*A79*'Dose per unit release'!$AC79*'Dose per unit release'!$AF79*100/'Assessment Details'!$C$39)/$AV$11 -> 0 | AH79: =Calculator!$AR$13*A79*'Dose per unit release'!$AI79*'Dose per unit release'!$AJ79/'Assessment Details'!$C$25 -> 0 | AK79: =Calculator!$AR$15*A79*'Dose per unit release'!$AL79*'Dose per unit release'!$AM79*100/'Assessment Details'!$C$39 -> 0
C80: =(A80*'Dose per unit release'!$A80*60/'Assessment Details'!$C$32)/$AV$11 -> 0 | D80: =(A80*'Dose per unit release'!$B80*60/'Assessment Details'!$C$32)/$AV$11 -> 0 | E80: =(A80*'Dose per unit release'!$C80*60/'Assessment Details'!$C$32)/$AV$11 -> 0 | H80: =(A80*'Dose per unit release'!$F80*60/'Assessment Details'!$C$32)/$AV$11 -> 0 | I80: =(A80*'Dose per unit release'!$G80*60/'Assessment Details'!$C$32)/$AV$11 -> 0 | J80: =(A80*'Dose per unit release'!$H80*60/'Assessment Details'!$C$32)/$AV$11 -> 0 | K80: =(A80*'Dose per unit release'!$I80*60/'Assessment Details'!$C$32)/$AV$11 -> 0 | N80: =(Calculator!$AR$11*A80*'Dose per unit release'!$L80*0.1/'Assessment Details'!$C$20)/$AV$11 -> 0 | O80: =(Calculator!$AR$11*A80*'Dose per unit release'!$M80*0.1/'Assessment Details'!$C$20)/$AV$11 -> 0 | P80: =(Calculator!$AR$11*A80*'Dose per unit release'!$N80*0.1/'Assessment Details'!$C$20)/$AV$11 -> 0 | S80: =(Calculator!$AR$13*A80*'Dose per unit release'!$Q80*'Dose per unit release'!$R80/'Assessment Details'!$C$25)/$AV$11 -> 0 | T80: =(Calculator!$AR$13*A80*'Dose per unit release'!$Q80*'Dose per unit release'!$S80/'Assessment Details'!$C$25)/$AV$11 -> 0 | U80: =(Calculator!$AR$13*A80*'Dose per unit release'!$Q80*'Dose per unit release'!$T80/'Assessment Details'!$C$25)/$AV$11 -> 0 | V80: =(Calculator!$AR$13*A80*'Dose per unit release'!$Q80*'Dose per unit release'!$U80/'Assessment Details'!$C$25)/$AV$11 -> 0 | Y80: =(Calculator!$AR$13*A80*'Dose per unit release'!$X80*'Dose per unit release'!$Y80/'Assessment Details'!$C$25)/$AV$11 -> 0 | Z80: =(Calculator!$AR$13*A80*'Dose per unit release'!$X80*'Dose per unit release'!$Z80/'Assessment Details'!$C$25)/$AV$11 -> 0 | AC80: =(Calculator!$AR$15*A80*'Dose per unit release'!$AC80*'Dose per unit release'!$AD80*100/'Assessment Details'!$C$39)/$AV$11 -> 0 | AD80: =(Calculator!$AR$15*A80*'Dose per unit release'!$AC80*'Dose per unit release'!$AE80*100/'Assessment Details'!$C$39)/$AV$11 -> 0 | AE80: =(Calculator!$AR$15*A80*'Dose per unit release'!$AC80*'Dose per unit release'!$AF80*100/'Assessment Details'!$C$39)/$AV$11 -> 0 | AH80: =Calculator!$AR$13*A80*'Dose per unit release'!$AI80*'Dose per unit release'!$AJ80/'Assessment Details'!$C$25 -> 0 | AK80: =Calculator!$AR$15*A80*'Dose per unit release'!$AL80*'Dose per unit release'!$AM80*100/'Assessment Details'!$C$39 -> 0
C81: =(A81*'Dose per unit release'!$A81*60/'Assessment Details'!$C$32)/$AV$11 -> 0 | D81: =(A81*'Dose per unit release'!$B81*60/'Assessment Details'!$C$32)/$AV$11 -> 0 | E81: =(A81*'Dose per unit release'!$C81*60/'Assessment Details'!$C$32)/$AV$11 -> 0 | H81: =(A81*'Dose per unit release'!$F81*60/'Assessment Details'!$C$32)/$AV$11 -> 0 | I81: =(A81*'Dose per unit release'!$G81*60/'Assessment Details'!$C$32)/$AV$11 -> 0 | J81: =(A81*'Dose per unit release'!$H81*60/'Assessment Details'!$C$32)/$AV$11 -> 0 | K81: =(A81*'Dose per unit release'!$I81*60/'Assessment Details'!$C$32)/$AV$11 -> 0 | N81: =(Calculator!$AR$11*A81*'Dose per unit release'!$L81*0.1/'Assessment Details'!$C$20)/$AV$11 -> 0 | O81: =(Calculator!$AR$11*A81*'Dose per unit release'!$M81*0.1/'Assessment Details'!$C$20)/$AV$11 -> 0 | P81: =(Calculator!$AR$11*A81*'Dose per unit release'!$N81*0.1/'Assessment Details'!$C$20)/$AV$11 -> 0 | S81: =(Calculator!$AR$13*A81*'Dose per unit release'!$Q81*'Dose per unit release'!$R81/'Assessment Details'!$C$25)/$AV$11 -> 0 | T81: =(Calculator!$AR$13*A81*'Dose per unit release'!$Q81*'Dose per unit release'!$S81/'Assessment Details'!$C$25)/$AV$11 -> 0 | U81: =(Calculator!$AR$13*A81*'Dose per unit release'!$Q81*'Dose per unit release'!$T81/'Assessment Details'!$C$25)/$AV$11 -> 0 | V81: =(Calculator!$AR$13*A81*'Dose per unit release'!$Q81*'Dose per unit release'!$U81/'Assessment Details'!$C$25)/$AV$11 -> 0 | Y81: =(Calculator!$AR$13*A81*'Dose per unit release'!$X81*'Dose per unit release'!$Y81/'Assessment Details'!$C$25)/$AV$11 -> 0 | Z81: =(Calculator!$AR$13*A81*'Dose per unit release'!$X81*'Dose per unit release'!$Z81/'Assessment Details'!$C$25)/$AV$11 -> 0 | AC81: =(Calculator!$AR$15*A81*'Dose per unit release'!$AC81*'Dose per unit release'!$AD81*100/'Assessment Details'!$C$39)/$AV$11 -> 0 | AD81: =(Calculator!$AR$15*A81*'Dose per unit release'!$AC81*'Dose per unit release'!$AE81*100/'Assessment Details'!$C$39)/$AV$11 -> 0 | AE81: =(Calculator!$AR$15*A81*'Dose per unit release'!$AC81*'Dose per unit release'!$AF81*100/'Assessment Details'!$C$39)/$AV$11 -> 0 | AH81: =Calculator!$AR$13*A81*'Dose per unit release'!$AI81*'Dose per unit release'!$AJ81/'Assessment Details'!$C$25 -> 0 | AK81: =Calculator!$AR$15*A81*'Dose per unit release'!$AL81*'Dose per unit release'!$AM81*100/'Assessment Details'!$C$39 -> 0
C82: =(A82*'Dose per unit release'!$A82*60/'Assessment Details'!$C$32)/$AV$11 -> 0 | D82: =(A82*'Dose per unit release'!$B82*60/'Assessment Details'!$C$32)/$AV$11 -> 0 | E82: =(A82*'Dose per unit release'!$C82*60/'Assessment Details'!$C$32)/$AV$11 -> 0 | H82: =(A82*'Dose per unit release'!$F82*60/'Assessment Details'!$C$32)/$AV$11 -> 0 | I82: =(A82*'Dose per unit release'!$G82*60/'Assessment Details'!$C$32)/$AV$11 -> 0 | J82: =(A82*'Dose per unit release'!$H82*60/'Assessment Details'!$C$32)/$AV$11 -> 0 | K82: =(A82*'Dose per unit release'!$I82*60/'Assessment Details'!$C$32)/$AV$11 -> 0 | N82: =(Calculator!$AR$11*A82*'Dose per unit release'!$L82*0.1/'Assessment Details'!$C$20)/$AV$11 -> 0 | O82: =(Calculator!$AR$11*A82*'Dose per unit release'!$M82*0.1/'Assessment Details'!$C$20)/$AV$11 -> 0 | P82: =(Calculator!$AR$11*A82*'Dose per unit release'!$N82*0.1/'Assessment Details'!$C$20)/$AV$11 -> 0 | S82: =(Calculator!$AR$13*A82*'Dose per unit release'!$Q82*'Dose per unit release'!$R82/'Assessment Details'!$C$25)/$AV$11 -> 0 | T82: =(Calculator!$AR$13*A82*'Dose per unit release'!$Q82*'Dose per unit release'!$S82/'Assessment Details'!$C$25)/$AV$11 -> 0 | U82: =(Calculator!$AR$13*A82*'Dose per unit release'!$Q82*'Dose per unit release'!$T82/'Assessment Details'!$C$25)/$AV$11 -> 0 | V82: =(Calculator!$AR$13*A82*'Dose per unit release'!$Q82*'Dose per unit release'!$U82/'Assessment Details'!$C$25)/$AV$11 -> 0 | Y82: =(Calculator!$AR$13*A82*'Dose per unit release'!$X82*'Dose per unit release'!$Y82/'Assessment Details'!$C$25)/$AV$11 -> 0 | Z82: =(Calculator!$AR$13*A82*'Dose per unit release'!$X82*'Dose per unit release'!$Z82/'Assessment Details'!$C$25)/$AV$11 -> 0 | AC82: =(Calculator!$AR$15*A82*'Dose per unit release'!$AC82*'Dose per unit release'!$AD82*100/'Assessment Details'!$C$39)/$AV$11 -> 0 | AD82: =(Calculator!$AR$15*A82*'Dose per unit release'!$AC82*'Dose per unit release'!$AE82*100/'Assessment Details'!$C$39)/$AV$11 -> 0 | AE82: =(Calculator!$AR$15*A82*'Dose per unit release'!$AC82*'Dose per unit release'!$AF82*100/'Assessment Details'!$C$39)/$AV$11 -> 0 | AH82: =Calculator!$AR$13*A82*'Dose per unit release'!$AI82*'Dose per unit release'!$AJ82/'Assessment Details'!$C$25 -> 0 | AK82: =Calculator!$AR$15*A82*'Dose per unit release'!$AL82*'Dose per unit release'!$AM82*100/'Assessment Details'!$C$39 -> 0
C83: =(A83*'Dose per unit release'!$A83*60/'Assessment Details'!$C$32)/$AV$11 -> 0 | D83: =(A83*'Dose per unit release'!$B83*60/'Assessment Details'!$C$32)/$AV$11 -> 0 | E83: =(A83*'Dose per unit release'!$C83*60/'Assessment Details'!$C$32)/$AV$11 -> 0 | H83: =(A83*'Dose per unit release'!$F83*60/'Assessment Details'!$C$32)/$AV$11 -> 0 | I83: =(A83*'Dose per unit release'!$G83*60/'Assessment Details'!$C$32)/$AV$11 -> 0 | J83: =(A83*'Dose per unit release'!$H83*60/'Assessment Details'!$C$32)/$AV$11 -> 0 | K83: =(A83*'Dose per unit release'!$I83*60/'Assessment Details'!$C$32)/$AV$11 -> 0 | N83: =(Calculator!$AR$11*A83*'Dose per unit release'!$L83*0.1/'Assessment Details'!$C$20)/$AV$11 -> 0 | O83: =(Calculator!$AR$11*A83*'Dose per unit release'!$M83*0.1/'Assessment Details'!$C$20)/$AV$11 -> 0 | P83: =(Calculator!$AR$11*A83*'Dose per unit release'!$N83*0.1/'Assessment Details'!$C$20)/$AV$11 -> 0 | S83: =(Calculator!$AR$13*A83*'Dose per unit release'!$Q83*'Dose per unit release'!$R83/'Assessment Details'!$C$25)/$AV$11 -> 0 | T83: =(Calculator!$AR$13*A83*'Dose per unit release'!$Q83*'Dose per unit release'!$S83/'Assessment Details'!$C$25)/$AV$11 -> 0 | U83: =(Calculator!$AR$13*A83*'Dose per unit release'!$Q83*'Dose per unit release'!$T83/'Assessment Details'!$C$25)/$AV$11 -> 0 | V83: =(Calculator!$AR$13*A83*'Dose per unit release'!$Q83*'Dose per unit release'!$U83/'Assessment Details'!$C$25)/$AV$11 -> 0 | Y83: =(Calculator!$AR$13*A83*'Dose per unit release'!$X83*'Dose per unit release'!$Y83/'Assessment Details'!$C$25)/$AV$11 -> 0 | Z83: =(Calculator!$AR$13*A83*'Dose per unit release'!$X83*'Dose per unit release'!$Z83/'Assessment Details'!$C$25)/$AV$11 -> 0 | AC83: =(Calculator!$AR$15*A83*'Dose per unit release'!$AC83*'Dose per unit release'!$AD83*100/'Assessment Details'!$C$39)/$AV$11 -> 0 | AD83: =(Calculator!$AR$15*A83*'Dose per unit release'!$AC83*'Dose per unit release'!$AE83*100/'Assessment Details'!$C$39)/$AV$11 -> 0 | AE83: =(Calculator!$AR$15*A83*'Dose per unit release'!$AC83*'Dose per unit release'!$AF83*100/'Assessment Details'!$C$39)/$AV$11 -> 0 | AH83: =Calculator!$AR$13*A83*'Dose per unit release'!$AI83*'Dose per unit release'!$AJ83/'Assessment Details'!$C$25 -> 0 | AK83: =Calculator!$AR$15*A83*'Dose per unit release'!$AL83*'Dose per unit release'!$AM83*100/'Assessment Details'!$C$39 -> 0
C84: =(A84*'Dose per unit release'!$A84*60/'Assessment Details'!$C$32)/$AV$11 -> 0 | D84: =(A84*'Dose per unit release'!$B84*60/'Assessment Details'!$C$32)/$AV$11 -> 0 | E84: =(A84*'Dose per unit release'!$C84*60/'Assessment Details'!$C$32)/$AV$11 -> 0 | H84: =(A84*'Dose per unit release'!$F84*60/'Assessment Details'!$C$32)/$AV$11 -> 0 | I84: =(A84*'Dose per unit release'!$G84*60/'Assessment Details'!$C$32)/$AV$11 -> 0 | J84: =(A84*'Dose per unit release'!$H84*60/'Assessment Details'!$C$32)/$AV$11 -> 0 | K84: =(A84*'Dose per unit release'!$I84*60/'Assessment Details'!$C$32)/$AV$11 -> 0 | N84: =(Calculator!$AR$11*A84*'Dose per unit release'!$L84*0.1/'Assessment Details'!$C$20)/$AV$11 -> 0 | O84: =(Calculator!$AR$11*A84*'Dose per unit release'!$M84*0.1/'Assessment Details'!$C$20)/$AV$11 -> 0 | P84: =(Calculator!$AR$11*A84*'Dose per unit release'!$N84*0.1/'Assessment Details'!$C$20)/$AV$11 -> 0 | S84: =(Calculator!$AR$13*A84*'Dose per unit release'!$Q84*'Dose per unit release'!$R84/'Assessment Details'!$C$25)/$AV$11 -> 0 | T84: =(Calculator!$AR$13*A84*'Dose per unit release'!$Q84*'Dose per unit release'!$S84/'Assessment Details'!$C$25)/$AV$11 -> 0 | U84: =(Calculator!$AR$13*A84*'Dose per unit release'!$Q84*'Dose per unit release'!$T84/'Assessment Details'!$C$25)/$AV$11 -> 0 | V84: =(Calculator!$AR$13*A84*'Dose per unit release'!$Q84*'Dose per unit release'!$U84/'Assessment Details'!$C$25)/$AV$11 -> 0 | Y84: =(Calculator!$AR$13*A84*'Dose per unit release'!$X84*'Dose per unit release'!$Y84/'Assessment Details'!$C$25)/$AV$11 -> 0 | Z84: =(Calculator!$AR$13*A84*'Dose per unit release'!$X84*'Dose per unit release'!$Z84/'Assessment Details'!$C$25)/$AV$11 -> 0 | AC84: =(Calculator!$AR$15*A84*'Dose per unit release'!$AC84*'Dose per unit release'!$AD84*100/'Assessment Details'!$C$39)/$AV$11 -> 0 | AD84: =(Calculator!$AR$15*A84*'Dose per unit release'!$AC84*'Dose per unit release'!$AE84*100/'Assessment Details'!$C$39)/$AV$11 -> 0 | AE84: =(Calculator!$AR$15*A84*'Dose per unit release'!$AC84*'Dose per unit release'!$AF84*100/'Assessment Details'!$C$39)/$AV$11 -> 0 | AH84: =Calculator!$AR$13*A84*'Dose per unit release'!$AI84*'Dose per unit release'!$AJ84/'Assessment Details'!$C$25 -> 0 | AK84: =Calculator!$AR$15*A84*'Dose per unit release'!$AL84*'Dose per unit release'!$AM84*100/'Assessment Details'!$C$39 -> 0
C85: =(A85*'Dose per unit release'!$A85*60/'Assessment Details'!$C$32)/$AV$11 -> 0 | D85: =(A85*'Dose per unit release'!$B85*60/'Assessment Details'!$C$32)/$AV$11 -> 0 | E85: =(A85*'Dose per unit release'!$C85*60/'Assessment Details'!$C$32)/$AV$11 -> 0 | H85: =(A85*'Dose per unit release'!$F85*60/'Assessment Details'!$C$32)/$AV$11 -> 0 | I85: =(A85*'Dose per unit release'!$G85*60/'Assessment Details'!$C$32)/$AV$11 -> 0 | J85: =(A85*'Dose per unit release'!$H85*60/'Assessment Details'!$C$32)/$AV$11 -> 0 | K85: =(A85*'Dose per unit release'!$I85*60/'Assessment Details'!$C$32)/$AV$11 -> 0 | N85: =(Calculator!$AR$11*A85*'Dose per unit release'!$L85*0.1/'Assessment Details'!$C$20)/$AV$11 -> 0 | O85: =(Calculator!$AR$11*A85*'Dose per unit release'!$M85*0.1/'Assessment Details'!$C$20)/$AV$11 -> 0 | P85: =(Calculator!$AR$11*A85*'Dose per unit release'!$N85*0.1/'Assessment Details'!$C$20)/$AV$11 -> 0 | S85: =(Calculator!$AR$13*A85*'Dose per unit release'!$Q85*'Dose per unit release'!$R85/'Assessment Details'!$C$25)/$AV$11 -> 0 | T85: =(Calculator!$AR$13*A85*'Dose per unit release'!$Q85*'Dose per unit release'!$S85/'Assessment Details'!$C$25)/$AV$11 -> 0 | U85: =(Calculator!$AR$13*A85*'Dose per unit release'!$Q85*'Dose per unit release'!$T85/'Assessment Details'!$C$25)/$AV$11 -> 0 | V85: =(Calculator!$AR$13*A85*'Dose per unit release'!$Q85*'Dose per unit release'!$U85/'Assessment Details'!$C$25)/$AV$11 -> 0 | Y85: =(Calculator!$AR$13*A85*'Dose per unit release'!$X85*'Dose per unit release'!$Y85/'Assessment Details'!$C$25)/$AV$11 -> 0 | Z85: =(Calculator!$AR$13*A85*'Dose per unit release'!$X85*'Dose per unit release'!$Z85/'Assessment Details'!$C$25)/$AV$11 -> 0 | AC85: =(Calculator!$AR$15*A85*'Dose per unit release'!$AC85*'Dose per unit release'!$AD85*100/'Assessment Details'!$C$39)/$AV$11 -> 0 | AD85: =(Calculator!$AR$15*A85*'Dose per unit release'!$AC85*'Dose per unit release'!$AE85*100/'Assessment Details'!$C$39)/$AV$11 -> 0 | AE85: =(Calculator!$AR$15*A85*'Dose per unit release'!$AC85*'Dose per unit release'!$AF85*100/'Assessment Details'!$C$39)/$AV$11 -> 0 | AH85: =Calculator!$AR$13*A85*'Dose per unit release'!$AI85*'Dose per unit release'!$AJ85/'Assessment Details'!$C$25 -> 0 | AK85: =Calculator!$AR$15*A85*'Dose per unit release'!$AL85*'Dose per unit release'!$AM85*100/'Assessment Details'!$C$39 -> 0
C86: =(A86*'Dose per unit release'!$A86*60/'Assessment Details'!$C$32)/$AV$11 -> 0 | D86: =(A86*'Dose per unit release'!$B86*60/'Assessment Details'!$C$32)/$AV$11 -> 0 | E86: =(A86*'Dose per unit release'!$C86*60/'Assessment Details'!$C$32)/$AV$11 -> 0 | H86: =(A86*'Dose per unit release'!$F86*60/'Assessment Details'!$C$32)/$AV$11 -> 0 | I86: =(A86*'Dose per unit release'!$G86*60/'Assessment Details'!$C$32)/$AV$11 -> 0 | J86: =(A86*'Dose per unit release'!$H86*60/'Assessment Details'!$C$32)/$AV$11 -> 0 | K86: =(A86*'Dose per unit release'!$I86*60/'Assessment Details'!$C$32)/$AV$11 -> 0 | N86: =(Calculator!$AR$11*A86*'Dose per unit release'!$L86*0.1/'Assessment Details'!$C$20)/$AV$11 -> 0 | O86: =(Calculator!$AR$11*A86*'Dose per unit release'!$M86*0.1/'Assessment Details'!$C$20)/$AV$11 -> 0 | P86: =(Calculator!$AR$11*A86*'Dose per unit release'!$N86*0.1/'Assessment Details'!$C$20)/$AV$11 -> 0 | S86: =(Calculator!$AR$13*A86*'Dose per unit release'!$Q86*'Dose per unit release'!$R86/'Assessment Details'!$C$25)/$AV$11 -> 0 | T86: =(Calculator!$AR$13*A86*'Dose per unit release'!$Q86*'Dose per unit release'!$S86/'Assessment Details'!$C$25)/$AV$11 -> 0 | U86: =(Calculator!$AR$13*A86*'Dose per unit release'!$Q86*'Dose per unit release'!$T86/'Assessment Details'!$C$25)/$AV$11 -> 0 | V86: =(Calculator!$AR$13*A86*'Dose per unit release'!$Q86*'Dose per unit release'!$U86/'Assessment Details'!$C$25)/$AV$11 -> 0 | Y86: =(Calculator!$AR$13*A86*'Dose per unit release'!$X86*'Dose per unit release'!$Y86/'Assessment Details'!$C$25)/$AV$11 -> 0 | Z86: =(Calculator!$AR$13*A86*'Dose per unit release'!$X86*'Dose per unit release'!$Z86/'Assessment Details'!$C$25)/$AV$11 -> 0 | AC86: =(Calculator!$AR$15*A86*'Dose per unit release'!$AC86*'Dose per unit release'!$AD86*100/'Assessment Details'!$C$39)/$AV$11 -> 0 | AD86: =(Calculator!$AR$15*A86*'Dose per unit release'!$AC86*'Dose per unit release'!$AE86*100/'Assessment Details'!$C$39)/$AV$11 -> 0 | AE86: =(Calculator!$AR$15*A86*'Dose per unit release'!$AC86*'Dose per unit release'!$AF86*100/'Assessment Details'!$C$39)/$AV$11 -> 0 | AH86: =Calculator!$AR$13*A86*'Dose per unit release'!$AI86*'Dose per unit release'!$AJ86/'Assessment Details'!$C$25 -> 0 | AK86: =Calculator!$AR$15*A86*'Dose per unit release'!$AL86*'Dose per unit release'!$AM86*100/'Assessment Details'!$C$39 -> 0
C87: =(A87*'Dose per unit release'!$A87*60/'Assessment Details'!$C$32)/$AV$11 -> 0 | D87: =(A87*'Dose per unit release'!$B87*60/'Assessment Details'!$C$32)/$AV$11 -> 0 | E87: =(A87*'Dose per unit release'!$C87*60/'Assessment Details'!$C$32)/$AV$11 -> 0 | H87: =(A87*'Dose per unit release'!$F87*60/'Assessment Details'!$C$32)/$AV$11 -> 0 | I87: =(A87*'Dose per unit release'!$G87*60/'Assessment Details'!$C$32)/$AV$11 -> 0 | J87: =(A87*'Dose per unit release'!$H87*60/'Assessment Details'!$C$32)/$AV$11 -> 0 | K87: =(A87*'Dose per unit release'!$I87*60/'Assessment Details'!$C$32)/$AV$11 -> 0 | N87: =(Calculator!$AR$11*A87*'Dose per unit release'!$L87*0.1/'Assessment Details'!$C$20)/$AV$11 -> 0 | O87: =(Calculator!$AR$11*A87*'Dose per unit release'!$M87*0.1/'Assessment Details'!$C$20)/$AV$11 -> 0 | P87: =(Calculator!$AR$11*A87*'Dose per unit release'!$N87*0.1/'Assessment Details'!$C$20)/$AV$11 -> 0 | S87: =(Calculator!$AR$13*A87*'Dose per unit release'!$Q87*'Dose per unit release'!$R87/'Assessment Details'!$C$25)/$AV$11 -> 0 | T87: =(Calculator!$AR$13*A87*'Dose per unit release'!$Q87*'Dose per unit release'!$S87/'Assessment Details'!$C$25)/$AV$11 -> 0 | U87: =(Calculator!$AR$13*A87*'Dose per unit release'!$Q87*'Dose per unit release'!$T87/'Assessment Details'!$C$25)/$AV$11 -> 0 | V87: =(Calculator!$AR$13*A87*'Dose per unit release'!$Q87*'Dose per unit release'!$U87/'Assessment Details'!$C$25)/$AV$11 -> 0 | Y87: =(Calculator!$AR$13*A87*'Dose per unit release'!$X87*'Dose per unit release'!$Y87/'Assessment Details'!$C$25)/$AV$11 -> 0 | Z87: =(Calculator!$AR$13*A87*'Dose per unit release'!$X87*'Dose per unit release'!$Z87/'Assessment Details'!$C$25)/$AV$11 -> 0 | AC87: =(Calculator!$AR$15*A87*'Dose per unit release'!$AC87*'Dose per unit release'!$AD87*100/'Assessment Details'!$C$39)/$AV$11 -> 0 | AD87: =(Calculator!$AR$15*A87*'Dose per unit release'!$AC87*'Dose per unit release'!$AE87*100/'Assessment Details'!$C$39)/$AV$11 -> 0 | AE87: =(Calculator!$AR$15*A87*'Dose per unit release'!$AC87*'Dose per unit release'!$AF87*100/'Assessment Details'!$C$39)/$AV$11 -> 0 | AH87: =Calculator!$AR$13*A87*'Dose per unit release'!$AI87*'Dose per unit release'!$AJ87/'Assessment Details'!$C$25 -> 0 | AK87: =Calculator!$AR$15*A87*'Dose per unit release'!$AL87*'Dose per unit release'!$AM87*100/'Assessment Details'!$C$39 -> 0
C88: =(A88*'Dose per unit release'!$A88*60/'Assessment Details'!$C$32)/$AV$11 -> 0 | D88: =(A88*'Dose per unit release'!$B88*60/'Assessment Details'!$C$32)/$AV$11 -> 0 | E88: =(A88*'Dose per unit release'!$C88*60/'Assessment Details'!$C$32)/$AV$11 -> 0 | H88: =(A88*'Dose per unit release'!$F88*60/'Assessment Details'!$C$32)/$AV$11 -> 0 | I88: =(A88*'Dose per unit release'!$G88*60/'Assessment Details'!$C$32)/$AV$11 -> 0 | J88: =(A88*'Dose per unit release'!$H88*60/'Assessment Details'!$C$32)/$AV$11 -> 0 | K88: =(A88*'Dose per unit release'!$I88*60/'Assessment Details'!$C$32)/$AV$11 -> 0 | N88: =(Calculator!$AR$11*A88*'Dose per unit release'!$L88*0.1/'Assessment Details'!$C$20)/$AV$11 -> 0 | O88: =(Calculator!$AR$11*A88*'Dose per unit release'!$M88*0.1/'Assessment Details'!$C$20)/$AV$11 -> 0 | P88: =(Calculator!$AR$11*A88*'Dose per unit release'!$N88*0.1/'Assessment Details'!$C$20)/$AV$11 -> 0 | S88: =(Calculator!$AR$13*A88*'Dose per unit release'!$Q88*'Dose per unit release'!$R88/'Assessment Details'!$C$25)/$AV$11 -> 0 | T88: =(Calculator!$AR$13*A88*'Dose per unit release'!$Q88*'Dose per unit release'!$S88/'Assessment Details'!$C$25)/$AV$11 -> 0 | U88: =(Calculator!$AR$13*A88*'Dose per unit release'!$Q88*'Dose per unit release'!$T88/'Assessment Details'!$C$25)/$AV$11 -> 0 | V88: =(Calculator!$AR$13*A88*'Dose per unit release'!$Q88*'Dose per unit release'!$U88/'Assessment Details'!$C$25)/$AV$11 -> 0 | Y88: =(Calculator!$AR$13*A88*'Dose per unit release'!$X88*'Dose per unit release'!$Y88/'Assessment Details'!$C$25)/$AV$11 -> 0 | Z88: =(Calculator!$AR$13*A88*'Dose per unit release'!$X88*'Dose per unit release'!$Z88/'Assessment Details'!$C$25)/$AV$11 -> 0 | AC88: =(Calculator!$AR$15*A88*'Dose per unit release'!$AC88*'Dose per unit release'!$AD88*100/'Assessment Details'!$C$39)/$AV$11 -> 0 | AD88: =(Calculator!$AR$15*A88*'Dose per unit release'!$AC88*'Dose per unit release'!$AE88*100/'Assessment Details'!$C$39)/$AV$11 -> 0 | AE88: =(Calculator!$AR$15*A88*'Dose per unit release'!$AC88*'Dose per unit release'!$AF88*100/'Assessment Details'!$C$39)/$AV$11 -> 0 | AH88: =Calculator!$AR$13*A88*'Dose per unit release'!$AI88*'Dose per unit release'!$AJ88/'Assessment Details'!$C$25 -> 0 | AK88: =Calculator!$AR$15*A88*'Dose per unit release'!$AL88*'Dose per unit release'!$AM88*100/'Assessment Details'!$C$39 -> 0
C89: =(A89*'Dose per unit release'!$A89*60/'Assessment Details'!$C$32)/$AV$11 -> 0 | D89: =(A89*'Dose per unit release'!$B89*60/'Assessment Details'!$C$32)/$AV$11 -> 0 | E89: =(A89*'Dose per unit release'!$C89*60/'Assessment Details'!$C$32)/$AV$11 -> 0 | H89: =(A89*'Dose per unit release'!$F89*60/'Assessment Details'!$C$32)/$AV$11 -> 0 | I89: =(A89*'Dose per unit release'!$G89*60/'Assessment Details'!$C$32)/$AV$11 -> 0 | J89: =(A89*'Dose per unit release'!$H89*60/'Assessment Details'!$C$32)/$AV$11 -> 0 | K89: =(A89*'Dose per unit release'!$I89*60/'Assessment Details'!$C$32)/$AV$11 -> 0 | N89: =(Calculator!$AR$11*A89*'Dose per unit release'!$L89*0.1/'Assessment Details'!$C$20)/$AV$11 -> 0 | O89: =(Calculator!$AR$11*A89*'Dose per unit release'!$M89*0.1/'Assessment Details'!$C$20)/$AV$11 -> 0 | P89: =(Calculator!$AR$11*A89*'Dose per unit release'!$N89*0.1/'Assessment Details'!$C$20)/$AV$11 -> 0 | S89: =(Calculator!$AR$13*A89*'Dose per unit release'!$Q89*'Dose per unit release'!$R89/'Assessment Details'!$C$25)/$AV$11 -> 0 | T89: =(Calculator!$AR$13*A89*'Dose per unit release'!$Q89*'Dose per unit release'!$S89/'Assessment Details'!$C$25)/$AV$11 -> 0 | U89: =(Calculator!$AR$13*A89*'Dose per unit release'!$Q89*'Dose per unit release'!$T89/'Assessment Details'!$C$25)/$AV$11 -> 0 | V89: =(Calculator!$AR$13*A89*'Dose per unit release'!$Q89*'Dose per unit release'!$U89/'Assessment Details'!$C$25)/$AV$11 -> 0 | Y89: =(Calculator!$AR$13*A89*'Dose per unit release'!$X89*'Dose per unit release'!$Y89/'Assessment Details'!$C$25)/$AV$11 -> 0 | Z89: =(Calculator!$AR$13*A89*'Dose per unit release'!$X89*'Dose per unit release'!$Z89/'Assessment Details'!$C$25)/$AV$11 -> 0 | AC89: =(Calculator!$AR$15*A89*'Dose per unit release'!$AC89*'Dose per unit release'!$AD89*100/'Assessment Details'!$C$39)/$AV$11 -> 0 | AD89: =(Calculator!$AR$15*A89*'Dose per unit release'!$AC89*'Dose per unit release'!$AE89*100/'Assessment Details'!$C$39)/$AV$11 -> 0 | AE89: =(Calculator!$AR$15*A89*'Dose per unit release'!$AC89*'Dose per unit release'!$AF89*100/'Assessment Details'!$C$39)/$AV$11 -> 0 | AH89: =Calculator!$AR$13*A89*'Dose per unit release'!$AI89*'Dose per unit release'!$AJ89/'Assessment Details'!$C$25 -> 0 | AK89: =Calculator!$AR$15*A89*'Dose per unit release'!$AL89*'Dose per unit release'!$AM89*100/'Assessment Details'!$C$39 -> 0
C90: =(A90*'Dose per unit release'!$A90*60/'Assessment Details'!$C$32)/$AV$11 -> 0 | D90: =(A90*'Dose per unit release'!$B90*60/'Assessment Details'!$C$32)/$AV$11 -> 0 | E90: =(A90*'Dose per unit release'!$C90*60/'Assessment Details'!$C$32)/$AV$11 -> 0 | H90: =(A90*'Dose per unit release'!$F90*60/'Assessment Details'!$C$32)/$AV$11 -> 0 | I90: =(A90*'Dose per unit release'!$G90*60/'Assessment Details'!$C$32)/$AV$11 -> 0 | J90: =(A90*'Dose per unit release'!$H90*60/'Assessment Details'!$C$32)/$AV$11 -> 0 | K90: =(A90*'Dose per unit release'!$I90*60/'Assessment Details'!$C$32)/$AV$11 -> 0 | N90: =(Calculator!$AR$11*A90*'Dose per unit release'!$L90*0.1/'Assessment Details'!$C$20)/$AV$11 -> 0 | O90: =(Calculator!$AR$11*A90*'Dose per unit release'!$M90*0.1/'Assessment Details'!$C$20)/$AV$11 -> 0 | P90: =(Calculator!$AR$11*A90*'Dose per unit release'!$N90*0.1/'Assessment Details'!$C$20)/$AV$11 -> 0 | S90: =(Calculator!$AR$13*A90*'Dose per unit release'!$Q90*'Dose per unit release'!$R90/'Assessment Details'!$C$25)/$AV$11 -> 0 | T90: =(Calculator!$AR$13*A90*'Dose per unit release'!$Q90*'Dose per unit release'!$S90/'Assessment Details'!$C$25)/$AV$11 -> 0 | U90: =(Calculator!$AR$13*A90*'Dose per unit release'!$Q90*'Dose per unit release'!$T90/'Assessment Details'!$C$25)/$AV$11 -> 0 | V90: =(Calculator!$AR$13*A90*'Dose per unit release'!$Q90*'Dose per unit release'!$U90/'Assessment Details'!$C$25)/$AV$11 -> 0 | Y90: =(Calculator!$AR$13*A90*'Dose per unit release'!$X90*'Dose per unit release'!$Y90/'Assessment Details'!$C$25)/$AV$11 -> 0 | Z90: =(Calculator!$AR$13*A90*'Dose per unit release'!$X90*'Dose per unit release'!$Z90/'Assessment Details'!$C$25)/$AV$11 -> 0 | AC90: =(Calculator!$AR$15*A90*'Dose per unit release'!$AC90*'Dose per unit release'!$AD90*100/'Assessment Details'!$C$39)/$AV$11 -> 0 | AD90: =(Calculator!$AR$15*A90*'Dose per unit release'!$AC90*'Dose per unit release'!$AE90*100/'Assessment Details'!$C$39)/$AV$11 -> 0 | AE90: =(Calculator!$AR$15*A90*'Dose per unit release'!$AC90*'Dose per unit release'!$AF90*100/'Assessment Details'!$C$39)/$AV$11 -> 0 | AH90: =Calculator!$AR$13*A90*'Dose per unit release'!$AI90*'Dose per unit release'!$AJ90/'Assessment Details'!$C$25 -> 0 | AK90: =Calculator!$AR$15*A90*'Dose per unit release'!$AL90*'Dose per unit release'!$AM90*100/'Assessment Details'!$C$39 -> 0
C91: =(A91*'Dose per unit release'!$A91*60/'Assessment Details'!$C$32)/$AV$11 -> 0 | D91: =(A91*'Dose per unit release'!$B91*60/'Assessment Details'!$C$32)/$AV$11 -> 0 | E91: =(A91*'Dose per unit release'!$C91*60/'Assessment Details'!$C$32)/$AV$11 -> 0 | H91: =(A91*'Dose per unit release'!$F91*60/'Assessment Details'!$C$32)/$AV$11 -> 0 | I91: =(A91*'Dose per unit release'!$G91*60/'Assessment Details'!$C$32)/$AV$11 -> 0 | J91: =(A91*'Dose per unit release'!$H91*60/'Assessment Details'!$C$32)/$AV$11 -> 0 | K91: =(A91*'Dose per unit release'!$I91*60/'Assessment Details'!$C$32)/$AV$11 -> 0 | N91: =(Calculator!$AR$11*A91*'Dose per unit release'!$L91*0.1/'Assessment Details'!$C$20)/$AV$11 -> 0 | O91: =(Calculator!$AR$11*A91*'Dose per unit release'!$M91*0.1/'Assessment Details'!$C$20)/$AV$11 -> 0 | P91: =(Calculator!$AR$11*A91*'Dose per unit release'!$N91*0.1/'Assessment Details'!$C$20)/$AV$11 -> 0 | S91: =(Calculator!$AR$13*A91*'Dose per unit release'!$Q91*'Dose per unit release'!$R91/'Assessment Details'!$C$25)/$AV$11 -> 0 | T91: =(Calculator!$AR$13*A91*'Dose per unit release'!$Q91*'Dose per unit release'!$S91/'Assessment Details'!$C$25)/$AV$11 -> 0 | U91: =(Calculator!$AR$13*A91*'Dose per unit release'!$Q91*'Dose per unit release'!$T91/'Assessment Details'!$C$25)/$AV$11 -> 0 | V91: =(Calculator!$AR$13*A91*'Dose per unit release'!$Q91*'Dose per unit release'!$U91/'Assessment Details'!$C$25)/$AV$11 -> 0 | Y91: =(Calculator!$AR$13*A91*'Dose per unit release'!$X91*'Dose per unit release'!$Y91/'Assessment Details'!$C$25)/$AV$11 -> 0 | Z91: =(Calculator!$AR$13*A91*'Dose per unit release'!$X91*'Dose per unit release'!$Z91/'Assessment Details'!$C$25)/$AV$11 -> 0 | AC91: =(Calculator!$AR$15*A91*'Dose per unit release'!$AC91*'Dose per unit release'!$AD91*100/'Assessment Details'!$C$39)/$AV$11 -> 0 | AD91: =(Calculator!$AR$15*A91*'Dose per unit release'!$AC91*'Dose per unit release'!$AE91*100/'Assessment Details'!$C$39)/$AV$11 -> 0 | AE91: =(Calculator!$AR$15*A91*'Dose per unit release'!$AC91*'Dose per unit release'!$AF91*100/'Assessment Details'!$C$39)/$AV$11 -> 0 | AH91: =Calculator!$AR$13*A91*'Dose per unit release'!$AI91*'Dose per unit release'!$AJ91/'Assessment Details'!$C$25 -> 0 | AK91: =Calculator!$AR$15*A91*'Dose per unit release'!$AL91*'Dose per unit release'!$AM91*100/'Assessment Details'!$C$39 -> 0
C92: =(A92*'Dose per unit release'!$A92*60/'Assessment Details'!$C$32)/$AV$11 -> 0 | D92: =(A92*'Dose per unit release'!$B92*60/'Assessment Details'!$C$32)/$AV$11 -> 0 | E92: =(A92*'Dose per unit release'!$C92*60/'Assessment Details'!$C$32)/$AV$11 -> 0 | H92: =(A92*'Dose per unit release'!$F92*60/'Assessment Details'!$C$32)/$AV$11 -> 0 | I92: =(A92*'Dose per unit release'!$G92*60/'Assessment Details'!$C$32)/$AV$11 -> 0 | J92: =(A92*'Dose per unit release'!$H92*60/'Assessment Details'!$C$32)/$AV$11 -> 0 | K92: =(A92*'Dose per unit release'!$I92*60/'Assessment Details'!$C$32)/$AV$11 -> 0 | N92: =(Calculator!$AR$11*A92*'Dose per unit release'!$L92*0.1/'Assessment Details'!$C$20)/$AV$11 -> 0 | O92: =(Calculator!$AR$11*A92*'Dose per unit release'!$M92*0.1/'Assessment Details'!$C$20)/$AV$11 -> 0 | P92: =(Calculator!$AR$11*A92*'Dose per unit release'!$N92*0.1/'Assessment Details'!$C$20)/$AV$11 -> 0 | S92: =(Calculator!$AR$13*A92*'Dose per unit release'!$Q92*'Dose per unit release'!$R92/'Assessment Details'!$C$25)/$AV$11 -> 0 | T92: =(Calculator!$AR$13*A92*'Dose per unit release'!$Q92*'Dose per unit release'!$S92/'Assessment Details'!$C$25)/$AV$11 -> 0 | U92: =(Calculator!$AR$13*A92*'Dose per unit release'!$Q92*'Dose per unit release'!$T92/'Assessment Details'!$C$25)/$AV$11 -> 0 | V92: =(Calculator!$AR$13*A92*'Dose per unit release'!$Q92*'Dose per unit release'!$U92/'Assessment Details'!$C$25)/$AV$11 -> 0 | Y92: =(Calculator!$AR$13*A92*'Dose per unit release'!$X92*'Dose per unit release'!$Y92/'Assessment Details'!$C$25)/$AV$11 -> 0 | Z92: =(Calculator!$AR$13*A92*'Dose per unit release'!$X92*'Dose per unit release'!$Z92/'Assessment Details'!$C$25)/$AV$11 -> 0 | AC92: =(Calculator!$AR$15*A92*'Dose per unit release'!$AC92*'Dose per unit release'!$AD92*100/'Assessment Details'!$C$39)/$AV$11 -> 0 | AD92: =(Calculator!$AR$15*A92*'Dose per unit release'!$AC92*'Dose per unit release'!$AE92*100/'Assessment Details'!$C$39)/$AV$11 -> 0 | AE92: =(Calculator!$AR$15*A92*'Dose per unit release'!$AC92*'Dose per unit release'!$AF92*100/'Assessment Details'!$C$39)/$AV$11 -> 0 | AH92: =Calculator!$AR$13*A92*'Dose per unit release'!$AI92*'Dose per unit release'!$AJ92/'Assessment Details'!$C$25 -> 0 | AK92: =Calculator!$AR$15*A92*'Dose per unit release'!$AL92*'Dose per unit release'!$AM92*100/'Assessment Details'!$C$39 -> 0
C93: =(A93*'Dose per unit release'!$A93*60/'Assessment Details'!$C$32)/$AV$11 -> 0 | D93: =(A93*'Dose per unit release'!$B93*60/'Assessment Details'!$C$32)/$AV$11 -> 0 | E93: =(A93*'Dose per unit release'!$C93*60/'Assessment Details'!$C$32)/$AV$11 -> 0 | H93: =(A93*'Dose per unit release'!$F93*60/'Assessment Details'!$C$32)/$AV$11 -> 0 | I93: =(A93*'Dose per unit release'!$G93*60/'Assessment Details'!$C$32)/$AV$11 -> 0 | J93: =(A93*'Dose per unit release'!$H93*60/'Assessment Details'!$C$32)/$AV$11 -> 0 | K93: =(A93*'Dose per unit release'!$I93*60/'Assessment Details'!$C$32)/$AV$11 -> 0 | N93: =(Calculator!$AR$11*A93*'Dose per unit release'!$L93*0.1/'Assessment Details'!$C$20)/$AV$11 -> 0 | O93: =(Calculator!$AR$11*A93*'Dose per unit release'!$M93*0.1/'Assessment Details'!$C$20)/$AV$11 -> 0 | P93: =(Calculator!$AR$11*A93*'Dose per unit release'!$N93*0.1/'Assessment Details'!$C$20)/$AV$11 -> 0 | S93: =(Calculator!$AR$13*A93*'Dose per unit release'!$Q93*'Dose per unit release'!$R93/'Assessment Details'!$C$25)/$AV$11 -> 0 | T93: =(Calculator!$AR$13*A93*'Dose per unit release'!$Q93*'Dose per unit release'!$S93/'Assessment Details'!$C$25)/$AV$11 -> 0 | U93: =(Calculator!$AR$13*A93*'Dose per unit release'!$Q93*'Dose per unit release'!$T93/'Assessment Details'!$C$25)/$AV$11 -> 0 | V93: =(Calculator!$AR$13*A93*'Dose per unit release'!$Q93*'Dose per unit release'!$U93/'Assessment Details'!$C$25)/$AV$11 -> 0 | Y93: =(Calculator!$AR$13*A93*'Dose per unit release'!$X93*'Dose per unit release'!$Y93/'Assessment Details'!$C$25)/$AV$11 -> 0 | Z93: =(Calculator!$AR$13*A93*'Dose per unit release'!$X93*'Dose per unit release'!$Z93/'Assessment Details'!$C$25)/$AV$11 -> 0 | AC93: =(Calculator!$AR$15*A93*'Dose per unit release'!$AC93*'Dose per unit release'!$AD93*100/'Assessment Details'!$C$39)/$AV$11 -> 0 | AD93: =(Calculator!$AR$15*A93*'Dose per unit release'!$AC93*'Dose per unit release'!$AE93*100/'Assessment Details'!$C$39)/$AV$11 -> 0 | AE93: =(Calculator!$AR$15*A93*'Dose per unit release'!$AC93*'Dose per unit release'!$AF93*100/'Assessment Details'!$C$39)/$AV$11 -> 0 | AH93: =Calculator!$AR$13*A93*'Dose per unit release'!$AI93*'Dose per unit release'!$AJ93/'Assessment Details'!$C$25 -> 0 | AK93: =Calculator!$AR$15*A93*'Dose per unit release'!$AL93*'Dose per unit release'!$AM93*100/'Assessment Details'!$C$39 -> 0
C94: =(A94*'Dose per unit release'!$A94*60/'Assessment Details'!$C$32)/$AV$11 -> 0 | D94: =(A94*'Dose per unit release'!$B94*60/'Assessment Details'!$C$32)/$AV$11 -> 0 | E94: =(A94*'Dose per unit release'!$C94*60/'Assessment Details'!$C$32)/$AV$11 -> 0 | H94: =(A94*'Dose per unit release'!$F94*60/'Assessment Details'!$C$32)/$AV$11 -> 0 | I94: =(A94*'Dose per unit release'!$G94*60/'Assessment Details'!$C$32)/$AV$11 -> 0 | J94: =(A94*'Dose per unit release'!$H94*60/'Assessment Details'!$C$32)/$AV$11 -> 0 | K94: =(A94*'Dose per unit release'!$I94*60/'Assessment Details'!$C$32)/$AV$11 -> 0 | N94: =(Calculator!$AR$11*A94*'Dose per unit release'!$L94*0.1/'Assessment Details'!$C$20)/$AV$11 -> 0 | O94: =(Calculator!$AR$11*A94*'Dose per unit release'!$M94*0.1/'Assessment Details'!$C$20)/$AV$11 -> 0 | P94: =(Calculator!$AR$11*A94*'Dose per unit release'!$N94*0.1/'Assessment Details'!$C$20)/$AV$11 -> 0 | S94: =(Calculator!$AR$13*A94*'Dose per unit release'!$Q94*'Dose per unit release'!$R94/'Assessment Details'!$C$25)/$AV$11 -> 0 | T94: =(Calculator!$AR$13*A94*'Dose per unit release'!$Q94*'Dose per unit release'!$S94/'Assessment Details'!$C$25)/$AV$11 -> 0 | U94: =(Calculator!$AR$13*A94*'Dose per unit release'!$Q94*'Dose per unit release'!$T94/'Assessment Details'!$C$25)/$AV$11 -> 0 | V94: =(Calculator!$AR$13*A94*'Dose per unit release'!$Q94*'Dose per unit release'!$U94/'Assessment Details'!$C$25)/$AV$11 -> 0 | Y94: =(Calculator!$AR$13*A94*'Dose per unit release'!$X94*'Dose per unit release'!$Y94/'Assessment Details'!$C$25)/$AV$11 -> 0 | Z94: =(Calculator!$AR$13*A94*'Dose per unit release'!$X94*'Dose per unit release'!$Z94/'Assessment Details'!$C$25)/$AV$11 -> 0 | AC94: =(Calculator!$AR$15*A94*'Dose per unit release'!$AC94*'Dose per unit release'!$AD94*100/'Assessment Details'!$C$39)/$AV$11 -> 0 | AD94: =(Calculator!$AR$15*A94*'Dose per unit release'!$AC94*'Dose per unit release'!$AE94*100/'Assessment Details'!$C$39)/$AV$11 -> 0 | AE94: =(Calculator!$AR$15*A94*'Dose per unit release'!$AC94*'Dose per unit release'!$AF94*100/'Assessment Details'!$C$39)/$AV$11 -> 0 | AH94: =Calculator!$AR$13*A94*'Dose per unit release'!$AI94*'Dose per unit release'!$AJ94/'Assessment Details'!$C$25 -> 0 | AK94: =Calculator!$AR$15*A94*'Dose per unit release'!$AL94*'Dose per unit release'!$AM94*100/'Assessment Details'!$C$39 -> 0
C95: =(A95*'Dose per unit release'!$A95*60/'Assessment Details'!$C$32)/$AV$11 -> 0 | D95: =(A95*'Dose per unit release'!$B95*60/'Assessment Details'!$C$32)/$AV$11 -> 0 | E95: =(A95*'Dose per unit release'!$C95*60/'Assessment Details'!$C$32)/$AV$11 -> 0 | H95: =(A95*'Dose per unit release'!$F95*60/'Assessment Details'!$C$32)/$AV$11 -> 0 | I95: =(A95*'Dose per unit release'!$G95*60/'Assessment Details'!$C$32)/$AV$11 -> 0 | J95: =(A95*'Dose per unit release'!$H95*60/'Assessment Details'!$C$32)/$AV$11 -> 0 | K95: =(A95*'Dose per unit release'!$I95*60/'Assessment Details'!$C$32)/$AV$11 -> 0 | N95: =(Calculator!$AR$11*A95*'Dose per unit release'!$L95*0.1/'Assessment Details'!$C$20)/$AV$11 -> 0 | O95: =(Calculator!$AR$11*A95*'Dose per unit release'!$M95*0.1/'Assessment Details'!$C$20)/$AV$11 -> 0 | P95: =(Calculator!$AR$11*A95*'Dose per unit release'!$N95*0.1/'Assessment Details'!$C$20)/$AV$11 -> 0 | S95: =(Calculator!$AR$13*A95*'Dose per unit release'!$Q95*'Dose per unit release'!$R95/'Assessment Details'!$C$25)/$AV$11 -> 0 | T95: =(Calculator!$AR$13*A95*'Dose per unit release'!$Q95*'Dose per unit release'!$S95/'Assessment Details'!$C$25)/$AV$11 -> 0 | U95: =(Calculator!$AR$13*A95*'Dose per unit release'!$Q95*'Dose per unit release'!$T95/'Assessment Details'!$C$25)/$AV$11 -> 0 | V95: =(Calculator!$AR$13*A95*'Dose per unit release'!$Q95*'Dose per unit release'!$U95/'Assessment Details'!$C$25)/$AV$11 -> 0 | Y95: =(Calculator!$AR$13*A95*'Dose per unit release'!$X95*'Dose per unit release'!$Y95/'Assessment Details'!$C$25)/$AV$11 -> 0 | Z95: =(Calculator!$AR$13*A95*'Dose per unit release'!$X95*'Dose per unit release'!$Z95/'Assessment Details'!$C$25)/$AV$11 -> 0 | AC95: =(Calculator!$AR$15*A95*'Dose per unit release'!$AC95*'Dose per unit release'!$AD95*100/'Assessment Details'!$C$39)/$AV$11 -> 0 | AD95: =(Calculator!$AR$15*A95*'Dose per unit release'!$AC95*'Dose per unit release'!$AE95*100/'Assessment Details'!$C$39)/$AV$11 -> 0 | AE95: =(Calculator!$AR$15*A95*'Dose per unit release'!$AC95*'Dose per unit release'!$AF95*100/'Assessment Details'!$C$39)/$AV$11 -> 0 | AH95: =Calculator!$AR$13*A95*'Dose per unit release'!$AI95*'Dose per unit release'!$AJ95/'Assessment Details'!$C$25 -> 0 | AK95: =Calculator!$AR$15*A95*'Dose per unit release'!$AL95*'Dose per unit release'!$AM95*100/'Assessment Details'!$C$39 -> 0
C96: =(A96*'Dose per unit release'!$A96*60/'Assessment Details'!$C$32)/$AV$11 -> 0 | D96: =(A96*'Dose per unit release'!$B96*60/'Assessment Details'!$C$32)/$AV$11 -> 0 | E96: =(A96*'Dose per unit release'!$C96*60/'Assessment Details'!$C$32)/$AV$11 -> 0 | H96: =(A96*'Dose per unit release'!$F96*60/'Assessment Details'!$C$32)/$AV$11 -> 0 | I96: =(A96*'Dose per unit release'!$G96*60/'Assessment Details'!$C$32)/$AV$11 -> 0 | J96: =(A96*'Dose per unit release'!$H96*60/'Assessment Details'!$C$32)/$AV$11 -> 0 | K96: =(A96*'Dose per unit release'!$I96*60/'Assessment Details'!$C$32)/$AV$11 -> 0 | N96: =(Calculator!$AR$11*A96*'Dose per unit release'!$L96*0.1/'Assessment Details'!$C$20)/$AV$11 -> 0 | O96: =(Calculator!$AR$11*A96*'Dose per unit release'!$M96*0.1/'Assessment Details'!$C$20)/$AV$11 -> 0 | P96: =(Calculator!$AR$11*A96*'Dose per unit release'!$N96*0.1/'Assessment Details'!$C$20)/$AV$11 -> 0 | S96: =(Calculator!$AR$13*A96*'Dose per unit release'!$Q96*'Dose per unit release'!$R96/'Assessment Details'!$C$25)/$AV$11 -> 0 | T96: =(Calculator!$AR$13*A96*'Dose per unit release'!$Q96*'Dose per unit release'!$S96/'Assessment Details'!$C$25)/$AV$11 -> 0 | U96: =(Calculator!$AR$13*A96*'Dose per unit release'!$Q96*'Dose per unit release'!$T96/'Assessment Details'!$C$25)/$AV$11 -> 0 | V96: =(Calculator!$AR$13*A96*'Dose per unit release'!$Q96*'Dose per unit release'!$U96/'Assessment Details'!$C$25)/$AV$11 -> 0 | Y96: =(Calculator!$AR$13*A96*'Dose per unit release'!$X96*'Dose per unit release'!$Y96/'Assessment Details'!$C$25)/$AV$11 -> 0 | Z96: =(Calculator!$AR$13*A96*'Dose per unit release'!$X96*'Dose per unit release'!$Z96/'Assessment Details'!$C$25)/$AV$11 -> 0 | AC96: =(Calculator!$AR$15*A96*'Dose per unit release'!$AC96*'Dose per unit release'!$AD96*100/'Assessment Details'!$C$39)/$AV$11 -> 0 | AD96: =(Calculator!$AR$15*A96*'Dose per unit release'!$AC96*'Dose per unit release'!$AE96*100/'Assessment Details'!$C$39)/$AV$11 -> 0 | AE96: =(Calculator!$AR$15*A96*'Dose per unit release'!$AC96*'Dose per unit release'!$AF96*100/'Assessment Details'!$C$39)/$AV$11 -> 0 | AH96: =Calculator!$AR$13*A96*'Dose per unit release'!$AI96*'Dose per unit release'!$AJ96/'Assessment Details'!$C$25 -> 0 | AK96: =Calculator!$AR$15*A96*'Dose per unit release'!$AL96*'Dose per unit release'!$AM96*100/'Assessment Details'!$C$39 -> 0
C97: =(A97*'Dose per unit release'!$A97*60/'Assessment Details'!$C$32)/$AV$11 -> 0 | D97: =(A97*'Dose per unit release'!$B97*60/'Assessment Details'!$C$32)/$AV$11 -> 0 | E97: =(A97*'Dose per unit release'!$C97*60/'Assessment Details'!$C$32)/$AV$11 -> 0 | H97: =(A97*'Dose per unit release'!$F97*60/'Assessment Details'!$C$32)/$AV$11 -> 0 | I97: =(A97*'Dose per unit release'!$G97*60/'Assessment Details'!$C$32)/$AV$11 -> 0 | J97: =(A97*'Dose per unit release'!$H97*60/'Assessment Details'!$C$32)/$AV$11 -> 0 | K97: =(A97*'Dose per unit release'!$I97*60/'Assessment Details'!$C$32)/$AV$11 -> 0 | N97: =(Calculator!$AR$11*A97*'Dose per unit release'!$L97*0.1/'Assessment Details'!$C$20)/$AV$11 -> 0 | O97: =(Calculator!$AR$11*A97*'Dose per unit release'!$M97*0.1/'Assessment Details'!$C$20)/$AV$11 -> 0 | P97: =(Calculator!$AR$11*A97*'Dose per unit release'!$N97*0.1/'Assessment Details'!$C$20)/$AV$11 -> 0 | S97: =(Calculator!$AR$13*A97*'Dose per unit release'!$Q97*'Dose per unit release'!$R97/'Assessment Details'!$C$25)/$AV$11 -> 0 | T97: =(Calculator!$AR$13*A97*'Dose per unit release'!$Q97*'Dose per unit release'!$S97/'Assessment Details'!$C$25)/$AV$11 -> 0 | U97: =(Calculator!$AR$13*A97*'Dose per unit release'!$Q97*'Dose per unit release'!$T97/'Assessment Details'!$C$25)/$AV$11 -> 0 | V97: =(Calculator!$AR$13*A97*'Dose per unit release'!$Q97*'Dose per unit release'!$U97/'Assessment Details'!$C$25)/$AV$11 -> 0 | Y97: =(Calculator!$AR$13*A97*'Dose per unit release'!$X97*'Dose per unit release'!$Y97/'Assessment Details'!$C$25)/$AV$11 -> 0 | Z97: =(Calculator!$AR$13*A97*'Dose per unit release'!$X97*'Dose per unit release'!$Z97/'Assessment Details'!$C$25)/$AV$11 -> 0 | AC97: =(Calculator!$AR$15*A97*'Dose per unit release'!$AC97*'Dose per unit release'!$AD97*100/'Assessment Details'!$C$39)/$AV$11 -> 0 | AD97: =(Calculator!$AR$15*A97*'Dose per unit release'!$AC97*'Dose per unit release'!$AE97*100/'Assessment Details'!$C$39)/$AV$11 -> 0 | AE97: =(Calculator!$AR$15*A97*'Dose per unit release'!$AC97*'Dose per unit release'!$AF97*100/'Assessment Details'!$C$39)/$AV$11 -> 0 | AH97: =Calculator!$AR$13*A97*'Dose per unit release'!$AI97*'Dose per unit release'!$AJ97/'Assessment Details'!$C$25 -> 0 | AK97: =Calculator!$AR$15*A97*'Dose per unit release'!$AL97*'Dose per unit release'!$AM97*100/'Assessment Details'!$C$39 -> 0
C98: =(A98*'Dose per unit release'!$A98*60/'Assessment Details'!$C$32)/$AV$11 -> 0 | D98: =(A98*'Dose per unit release'!$B98*60/'Assessment Details'!$C$32)/$AV$11 -> 0 | E98: =(A98*'Dose per unit release'!$C98*60/'Assessment Details'!$C$32)/$AV$11 -> 0 | H98: =(A98*'Dose per unit release'!$F98*60/'Assessment Details'!$C$32)/$AV$11 -> 0 | I98: =(A98*'Dose per unit release'!$G98*60/'Assessment Details'!$C$32)/$AV$11 -> 0 | J98: =(A98*'Dose per unit release'!$H98*60/'Assessment Details'!$C$32)/$AV$11 -> 0 | K98: =(A98*'Dose per unit release'!$I98*60/'Assessment Details'!$C$32)/$AV$11 -> 0 | N98: =(Calculator!$AR$11*A98*'Dose per unit release'!$L98*0.1/'Assessment Details'!$C$20)/$AV$11 -> 0 | O98: =(Calculator!$AR$11*A98*'Dose per unit release'!$M98*0.1/'Assessment Details'!$C$20)/$AV$11 -> 0 | P98: =(Calculator!$AR$11*A98*'Dose per unit release'!$N98*0.1/'Assessment Details'!$C$20)/$AV$11 -> 0 | S98: =(Calculator!$AR$13*A98*'Dose per unit release'!$Q98*'Dose per unit release'!$R98/'Assessment Details'!$C$25)/$AV$11 -> 0 | T98: =(Calculator!$AR$13*A98*'Dose per unit release'!$Q98*'Dose per unit release'!$S98/'Assessment Details'!$C$25)/$AV$11 -> 0 | U98: =(Calculator!$AR$13*A98*'Dose per unit release'!$Q98*'Dose per unit release'!$T98/'Assessment Details'!$C$25)/$AV$11 -> 0 | V98: =(Calculator!$AR$13*A98*'Dose per unit release'!$Q98*'Dose per unit release'!$U98/'Assessment Details'!$C$25)/$AV$11 -> 0 | Y98: =(Calculator!$AR$13*A98*'Dose per unit release'!$X98*'Dose per unit release'!$Y98/'Assessment Details'!$C$25)/$AV$11 -> 0 | Z98: =(Calculator!$AR$13*A98*'Dose per unit release'!$X98*'Dose per unit release'!$Z98/'Assessment Details'!$C$25)/$AV$11 -> 0 | AC98: =(Calculator!$AR$15*A98*'Dose per unit release'!$AC98*'Dose per unit release'!$AD98*100/'Assessment Details'!$C$39)/$AV$11 -> 0 | AD98: =(Calculator!$AR$15*A98*'Dose per unit release'!$AC98*'Dose per unit release'!$AE98*100/'Assessment Details'!$C$39)/$AV$11 -> 0 | AE98: =(Calculator!$AR$15*A98*'Dose per unit release'!$AC98*'Dose per unit release'!$AF98*100/'Assessment Details'!$C$39)/$AV$11 -> 0 | AH98: =Calculator!$AR$13*A98*'Dose per unit release'!$AI98*'Dose per unit release'!$AJ98/'Assessment Details'!$C$25 -> 0 | AK98: =Calculator!$AR$15*A98*'Dose per unit release'!$AL98*'Dose per unit release'!$AM98*100/'Assessment Details'!$C$39 -> 0
C99: =(A99*'Dose per unit release'!$A99*60/'Assessment Details'!$C$32)/$AV$11 -> 0 | D99: =(A99*'Dose per unit release'!$B99*60/'Assessment Details'!$C$32)/$AV$11 -> 0 | E99: =(A99*'Dose per unit release'!$C99*60/'Assessment Details'!$C$32)/$AV$11 -> 0 | H99: =(A99*'Dose per unit release'!$F99*60/'Assessment Details'!$C$32)/$AV$11 -> 0 | I99: =(A99*'Dose per unit release'!$G99*60/'Assessment Details'!$C$32)/$AV$11 -> 0 | J99: =(A99*'Dose per unit release'!$H99*60/'Assessment Details'!$C$32)/$AV$11 -> 0 | K99: =(A99*'Dose per unit release'!$I99*60/'Assessment Details'!$C$32)/$AV$11 -> 0 | N99: =(Calculator!$AR$11*A99*'Dose per unit release'!$L99*0.1/'Assessment Details'!$C$20)/$AV$11 -> 0 | O99: =(Calculator!$AR$11*A99*'Dose per unit release'!$M99*0.1/'Assessment Details'!$C$20)/$AV$11 -> 0 | P99: =(Calculator!$AR$11*A99*'Dose per unit release'!$N99*0.1/'Assessment Details'!$C$20)/$AV$11 -> 0 | S99: =(Calculator!$AR$13*A99*'Dose per unit release'!$Q99*'Dose per unit release'!$R99/'Assessment Details'!$C$25)/$AV$11 -> 0 | T99: =(Calculator!$AR$13*A99*'Dose per unit release'!$Q99*'Dose per unit release'!$S99/'Assessment Details'!$C$25)/$AV$11 -> 0 | U99: =(Calculator!$AR$13*A99*'Dose per unit release'!$Q99*'Dose per unit release'!$T99/'Assessment Details'!$C$25)/$AV$11 -> 0 | V99: =(Calculator!$AR$13*A99*'Dose per unit release'!$Q99*'Dose per unit release'!$U99/'Assessment Details'!$C$25)/$AV$11 -> 0 | Y99: =(Calculator!$AR$13*A99*'Dose per unit release'!$X99*'Dose per unit release'!$Y99/'Assessment Details'!$C$25)/$AV$11 -> 0 | Z99: =(Calculator!$AR$13*A99*'Dose per unit release'!$X99*'Dose per unit release'!$Z99/'Assessment Details'!$C$25)/$AV$11 -> 0 | AC99: =(Calculator!$AR$15*A99*'Dose per unit release'!$AC99*'Dose per unit release'!$AD99*100/'Assessment Details'!$C$39)/$AV$11 -> 0 | AD99: =(Calculator!$AR$15*A99*'Dose per unit release'!$AC99*'Dose per unit release'!$AE99*100/'Assessment Details'!$C$39)/$AV$11 -> 0 | AE99: =(Calculator!$AR$15*A99*'Dose per unit release'!$AC99*'Dose per unit release'!$AF99*100/'Assessment Details'!$C$39)/$AV$11 -> 0 | AH99: =Calculator!$AR$13*A99*'Dose per unit release'!$AI99*'Dose per unit release'!$AJ99/'Assessment Details'!$C$25 -> 0 | AK99: =Calculator!$AR$15*A99*'Dose per unit release'!$AL99*'Dose per unit release'!$AM99*100/'Assessment Details'!$C$39 -> 0
C100: =(A100*'Dose per unit release'!$A100*60/'Assessment Details'!$C$32)/$AV$11 -> 0 | D100: =(A100*'Dose per unit release'!$B100*60/'Assessment Details'!$C$32)/$AV$11 -> 0 | E100: =(A100*'Dose per unit release'!$C100*60/'Assessment Details'!$C$32)/$AV$11 -> 0 | H100: =(A100*'Dose per unit release'!$F100*60/'Assessment Details'!$C$32)/$AV$11 -> 0 | I100: =(A100*'Dose per unit release'!$G100*60/'Assessment Details'!$C$32)/$AV$11 -> 0 | J100: =(A100*'Dose per unit release'!$H100*60/'Assessment Details'!$C$32)/$AV$11 -> 0 | K100: =(A100*'Dose per unit release'!$I100*60/'Assessment Details'!$C$32)/$AV$11 -> 0 | N100: =(Calculator!$AR$11*A100*'Dose per unit release'!$L100*0.1/'Assessment Details'!$C$20)/$AV$11 -> 0 | O100: =(Calculator!$AR$11*A100*'Dose per unit release'!$M100*0.1/'Assessment Details'!$C$20)/$AV$11 -> 0 | P100: =(Calculator!$AR$11*A100*'Dose per unit release'!$N100*0.1/'Assessment Details'!$C$20)/$AV$11 -> 0 | S100: =(Calculator!$AR$13*A100*'Dose per unit release'!$Q100*'Dose per unit release'!$R100/'Assessment Details'!$C$25)/$AV$11 -> 0 | T100: =(Calculator!$AR$13*A100*'Dose per unit release'!$Q100*'Dose per unit release'!$S100/'Assessment Details'!$C$25)/$AV$11 -> 0 | U100: =(Calculator!$AR$13*A100*'Dose per unit release'!$Q100*'Dose per unit release'!$T100/'Assessment Details'!$C$25)/$AV$11 -> 0 | V100: =(Calculator!$AR$13*A100*'Dose per unit release'!$Q100*'Dose per unit release'!$U100/'Assessment Details'!$C$25)/$AV$11 -> 0 | Y100: =(Calculator!$AR$13*A100*'Dose per unit release'!$X100*'Dose per unit release'!$Y100/'Assessment Details'!$C$25)/$AV$11 -> 0 | Z100: =(Calculator!$AR$13*A100*'Dose per unit release'!$X100*'Dose per unit release'!$Z100/'Assessment Details'!$C$25)/$AV$11 -> 0 | AC100: =(Calculator!$AR$15*A100*'Dose per unit release'!$AC100*'Dose per unit release'!$AD100*100/'Assessment Details'!$C$39)/$AV$11 -> 0 | AD100: =(Calculator!$AR$15*A100*'Dose per unit release'!$AC100*'Dose per unit release'!$AE100*100/'Assessment Details'!$C$39)/$AV$11 -> 0 | AE100: =(Calculator!$AR$15*A100*'Dose per unit release'!$AC100*'Dose per unit release'!$AF100*100/'Assessment Details'!$C$39)/$AV$11 -> 0 | AH100: =Calculator!$AR$13*A100*'Dose per unit release'!$AI100*'Dose per unit release'!$AJ100/'Assessment Details'!$C$25 -> 0 | AK100: =Calculator!$AR$15*A100*'Dose per unit release'!$AL100*'Dose per unit release'!$AM100*100/'Assessment Details'!$C$39 -> 0
C101: =(A101*'Dose per unit release'!$A101*60/'Assessment Details'!$C$32)/$AV$11 -> 0 | D101: =(A101*'Dose per unit release'!$B101*60/'Assessment Details'!$C$32)/$AV$11 -> 0 | E101: =(A101*'Dose per unit release'!$C101*60/'Assessment Details'!$C$32)/$AV$11 -> 0 | H101: =(A101*'Dose per unit release'!$F101*60/'Assessment Details'!$C$32)/$AV$11 -> 0 | I101: =(A101*'Dose per unit release'!$G101*60/'Assessment Details'!$C$32)/$AV$11 -> 0 | J101: =(A101*'Dose per unit release'!$H101*60/'Assessment Details'!$C$32)/$AV$11 -> 0 | K101: =(A101*'Dose per unit release'!$I101*60/'Assessment Details'!$C$32)/$AV$11 -> 0 | N101: =(Calculator!$AR$11*A101*'Dose per unit release'!$L101*0.1/'Assessment Details'!$C$20)/$AV$11 -> 0 | O101: =(Calculator!$AR$11*A101*'Dose per unit release'!$M101*0.1/'Assessment Details'!$C$20)/$AV$11 -> 0 | P101: =(Calculator!$AR$11*A101*'Dose per unit release'!$N101*0.1/'Assessment Details'!$C$20)/$AV$11 -> 0 | S101: =(Calculator!$AR$13*A101*'Dose per unit release'!$Q101*'Dose per unit release'!$R101/'Assessment Details'!$C$25)/$AV$11 -> 0 | T101: =(Calculator!$AR$13*A101*'Dose per unit release'!$Q101*'Dose per unit release'!$S101/'Assessment Details'!$C$25)/$AV$11 -> 0 | U101: =(Calculator!$AR$13*A101*'Dose per unit release'!$Q101*'Dose per unit release'!$T101/'Assessment Details'!$C$25)/$AV$11 -> 0 | V101: =(Calculator!$AR$13*A101*'Dose per unit release'!$Q101*'Dose per unit release'!$U101/'Assessment Details'!$C$25)/$AV$11 -> 0 | Y101: =(Calculator!$AR$13*A101*'Dose per unit release'!$X101*'Dose per unit release'!$Y101/'Assessment Details'!$C$25)/$AV$11 -> 0 | Z101: =(Calculator!$AR$13*A101*'Dose per unit release'!$X101*'Dose per unit release'!$Z101/'Assessment Details'!$C$25)/$AV$11 -> 0 | AC101: =(Calculator!$AR$15*A101*'Dose per unit release'!$AC101*'Dose per unit release'!$AD101*100/'Assessment Details'!$C$39)/$AV$11 -> 0 | AD101: =(Calculator!$AR$15*A101*'Dose per unit release'!$AC101*'Dose per unit release'!$AE101*100/'Assessment Details'!$C$39)/$AV$11 -> 0 | AE101: =(Calculator!$AR$15*A101*'Dose per unit release'!$AC101*'Dose per unit release'!$AF101*100/'Assessment Details'!$C$39)/$AV$11 -> 0 | AH101: =Calculator!$AR$13*A101*'Dose per unit release'!$AI101*'Dose per unit release'!$AJ101/'Assessment Details'!$C$25 -> 0 | AK101: =Calculator!$AR$15*A101*'Dose per unit release'!$AL101*'Dose per unit release'!$AM101*100/'Assessment Details'!$C$39 -> 0
C103: =SUM(C9:C101) -> 0 | D103: =SUM(D9:D101) -> 1.933350293e-19 | E103: =SUM(E9:E101) -> 1.933350293e-19 | F103: =('Assessment Details'!$C$10) -> mSv/y | H103: =SUM(H9:H101) -> 2.594759603e-16 | I103: =SUM(I9:I101) -> 0 | J103: =SUM(J9:J101) -> 3.307046553e-23 | K103: =SUM(K9:K101) -> 2.594759603e-16 | L103: =($F$103) -> mSv/y | N103: =SUM(N9:N101) -> 0 | O103: =SUM(O9:O101) -> 3.1e-17 | P103: =SUM(P9:P101) -> 3.1e-17 | Q103: =($F$103) -> mSv/y | S103: =SUM(S9:S101) -> 0 | T103: =SUM(T9:T101) -> 2.939381611e-19 | U103: =SUM(U9:U101) -> 1.002847844e-17 | V103: =SUM(V9:V101) -> 1.037428804e-17 | W103: =($F$103) -> mSv/y | Y103: =SUM(Y9:Y101) -> 7.607811229e-19 | Z103: 7.607811229e-19 | AA103: =($F$103) -> mSv/y | AC103: 0 | AD103: 2.521666667e-18 | AE103: 2.521666667e-18 | AF103: =($F$103) -> mSv/y | AH103: =SUM(AH9:AH101) -> 5.36004882e-18 | AI103: microGy/y | AK103: =SUM(AK9:AK101) -> 8.783333333e-18 | AL103: microGy/y

Sheet Summary Cumulative doses
A1: Summary total doses | K1: 1000
A5: Radionuclide | B5: Surrogate radionuclide | C5: STW worker dose | D5: Farming family dose | E5: Child playing in burn dose | F5: Angler dose | G5: Irrigated food consumer dose | H5: Fisherman dose | I5: Worst dose | J5: % Contribution | K5: Worst population group
C6: =('Assessment Details'!C10) -> mSv/y | D6: =($C$6) -> mSv/y | E6: =($C$6) -> mSv/y | F6: mSv/y | G6: mSv/y | H6: mSv/y | I6: mSv/y
A7: Tritium | B7: - | C7: 0 | D7: 0 | E7: 0 | F7: 0 | G7: 0 | H7: 0 | I7: =MAX(C7:H7) -> 0 | J7: =IF(I7=0,"",I7/$I$101) ->  | K7: =IF(I7=0,"",IF(I7=C7,"STW worker",IF(I7=D7,"Farming family",IF(I7=E7,"Child in burn",IF(I7=F7,"Angler",IF(I7=G7,"Irrigated food","Fisherman")))))) ->  | L7: =SUM(C7:H7) -> 0
A8: Tritium (Organically Bound) | B8: - | C8: 0 | D8: 0 | E8: 0 | F8: 0 | G8: 0 | H8: 0 | I8: 0 | J8: =IF(I8=0,"",I8/$I$101) ->  | L8: =SUM(C8:H8) -> 0
A9: Carbon-11 | B9: - | C9: 0 | D9: 0 | E9: 0 | F9: 0 | G9: 0 | H9: 0 | I9: =MAX(C9:H9) -> 0 | L9: 0
A10: Carbon-14 | B10: - | C10: 0 | D10: 0 | E10: 0 | F10: 0 | G10: 0 | H10: 0 | I10: 0 | L10: 0
A11: Fluorine-18 | B11: Sodium-24 | C11: 0 | D11: 0 | E11: 0 | F11: 0 | G11: 0 | H11: 0 | I11: 0 | L11: 0
A12: Sodium-22 | B12: - | C12: 0 | D12: 0 | E12: 0 | F12: 0 | G12: 0 | H12: 0 | I12: 0 | L12: 0
A13: Sodium-24 | B13: - | C13: 0 | D13: 0 | E13: 0 | F13: 0 | G13: 0 | H13: 0 | I13: 0 | L13: 0
A14: Phosphorus-32 | B14: - | C14: 0 | D14: 0 | E14: 0 | F14: 0 | G14: 0 | H14: 0 | I14: 0 | L14: 0
A15: Phosphorus-33 | B15: - | C15: 0 | D15: 0 | E15: 0 | F15: 0 | G15: 0 | H15: 0 | I15: 0 | L15: 0
A16: Sulphur-35 | B16: - | C16: 0 | D16: 0 | E16: 0 | F16: 0 | G16: 0 | H16: 0 | I16: 0 | L16: 0
A17: Chlorine-36 | B17: - | C17: 0 | D17: 0 | E17: 0 | F17: 0 | G17: 0 | H17: 0 | I17: 0 | L17: 0
A18: Calcium-45 | B18: - | C18: 0 | D18: 0 | E18: 0 | F18: 0 | G18: 0 | H18: 0 | I18: 0 | L18: 0
A19: Calcium-47 | B19: - | C19: 0 | D19: 0 | E19: 0 | F19: 0 | G19: 0 | H19: 0 | I19: 0 | L19: 0
A20: Vanadium-48 | B20: - | C20: 0 | D20: 0 | E20: 0 | F20: 0 | G20: 0 | H20: 0 | I20: 0 | L20: 0
A21: Chromium-51 | B21: - | C21: 0 | D21: 0 | E21: 0 | F21: 0 | G21: 0 | H21: 0 | I21: 0 | L21: 0
A22: Manganese-52 | B22: - | C22: 0 | D22: 0 | E22: 0 | F22: 0 | G22: 0 | H22: 0 | I22: 0 | L22: 0
A23: Manganese-54 | B23: - | C23: 0 | D23: 0 | E23: 0 | F23: 0 | G23: 0 | H23: 0 | I23: 0 | L23: 0
A24: Manganese-56 | B24: Manganese-54 | C24: 0 | D24: 0 | E24: 0 | F24: 0 | G24: 0 | H24: 0 | I24: 0 | L24: 0
A25: Iron-55 | B25: - | C25: 0 | D25: 0 | E25: 0 | F25: 0 | G25: 0 | H25: 0 | I25: 0 | L25: 0
A26: Iron-59 | B26: - | C26: 0 | D26: 0 | E26: 0 | F26: 0 | G26: 0 | H26: 0 | I26: 0 | L26: 0
A27: Cobalt-56 | B27: - | C27: 0 | D27: 0 | E27: 0 | F27: 0 | G27: 0 | H27: 0 | I27: 0 | L27: 0
A28: Cobalt-57 | B28: - | C28: 0 | D28: 0 | E28: 0 | F28: 0 | G28: 0 | H28: 0 | I28: 0 | L28: 0
A29: Cobalt-58 | B29: - | C29: 0 | D29: 0 | E29: 0 | F29: 0 | G29: 0 | H29: 0 | I29: 0 | L29: 0
A30: Cobalt-60 | B30: - | C30: 0 | D30: 0 | E30: 0 | F30: 0 | G30: 0 | H30: 0 | I30: 0 | L30: 0
A31: Nickel-63 | B31: - | C31: 0 | D31: 0 | E31: 0 | F31: 0 | G31: 0 | H31: 0 | I31: 0 | L31: 0
A32: Zinc-65 | B32: - | C32: 0 | D32: 0 | E32: 0 | F32: 0 | G32: 0 | H32: 0 | I32: 0 | L32: 0
A33: Gallium-67 | B33: - | C33: 0 | D33: 0 | E33: 0 | F33: 0 | G33: 0 | H33: 0 | I33: 0 | L33: 0
A34: Selenium-75 | B34: - | C34: 0 | D34: 0 | E34: 0 | F34: 0 | G34: 0 | H34: 0 | I34: 0 | L34: 0
A35: Bromine-82 | B35: - | C35: 0 | D35: 0 | E35: 0 | F35: 0 | G35: 0 | H35: 0 | I35: 0 | L35: 0
A36: Rubidium-82 | B36: Rubidium-83 | C36: 0 | D36: 0 | E36: 0 | F36: 0 | G36: 0 | H36: 0 | I36: 0 | L36: 0
A37: Rubidium-83 | B37: - | C37: 0 | D37: 0 | E37: 0 | F37: 0 | G37: 0 | H37: 0 | I37: 0 | L37: 0
A38: Strontium-89 | B38: - | C38: 0 | D38: 0 | E38: 0 | F38: 0 | G38: 0 | H38: 0 | I38: 0 | L38: 0
A39: Strontium-90 | B39: - | C39: 0 | D39: 0 | E39: 0 | F39: 0 | G39: 0 | H39: 0 | I39: 0 | K39: =IF(I39=0,"",IF(I39=C39,"STW worker",IF(I39=D39,"Farming family",IF(I39=E39,"Child in burn",IF(I39=F39,"Angler",IF(I39=G39,"Irrigated food","Fisherman")))))) ->  | L39: 0
A40: Yttrium-90 | B40: - | C40: 0 | D40: 0 | E40: 0 | F40: 0 | G40: 0 | H40: 0 | I40: 0 | L40: 0
A41: Zirconium-95 | B41: - | C41: 0 | D41: 0 | E41: 0 | F41: 0 | G41: 0 | H41: 0 | I41: 0 | L41: 0
A42: Niobium-95 | B42: - | C42: 0 | D42: 0 | E42: 0 | F42: 0 | G42: 0 | H42: 0 | I42: 0 | L42: 0
A43: Molybdenum-99 | B43: - | C43: 0 | D43: 0 | E43: 0 | F43: 0 | G43: 0 | H43: 0 | I43: 0 | L43: 0
A44: Technetium-99 | B44: - | C44: 0 | D44: 0 | E44: 0 | F44: 0 | G44: 0 | H44: 0 | I44: 0 | L44: 0
A45: Technetium-99m | B45: - | C45: 0 | D45: 0 | E45: 0 | F45: 0 | G45: 0 | H45: 0 | I45: 0 | L45: 0
A46: Ruthenium-103 | B46: - | C46: 0 | D46: 0 | E46: 0 | F46: 0 | G46: 0 | H46: 0 | I46: 0 | L46: 0
A47: Ruthenium-106 | B47: - | C47: 0 | D47: 0 | E47: 0 | F47: 0 | G47: 0 | H47: 0 | I47: 0 | L47: 0
A48: Silver-110m | B48: - | C48: 0 | D48: 0 | E48: 0 | F48: 0 | G48: 0 | H48: 0 | I48: 0 | L48: 0
A49: Indium-111 | B49: - | C49: 0 | D49: 0 | E49: 0 | F49: 0 | G49: 0 | H49: 0 | I49: 0 | L49: 0
A50: Indium-113m | B50: Indium-111 | C50: 0 | D50: 0 | E50: 0 | F50: 0 | G50: 0 | H50: 0 | I50: 0 | L50: 0
A51: Antimony-125 | B51: - | C51: 0 | D51: 0 | E51: 0 | F51: 0 | G51: 0 | H51: 0 | I51: 0 | L51: 0
A52: Iodine-123 | B52: - | C52: 0 | D52: 0 | E52: 0 | F52: 0 | G52: 0 | H52: 0 | I52: 0 | L52: 0
A53: Iodine-125 | B53: - | C53: 0 | D53: 0 | E53: 0 | F53: 0 | G53: 0 | H53: 0 | I53: 0 | L53: 0
A54: Iodine-129 | B54: - | C54: 0 | D54: 0 | E54: 0 | F54: 0 | G54: 0 | H54: 0 | I54: 0 | L54: 0
A55: Iodine-131 | B55: - | C55: 0 | D55: 0 | E55: 0 | F55: 0 | G55: 0 | H55: 0 | I55: 0 | L55: 0
A56: Iodine-132 | B56: Iodine-133 | C56: 0 | D56: 0 | E56: 0 | F56: 0 | G56: 0 | H56: 0 | I56: 0 | L56: 0
A57: Iodine-133 | B57: - | C57: 0 | D57: 0 | E57: 0 | F57: 0 | G57: 0 | H57: 0 | I57: 0 | L57: 0
A58: Iodine-134 | B58: Iodine-133 | C58: 0 | D58: 0 | E58: 0 | F58: 0 | G58: 0 | H58: 0 | I58: 0 | L58: 0
A59: Iodine-135 | B59: - | C59: 0 | D59: 0 | E59: 0 | F59: 0 | G59: 0 | H59: 0 | I59: 0 | L59: 0
A60: Caesium-134 | B60: - | C60: 0 | D60: 0 | E60: 0 | F60: 0 | G60: 0 | H60: 0 | I60: 0 | L60: 0
A61: Caesium-136 | B61: - | C61: 0 | D61: 0 | E61: 0 | F61: 0 | G61: 0 | H61: 0 | I61: 0 | L61: 0
A62: Caesium-137 | B62: - | C62: 0 | D62: 0 | E62: 0 | F62: 0 | G62: 0 | H62: 0 | I62: 0 | L62: 0
A63: Barium-140 | B63: - | C63: 0 | D63: 0 | E63: 0 | F63: 0 | G63: 0 | H63: 0 | I63: 0 | L63: 0
A64: Lanthanum-140 | B64: - | C64: 0 | D64: 0 | E64: 0 | F64: 0 | G64: 0 | H64: 0 | I64: 0 | L64: 0
A65: Cerium-141 | B65: - | C65: 0 | D65: 0 | E65: 0 | F65: 0 | G65: 0 | H65: 0 | I65: 0 | L65: 0
A66: Cerium-144 | B66: - | C66: 0 | D66: 0 | E66: 0 | F66: 0 | G66: 0 | H66: 0 | I66: 0 | L66: =SUM(C66:H66) -> 0
A67: Promethium-147 | B67: - | C67: 0 | D67: 0 | E67: 0 | F67: 0 | G67: 0 | H67: 0 | I67: 0 | L67: =SUM(C67:H67) -> 0
A68: Samarium-153 | B68: - | C68: 0 | D68: 0 | E68: 0 | F68: 0 | G68: 0 | H68: 0 | I68: 0 | L68: 0
A69: Europium-152 | B69: - | C69: 0 | D69: 0 | E69: 0 | F69: 0 | G69: 0 | H69: 0 | I69: 0 | L69: 0
A70: Europium-154 | B70: - | C70: 0 | D70: 0 | E70: 0 | F70: 0 | G70: 0 | H70: 0 | I70: 0 | L70: 0
A71: Europium-155 | B71: - | C71: 0 | D71: 0 | E71: 0 | F71: 0 | G71: 0 | H71: 0 | I71: 0 | K71: =IF(I71=0,"",IF(I71=C71,"STW worker",IF(I71=D71,"Farming family",IF(I71=E71,"Child in burn",IF(I71=F71,"Angler",IF(I71=G71,"Irrigated food","Fisherman")))))) ->  | L71: 0
A72: Erbium-169 | B72: - | C72: 0 | D72: 0 | E72: 0 | F72: 0 | G72: 0 | H72: 0 | I72: 0 | L72: 0
A73: Lutetium-177 | B73: - | C73: 0 | D73: 0 | E73: 0 | F73: 0 | G73: 0 | H73: 0 | I73: =MAX(C73:H73) -> 0 | J73: =IF(I73=0,"",I73/$I$101) ->  | L73: 0
A74: Gold-198 | B74: - | C74: 0 | D74: 0 | E74: 0 | F74: 0 | G74: 0 | H74: 0 | I74: 0 | L74: 0
A75: Thallium-201 | B75: - | C75: 0 | D75: 0 | E75: 0 | F75: 0 | G75: 0 | H75: 0 | I75: 0 | L75: 0
A76: Lead-210 | B76: - | C76: 0 | D76: 0 | E76: 0 | F76: 0 | G76: 0 | H76: 0 | I76: 0 | L76: 0
A77: Polonium-210 | B77: - | C77: 0 | D77: 0 | E77: 0 | F77: 0 | G77: 0 | H77: 0 | I77: 0 | L77: 0
A78: Radium-223 | B78: - | C78: 0 | D78: 0 | E78: 0 | F78: 0 | G78: 0 | H78: 0 | I78: 0 | L78: 0
A79: Radium-226 | B79: - | C79: 0 | D79: 0 | E79: 0 | F79: 0 | G79: 0 | H79: 0 | I79: 0 | L79: 0
A80: Thorium-230 | B80: - | C80: 0 | D80: 0 | E80: 0 | F80: 0 | G80: 0 | H80: 0 | I80: 0 | L80: 0
A81: Thorium-232 | B81: - | C81: 0 | D81: 0 | E81: 0 | F81: 0 | G81: 0 | H81: 0 | I81: 0 | L81: 0
A82: Thorium-234 | B82: - | C82: 0 | D82: 0 | E82: 0 | F82: 0 | G82: 0 | H82: 0 | I82: 0 | L82: 0
A83: Uranium-234 | B83: - | C83: 0 | D83: 0 | E83: 0 | F83: 0 | G83: 0 | H83: 0 | I83: 0 | L83: 0
A84: Uranium-235 | B84: - | C84: 0 | D84: 0 | E84: 0 | F84: 0 | G84: 0 | H84: 0 | I84: 0 | L84: 0
A85: Uranium-238 | B85: - | C85: 0 | D85: 0 | E85: 0 | F85: 0 | G85: 0 | H85: 0 | I85: 0 | L85: 0
A86: Neptunium-237 | B86: - | C86: 0 | D86: 0 | E86: 0 | F86: 0 | G86: 0 | H86: 0 | I86: 0 | L86: 0
A87: Plutonium-238 | B87: - | C87: 0 | D87: 0 | E87: 0 | F87: 0 | G87: 0 | H87: 0 | I87: 0 | L87: 0
A88: Plutonium-239 | B88: - | C88: 0 | D88: 0 | E88: 0 | F88: 0 | G88: 0 | H88: 0 | I88: 0 | L88: 0
A89: Plutonium-240 | B89: - | C89: 0 | D89: 0 | E89: 0 | F89: 0 | G89: 0 | H89: 0 | I89: 0 | L89: 0
A90: Plutonium-241 | B90: - | C90: 0 | D90: 0 | E90: 0 | F90: 0 | G90: 0 | H90: 0 | I90: 0 | L90: 0
A91: Plutonium-242 | B91: - | C91: 0 | D91: 0 | E91: 0 | F91: 0 | G91: 0 | H91: 0 | I91: 0 | L91: 0
A92: Americium-241 | B92: - | C92: 0 | D92: 0 | E92: 0 | F92: 0 | G92: 0 | H92: 0 | I92: 0 | L92: 0
A93: Americium-242 | B93: - | C93: 0 | D93: 0 | E93: 0 | F93: 0 | G93: 0 | H93: 0 | I93: 0 | L93: 0
A94: Americium-243 | B94: - | C94: 0 | D94: 0 | E94: 0 | F94: 0 | G94: 0 | H94: 0 | I94: 0 | L94: 0
A95: Curium-242 | B95: - | C95: 0 | D95: 0 | E95: 0 | F95: 0 | G95: 0 | H95: 0 | I95: 0 | L95: 0
A96: Curium-243 | B96: - | C96: 0 | D96: 0 | E96: 0 | F96: 0 | G96: 0 | H96: 0 | I96: 0 | L96: 0
A97: Curium-244 | B97: - | C97: 0 | D97: 0 | E97: 0 | F97: 0 | G97: 0 | H97: 0 | I97: 0 | L97: 0
A98: Other alpha-emitting nuclides | B98: Radium-226 | C98: 0 | D98: 0 | E98: 0 | F98: 0 | G98: 0 | H98: 0 | I98: 0 | L98: 0
A99: Other beta/gamma-emitting nuclides | B99: Caesium-137 | C99: 0 | D99: 0 | E99: 0 | F99: 0 | G99: 0 | H99: 0 | I99: 0 | L99: 0
L100: stop
B101: Total doses | C101: =SUM(C7:C99) -> 0 | D101: =SUM(D7:D99) -> 0 | E101: =SUM(E7:E99) -> 0 | F101: 0 | G101: 0 | H101: 0 | I101: 0 | J101: =('Assessment Details'!C10) -> mSv/y
K102: stop

Sheet PRINT VIEW (hidden)
A1: Name of sewage works : | J1: DATE: | K1: =('Assessment Details'!F45) -> 2016-09-27T11:35:14.030
A2: SEPA Reference Number: | C2: ='Assessment Details'!B8 -> x
A5: Where does effluent discharge from STW go?:
A6: To a burn? | C6: No | F6: burn factor
A8: To a river direct from STW or via a burn? | C8: No | F8: River factor
A10: To estuary/coast direct from STW or via a burn or river? | C10: Yes | F10: Estuary factor
A12: Data entry:
A13: Average burn flow rate | C13: 0.1 | D13: m3/s
A15: Average river flow rate | C15: 49.16 | D15: m3/s
A17: Sewage works | C17: Seafield (Blackburn)
A18: Sewage works | C18: User defined
A19: Average raw sewage flow rate | C19: =INDEX(#REF!, MATCH($C$21,#REF!,), MATCH("average raw sewage flow rate (m3/day)",#REF!,)) ->  | D19: m3/day
A20: User defined Average raw sewage flow rate | C20: 0 | D20: m3/day
A22: Average coastal/estuary exchange rate | C22: 30 | D22: m3/s
B24: Name | D24: Signature | F24: Date
A25: Assessed by | F25: =NOW() -> 2016-09-27T11:35:14.030
A26: Reviewed by
A29: WORST CASE SCENARIO
A39: Radionuclide | B39: Surrogate radionuclide | C39: STW worker dose | D39: Farming family dose | E39: Child playing in burn dose | F39: Angler dose | G39: Irrigated food consumer dose | H39: Fisherman dose | I39: Worst dose | J39: % Contribution | K39: Worst population group
C40: mSv/y | D40: mSv/y | E40: mSv/y | F40: mSv/y | G40: mSv/y | H40: mSv/y | I40: mSv/y
A41: Tritium | B41: =('Summary Cumulative doses'!B7) -> - | C41: =('Summary Cumulative doses'!C7) -> 0 | D41: =('Summary Cumulative doses'!D7) -> 0 | E41: =('Summary Cumulative doses'!E7) -> 0 | F41: =('Summary Cumulative doses'!F7) -> 0 | G41: =('Summary Cumulative doses'!G7) -> 0 | H41: =('Summary Cumulative doses'!H7) -> 0 | I41: =('Summary Cumulative doses'!I7) -> 0 | J41: =('Summary Cumulative doses'!J7) ->  | K41: =('Summary Cumulative doses'!K7) -> 
A42: Tritium (Organically Bound) | B42: =('Summary Cumulative doses'!B8) -> - | C42: =('Summary Cumulative doses'!C8) -> 0 | D42: =('Summary Cumulative doses'!D8) -> 0 | E42: =('Summary Cumulative doses'!E8) -> 0 | F42: =('Summary Cumulative doses'!F8) -> 0 | G42: =('Summary Cumulative doses'!G8) -> 0 | H42: =('Summary Cumulative doses'!H8) -> 0 | I42: =('Summary Cumulative doses'!I8) -> 0 | J42: =('Summary Cumulative doses'!J8) ->  | K42: =('Summary Cumulative doses'!K8) -> 
A43: Carbon-11 | B43: =('Summary Cumulative doses'!B9) -> - | C43: =('Summary Cumulative doses'!C9) -> 0 | D43: =('Summary Cumulative doses'!D9) -> 0 | E43: =('Summary Cumulative doses'!E9) -> 0 | F43: =('Summary Cumulative doses'!F9) -> 0 | G43: =('Summary Cumulative doses'!G9) -> 0 | H43: =('Summary Cumulative doses'!H9) -> 0 | I43: =('Summary Cumulative doses'!I9) -> 0 | J43: =('Summary Cumulative doses'!J9) ->  | K43: =('Summary Cumulative doses'!K9) -> 
A44: Carbon-14 | B44: =('Summary Cumulative doses'!B10) -> - | C44: =('Summary Cumulative doses'!C10) -> 0 | D44: =('Summary Cumulative doses'!D10) -> 0 | E44: =('Summary Cumulative doses'!E10) -> 0 | F44: =('Summary Cumulative doses'!F10) -> 0 | G44: =('Summary Cumulative doses'!G10) -> 0 | H44: =('Summary Cumulative doses'!H10) -> 0 | I44: =('Summary Cumulative doses'!I10) -> 0 | J44: =('Summary Cumulative doses'!J10) ->  | K44: =('Summary Cumulative doses'!K10) -> 
A45: Fluorine-18 | B45: =('Summary Cumulative doses'!B11) -> Sodium-24 | C45: =('Summary Cumulative doses'!C11) -> 0 | D45: =('Summary Cumulative doses'!D11) -> 0 | E45: =('Summary Cumulative doses'!E11) -> 0 | F45: =('Summary Cumulative doses'!F11) -> 0 | G45: =('Summary Cumulative doses'!G11) -> 0 | H45: =('Summary Cumulative doses'!H11) -> 0 | I45: =('Summary Cumulative doses'!I11) -> 0 | J45: =('Summary Cumulative doses'!J11) ->  | K45: =('Summary Cumulative doses'!K11) -> 
A46: Sodium-22 | B46: =('Summary Cumulative doses'!B12) -> - | C46: =('Summary Cumulative doses'!C12) -> 0 | D46: =('Summary Cumulative doses'!D12) -> 0 | E46: =('Summary Cumulative doses'!E12) -> 0 | F46: =('Summary Cumulative doses'!F12) -> 0 | G46: =('Summary Cumulative doses'!G12) -> 0 | H46: =('Summary Cumulative doses'!H12) -> 0 | I46: =('Summary Cumulative doses'!I12) -> 0 | J46: =('Summary Cumulative doses'!J12) ->  | K46: =('Summary Cumulative doses'!K12) -> 
A47: Sodium-24 | B47: =('Summary Cumulative doses'!B13) -> - | C47: =('Summary Cumulative doses'!C13) -> 0 | D47: =('Summary Cumulative doses'!D13) -> 0 | E47: =('Summary Cumulative doses'!E13) -> 0 | F47: =('Summary Cumulative doses'!F13) -> 0 | G47: =('Summary Cumulative doses'!G13) -> 0 | H47: =('Summary Cumulative doses'!H13) -> 0 | I47: =('Summary Cumulative doses'!I13) -> 0 | J47: =('Summary Cumulative doses'!J13) ->  | K47: =('Summary Cumulative doses'!K13) -> 
A48: Phosphorus-32 | B48: =('Summary Cumulative doses'!B14) -> - | C48: =('Summary Cumulative doses'!C14) -> 0 | D48: =('Summary Cumulative doses'!D14) -> 0 | E48: =('Summary Cumulative doses'!E14) -> 0 | F48: =('Summary Cumulative doses'!F14) -> 0 | G48: =('Summary Cumulative doses'!G14) -> 0 | H48: =('Summary Cumulative doses'!H14) -> 0 | I48: =('Summary Cumulative doses'!I14) -> 0 | J48: =('Summary Cumulative doses'!J14) ->  | K48: =('Summary Cumulative doses'!K14) -> 
A49: Phosphorus-33 | B49: =('Summary Cumulative doses'!B15) -> - | C49: =('Summary Cumulative doses'!C15) -> 0 | D49: =('Summary Cumulative doses'!D15) -> 0 | E49: =('Summary Cumulative doses'!E15) -> 0 | F49: =('Summary Cumulative doses'!F15) -> 0 | G49: =('Summary Cumulative doses'!G15) -> 0 | H49: =('Summary Cumulative doses'!H15) -> 0 | I49: =('Summary Cumulative doses'!I15) -> 0 | J49: =('Summary Cumulative doses'!J15) ->  | K49: =('Summary Cumulative doses'!K15) -> 
A50: Sulphur-35 | B50: =('Summary Cumulative doses'!B16) -> - | C50: =('Summary Cumulative doses'!C16) -> 0 | D50: =('Summary Cumulative doses'!D16) -> 0 | E50: =('Summary Cumulative doses'!E16) -> 0 | F50: =('Summary Cumulative doses'!F16) -> 0 | G50: =('Summary Cumulative doses'!G16) -> 0 | H50: =('Summary Cumulative doses'!H16) -> 0 | I50: =('Summary Cumulative doses'!I16) -> 0 | J50: =('Summary Cumulative doses'!J16) ->  | K50: =('Summary Cumulative doses'!K16) -> 
A51: Chlorine-36 | B51: =('Summary Cumulative doses'!B17) -> - | C51: =('Summary Cumulative doses'!C17) -> 0 | D51: =('Summary Cumulative doses'!D17) -> 0 | E51: =('Summary Cumulative doses'!E17) -> 0 | F51: =('Summary Cumulative doses'!F17) -> 0 | G51: =('Summary Cumulative doses'!G17) -> 0 | H51: =('Summary Cumulative doses'!H17) -> 0 | I51: =('Summary Cumulative doses'!I17) -> 0 | J51: =('Summary Cumulative doses'!J17) ->  | K51: =('Summary Cumulative doses'!K17) -> 
A52: Calcium-45 | B52: =('Summary Cumulative doses'!B18) -> - | C52: =('Summary Cumulative doses'!C18) -> 0 | D52: =('Summary Cumulative doses'!D18) -> 0 | E52: =('Summary Cumulative doses'!E18) -> 0 | F52: =('Summary Cumulative doses'!F18) -> 0 | G52: =('Summary Cumulative doses'!G18) -> 0 | H52: =('Summary Cumulative doses'!H18) -> 0 | I52: =('Summary Cumulative doses'!I18) -> 0 | J52: =('Summary Cumulative doses'!J18) ->  | K52: =('Summary Cumulative doses'!K18) -> 
A53: Calcium-47 | B53: =('Summary Cumulative doses'!B19) -> - | C53: =('Summary Cumulative doses'!C19) -> 0 | D53: =('Summary Cumulative doses'!D19) -> 0 | E53: =('Summary Cumulative doses'!E19) -> 0 | F53: =('Summary Cumulative doses'!F19) -> 0 | G53: =('Summary Cumulative doses'!G19) -> 0 | H53: =('Summary Cumulative doses'!H19) -> 0 | I53: =('Summary Cumulative doses'!I19) -> 0 | J53: =('Summary Cumulative doses'!J19) ->  | K53: =('Summary Cumulative doses'!K19) -> 
A54: Vanadium-48 | B54: =('Summary Cumulative doses'!B20) -> - | C54: =('Summary Cumulative doses'!C20) -> 0 | D54: =('Summary Cumulative doses'!D20) -> 0 | E54: =('Summary Cumulative doses'!E20) -> 0 | F54: =('Summary Cumulative doses'!F20) -> 0 | G54: =('Summary Cumulative doses'!G20) -> 0 | H54: =('Summary Cumulative doses'!H20) -> 0 | I54: =('Summary Cumulative doses'!I20) -> 0 | J54: =('Summary Cumulative doses'!J20) ->  | K54: =('Summary Cumulative doses'!K20) -> 
A55: Chromium-51 | B55: =('Summary Cumulative doses'!B21) -> - | C55: =('Summary Cumulative doses'!C21) -> 0 | D55: =('Summary Cumulative doses'!D21) -> 0 | E55: =('Summary Cumulative doses'!E21) -> 0 | F55: =('Summary Cumulative doses'!F21) -> 0 | G55: =('Summary Cumulative doses'!G21) -> 0 | H55: =('Summary Cumulative doses'!H21) -> 0 | I55: =('Summary Cumulative doses'!I21) -> 0 | J55: =('Summary Cumulative doses'!J21) ->  | K55: =('Summary Cumulative doses'!K21) -> 
A56: Manganese-52 | B56: =('Summary Cumulative doses'!B22) -> - | C56: =('Summary Cumulative doses'!C22) -> 0 | D56: =('Summary Cumulative doses'!D22) -> 0 | E56: =('Summary Cumulative doses'!E22) -> 0 | F56: =('Summary Cumulative doses'!F22) -> 0 | G56: =('Summary Cumulative doses'!G22) -> 0 | H56: =('Summary Cumulative doses'!H22) -> 0 | I56: =('Summary Cumulative doses'!I22) -> 0 | J56: =('Summary Cumulative doses'!J22) ->  | K56: =('Summary Cumulative doses'!K22) -> 
A57: Manganese-54 | B57: =('Summary Cumulative doses'!B23) -> - | C57: =('Summary Cumulative doses'!C23) -> 0 | D57: =('Summary Cumulative doses'!D23) -> 0 | E57: =('Summary Cumulative doses'!E23) -> 0 | F57: =('Summary Cumulative doses'!F23) -> 0 | G57: =('Summary Cumulative doses'!G23) -> 0 | H57: =('Summary Cumulative doses'!H23) -> 0 | I57: =('Summary Cumulative doses'!I23) -> 0 | J57: =('Summary Cumulative doses'!J23) ->  | K57: =('Summary Cumulative doses'!K23) -> 
A58: Manganese-56 | B58: =('Summary Cumulative doses'!B24) -> Manganese-54 | C58: =('Summary Cumulative doses'!C24) -> 0 | D58: =('Summary Cumulative doses'!D24) -> 0 | E58: =('Summary Cumulative doses'!E24) -> 0 | F58: =('Summary Cumulative doses'!F24) -> 0 | G58: =('Summary Cumulative doses'!G24) -> 0 | H58: =('Summary Cumulative doses'!H24) -> 0 | I58: =('Summary Cumulative doses'!I24) -> 0 | J58: =('Summary Cumulative doses'!J24) ->  | K58: =('Summary Cumulative doses'!K24) -> 
A59: Iron-55 | B59: =('Summary Cumulative doses'!B25) -> - | C59: =('Summary Cumulative doses'!C25) -> 0 | D59: =('Summary Cumulative doses'!D25) -> 0 | E59: =('Summary Cumulative doses'!E25) -> 0 | F59: =('Summary Cumulative doses'!F25) -> 0 | G59: =('Summary Cumulative doses'!G25) -> 0 | H59: =('Summary Cumulative doses'!H25) -> 0 | I59: =('Summary Cumulative doses'!I25) -> 0 | J59: =('Summary Cumulative doses'!J25) ->  | K59: =('Summary Cumulative doses'!K25) -> 
A60: Iron-59 | B60: =('Summary Cumulative doses'!B26) -> - | C60: =('Summary Cumulative doses'!C26) -> 0 | D60: =('Summary Cumulative doses'!D26) -> 0 | E60: =('Summary Cumulative doses'!E26) -> 0 | F60: =('Summary Cumulative doses'!F26) -> 0 | G60: =('Summary Cumulative doses'!G26) -> 0 | H60: =('Summary Cumulative doses'!H26) -> 0 | I60: =('Summary Cumulative doses'!I26) -> 0 | J60: =('Summary Cumulative doses'!J26) ->  | K60: =('Summary Cumulative doses'!K26) -> 
A61: Cobalt-56 | B61: =('Summary Cumulative doses'!B27) -> - | C61: =('Summary Cumulative doses'!C27) -> 0 | D61: =('Summary Cumulative doses'!D27) -> 0 | E61: =('Summary Cumulative doses'!E27) -> 0 | F61: =('Summary Cumulative doses'!F27) -> 0 | G61: =('Summary Cumulative doses'!G27) -> 0 | H61: =('Summary Cumulative doses'!H27) -> 0 | I61: =('Summary Cumulative doses'!I27) -> 0 | J61: =('Summary Cumulative doses'!J27) ->  | K61: =('Summary Cumulative doses'!K27) -> 
A62: Cobalt-57 | B62: =('Summary Cumulative doses'!B28) -> - | C62: =('Summary Cumulative doses'!C28) -> 0 | D62: =('Summary Cumulative doses'!D28) -> 0 | E62: =('Summary Cumulative doses'!E28) -> 0 | F62: =('Summary Cumulative doses'!F28) -> 0 | G62: =('Summary Cumulative doses'!G28) -> 0 | H62: =('Summary Cumulative doses'!H28) -> 0 | I62: =('Summary Cumulative doses'!I28) -> 0 | J62: =('Summary Cumulative doses'!J28) ->  | K62: =('Summary Cumulative doses'!K28) -> 
A63: Cobalt-58 | B63: =('Summary Cumulative doses'!B29) -> - | C63: =('Summary Cumulative doses'!C29) -> 0 | D63: =('Summary Cumulative doses'!D29) -> 0 | E63: =('Summary Cumulative doses'!E29) -> 0 | F63: =('Summary Cumulative doses'!F29) -> 0 | G63: =('Summary Cumulative doses'!G29) -> 0 | H63: =('Summary Cumulative doses'!H29) -> 0 | I63: =('Summary Cumulative doses'!I29) -> 0 | J63: =('Summary Cumulative doses'!J29) ->  | K63: =('Summary Cumulative doses'!K29) -> 
A64: Cobalt-60 | B64: =('Summary Cumulative doses'!B30) -> - | C64: =('Summary Cumulative doses'!C30) -> 0 | D64: =('Summary Cumulative doses'!D30) -> 0 | E64: =('Summary Cumulative doses'!E30) -> 0 | F64: =('Summary Cumulative doses'!F30) -> 0 | G64: =('Summary Cumulative doses'!G30) -> 0 | H64: =('Summary Cumulative doses'!H30) -> 0 | I64: =('Summary Cumulative doses'!I30) -> 0 | J64: =('Summary Cumulative doses'!J30) ->  | K64: =('Summary Cumulative doses'!K30) -> 
A65: Nickel-63 | B65: =('Summary Cumulative doses'!B31) -> - | C65: =('Summary Cumulative doses'!C31) -> 0 | D65: =('Summary Cumulative doses'!D31) -> 0 | E65: =('Summary Cumulative doses'!E31) -> 0 | F65: =('Summary Cumulative doses'!F31) -> 0 | G65: =('Summary Cumulative doses'!G31) -> 0 | H65: =('Summary Cumulative doses'!H31) -> 0 | I65: =('Summary Cumulative doses'!I31) -> 0 | J65: =('Summary Cumulative doses'!J31) ->  | K65: =('Summary Cumulative doses'!K31) -> 
A66: Zinc-65 | B66: =('Summary Cumulative doses'!B32) -> - | C66: =('Summary Cumulative doses'!C32) -> 0 | D66: =('Summary Cumulative doses'!D32) -> 0 | E66: =('Summary Cumulative doses'!E32) -> 0 | F66: =('Summary Cumulative doses'!F32) -> 0 | G66: =('Summary Cumulative doses'!G32) -> 0 | H66: =('Summary Cumulative doses'!H32) -> 0 | I66: =('Summary Cumulative doses'!I32) -> 0 | J66: =('Summary Cumulative doses'!J32) ->  | K66: =('Summary Cumulative doses'!K32) -> 
A67: Gallium-67 | B67: =('Summary Cumulative doses'!B33) -> - | C67: =('Summary Cumulative doses'!C33) -> 0 | D67: =('Summary Cumulative doses'!D33) -> 0 | E67: =('Summary Cumulative doses'!E33) -> 0 | F67: =('Summary Cumulative doses'!F33) -> 0 | G67: =('Summary Cumulative doses'!G33) -> 0 | H67: =('Summary Cumulative doses'!H33) -> 0 | I67: =('Summary Cumulative doses'!I33) -> 0 | J67: =('Summary Cumulative doses'!J33) ->  | K67: =('Summary Cumulative doses'!K33) -> 
A68: Selenium-75 | B68: =('Summary Cumulative doses'!B34) -> - | C68: =('Summary Cumulative doses'!C34) -> 0 | D68: =('Summary Cumulative doses'!D34) -> 0 | E68: =('Summary Cumulative doses'!E34) -> 0 | F68: =('Summary Cumulative doses'!F34) -> 0 | G68: =('Summary Cumulative doses'!G34) -> 0 | H68: =('Summary Cumulative doses'!H34) -> 0 | I68: =('Summary Cumulative doses'!I34) -> 0 | J68: =('Summary Cumulative doses'!J34) ->  | K68: =('Summary Cumulative doses'!K34) -> 
A69: Bromine-82 | B69: =('Summary Cumulative doses'!B35) -> - | C69: =('Summary Cumulative doses'!C35) -> 0 | D69: =('Summary Cumulative doses'!D35) -> 0 | E69: =('Summary Cumulative doses'!E35) -> 0 | F69: =('Summary Cumulative doses'!F35) -> 0 | G69: =('Summary Cumulative doses'!G35) -> 0 | H69: =('Summary Cumulative doses'!H35) -> 0 | I69: =('Summary Cumulative doses'!I35) -> 0 | J69: =('Summary Cumulative doses'!J35) ->  | K69: =('Summary Cumulative doses'!K35) -> 
A70: Rubidium-82 | B70: =('Summary Cumulative doses'!B36) -> Rubidium-83 | C70: =('Summary Cumulative doses'!C36) -> 0 | D70: =('Summary Cumulative doses'!D36) -> 0 | E70: =('Summary Cumulative doses'!E36) -> 0 | F70: =('Summary Cumulative doses'!F36) -> 0 | G70: =('Summary Cumulative doses'!G36) -> 0 | H70: =('Summary Cumulative doses'!H36) -> 0 | I70: =('Summary Cumulative doses'!I36) -> 0 | J70: =('Summary Cumulative doses'!J36) ->  | K70: =('Summary Cumulative doses'!K36) -> 
A71: Rubidium-83 | B71: =('Summary Cumulative doses'!B37) -> - | C71: =('Summary Cumulative doses'!C37) -> 0 | D71: =('Summary Cumulative doses'!D37) -> 0 | E71: =('Summary Cumulative doses'!E37) -> 0 | F71: =('Summary Cumulative doses'!F37) -> 0 | G71: =('Summary Cumulative doses'!G37) -> 0 | H71: =('Summary Cumulative doses'!H37) -> 0 | I71: =('Summary Cumulative doses'!I37) -> 0 | J71: =('Summary Cumulative doses'!J37) ->  | K71: =('Summary Cumulative doses'!K37) -> 
A72: Strontium-89 | B72: =('Summary Cumulative doses'!B38) -> - | C72: =('Summary Cumulative doses'!C38) -> 0 | D72: =('Summary Cumulative doses'!D38) -> 0 | E72: =('Summary Cumulative doses'!E38) -> 0 | F72: =('Summary Cumulative doses'!F38) -> 0 | G72: =('Summary Cumulative doses'!G38) -> 0 | H72: =('Summary Cumulative doses'!H38) -> 0 | I72: =('Summary Cumulative doses'!I38) -> 0 | J72: =('Summary Cumulative doses'!J38) ->  | K72: =('Summary Cumulative doses'!K38) -> 
A73: Strontium-90 | B73: =('Summary Cumulative doses'!B39) -> - | C73: =('Summary Cumulative doses'!C39) -> 0 | D73: =('Summary Cumulative doses'!D39) -> 0 | E73: =('Summary Cumulative doses'!E39) -> 0 | F73: =('Summary Cumulative doses'!F39) -> 0 | G73: =('Summary Cumulative doses'!G39) -> 0 | H73: =('Summary Cumulative doses'!H39) -> 0 | I73: =('Summary Cumulative doses'!I39) -> 0 | J73: =('Summary Cumulative doses'!J39) ->  | K73: =('Summary Cumulative doses'!K39) -> 
A74: Yttrium-90 | B74: =('Summary Cumulative doses'!B40) -> - | C74: =('Summary Cumulative doses'!C40) -> 0 | D74: =('Summary Cumulative doses'!D40) -> 0 | E74: =('Summary Cumulative doses'!E40) -> 0 | F74: =('Summary Cumulative doses'!F40) -> 0 | G74: =('Summary Cumulative doses'!G40) -> 0 | H74: =('Summary Cumulative doses'!H40) -> 0 | I74: =('Summary Cumulative doses'!I40) -> 0 | J74: =('Summary Cumulative doses'!J40) ->  | K74: =('Summary Cumulative doses'!K40) -> 
A75: Zirconium-95 | B75: =('Summary Cumulative doses'!B41) -> - | C75: =('Summary Cumulative doses'!C41) -> 0 | D75: =('Summary Cumulative doses'!D41) -> 0 | E75: =('Summary Cumulative doses'!E41) -> 0 | F75: =('Summary Cumulative doses'!F41) -> 0 | G75: =('Summary Cumulative doses'!G41) -> 0 | H75: =('Summary Cumulative doses'!H41) -> 0 | I75: =('Summary Cumulative doses'!I41) -> 0 | J75: =('Summary Cumulative doses'!J41) ->  | K75: =('Summary Cumulative doses'!K41) -> 
A76: Niobium-95 | B76: =('Summary Cumulative doses'!B42) -> - | C76: =('Summary Cumulative doses'!C42) -> 0 | D76: =('Summary Cumulative doses'!D42) -> 0 | E76: =('Summary Cumulative doses'!E42) -> 0 | F76: =('Summary Cumulative doses'!F42) -> 0 | G76: =('Summary Cumulative doses'!G42) -> 0 | H76: =('Summary Cumulative doses'!H42) -> 0 | I76: =('Summary Cumulative doses'!I42) -> 0 | J76: =('Summary Cumulative doses'!J42) ->  | K76: =('Summary Cumulative doses'!K42) -> 
A77: Molybdenum-99 | B77: =('Summary Cumulative doses'!B43) -> - | C77: =('Summary Cumulative doses'!C43) -> 0 | D77: =('Summary Cumulative doses'!D43) -> 0 | E77: =('Summary Cumulative doses'!E43) -> 0 | F77: =('Summary Cumulative doses'!F43) -> 0 | G77: =('Summary Cumulative doses'!G43) -> 0 | H77: =('Summary Cumulative doses'!H43) -> 0 | I77: =('Summary Cumulative doses'!I43) -> 0 | J77: =('Summary Cumulative doses'!J43) ->  | K77: =('Summary Cumulative doses'!K43) -> 
A78: Technetium-99 | B78: =('Summary Cumulative doses'!B44) -> - | C78: =('Summary Cumulative doses'!C44) -> 0 | D78: =('Summary Cumulative doses'!D44) -> 0 | E78: =('Summary Cumulative doses'!E44) -> 0 | F78: =('Summary Cumulative doses'!F44) -> 0 | G78: =('Summary Cumulative doses'!G44) -> 0 | H78: =('Summary Cumulative doses'!H44) -> 0 | I78: =('Summary Cumulative doses'!I44) -> 0 | J78: =('Summary Cumulative doses'!J44) ->  | K78: =('Summary Cumulative doses'!K44) -> 
A79: Technetium-99m | B79: =('Summary Cumulative doses'!B45) -> - | C79: =('Summary Cumulative doses'!C45) -> 0 | D79: =('Summary Cumulative doses'!D45) -> 0 | E79: =('Summary Cumulative doses'!E45) -> 0 | F79: =('Summary Cumulative doses'!F45) -> 0 | G79: =('Summary Cumulative doses'!G45) -> 0 | H79: =('Summary Cumulative doses'!H45) -> 0 | I79: =('Summary Cumulative doses'!I45) -> 0 | J79: =('Summary Cumulative doses'!J45) ->  | K79: =('Summary Cumulative doses'!K45) -> 
A80: Ruthenium-103 | B80: =('Summary Cumulative doses'!B46) -> - | C80: =('Summary Cumulative doses'!C46) -> 0 | D80: =('Summary Cumulative doses'!D46) -> 0 | E80: =('Summary Cumulative doses'!E46) -> 0 | F80: =('Summary Cumulative doses'!F46) -> 0 | G80: =('Summary Cumulative doses'!G46) -> 0 | H80: =('Summary Cumulative doses'!H46) -> 0 | I80: =('Summary Cumulative doses'!I46) -> 0 | J80: =('Summary Cumulative doses'!J46) ->  | K80: =('Summary Cumulative doses'!K46) -> 
A81: Ruthenium-106 | B81: =('Summary Cumulative doses'!B47) -> - | C81: =('Summary Cumulative doses'!C47) -> 0 | D81: =('Summary Cumulative doses'!D47) -> 0 | E81: =('Summary Cumulative doses'!E47) -> 0 | F81: =('Summary Cumulative doses'!F47) -> 0 | G81: =('Summary Cumulative doses'!G47) -> 0 | H81: =('Summary Cumulative doses'!H47) -> 0 | I81: =('Summary Cumulative doses'!I47) -> 0 | J81: =('Summary Cumulative doses'!J47) ->  | K81: =('Summary Cumulative doses'!K47) -> 
A82: Silver-110m | B82: =('Summary Cumulative doses'!B48) -> - | C82: =('Summary Cumulative doses'!C48) -> 0 | D82: =('Summary Cumulative doses'!D48) -> 0 | E82: =('Summary Cumulative doses'!E48) -> 0 | F82: =('Summary Cumulative doses'!F48) -> 0 | G82: =('Summary Cumulative doses'!G48) -> 0 | H82: =('Summary Cumulative doses'!H48) -> 0 | I82: =('Summary Cumulative doses'!I48) -> 0 | J82: =('Summary Cumulative doses'!J48) ->  | K82: =('Summary Cumulative doses'!K48) -> 
A83: Indium-111 | B83: =('Summary Cumulative doses'!B49) -> - | C83: =('Summary Cumulative doses'!C49) -> 0 | D83: =('Summary Cumulative doses'!D49) -> 0 | E83: =('Summary Cumulative doses'!E49) -> 0 | F83: =('Summary Cumulative doses'!F49) -> 0 | G83: =('Summary Cumulative doses'!G49) -> 0 | H83: =('Summary Cumulative doses'!H49) -> 0 | I83: =('Summary Cumulative doses'!I49) -> 0 | J83: =('Summary Cumulative doses'!J49) ->  | K83: =('Summary Cumulative doses'!K49) -> 
A84: Indium-113m | B84: =('Summary Cumulative doses'!B50) -> Indium-111 | C84: =('Summary Cumulative doses'!C50) -> 0 | D84: =('Summary Cumulative doses'!D50) -> 0 | E84: =('Summary Cumulative doses'!E50) -> 0 | F84: =('Summary Cumulative doses'!F50) -> 0 | G84: =('Summary Cumulative doses'!G50) -> 0 | H84: =('Summary Cumulative doses'!H50) -> 0 | I84: =('Summary Cumulative doses'!I50) -> 0 | J84: =('Summary Cumulative doses'!J50) ->  | K84: =('Summary Cumulative doses'!K50) -> 
A85: Antimony-125 | B85: =('Summary Cumulative doses'!B51) -> - | C85: =('Summary Cumulative doses'!C51) -> 0 | D85: =('Summary Cumulative doses'!D51) -> 0 | E85: =('Summary Cumulative doses'!E51) -> 0 | F85: =('Summary Cumulative doses'!F51) -> 0 | G85: =('Summary Cumulative doses'!G51) -> 0 | H85: =('Summary Cumulative doses'!H51) -> 0 | I85: =('Summary Cumulative doses'!I51) -> 0 | J85: =('Summary Cumulative doses'!J51) ->  | K85: =('Summary Cumulative doses'!K51) -> 
A86: Iodine-123 | B86: =('Summary Cumulative doses'!B52) -> - | C86: =('Summary Cumulative doses'!C52) -> 0 | D86: =('Summary Cumulative doses'!D52) -> 0 | E86: =('Summary Cumulative doses'!E52) -> 0 | F86: =('Summary Cumulative doses'!F52) -> 0 | G86: =('Summary Cumulative doses'!G52) -> 0 | H86: =('Summary Cumulative doses'!H52) -> 0 | I86: =('Summary Cumulative doses'!I52) -> 0 | J86: =('Summary Cumulative doses'!J52) ->  | K86: =('Summary Cumulative doses'!K52) -> 
A87: Iodine-125 | B87: =('Summary Cumulative doses'!B53) -> - | C87: =('Summary Cumulative doses'!C53) -> 0 | D87: =('Summary Cumulative doses'!D53) -> 0 | E87: =('Summary Cumulative doses'!E53) -> 0 | F87: =('Summary Cumulative doses'!F53) -> 0 | G87: =('Summary Cumulative doses'!G53) -> 0 | H87: =('Summary Cumulative doses'!H53) -> 0 | I87: =('Summary Cumulative doses'!I53) -> 0 | J87: =('Summary Cumulative doses'!J53) ->  | K87: =('Summary Cumulative doses'!K53) -> 
A88: Iodine-129 | B88: =('Summary Cumulative doses'!B54) -> - | C88: =('Summary Cumulative doses'!C54) -> 0 | D88: =('Summary Cumulative doses'!D54) -> 0 | E88: =('Summary Cumulative doses'!E54) -> 0 | F88: =('Summary Cumulative doses'!F54) -> 0 | G88: =('Summary Cumulative doses'!G54) -> 0 | H88: =('Summary Cumulative doses'!H54) -> 0 | I88: =('Summary Cumulative doses'!I54) -> 0 | J88: =('Summary Cumulative doses'!J54) ->  | K88: =('Summary Cumulative doses'!K54) -> 
A89: Iodine-131 | B89: =('Summary Cumulative doses'!B55) -> - | C89: =('Summary Cumulative doses'!C55) -> 0 | D89: =('Summary Cumulative doses'!D55) -> 0 | E89: =('Summary Cumulative doses'!E55) -> 0 | F89: =('Summary Cumulative doses'!F55) -> 0 | G89: =('Summary Cumulative doses'!G55) -> 0 | H89: =('Summary Cumulative doses'!H55) -> 0 | I89: =('Summary Cumulative doses'!I55) -> 0 | J89: =('Summary Cumulative doses'!J55) ->  | K89: =('Summary Cumulative doses'!K55) -> 
A90: Iodine-132 | B90: =('Summary Cumulative doses'!B56) -> Iodine-133 | C90: =('Summary Cumulative doses'!C56) -> 0 | D90: =('Summary Cumulative doses'!D56) -> 0 | E90: =('Summary Cumulative doses'!E56) -> 0 | F90: =('Summary Cumulative doses'!F56) -> 0 | G90: =('Summary Cumulative doses'!G56) -> 0 | H90: =('Summary Cumulative doses'!H56) -> 0 | I90: =('Summary Cumulative doses'!I56) -> 0 | J90: =('Summary Cumulative doses'!J56) ->  | K90: =('Summary Cumulative doses'!K56) -> 
A91: Iodine-133 | B91: =('Summary Cumulative doses'!B57) -> - | C91: =('Summary Cumulative doses'!C57) -> 0 | D91: =('Summary Cumulative doses'!D57) -> 0 | E91: =('Summary Cumulative doses'!E57) -> 0 | F91: =('Summary Cumulative doses'!F57) -> 0 | G91: =('Summary Cumulative doses'!G57) -> 0 | H91: =('Summary Cumulative doses'!H57) -> 0 | I91: =('Summary Cumulative doses'!I57) -> 0 | J91: =('Summary Cumulative doses'!J57) ->  | K91: =('Summary Cumulative doses'!K57) -> 
E92: PAGE 1
A93: Iodine-134 | B93: =('Summary Cumulative doses'!B58) -> Iodine-133 | C93: =('Summary Cumulative doses'!C58) -> 0 | D93: =('Summary Cumulative doses'!D58) -> 0 | E93: =('Summary Cumulative doses'!E58) -> 0 | F93: =('Summary Cumulative doses'!F58) -> 0 | G93: =('Summary Cumulative doses'!G58) -> 0 | H93: =('Summary Cumulative doses'!H58) -> 0 | I93: =('Summary Cumulative doses'!I58) -> 0 | J93: =('Summary Cumulative doses'!J58) ->  | K93: =('Summary Cumulative doses'!K58) -> 
A94: Iodine-135 | B94: =('Summary Cumulative doses'!B59) -> - | C94: =('Summary Cumulative doses'!C59) -> 0 | D94: =('Summary Cumulative doses'!D59) -> 0 | E94: =('Summary Cumulative doses'!E59) -> 0 | F94: =('Summary Cumulative doses'!F59) -> 0 | G94: =('Summary Cumulative doses'!G59) -> 0 | H94: =('Summary Cumulative doses'!H59) -> 0 | I94: =('Summary Cumulative doses'!I59) -> 0 | J94: =('Summary Cumulative doses'!J59) ->  | K94: =('Summary Cumulative doses'!K59) -> 
A95: Caesium-134 | B95: =('Summary Cumulative doses'!B60) -> - | C95: =('Summary Cumulative doses'!C60) -> 0 | D95: =('Summary Cumulative doses'!D60) -> 0 | E95: =('Summary Cumulative doses'!E60) -> 0 | F95: =('Summary Cumulative doses'!F60) -> 0 | G95: =('Summary Cumulative doses'!G60) -> 0 | H95: =('Summary Cumulative doses'!H60) -> 0 | I95: =('Summary Cumulative doses'!I60) -> 0 | J95: =('Summary Cumulative doses'!J60) ->  | K95: =('Summary Cumulative doses'!K60) -> 
A96: Caesium-136 | B96: =('Summary Cumulative doses'!B61) -> - | C96: =('Summary Cumulative doses'!C61) -> 0 | D96: =('Summary Cumulative doses'!D61) -> 0 | E96: =('Summary Cumulative doses'!E61) -> 0 | F96: =('Summary Cumulative doses'!F61) -> 0 | G96: =('Summary Cumulative doses'!G61) -> 0 | H96: =('Summary Cumulative doses'!H61) -> 0 | I96: =('Summary Cumulative doses'!I61) -> 0 | J96: =('Summary Cumulative doses'!J61) ->  | K96: =('Summary Cumulative doses'!K61) -> 
A97: Caesium-137 | B97: =('Summary Cumulative doses'!B62) -> - | C97: =('Summary Cumulative doses'!C62) -> 0 | D97: =('Summary Cumulative doses'!D62) -> 0 | E97: =('Summary Cumulative doses'!E62) -> 0 | F97: =('Summary Cumulative doses'!F62) -> 0 | G97: =('Summary Cumulative doses'!G62) -> 0 | H97: =('Summary Cumulative doses'!H62) -> 0 | I97: =('Summary Cumulative doses'!I62) -> 0 | J97: =('Summary Cumulative doses'!J62) ->  | K97: =('Summary Cumulative doses'!K62) -> 
A98: Barium-140 | B98: =('Summary Cumulative doses'!B63) -> - | C98: =('Summary Cumulative doses'!C63) -> 0 | D98: =('Summary Cumulative doses'!D63) -> 0 | E98: =('Summary Cumulative doses'!E63) -> 0 | F98: =('Summary Cumulative doses'!F63) -> 0 | G98: =('Summary Cumulative doses'!G63) -> 0 | H98: =('Summary Cumulative doses'!H63) -> 0 | I98: =('Summary Cumulative doses'!I63) -> 0 | J98: =('Summary Cumulative doses'!J63) ->  | K98: =('Summary Cumulative doses'!K63) -> 
A99: Lanthanum-140 | B99: =('Summary Cumulative doses'!B64) -> - | C99: =('Summary Cumulative doses'!C64) -> 0 | D99: =('Summary Cumulative doses'!D64) -> 0 | E99: =('Summary Cumulative doses'!E64) -> 0 | F99: =('Summary Cumulative doses'!F64) -> 0 | G99: =('Summary Cumulative doses'!G64) -> 0 | H99: =('Summary Cumulative doses'!H64) -> 0 | I99: =('Summary Cumulative doses'!I64) -> 0 | J99: =('Summary Cumulative doses'!J64) ->  | K99: =('Summary Cumulative doses'!K64) -> 
A100: Cerium-141 | B100: =('Summary Cumulative doses'!B65) -> - | C100: =('Summary Cumulative doses'!C65) -> 0 | D100: =('Summary Cumulative doses'!D65) -> 0 | E100: =('Summary Cumulative doses'!E65) -> 0 | F100: =('Summary Cumulative doses'!F65) -> 0 | G100: =('Summary Cumulative doses'!G65) -> 0 | H100: =('Summary Cumulative doses'!H65) -> 0 | I100: =('Summary Cumulative doses'!I65) -> 0 | J100: =('Summary Cumulative doses'!J65) ->  | K100: =('Summary Cumulative doses'!K65) -> 
A101: Cerium-144 | B101: =('Summary Cumulative doses'!B66) -> - | C101: =('Summary Cumulative doses'!C66) -> 0 | D101: =('Summary Cumulative doses'!D66) -> 0 | E101: =('Summary Cumulative doses'!E66) -> 0 | F101: =('Summary Cumulative doses'!F66) -> 0 | G101: =('Summary Cumulative doses'!G66) -> 0 | H101: =('Summary Cumulative doses'!H66) -> 0 | I101: =('Summary Cumulative doses'!I66) -> 0 | J101: =('Summary Cumulative doses'!J66) ->  | K101: =('Summary Cumulative doses'!K66) -> 
A102: Promethium-147 | B102: =('Summary Cumulative doses'!B67) -> - | C102: =('Summary Cumulative doses'!C67) -> 0 | D102: =('Summary Cumulative doses'!D67) -> 0 | E102: =('Summary Cumulative doses'!E67) -> 0 | F102: =('Summary Cumulative doses'!F67) -> 0 | G102: =('Summary Cumulative doses'!G67) -> 0 | H102: =('Summary Cumulative doses'!H67) -> 0 | I102: =('Summary Cumulative doses'!I67) -> 0 | J102: =('Summary Cumulative doses'!J67) ->  | K102: =('Summary Cumulative doses'!K67) -> 
A103: Samarium-153 | B103: =('Summary Cumulative doses'!B68) -> - | C103: =('Summary Cumulative doses'!C68) -> 0 | D103: =('Summary Cumulative doses'!D68) -> 0 | E103: =('Summary Cumulative doses'!E68) -> 0 | F103: =('Summary Cumulative doses'!F68) -> 0 | G103: =('Summary Cumulative doses'!G68) -> 0 | H103: =('Summary Cumulative doses'!H68) -> 0 | I103: =('Summary Cumulative doses'!I68) -> 0 | J103: =('Summary Cumulative doses'!J68) ->  | K103: =('Summary Cumulative doses'!K68) -> 
A104: Europium-152 | B104: =('Summary Cumulative doses'!B69) -> - | C104: =('Summary Cumulative doses'!C69) -> 0 | D104: =('Summary Cumulative doses'!D69) -> 0 | E104: =('Summary Cumulative doses'!E69) -> 0 | F104: =('Summary Cumulative doses'!F69) -> 0 | G104: =('Summary Cumulative doses'!G69) -> 0 | H104: =('Summary Cumulative doses'!H69) -> 0 | I104: =('Summary Cumulative doses'!I69) -> 0 | J104: =('Summary Cumulative doses'!J69) ->  | K104: =('Summary Cumulative doses'!K69) -> 
A105: Europium-154 | B105: =('Summary Cumulative doses'!B70) -> - | C105: =('Summary Cumulative doses'!C70) -> 0 | D105: =('Summary Cumulative doses'!D70) -> 0 | E105: =('Summary Cumulative doses'!E70) -> 0 | F105: =('Summary Cumulative doses'!F70) -> 0 | G105: =('Summary Cumulative doses'!G70) -> 0 | H105: =('Summary Cumulative doses'!H70) -> 0 | I105: =('Summary Cumulative doses'!I70) -> 0 | J105: =('Summary Cumulative doses'!J70) ->  | K105: =('Summary Cumulative doses'!K70) -> 
A106: Europium-155 | B106: =('Summary Cumulative doses'!B71) -> - | C106: =('Summary Cumulative doses'!C71) -> 0 | D106: =('Summary Cumulative doses'!D71) -> 0 | E106: =('Summary Cumulative doses'!E71) -> 0 | F106: =('Summary Cumulative doses'!F71) -> 0 | G106: =('Summary Cumulative doses'!G71) -> 0 | H106: =('Summary Cumulative doses'!H71) -> 0 | I106: =('Summary Cumulative doses'!I71) -> 0 | J106: =('Summary Cumulative doses'!J71) ->  | K106: =('Summary Cumulative doses'!K71) -> 
A107: Erbium-169 | B107: =('Summary Cumulative doses'!B72) -> - | C107: =('Summary Cumulative doses'!C72) -> 0 | D107: =('Summary Cumulative doses'!D72) -> 0 | E107: =('Summary Cumulative doses'!E72) -> 0 | F107: =('Summary Cumulative doses'!F72) -> 0 | G107: =('Summary Cumulative doses'!G72) -> 0 | H107: =('Summary Cumulative doses'!H72) -> 0 | I107: =('Summary Cumulative doses'!I72) -> 0 | J107: =('Summary Cumulative doses'!J72) ->  | K107: =('Summary Cumulative doses'!K72) -> 
A108: Lutetium-177 | B108: =('Summary Cumulative doses'!B73) -> - | C108: =('Summary Cumulative doses'!C73) -> 0 | D108: =('Summary Cumulative doses'!D73) -> 0 | E108: =('Summary Cumulative doses'!E73) -> 0 | F108: =('Summary Cumulative doses'!F73) -> 0 | G108: =('Summary Cumulative doses'!G73) -> 0 | H108: =('Summary Cumulative doses'!H73) -> 0 | I108: =('Summary Cumulative doses'!I73) -> 0 | J108: =('Summary Cumulative doses'!J73) ->  | K108: =('Summary Cumulative doses'!K73) -> 
A109: Gold-198 | B109: =('Summary Cumulative doses'!B74) -> - | C109: =('Summary Cumulative doses'!C74) -> 0 | D109: =('Summary Cumulative doses'!D74) -> 0 | E109: =('Summary Cumulative doses'!E74) -> 0 | F109: =('Summary Cumulative doses'!F74) -> 0 | G109: =('Summary Cumulative doses'!G74) -> 0 | H109: =('Summary Cumulative doses'!H74) -> 0 | I109: =('Summary Cumulative doses'!I74) -> 0 | J109: =('Summary Cumulative doses'!J74) ->  | K109: =('Summary Cumulative doses'!K74) -> 
A110: Thallium-201 | B110: =('Summary Cumulative doses'!B75) -> - | C110: =('Summary Cumulative doses'!C75) -> 0 | D110: =('Summary Cumulative doses'!D75) -> 0 | E110: =('Summary Cumulative doses'!E75) -> 0 | F110: =('Summary Cumulative doses'!F75) -> 0 | G110: =('Summary Cumulative doses'!G75) -> 0 | H110: =('Summary Cumulative doses'!H75) -> 0 | I110: =('Summary Cumulative doses'!I75) -> 0 | J110: =('Summary Cumulative doses'!J75) ->  | K110: =('Summary Cumulative doses'!K75) -> 
A111: Lead-210 | B111: =('Summary Cumulative doses'!B76) -> - | C111: =('Summary Cumulative doses'!C76) -> 0 | D111: =('Summary Cumulative doses'!D76) -> 0 | E111: =('Summary Cumulative doses'!E76) -> 0 | F111: =('Summary Cumulative doses'!F76) -> 0 | G111: =('Summary Cumulative doses'!G76) -> 0 | H111: =('Summary Cumulative doses'!H76) -> 0 | I111: =('Summary Cumulative doses'!I76) -> 0 | J111: =('Summary Cumulative doses'!J76) ->  | K111: =('Summary Cumulative doses'!K76) -> 
A112: Polonium-210 | B112: =('Summary Cumulative doses'!B77) -> - | C112: =('Summary Cumulative doses'!C77) -> 0 | D112: =('Summary Cumulative doses'!D77) -> 0 | E112: =('Summary Cumulative doses'!E77) -> 0 | F112: =('Summary Cumulative doses'!F77) -> 0 | G112: =('Summary Cumulative doses'!G77) -> 0 | H112: =('Summary Cumulative doses'!H77) -> 0 | I112: =('Summary Cumulative doses'!I77) -> 0 | J112: =('Summary Cumulative doses'!J77) ->  | K112: =('Summary Cumulative doses'!K77) -> 
A113: Radium-223 | B113: =('Summary Cumulative doses'!B78) -> - | C113: =('Summary Cumulative doses'!C78) -> 0 | D113: =('Summary Cumulative doses'!D78) -> 0 | E113: =('Summary Cumulative doses'!E78) -> 0 | F113: =('Summary Cumulative doses'!F78) -> 0 | G113: =('Summary Cumulative doses'!G78) -> 0 | H113: =('Summary Cumulative doses'!H78) -> 0 | I113: =('Summary Cumulative doses'!I78) -> 0 | J113: =('Summary Cumulative doses'!J78) ->  | K113: =('Summary Cumulative doses'!K78) -> 
A114: Radium-226 | B114: =('Summary Cumulative doses'!B79) -> - | C114: =('Summary Cumulative doses'!C79) -> 0 | D114: =('Summary Cumulative doses'!D79) -> 0 | E114: =('Summary Cumulative doses'!E79) -> 0 | F114: =('Summary Cumulative doses'!F79) -> 0 | G114: =('Summary Cumulative doses'!G79) -> 0 | H114: =('Summary Cumulative doses'!H79) -> 0 | I114: =('Summary Cumulative doses'!I79) -> 0 | J114: =('Summary Cumulative doses'!J79) ->  | K114: =('Summary Cumulative doses'!K79) -> 
A115: Thorium-230 | B115: =('Summary Cumulative doses'!B80) -> - | C115: =('Summary Cumulative doses'!C80) -> 0 | D115: =('Summary Cumulative doses'!D80) -> 0 | E115: =('Summary Cumulative doses'!E80) -> 0 | F115: =('Summary Cumulative doses'!F80) -> 0 | G115: =('Summary Cumulative doses'!G80) -> 0 | H115: =('Summary Cumulative doses'!H80) -> 0 | I115: =('Summary Cumulative doses'!I80) -> 0 | J115: =('Summary Cumulative doses'!J80) ->  | K115: =('Summary Cumulative doses'!K80) -> 
A116: Thorium-232 | B116: =('Summary Cumulative doses'!B81) -> - | C116: =('Summary Cumulative doses'!C81) -> 0 | D116: =('Summary Cumulative doses'!D81) -> 0 | E116: =('Summary Cumulative doses'!E81) -> 0 | F116: =('Summary Cumulative doses'!F81) -> 0 | G116: =('Summary Cumulative doses'!G81) -> 0 | H116: =('Summary Cumulative doses'!H81) -> 0 | I116: =('Summary Cumulative doses'!I81) -> 0 | J116: =('Summary Cumulative doses'!J81) ->  | K116: =('Summary Cumulative doses'!K81) -> 
A117: Thorium-234 | B117: =('Summary Cumulative doses'!B82) -> - | C117: =('Summary Cumulative doses'!C82) -> 0 | D117: =('Summary Cumulative doses'!D82) -> 0 | E117: =('Summary Cumulative doses'!E82) -> 0 | F117: =('Summary Cumulative doses'!F82) -> 0 | G117: =('Summary Cumulative doses'!G82) -> 0 | H117: =('Summary Cumulative doses'!H82) -> 0 | I117: =('Summary Cumulative doses'!I82) -> 0 | J117: =('Summary Cumulative doses'!J82) ->  | K117: =('Summary Cumulative doses'!K82) -> 
A118: Uranium-234 | B118: =('Summary Cumulative doses'!B83) -> - | C118: =('Summary Cumulative doses'!C83) -> 0 | D118: =('Summary Cumulative doses'!D83) -> 0 | E118: =('Summary Cumulative doses'!E83) -> 0 | F118: =('Summary Cumulative doses'!F83) -> 0 | G118: =('Summary Cumulative doses'!G83) -> 0 | H118: =('Summary Cumulative doses'!H83) -> 0 | I118: =('Summary Cumulative doses'!I83) -> 0 | J118: =('Summary Cumulative doses'!J83) ->  | K118: =('Summary Cumulative doses'!K83) -> 
A119: Uranium-235 | B119: =('Summary Cumulative doses'!B84) -> - | C119: =('Summary Cumulative doses'!C84) -> 0 | D119: =('Summary Cumulative doses'!D84) -> 0 | E119: =('Summary Cumulative doses'!E84) -> 0 | F119: =('Summary Cumulative doses'!F84) -> 0 | G119: =('Summary Cumulative doses'!G84) -> 0 | H119: =('Summary Cumulative doses'!H84) -> 0 | I119: =('Summary Cumulative doses'!I84) -> 0 | J119: =('Summary Cumulative doses'!J84) ->  | K119: =('Summary Cumulative doses'!K84) -> 
A120: Uranium-238 | B120: =('Summary Cumulative doses'!B85) -> - | C120: =('Summary Cumulative doses'!C85) -> 0 | D120: =('Summary Cumulative doses'!D85) -> 0 | E120: =('Summary Cumulative doses'!E85) -> 0 | F120: =('Summary Cumulative doses'!F85) -> 0 | G120: =('Summary Cumulative doses'!G85) -> 0 | H120: =('Summary Cumulative doses'!H85) -> 0 | I120: =('Summary Cumulative doses'!I85) -> 0 | J120: =('Summary Cumulative doses'!J85) ->  | K120: =('Summary Cumulative doses'!K85) -> 
A121: Neptunium-237 | B121: =('Summary Cumulative doses'!B86) -> - | C121: =('Summary Cumulative doses'!C86) -> 0 | D121: =('Summary Cumulative doses'!D86) -> 0 | E121: =('Summary Cumulative doses'!E86) -> 0 | F121: =('Summary Cumulative doses'!F86) -> 0 | G121: =('Summary Cumulative doses'!G86) -> 0 | H121: =('Summary Cumulative doses'!H86) -> 0 | I121: =('Summary Cumulative doses'!I86) -> 0 | J121: =('Summary Cumulative doses'!J86) ->  | K121: =('Summary Cumulative doses'!K86) -> 
A122: Plutonium-238 | B122: =('Summary Cumulative doses'!B87) -> - | C122: =('Summary Cumulative doses'!C87) -> 0 | D122: =('Summary Cumulative doses'!D87) -> 0 | E122: =('Summary Cumulative doses'!E87) -> 0 | F122: =('Summary Cumulative doses'!F87) -> 0 | G122: =('Summary Cumulative doses'!G87) -> 0 | H122: =('Summary Cumulative doses'!H87) -> 0 | I122: =('Summary Cumulative doses'!I87) -> 0 | J122: =('Summary Cumulative doses'!J87) ->  | K122: =('Summary Cumulative doses'!K87) -> 
A123: Plutonium-239 | B123: =('Summary Cumulative doses'!B88) -> - | C123: =('Summary Cumulative doses'!C88) -> 0 | D123: =('Summary Cumulative doses'!D88) -> 0 | E123: =('Summary Cumulative doses'!E88) -> 0 | F123: =('Summary Cumulative doses'!F88) -> 0 | G123: =('Summary Cumulative doses'!G88) -> 0 | H123: =('Summary Cumulative doses'!H88) -> 0 | I123: =('Summary Cumulative doses'!I88) -> 0 | J123: =('Summary Cumulative doses'!J88) ->  | K123: =('Summary Cumulative doses'!K88) -> 
A124: Plutonium-240 | B124: =('Summary Cumulative doses'!B89) -> - | C124: =('Summary Cumulative doses'!C89) -> 0 | D124: =('Summary Cumulative doses'!D89) -> 0 | E124: =('Summary Cumulative doses'!E89) -> 0 | F124: =('Summary Cumulative doses'!F89) -> 0 | G124: =('Summary Cumulative doses'!G89) -> 0 | H124: =('Summary Cumulative doses'!H89) -> 0 | I124: =('Summary Cumulative doses'!I89) -> 0 | J124: =('Summary Cumulative doses'!J89) ->  | K124: =('Summary Cumulative doses'!K89) -> 
A125: Plutonium-241 | B125: =('Summary Cumulative doses'!B90) -> - | C125: =('Summary Cumulative doses'!C90) -> 0 | D125: =('Summary Cumulative doses'!D90) -> 0 | E125: =('Summary Cumulative doses'!E90) -> 0 | F125: =('Summary Cumulative doses'!F90) -> 0 | G125: =('Summary Cumulative doses'!G90) -> 0 | H125: =('Summary Cumulative doses'!H90) -> 0 | I125: =('Summary Cumulative doses'!I90) -> 0 | J125: =('Summary Cumulative doses'!J90) ->  | K125: =('Summary Cumulative doses'!K90) -> 
A126: Plutonium-242 | B126: =('Summary Cumulative doses'!B91) -> - | C126: =('Summary Cumulative doses'!C91) -> 0 | D126: =('Summary Cumulative doses'!D91) -> 0 | E126: =('Summary Cumulative doses'!E91) -> 0 | F126: =('Summary Cumulative doses'!F91) -> 0 | G126: =('Summary Cumulative doses'!G91) -> 0 | H126: =('Summary Cumulative doses'!H91) -> 0 | I126: =('Summary Cumulative doses'!I91) -> 0 | J126: =('Summary Cumulative doses'!J91) ->  | K126: =('Summary Cumulative doses'!K91) -> 
A127: Americium-241 | B127: =('Summary Cumulative doses'!B92) -> - | C127: =('Summary Cumulative doses'!C92) -> 0 | D127: =('Summary Cumulative doses'!D92) -> 0 | E127: =('Summary Cumulative doses'!E92) -> 0 | F127: =('Summary Cumulative doses'!F92) -> 0 | G127: =('Summary Cumulative doses'!G92) -> 0 | H127: =('Summary Cumulative doses'!H92) -> 0 | I127: =('Summary Cumulative doses'!I92) -> 0 | J127: =('Summary Cumulative doses'!J92) ->  | K127: =('Summary Cumulative doses'!K92) -> 
A128: Americium-242 | B128: =('Summary Cumulative doses'!B93) -> - | C128: =('Summary Cumulative doses'!C93) -> 0 | D128: =('Summary Cumulative doses'!D93) -> 0 | E128: =('Summary Cumulative doses'!E93) -> 0 | F128: =('Summary Cumulative doses'!F93) -> 0 | G128: =('Summary Cumulative doses'!G93) -> 0 | H128: =('Summary Cumulative doses'!H93) -> 0 | I128: =('Summary Cumulative doses'!I93) -> 0 | J128: =('Summary Cumulative doses'!J93) ->  | K128: =('Summary Cumulative doses'!K93) -> 
A129: Americium-243 | B129: =('Summary Cumulative doses'!B94) -> - | C129: =('Summary Cumulative doses'!C94) -> 0 | D129: =('Summary Cumulative doses'!D94) -> 0 | E129: =('Summary Cumulative doses'!E94) -> 0 | F129: =('Summary Cumulative doses'!F94) -> 0 | G129: =('Summary Cumulative doses'!G94) -> 0 | H129: =('Summary Cumulative doses'!H94) -> 0 | I129: =('Summary Cumulative doses'!I94) -> 0 | J129: =('Summary Cumulative doses'!J94) ->  | K129: =('Summary Cumulative doses'!K94) -> 
A130: Curium-242 | B130: =('Summary Cumulative doses'!B95) -> - | C130: =('Summary Cumulative doses'!C95) -> 0 | D130: =('Summary Cumulative doses'!D95) -> 0 | E130: =('Summary Cumulative doses'!E95) -> 0 | F130: =('Summary Cumulative doses'!F95) -> 0 | G130: =('Summary Cumulative doses'!G95) -> 0 | H130: =('Summary Cumulative doses'!H95) -> 0 | I130: =('Summary Cumulative doses'!I95) -> 0 | J130: =('Summary Cumulative doses'!J95) ->  | K130: =('Summary Cumulative doses'!K95) -> 
A131: Curium-243 | B131: =('Summary Cumulative doses'!B96) -> - | C131: =('Summary Cumulative doses'!C96) -> 0 | D131: =('Summary Cumulative doses'!D96) -> 0 | E131: =('Summary Cumulative doses'!E96) -> 0 | F131: =('Summary Cumulative doses'!F96) -> 0 | G131: =('Summary Cumulative doses'!G96) -> 0 | H131: =('Summary Cumulative doses'!H96) -> 0 | I131: =('Summary Cumulative doses'!I96) -> 0 | J131: =('Summary Cumulative doses'!J96) ->  | K131: =('Summary Cumulative doses'!K96) -> 
A132: Curium-244 | B132: =('Summary Cumulative doses'!B97) -> - | C132: =('Summary Cumulative doses'!C97) -> 0 | D132: =('Summary Cumulative doses'!D97) -> 0 | E132: =('Summary Cumulative doses'!E97) -> 0 | F132: =('Summary Cumulative doses'!F97) -> 0 | G132: =('Summary Cumulative doses'!G97) -> 0 | H132: =('Summary Cumulative doses'!H97) -> 0 | I132: =('Summary Cumulative doses'!I97) -> 0 | J132: =('Summary Cumulative doses'!J97) ->  | K132: =('Summary Cumulative doses'!K97) -> 
A133: Other alpha-emitting nuclides | B133: =('Summary Cumulative doses'!B98) -> Radium-226 | C133: =('Summary Cumulative doses'!C98) -> 0 | D133: =('Summary Cumulative doses'!D98) -> 0 | E133: =('Summary Cumulative doses'!E98) -> 0 | F133: =('Summary Cumulative doses'!F98) -> 0 | G133: =('Summary Cumulative doses'!G98) -> 0 | H133: =('Summary Cumulative doses'!H98) -> 0 | I133: =('Summary Cumulative doses'!I98) -> 0 | J133: =('Summary Cumulative doses'!J98) ->  | K133: =('Summary Cumulative doses'!K98) -> 
A134: Other beta/gamma-emitting nuclides | B134: =('Summary Cumulative doses'!B99) -> Caesium-137 | C134: =('Summary Cumulative doses'!C99) -> 0 | D134: =('Summary Cumulative doses'!D99) -> 0 | E134: =('Summary Cumulative doses'!E99) -> 0 | F134: =('Summary Cumulative doses'!F99) -> 0 | G134: =('Summary Cumulative doses'!G99) -> 0 | H134: =('Summary Cumulative doses'!H99) -> 0 | I134: =('Summary Cumulative doses'!I99) -> 0 | J134: =('Summary Cumulative doses'!J99) ->  | K134: =('Summary Cumulative doses'!K99) -> 
A136: Notes:
E151: PAGE 2

Sheet Summary Cumulative doses Wildli
A1: Wildlife Summary Total Doses
A3: Radionuclide | B3: Surrogate radionuclide | C3: River Wildlife Cumulative dose | D3: River Worst affected organisms | F3: Radionuclide | G3: Surrogate radionuclide | H3: Estuary Wildlife Cumulative dose | I3: Estuary Worst affected organisms
C4: microGy/h | H4: =(C4) -> microGy/h
A5: Tritium | B5: - | C5: 0 | D5: Amphibian ; Aqu. mammal; Atlantic salmon; Avocet ; Bacteria ; Bar-tailed godwit; Benthic fish; Benthic mollusc; Bewicks swan; Bittern ; Black-tailed godwit; Brent goose; Brook lamprey; Bullhead ; Common scoter; Cormorant ; Curlew ; Desmoulins whorl snail ; Duck ; Dunlin ; Early gentian; Fen orchid; Gadwall ; Golden plover; Great crested grebe ; Great crested newt ; Grey plover; Hen harrier (female) ; Hen harrier (male) ; Knot ; Lapwing ; Large b. crust. ; Lesser blackbacked gull (male); Lesser blackbacked gull (female); Macrophyte ; Marsh harrier; Mediterraneangull ; Natterjack toad; Otter (male and female); Oystercatcher ; Pelagic fish; Phytoplankton ; Pink-footed goose; Pintail ; Redshank ; Ringed plover; River lamprey; Ruff ; Sanderling ; Scaup ; Sea lamprey; Shelduck (male); Allis shad; Shelduck (female); Shoveler ; Small b. crust. ; Snipe ; Southern damselfly; Spined loach; Teal (male); Teal (female); Tufted duck (male) ; Tufted duck (female) ; Turnstone ; Twaite shad; White-fronted goose; Whooper swan; Wigeon ; Zooplankton | F5: Tritium | G5: - | H5: 0 | I5: Grey _seal ; Whale ; Allis _shad ; Atlantic _salmon ; Avocet; Bacteria; Bar-tailed _godwit ; Benthic _fish ; Benthic _mollusc ; Bewicks _swan ; Bittern; Black-tailed _godwit ; Brent _goose ; Chough; Common _scoter ; Common _seal ; Common _tern ; Cormorant; Curlew; Dunlin; Fish _egg ; Gadwall; Gannet; Golden _plover ; Great _crested ; Grey _plover ; Gulliemot; Hen _harrier ; Kittewake; Knot; Lapwing; Large _b. ; Little _tern ; Macrophyte; Manx _shearwater ; Marsh _harrier ; Mediterranean _gull ; Otter _(female) ; Otter _(male) ; Oystercatcher; Pelagic _fish ; Peregrine; Phytoplankton; Pink-footed _goose ; Pintail; Puffin; Razorbill; Redshank; Ringed _plover ; River _lamprey ; Ruff; Sanderling; Sandwich _tern ; Scaup; Sea _lamprey ; Seabird; Seal; Shelduck _(female) ; Shelduck _(male) ; Small _b. ; Snipe; Storm _petrel ; Teal ; Tufted _duck ; Tufted _duck ; Turnstone ; Twaite _shad ; White-fronted _goose | J5: =(C5+H5) -> 0
A6: Tritium (Organically Bound) | B6: - | C6: 0 | D6: Aqu. mammal; Avocet ; Bar-tailed godwit; Benthic mollusc; Bewicks swan; Bittern ; Black-tailed godwit; Brent goose; Common scoter; Cormorant ; Curlew ; Desmoulins whorl snail ; Duck ; Dunlin ; Gadwall ; Golden plover; Great crested grebe ; Great crested newt ; Grey plover; Hen harrier (female) ; Hen harrier (male) ; Knot ; Lapwing ; Large b. crust. ; Lesser blackbacked gull (female); Lesser blackbacked gull (male); Marsh harrier; Mediterraneangull ; Natterjack toad; Otter (male and female); Oystercatcher ; Pink-footed goose; Pintail ; Redshank ; Ringed plover; Ruff ; Sanderling ; Scaup ; Shelduck (female); Shelduck (male); Shoveler ; Snipe ; Southern damselfly; Teal (female); Teal (male); Tufted duck (female) ; Tufted duck (male) ; Turnstone ; White-fronted goose; Whooper swan; Wigeon | F6: Tritium (Organically Bound) | G6: - | H6: 0 | I6: Grey _seal ; Twaite _shad ; Allis _shad ; Atlantic _salmon ; Avocet; Bacteria; Bar-tailed _godwit ; Benthic _fish ; Benthic _mollusc ; Bewicks _swan ; Bittern; Black-tailed _godwit ; Brent _goose ; Chough; Common _scoter ; Common _seal ; Common _tern ; Cormorant; Curlew; Dunlin; Fish _egg ; Gadwall; Gannet; Golden _plover ; Great _crested ; Grey _plover ; Gulliemot; Hen _harrier ; Kittewake; Knot; Lapwing; Large _b. ; Lesser _blackbacked ; Little _tern ; Macrophyte; Manx _shearwater ; Marsh _harrier ; Mediterranean _gull ; Otter _(female) ; Otter _(male) ; Oystercatcher; Pelagic _fish ; Peregrine; Phytoplankton; Pink-footed _goose ; Pintail; Puffin; Razorbill; Redshank; Ringed _plover ; River _lamprey ; Ruff; Sanderling; Sandwich _tern ; Scaup; Sea _lamprey ; Seabird; Seal; Shelduck _(female) ; Shelduck _(male) ; Small _b. ; Snipe; Storm _petrel ; Teal ; Tufted _duck ; Tufted _duck ; Turnstone ; Whale | J6: 0
A7: Carbon-11 | B7: - | C7: 0 | D7: None | F7: Carbon-11 | G7: - | H7: 0 | I7: None | J7: 0
A8: Carbon-14 | B8: - | C8: 0 | D8: Amphibian ; Aqu. mammal; Avocet ; Bar-tailed godwit; Benthic mollusc; Bewicks swan; Bittern ; Black-tailed godwit; Brent goose; Common scoter; Cormorant ; Curlew ; Desmoulins whorl snail ; Duck ; Dunlin ; Gadwall ; Golden plover; Great crested grebe ; Great crested newt ; Grey plover; Hen harrier (female) ; Hen harrier (male) ; Knot ; Lapwing ; Large b. crust. ; Lesser blackbacked gull (female); Lesser blackbacked gull (male); Marsh harrier; Mediterraneangull ; Natterjack toad; Otter (male and female); Oystercatcher ; Pink-footed goose; Pintail ; Redshank ; Ringed plover; Ruff ; Sanderling ; Scaup ; Shelduck (female); Shelduck (male); Shoveler ; Snipe ; Southern damselfly; Teal (female); Teal (male); Tufted duck (female) ; Tufted duck (male) ; Turnstone ; White-fronted goose; Whooper swan; Wigeon | F8: Carbon-14 | G8: - | H8: 0 | I8: Allis _shad ; Atlantic _salmon ; Avocet; Bar-tailed _godwit ; Benthic _fish ; Benthic _mollusc ; Bewicks _swan ; Bittern; Black-tailed _godwit ; Brent _goose ; Chough; Common _scoter ; Common _seal ; Common _tern ; Cormorant; Curlew; Dunlin; Gadwall; Gannet; Golden _plover ; Great _crested ; Grey _plover ; Grey _seal ; Gulliemot; Hen _harrier ; Kittewake; Knot; Lapwing; Large _b. ; Lesser _blackbacked ; Little _tern ; Manx _shearwater ; Marsh _harrier ; Mediterranean _gull ; Otter _(female) ; Otter _(male) ; Oystercatcher; Pelagic _fish ; Peregrine; Pink-footed _goose ; Pintail; Puffin; Razorbill; Redshank; Ringed _plover ; River _lamprey ; Ruff; Sanderling; Sandwich _tern ; Scaup; Sea _lamprey ; Seabird; Seal; Shelduck _(female) ; Shelduck _(male) ; Snipe; Storm _petrel ; Teal ; Tufted _duck ; Tufted _duck ; Turnstone ; Twaite _shad ; Whale ; White-fronted _goose ; ; | J8: 0
A9: Fluorine-18 | B9: Sodium-24 | C9: 0 | D9: Amphibian ; Aqu. mammal; Avocet ; Bar-tailed godwit; Z; Bewicks swan; Bittern ; Black-tailed godwit; Brent goose; Common scoter; Cormorant ; Curlew ; Z; Duck ; Dunlin ; Gadwall ; Golden plover; Great crested grebe ; Great crested newt ; Grey plover; Hen harrier (female) ; Hen harrier (male) ; Knot ; Lapwing ; Z; Lesser blackbacked gull (female); Lesser blackbacked gull (male); Marsh harrier; Mediterraneangull ; Natterjack toad; Otter (male and female); Oystercatcher ; Pink-footed goose; Pintail ; Redshank ; Ringed plover; Ruff ; Sanderling ; Scaup ; Shelduck (female); Shelduck (male); Shoveler ; Snipe ; Z; Teal (female); Teal (male); Tufted duck (female) ; Tufted duck (male) ; Turnstone ; White-fronted goose; Whooper swan; Wigeon | F9: Fluorine-18 | G9: Sodium-24 | H9: 0 | I9: Bewicks _swan ; Bittern; Chough; Common _seal ; Cormorant; Grey _seal ; Lapwing; Otter _(male) ; Pink-footed _goose ; Scaup; Seal; Whale ; | J9: 0
A10: Sodium-22 | B10: - | C10: 0 | D10: Brook lamprey; Golden plover; Grey plover; Knot ; Lapwing ; Otter (male and female); Pink-footed goose; Ruff ; Sanderling ; Sea lamprey; Snipe ; White-fronted goose | F10: Sodium-22 | G10: - | H10: 0 | I10: Grey _seal ; Whale | J10: 0
A11: Sodium-24 | B11: - | C11: 0 | D11: Brook lamprey; Golden plover; Grey plover; Knot ; Lapwing ; Otter (male and female); Pink-footed goose; Ruff ; Sanderling ; Sea lamprey; Snipe ; White-fronted goose | F11: Sodium-24 | G11: - | H11: 0 | I11: Grey _seal ; Whale | J11: 0
A12: Phosphorus-32 | B12: - | C12: 0 | D12: Brook lamprey; Golden plover; Grey plover; Knot ; Lapwing ; Otter (male and female); Pink-footed goose; Ruff ; Sanderling ; Sea lamprey; Snipe ; White-fronted goose | F12: Phosphorus-32 | G12: - | H12: 0 | I12: Allis _shad ; Atlantic _salmon ; Avocet; Bar-tailed _godwit ; Benthic _fish ; Benthic _mollusc ; Bewicks _swan ; Bittern; Black-tailed _godwit ; Brent _goose ; Chough; Common _scoter ; Common _seal ; Common _tern ; Cormorant; Curlew; Dunlin; Gadwall; Gannet; Golden _plover ; Great _crested ; Grey _plover ; Grey _seal ; Gulliemot; Hen _harrier ; Kittewake; Knot; Lapwing; Large _b. ; Lesser _blackbacked ; Little _tern ; Manx _shearwater ; Marsh _harrier ; Mediterranean _gull ; Otter _(female) ; Otter _(male) ; Oystercatcher; Pelagic _fish ; Peregrine; Pink-footed _goose ; Pintail; Puffin; Razorbill; Redshank; Ringed _plover ; River _lamprey ; Ruff; Sanderling; Sandwich _tern ; Scaup; Sea _lamprey ; Seabird; Seal; Shelduck _(female) ; Shelduck _(male) ; Snipe; Storm _petrel ; Teal ; Tufted _duck ; Tufted _duck ; Turnstone ; Twaite _shad ; Whale ; White-fronted _goose ; ; | J12: 0
A13: Phosphorus-33 | B13: - | C13: 0 | D13: Brook lamprey; Golden plover; Grey plover; Knot ; Lapwing ; Otter (male and female); Pink-footed goose; Ruff ; Sanderling ; Sea lamprey; Snipe ; White-fronted goose | F13: Phosphorus-33 | G13: - | H13: 0 | I13: Allis _shad ; Atlantic _salmon ; Avocet; Bar-tailed _godwit ; Benthic _fish ; Benthic _mollusc ; Bewicks _swan ; Bittern; Black-tailed _godwit ; Brent _goose ; Chough; Common _scoter ; Common _seal ; Common _tern ; Cormorant; Curlew; Dunlin; Gadwall; Gannet; Golden _plover ; Great _crested ; Grey _plover ; Grey _seal ; Gulliemot; Hen _harrier ; Kittewake; Knot; Lapwing; Large _b. ; Lesser _blackbacked ; Little _tern ; Manx _shearwater ; Marsh _harrier ; Mediterranean _gull ; Otter _(female) ; Otter _(male) ; Oystercatcher; Pelagic _fish ; Peregrine; Pink-footed _goose ; Pintail; Puffin; Razorbill; Redshank; Ringed _plover ; River _lamprey ; Ruff; Sanderling; Sandwich _tern ; Scaup; Sea _lamprey ; Seabird; Seal; Shelduck _(female) ; Shelduck _(male) ; Snipe; Storm _petrel ; Teal ; Tufted _duck ; Tufted _duck ; Turnstone ; Twaite _shad ; Whale ; White-fronted _goose ; ; | J13: 0
A14: Sulphur-35 | B14: - | C14: 0 | D14: Amphibian ; Aqu. mammal; Avocet ; Bar-tailed godwit; Benthic mollusc; Bewicks swan; Bittern ; Black-tailed godwit; Brent goose; Common scoter; Cormorant ; Curlew ; Desmoulins whorl snail ; Duck ; Dunlin ; Gadwall ; Golden plover; Great crested grebe ; Great crested newt ; Grey plover; Hen harrier (female) ; Hen harrier (male) ; Knot ; Lapwing ; Large b. crust. ; Lesser blackbacked gull (female); Lesser blackbacked gull (male); Marsh harrier; Mediterraneangull ; Natterjack toad; Otter (male and female); Oystercatcher ; Pink-footed goose; Pintail ; Redshank ; Ringed plover; Ruff ; Sanderling ; Scaup ; Shelduck (female); Shelduck (male); Shoveler ; Snipe ; Southern damselfly; Teal (female); Teal (male); Tufted duck (female) ; Tufted duck (male) ; Turnstone ; White-fronted goose; Whooper swan; Wigeon | F14: Sulphur-35 | G14: - | H14: 0 | I14: Grey _seal ; Whale | J14: 0
A15: Chlorine-36 | B15: - | C15: 0 | D15: Bewicks swan; Bittern ; Common scoter; Cormorant ; Duck ; Dunlin ; Golden plover; Grey plover; Knot ; Lapwing ; Otter (male and female); Pink-footed goose; Ruff ; Sanderling ; Scaup ; Shelduck (male); Snipe ; Tufted duck (male) ; White-fronted goose; Whooper swan | F15: Chlorine-36 | G15: - | H15: 0 | I15: Grey _seal ; Whale | J15: 0
